Workbook

Sheet CALCULADORA
B1: Exclusión de responsabilidad | H1: Valor nominal negociado
H2: TIPS N13 A
H3: TIPS N14 A
H4: TIPS N15 A
H5: TIPS N16 A
H6: TIPS N17 A
B7: Calculadora Emisiones TIPS en Pesos | H7: TIPS N18 A 2034
H8: TIPS N19 A 2034
B9: Emisión | C9: TIPS N19 A 2034 | E9: Seleccionar la Emisión a Calcular | H9: TIPS N20 A 2034
H10: TIPS N21 A
B11: Características | H11: TIPS N22 A
B12: Identificación titulo (Nemotécnico) | C12: =+HLOOKUP(C9,Características!B1:N7,2,FALSE) -> INST15230534 | H12: TIPS N23 A
B13: Fecha de Emisión | C13: =+HLOOKUP(C9,Características!B1:N7,4,FALSE) -> 2021-07-23 | H13: TIPS N24 A1 2029
B14: Fecha de Vencimiento Contractual | C14: =+HLOOKUP(C9,Características!B1:N7,5,FALSE) -> 2034-05-23 | H14: TIPS N24 A2 2039
B15: Fecha estimada para el pago del 100% del título | C15: =+VLOOKUP(0,Flujos!D2:J182,6,FALSE) -> 2031-06-23
B16: Tasa Facial Efectiva Anual | C16: =+HLOOKUP(C9,Características!B1:N7,6,FALSE) -> 0.0689
B17: Tasa Facial Nominal Anual | C17: =+ROUND(((1+C16)^(1/12)-1)*12,6) -> 0.066815
B18: Duración Macaulay | C18: =+SUMPRODUCT(Flujos!B2:B182,Flujos!H2:H182)/Flujos!H183/365 -> 2.444485813
B19: Nominal Inicial (Nominal del título al momento de la emisión) | C19: =Flujos!L2 -> 3.298543377e+11
B22: Datos de Compra | D22: Fecha de Compra y Valor de Compra son datos opcionales deben incluirse solo para calcular la TIR de Tenencia
B23: Fecha de Compra | C23: 2024-03-07
B24: Valor de Compra (COP) | C24: 15000000000
B26: Datos de Venta
B27: Fecha de Venta | C27: 2024-10-01 | E27: Incluir los datos de las celdas grises
B28: Valor nominal a negociar (COP) | C28: 172658489425
B29: Tasa de negociación / tasa de valoración | C29: 0.109
B30: Precio Limpio (sin incluir intereses causados)
B31: Precio sucio (incluyendo intereses causados) | C31: 100.028
A32: =+Flujos!C183*100 -> 52.343859 | B32: Porcentaje del nominal inicial que falta por pagar del capital | C32: =+Flujos!C183*100/100 -> 0.52343859
B33: Valor de Giro (COP) | C33: =+Características!B32 -> 157961798805
B35: TIR de Tenencia en COP* | C35: =+'TIR de Tenencia'!K2 -> 272.5604691
B37: Oficina de Atención a Inversionistas al 601 618 3030 ext 257 - 239, o al correo asalcedo@titularizadora.com - josorio@titularizadora.com
C43: 1

Sheet Flujos
A1: Fecha | B1: Días 365 / Days 365 | C1: Amortización / Amortization | D1: Factor Saldo | E1: Factor Capital | F1: Factor Intereses | G1: Factor Total | H1: VPN | I1: Control | J1: Mes inicial | K1: Días iniciales | L1: Saldo / Balance | M1: Pago de Capital | N1: Pago de Intereses | O1: Pago Total
A2: =+CALCULADORA!C13 -> 2021-07-23 | B2: =IF(DIAS365(CALCULADORA!$C$27,A2)<0,0,DIAS365(CALCULADORA!$C$27,A2)) -> 0 | C2: 0 | D2: =+CALCULADORA!A32/Flujos!C183 -> 100 | E2: 0 | F2: 0 | G2: =F2+E2 -> 0 | H2: =IF($B2<0,0,G2/POWER(1+CALCULADORA!$C$29,Flujos!$B2/365)) -> 0 | I2: =+A2 -> 2021-07-23 | J2: 0 | K2: 0 | L2: =+Características!B18/Flujos!C183 -> 3.298543377e+11 | M2: 0 | N2: 0 | O2: =+N2+M2 -> 0
A3: =EDATE(A2,1) -> 2021-08-23 | B3: =IF(DIAS365(CALCULADORA!$C$27,A3)<0,0,DIAS365(CALCULADORA!$C$27,A3)) -> 0 | C3: =+HLOOKUP(CALCULADORA!$C$9,Tablas!B:B,Flujos!J3+1,FALSE) -> 0.01847045 | D3: =+ROUND(D2-E3,6) -> 98.152955 | E3: =ROUND(C3*$D$2,6) -> 1.847045 | F3: =ROUND(D2*ROUND(((1+CALCULADORA!$C$16)^(1/12)-1),6),6) -> 0.5568 | G3: =F3+E3 -> 2.403845 | H3: =IF($B3=0,0,G3/POWER(1+CALCULADORA!$C$29,Flujos!$B3/365)) -> 0 | I3: =+A3 -> 2021-08-23 | J3: 1 | K3: =+DIAS365($A$2,A3) -> 31 | L3: =+L2-M3 -> 3.237617796e+11 | M3: =+$L$2*C3 -> 6092558052 | N3: =+L2*$F$3% -> 1836628952 | O3: =+N3+M3 -> 7929187004
A4: =EDATE(A3,1) -> 2021-09-23 | B4: =IF(DIAS365(CALCULADORA!$C$27,A4)<0,0,DIAS365(CALCULADORA!$C$27,A4)) -> 0 | C4: =+HLOOKUP(CALCULADORA!$C$9,Tablas!B:B,Flujos!J4+1,FALSE) -> 0.02392001 | D4: =+ROUND(D3-E4,6) -> 95.760954 | E4: =ROUND(C4*$D$2,6) -> 2.392001 | F4: =ROUND(D3*ROUND(((1+CALCULADORA!$C$16)^(1/12)-1),6),6) -> 0.546516 | G4: =F4+E4 -> 2.938517 | H4: =IF($B4=0,0,G4/POWER(1+CALCULADORA!$C$29,Flujos!$B4/365)) -> 0 | I4: 2021-09-23 | J4: 2 | K4: =+DIAS365($A$2,A4) -> 62 | L4: =+L3-M4 -> 3.158716606e+11 | M4: =+$L$2*C4 -> 7890119056 | N4: =+L3*$F$3% -> 1802705589 | O4: =+N4+M4 -> 9692824645
A5: 2021-10-23 | B5: =IF(DIAS365(CALCULADORA!$C$27,A5)<0,0,DIAS365(CALCULADORA!$C$27,A5)) -> 0 | C5: =+HLOOKUP(CALCULADORA!$C$9,Tablas!B:B,Flujos!J5+1,FALSE) -> 0.02116353 | D5: =+ROUND(D4-E5,6) -> 93.644601 | E5: 2.116353 | F5: =ROUND(D4*ROUND(((1+CALCULADORA!$C$16)^(1/12)-1),6),6) -> 0.533197 | G5: 2.64955 | H5: =IF($B5=0,0,G5/POWER(1+CALCULADORA!$C$29,Flujos!$B5/365)) -> 0 | I5: 2021-10-23 | J5: 3 | K5: =+DIAS365($A$2,A5) -> 92 | L5: 3.088907784e+11 | M5: 6980882171 | N5: 1758773406 | O5: 8739655577
A6: 2021-11-23 | B6: =IF(DIAS365(CALCULADORA!$C$27,A6)<0,0,DIAS365(CALCULADORA!$C$27,A6)) -> 0 | C6: =+HLOOKUP(CALCULADORA!$C$9,Tablas!B:B,Flujos!J6+1,FALSE) -> 0.01844168 | D6: 91.800433 | E6: 1.844168 | F6: =ROUND(D5*ROUND(((1+CALCULADORA!$C$16)^(1/12)-1),6),6) -> 0.521413 | G6: 2.365581 | H6: =IF($B6=0,0,G6/POWER(1+CALCULADORA!$C$29,Flujos!$B6/365)) -> 0 | I6: 2021-11-23 | J6: 4 | K6: =+DIAS365($A$2,A6) -> 123 | L6: 3.028077103e+11 | M6: 6083068142 | N6: 1719903854 | O6: 7802971996
A7: 2021-12-23 | B7: =IF(DIAS365(CALCULADORA!$C$27,A7)<0,0,DIAS365(CALCULADORA!$C$27,A7)) -> 0 | C7: =+HLOOKUP(CALCULADORA!$C$9,Tablas!B:B,Flujos!J7+1,FALSE) -> 0.02002614 | D7: 89.797819 | E7: 2.002614 | F7: =ROUND(D6*ROUND(((1+CALCULADORA!$C$16)^(1/12)-1),6),6) -> 0.511145 | G7: 2.513759 | H7: =IF($B7=0,0,G7/POWER(1+CALCULADORA!$C$29,Flujos!$B7/365)) -> 0 | I7: 2021-12-23 | J7: 5 | K7: =+DIAS365($A$2,A7) -> 153 | L7: 2.962020011e+11 | M7: 6605709146 | N7: 1686033331 | O7: 8291742477
A8: 2022-01-23 | B8: =IF(DIAS365(CALCULADORA!$C$27,A8)<0,0,DIAS365(CALCULADORA!$C$27,A8)) -> 0 | C8: =+HLOOKUP(CALCULADORA!$C$9,Tablas!B:B,Flujos!J8+1,FALSE) -> 0.01920896 | D8: 87.876923 | E8: 1.920896 | F8: =ROUND(D7*ROUND(((1+CALCULADORA!$C$16)^(1/12)-1),6),6) -> 0.499994 | G8: 2.42089 | H8: =IF($B8=0,0,G8/POWER(1+CALCULADORA!$C$29,Flujos!$B8/365)) -> 0 | I8: 2022-01-23 | J8: 6 | K8: =+DIAS365($A$2,A8) -> 184 | L8: 2.898658423e+11 | M8: 6336158778 | N8: 1649252742 | O8: 7985411521
A9: 2022-02-23 | B9: =IF(DIAS365(CALCULADORA!$C$27,A9)<0,0,DIAS365(CALCULADORA!$C$27,A9)) -> 0 | C9: =+HLOOKUP(CALCULADORA!$C$9,Tablas!B:B,Flujos!J9+1,FALSE) -> 0.0156808 | D9: 86.308843 | E9: 1.56808 | F9: =ROUND(D8*ROUND(((1+CALCULADORA!$C$16)^(1/12)-1),6),6) -> 0.489299 | G9: 2.057379 | H9: =IF($B9=0,0,G9/POWER(1+CALCULADORA!$C$29,Flujos!$B9/365)) -> 0 | I9: 2022-02-23 | J9: 7 | K9: =+DIAS365($A$2,A9) -> 215 | L9: 2.846934624e+11 | M9: 5172379898 | N9: 1613973010 | O9: 6786352909
A10: 2022-03-23 | B10: =IF(DIAS365(CALCULADORA!$C$27,A10)<0,0,DIAS365(CALCULADORA!$C$27,A10)) -> 0 | C10: =+HLOOKUP(CALCULADORA!$C$9,Tablas!B:B,Flujos!J10+1,FALSE) -> 0.02031004 | D10: 84.277839 | E10: 2.031004 | F10: =ROUND(D9*ROUND(((1+CALCULADORA!$C$16)^(1/12)-1),6),6) -> 0.480568 | G10: 2.511572 | H10: =IF($B10=0,0,G10/POWER(1+CALCULADORA!$C$29,Flujos!$B10/365)) -> 0 | I10: 2022-03-23 | J10: 8 | K10: =+DIAS365($A$2,A10) -> 243 | L10: 2.779941077e+11 | M10: 6699354793 | N10: 1585173199 | O10: 8284527992
A11: 2022-04-23 | B11: =IF(DIAS365(CALCULADORA!$C$27,A11)<0,0,DIAS365(CALCULADORA!$C$27,A11)) -> 0 | C11: =+HLOOKUP(CALCULADORA!$C$9,Tablas!B:B,Flujos!J11+1,FALSE) -> 0.01653618 | D11: 82.624221 | E11: 1.653618 | F11: =ROUND(D10*ROUND(((1+CALCULADORA!$C$16)^(1/12)-1),6),6) -> 0.469259 | G11: 2.122877 | H11: =IF($B11=0,0,G11/POWER(1+CALCULADORA!$C$29,Flujos!$B11/365)) -> 0 | I11: 2022-04-23 | J11: 9 | K11: =+DIAS365($A$2,A11) -> 274 | L11: 2.725395769e+11 | M11: 5454530702 | N11: 1547871191 | O11: 7002401893
A12: 2022-05-23 | B12: =IF(DIAS365(CALCULADORA!$C$27,A12)<0,0,DIAS365(CALCULADORA!$C$27,A12)) -> 0 | C12: =+HLOOKUP(CALCULADORA!$C$9,Tablas!B:B,Flujos!J12+1,FALSE) -> 0.01068205 | D12: 81.556016 | E12: 1.068205 | F12: =ROUND(D11*ROUND(((1+CALCULADORA!$C$16)^(1/12)-1),6),6) -> 0.460052 | G12: 1.528257 | H12: =IF($B12=0,0,G12/POWER(1+CALCULADORA!$C$29,Flujos!$B12/365)) -> 0 | I12: 2022-05-23 | J12: 10 | K12: =+DIAS365($A$2,A12) -> 304 | L12: 2.690160564e+11 | M12: 3523520528 | N12: 1517500364 | O12: 5041020892
A13: 2022-06-23 | B13: =IF(DIAS365(CALCULADORA!$C$27,A13)<0,0,DIAS365(CALCULADORA!$C$27,A13)) -> 0 | C13: =+HLOOKUP(CALCULADORA!$C$9,Tablas!B:B,Flujos!J13+1,FALSE) -> 0.0165158 | D13: 79.904436 | E13: 1.65158 | F13: =ROUND(D12*ROUND(((1+CALCULADORA!$C$16)^(1/12)-1),6),6) -> 0.454104 | G13: 2.105684 | H13: =IF($B13=0,0,G13/POWER(1+CALCULADORA!$C$29,Flujos!$B13/365)) -> 0 | I13: 2022-06-23 | J13: 11 | K13: =+DIAS365($A$2,A13) -> 335 | L13: 2.635682482e+11 | M13: 5447808270 | N13: 1497881402 | O13: 6945689673
A14: 2022-07-23 | B14: =IF(DIAS365(CALCULADORA!$C$27,A14)<0,0,DIAS365(CALCULADORA!$C$27,A14)) -> 0 | C14: =+HLOOKUP(CALCULADORA!$C$9,Tablas!B:B,Flujos!J14+1,FALSE) -> 0.01429638 | D14: 78.474798 | E14: 1.429638 | F14: =ROUND(D13*ROUND(((1+CALCULADORA!$C$16)^(1/12)-1),6),6) -> 0.444908 | G14: 1.874546 | H14: =IF($B14=0,0,G14/POWER(1+CALCULADORA!$C$29,Flujos!$B14/365)) -> 0 | I14: 2022-07-23 | J14: 12 | K14: =+DIAS365($A$2,A14) -> 365 | L14: 2.588525252e+11 | M14: 4715722956 | N14: 1467548006 | O14: 6183270962
A15: 2022-08-23 | B15: =IF(DIAS365(CALCULADORA!$C$27,A15)<0,0,DIAS365(CALCULADORA!$C$27,A15)) -> 0 | C15: =+HLOOKUP(CALCULADORA!$C$9,Tablas!B:B,Flujos!J15+1,FALSE) -> 0.00923389 | D15: 77.551409 | E15: 0.923389 | F15: =ROUND(D14*ROUND(((1+CALCULADORA!$C$16)^(1/12)-1),6),6) -> 0.436948 | G15: 1.360337 | H15: =IF($B15=0,0,G15/POWER(1+CALCULADORA!$C$29,Flujos!$B15/365)) -> 0 | I15: 2022-08-23 | J15: 13 | K15: =+DIAS365($A$2,A15) -> 396 | L15: 2.558066865e+11 | M15: 3045838670 | N15: 1441290860 | O15: 4487129531
A16: 2022-09-23 | B16: =IF(DIAS365(CALCULADORA!$C$27,A16)<0,0,DIAS365(CALCULADORA!$C$27,A16)) -> 0 | C16: =+HLOOKUP(CALCULADORA!$C$9,Tablas!B:B,Flujos!J16+1,FALSE) -> 0.01499669 | D16: 76.05174 | E16: 1.499669 | F16: =ROUND(D15*ROUND(((1+CALCULADORA!$C$16)^(1/12)-1),6),6) -> 0.431806 | G16: 1.931475 | H16: =IF($B16=0,0,G16/POWER(1+CALCULADORA!$C$29,Flujos!$B16/365)) -> 0 | I16: 2022-09-23 | J16: 14 | K16: =+DIAS365($A$2,A16) -> 427 | L16: 2.508599633e+11 | M16: 4946723247 | N16: 1424331631 | O16: 6371054878
A17: 2022-10-23 | B17: =IF(DIAS365(CALCULADORA!$C$27,A17)<0,0,DIAS365(CALCULADORA!$C$27,A17)) -> 0 | C17: =+HLOOKUP(CALCULADORA!$C$9,Tablas!B:B,Flujos!J17+1,FALSE) -> 0.01357463 | D17: 74.694277 | E17: 1.357463 | F17: =ROUND(D16*ROUND(((1+CALCULADORA!$C$16)^(1/12)-1),6),6) -> 0.423456 | G17: 1.780919 | H17: =IF($B17=0,0,G17/POWER(1+CALCULADORA!$C$29,Flujos!$B17/365)) -> 0 | I17: 2022-10-23 | J17: 15 | K17: =+DIAS365($A$2,A17) -> 457 | L17: 2.463823127e+11 | M17: 4477650588 | N17: 1396788276 | O17: 5874438864
A18: 2022-11-23 | B18: =IF(DIAS365(CALCULADORA!$C$27,A18)<0,0,DIAS365(CALCULADORA!$C$27,A18)) -> 0 | C18: =+HLOOKUP(CALCULADORA!$C$9,Tablas!B:B,Flujos!J18+1,FALSE) -> 0.01483513 | D18: 73.210764 | E18: 1.483513 | F18: =ROUND(D17*ROUND(((1+CALCULADORA!$C$16)^(1/12)-1),6),6) -> 0.415898 | G18: 1.899411 | H18: =IF($B18=0,0,G18/POWER(1+CALCULADORA!$C$29,Flujos!$B18/365)) -> 0 | I18: 2022-11-23 | J18: 16 | K18: =+DIAS365($A$2,A18) -> 488 | L18: 2.414888807e+11 | M18: 4893431981 | N18: 1371856717 | O18: 6265288698
A19: 2022-12-23 | B19: =IF(DIAS365(CALCULADORA!$C$27,A19)<0,0,DIAS365(CALCULADORA!$C$27,A19)) -> 0 | C19: =+HLOOKUP(CALCULADORA!$C$9,Tablas!B:B,Flujos!J19+1,FALSE) -> 0.00807425 | D19: 72.403339 | E19: 0.807425 | F19: =ROUND(D18*ROUND(((1+CALCULADORA!$C$16)^(1/12)-1),6),6) -> 0.407638 | G19: 1.215063 | H19: =IF($B19=0,0,G19/POWER(1+CALCULADORA!$C$29,Flujos!$B19/365)) -> 0 | I19: 2022-12-23 | J19: 17 | K19: =+DIAS365($A$2,A19) -> 518 | L19: 2.388255543e+11 | M19: 2663326386 | N19: 1344610088 | O19: 4007936474
A20: 2023-01-23 | B20: =IF(DIAS365(CALCULADORA!$C$27,A20)<0,0,DIAS365(CALCULADORA!$C$27,A20)) -> 0 | C20: =+HLOOKUP(CALCULADORA!$C$9,Tablas!B:B,Flujos!J20+1,FALSE) -> 0.01361384 | D20: 71.041955 | E20: 1.361384 | F20: =ROUND(D19*ROUND(((1+CALCULADORA!$C$16)^(1/12)-1),6),6) -> 0.403142 | G20: 1.764526 | H20: =IF($B20=0,0,G20/POWER(1+CALCULADORA!$C$29,Flujos!$B20/365)) -> 0 | I20: 2023-01-23 | J20: 18 | K20: =+DIAS365($A$2,A20) -> 549 | L20: 2.343349701e+11 | M20: 4490584177 | N20: 1329780686 | O20: 5820364863
A21: 2023-02-23 | B21: =IF(DIAS365(CALCULADORA!$C$27,A21)<0,0,DIAS365(CALCULADORA!$C$27,A21)) -> 0 | C21: =+HLOOKUP(CALCULADORA!$C$9,Tablas!B:B,Flujos!J21+1,FALSE) -> 0.01019619 | D21: 70.022336 | E21: 1.019619 | F21: =ROUND(D20*ROUND(((1+CALCULADORA!$C$16)^(1/12)-1),6),6) -> 0.395562 | G21: 1.415181 | H21: =IF($B21=0,0,G21/POWER(1+CALCULADORA!$C$29,Flujos!$B21/365)) -> 0 | I21: 2023-02-23 | J21: 19 | K21: =+DIAS365($A$2,A21) -> 580 | L21: 2.309717126e+11 | M21: 3363257499 | N21: 1304777114 | O21: 4668034613
A22: 2023-03-23 | B22: =IF(DIAS365(CALCULADORA!$C$27,A22)<0,0,DIAS365(CALCULADORA!$C$27,A22)) -> 0 | C22: =+HLOOKUP(CALCULADORA!$C$9,Tablas!B:B,Flujos!J22+1,FALSE) -> 0.01032425 | D22: =+ROUND(D21-E22,6) -> 68.989911 | E22: 1.032425 | F22: =ROUND(D21*ROUND(((1+CALCULADORA!$C$16)^(1/12)-1),6),6) -> 0.389884 | G22: 1.422309 | H22: =IF($B22=0,0,G22/POWER(1+CALCULADORA!$C$29,Flujos!$B22/365)) -> 0 | I22: 2023-03-23 | J22: 20 | K22: =+DIAS365($A$2,A22) -> 608 | L22: 2.27566214e+11 | M22: 3405498646 | N22: 1286050496 | O22: 4691549142
A23: 2023-04-23 | B23: =IF(DIAS365(CALCULADORA!$C$27,A23)<0,0,DIAS365(CALCULADORA!$C$27,A23)) -> 0 | C23: =+HLOOKUP(CALCULADORA!$C$9,Tablas!B:B,Flujos!J23+1,FALSE) -> 0.01241966 | D23: 67.747945 | E23: 1.241966 | F23: =ROUND(D22*ROUND(((1+CALCULADORA!$C$16)^(1/12)-1),6),6) -> 0.384136 | G23: 1.626102 | H23: =IF($B23=0,0,G23/POWER(1+CALCULADORA!$C$29,Flujos!$B23/365)) -> 0 | I23: 2023-04-23 | J23: 21 | K23: =+DIAS365($A$2,A23) -> 639 | L23: 2.234695353e+11 | M23: 4096678724 | N23: 1267088680 | O23: 5363767403
A24: 2023-05-23 | B24: =IF(DIAS365(CALCULADORA!$C$27,A24)<0,0,DIAS365(CALCULADORA!$C$27,A24)) -> 0 | C24: =+HLOOKUP(CALCULADORA!$C$9,Tablas!B:B,Flujos!J24+1,FALSE) -> 0.00874107 | D24: 66.873838 | E24: 0.874107 | F24: =ROUND(D23*ROUND(((1+CALCULADORA!$C$16)^(1/12)-1),6),6) -> 0.377221 | G24: 1.251328 | H24: =IF($B24=0,0,G24/POWER(1+CALCULADORA!$C$29,Flujos!$B24/365)) -> 0 | I24: 2023-05-23 | J24: 22 | K24: =+DIAS365($A$2,A24) -> 669 | L24: 2.205862554e+11 | M24: 2883279856 | N24: 1244278372 | O24: 4127558228
A25: 2023-06-23 | B25: =IF(DIAS365(CALCULADORA!$C$27,A25)<0,0,DIAS365(CALCULADORA!$C$27,A25)) -> 0 | C25: =+HLOOKUP(CALCULADORA!$C$9,Tablas!B:B,Flujos!J25+1,FALSE) -> 0.00834591 | D25: 66.039247 | E25: 0.834591 | F25: =ROUND(D24*ROUND(((1+CALCULADORA!$C$16)^(1/12)-1),6),6) -> 0.372354 | G25: 1.206945 | H25: =IF($B25=0,0,G25/POWER(1+CALCULADORA!$C$29,Flujos!$B25/365)) -> 0 | I25: 2023-06-23 | J25: 23 | K25: =+DIAS365($A$2,A25) -> 700 | L25: 2.178333208e+11 | M25: 2752934615 | N25: 1228224270 | O25: 3981158886
A26: 2023-07-23 | B26: =IF(DIAS365(CALCULADORA!$C$27,A26)<0,0,DIAS365(CALCULADORA!$C$27,A26)) -> 0 | C26: =+HLOOKUP(CALCULADORA!$C$9,Tablas!B:B,Flujos!J26+1,FALSE) -> 0.01046561 | D26: 64.992686 | E26: 1.046561 | F26: =ROUND(D25*ROUND(((1+CALCULADORA!$C$16)^(1/12)-1),6),6) -> 0.367707 | G26: 1.414268 | H26: =IF($B26=0,0,G26/POWER(1+CALCULADORA!$C$29,Flujos!$B26/365)) -> 0 | I26: 2023-07-23 | J26: 24 | K26: =+DIAS365($A$2,A26) -> 730 | L26: 2.14381194e+11 | M26: 3452126855 | N26: 1212895930 | O26: 4665022785
A27: 2023-08-23 | B27: =IF(DIAS365(CALCULADORA!$C$27,A27)<0,0,DIAS365(CALCULADORA!$C$27,A27)) -> 0 | C27: =+HLOOKUP(CALCULADORA!$C$9,Tablas!B:B,Flujos!J27+1,FALSE) -> 0.00621205 | D27: 64.371481 | E27: 0.621205 | F27: =ROUND(D26*ROUND(((1+CALCULADORA!$C$16)^(1/12)-1),6),6) -> 0.361879 | G27: 0.983084 | H27: =IF($B27=0,0,G27/POWER(1+CALCULADORA!$C$29,Flujos!$B27/365)) -> 0 | I27: 2023-08-23 | J27: 25 | K27: =+DIAS365($A$2,A27) -> 761 | L27: 2.123321223e+11 | M27: 2049071638 | N27: 1193674488 | O27: 3242746126
A28: 2023-09-23 | B28: =IF(DIAS365(CALCULADORA!$C$27,A28)<0,0,DIAS365(CALCULADORA!$C$27,A28)) -> 0 | C28: =+HLOOKUP(CALCULADORA!$C$9,Tablas!B:B,Flujos!J28+1,FALSE) -> 0.00775293 | D28: 63.596188 | E28: 0.775293 | F28: =ROUND(D27*ROUND(((1+CALCULADORA!$C$16)^(1/12)-1),6),6) -> 0.35842 | G28: 1.133713 | H28: =IF($B28=0,0,G28/POWER(1+CALCULADORA!$C$29,Flujos!$B28/365)) -> 0 | I28: 2023-09-23 | J28: 26 | K28: =+DIAS365($A$2,A28) -> 792 | L28: 2.097747847e+11 | M28: 2557337590 | N28: 1182265257 | O28: 3739602847
A29: 2023-10-23 | B29: =IF(DIAS365(CALCULADORA!$C$27,A29)<0,0,DIAS365(CALCULADORA!$C$27,A29)) -> 0 | C29: =+HLOOKUP(CALCULADORA!$C$9,Tablas!B:B,Flujos!J29+1,FALSE) -> 0.0071742 | D29: 62.878768 | E29: 0.71742 | F29: =ROUND(D28*ROUND(((1+CALCULADORA!$C$16)^(1/12)-1),6),6) -> 0.354104 | G29: 1.071524 | H29: =IF($B29=0,0,G29/POWER(1+CALCULADORA!$C$29,Flujos!$B29/365)) -> 0 | I29: 2023-10-23 | J29: 27 | K29: =+DIAS365($A$2,A29) -> 822 | L29: 2.074083437e+11 | M29: 2366440989 | N29: 1168026001 | O29: 3534466991
A30: 2023-11-23 | B30: =IF(DIAS365(CALCULADORA!$C$27,A30)<0,0,DIAS365(CALCULADORA!$C$27,A30)) -> 0 | C30: =+HLOOKUP(CALCULADORA!$C$9,Tablas!B:B,Flujos!J30+1,FALSE) -> 0.00712022 | D30: 62.166746 | E30: 0.712022 | F30: =ROUND(D29*ROUND(((1+CALCULADORA!$C$16)^(1/12)-1),6),6) -> 0.350109 | G30: 1.062131 | H30: =IF($B30=0,0,G30/POWER(1+CALCULADORA!$C$29,Flujos!$B30/365)) -> 0 | I30: 2023-11-23 | J30: 28 | K30: =+DIAS365($A$2,A30) -> 853 | L30: 2.050597083e+11 | M30: 2348635452 | N30: 1154849658 | O30: 3503485110
A31: 2023-12-23 | B31: =IF(DIAS365(CALCULADORA!$C$27,A31)<0,0,DIAS365(CALCULADORA!$C$27,A31)) -> 0 | C31: =+HLOOKUP(CALCULADORA!$C$9,Tablas!B:B,Flujos!J31+1,FALSE) -> 0.00986897 | D31: 61.179849 | E31: 0.986897 | F31: =ROUND(D30*ROUND(((1+CALCULADORA!$C$16)^(1/12)-1),6),6) -> 0.346144 | G31: 1.333041 | H31: =IF($B31=0,0,G31/POWER(1+CALCULADORA!$C$29,Flujos!$B31/365)) -> 0 | I31: 2023-12-23 | J31: 29 | K31: =+DIAS365($A$2,A31) -> 883 | L31: 2.018043857e+11 | M31: 3255322563 | N31: 1141772456 | O31: 4397095019
A32: 2024-01-23 | B32: =IF(DIAS365(CALCULADORA!$C$27,A32)<0,0,DIAS365(CALCULADORA!$C$27,A32)) -> 0 | C32: =+HLOOKUP(CALCULADORA!$C$9,Tablas!B:B,Flujos!J32+1,FALSE) -> 0.00844365 | D32: 60.335484 | E32: 0.844365 | F32: =ROUND(D31*ROUND(((1+CALCULADORA!$C$16)^(1/12)-1),6),6) -> 0.340649 | G32: 1.185014 | H32: =IF($B32=0,0,G32/POWER(1+CALCULADORA!$C$29,Flujos!$B32/365)) -> 0 | I32: 2024-01-23 | J32: 30 | K32: =+DIAS365($A$2,A32) -> 914 | L32: 1.990192111e+11 | M32: 2785174578 | N32: 1123646820 | O32: 3908821398
A33: 2024-02-23 | B33: =IF(DIAS365(CALCULADORA!$C$27,A33)<0,0,DIAS365(CALCULADORA!$C$27,A33)) -> 0 | C33: =+HLOOKUP(CALCULADORA!$C$9,Tablas!B:B,Flujos!J33+1,FALSE) -> 0.01285656 | D33: 59.049828 | E33: 1.285656 | F33: =ROUND(D32*ROUND(((1+CALCULADORA!$C$16)^(1/12)-1),6),6) -> 0.335948 | G33: 1.621604 | H33: =IF($B33=0,0,G33/POWER(1+CALCULADORA!$C$29,Flujos!$B33/365)) -> 0 | I33: 2024-02-23 | J33: 31 | K33: =+DIAS365($A$2,A33) -> 945 | L33: 1.947784191e+11 | M33: 4240792084 | N33: 1108138968 | O33: 5348931051
A34: 2024-03-23 | B34: =IF(DIAS365(CALCULADORA!$C$27,A34)<0,0,DIAS365(CALCULADORA!$C$27,A34)) -> 0 | C34: =+HLOOKUP(CALCULADORA!$C$9,Tablas!B:B,Flujos!J34+1,FALSE) -> 0.00928653 | D34: 58.121175 | E34: 0.928653 | F34: =ROUND(D33*ROUND(((1+CALCULADORA!$C$16)^(1/12)-1),6),6) -> 0.328789 | G34: 1.257442 | H34: =IF($B34=0,0,G34/POWER(1+CALCULADORA!$C$29,Flujos!$B34/365)) -> 0 | I34: 2024-03-23 | J34: 32 | K34: =+DIAS365($A$2,A34) -> 973 | L34: 1.917152169e+11 | M34: 3063202203 | N34: 1084526237 | O34: 4147728440
A35: =EDATE(A34,1) -> 2024-04-23 | B35: =IF(DIAS365(CALCULADORA!$C$27,A35)<0,0,DIAS365(CALCULADORA!$C$27,A35)) -> 0 | C35: =+HLOOKUP(CALCULADORA!$C$9,Tablas!B:B,Flujos!J35+1,FALSE) -> 0.01317768 | D35: 56.803407 | E35: 1.317768 | F35: =ROUND(D34*ROUND(((1+CALCULADORA!$C$16)^(1/12)-1),6),6) -> 0.323619 | G35: 1.641387 | H35: =IF($B35=0,0,G35/POWER(1+CALCULADORA!$C$29,Flujos!$B35/365)) -> 0 | I35: 2024-04-23 | J35: 33 | K35: =+DIAS365($A$2,A35) -> 1004 | L35: 1.873685019e+11 | M35: 4346714909 | N35: 1067470327 | O35: 5414185236
A36: 2024-05-23 | B36: =IF(DIAS365(CALCULADORA!$C$27,A36)<0,0,DIAS365(CALCULADORA!$C$27,A36)) -> 0 | C36: =+HLOOKUP(CALCULADORA!$C$9,Tablas!B:B,Flujos!J36+1,FALSE) -> 0.0086879 | D36: 55.934617 | E36: 0.86879 | F36: =ROUND(D35*ROUND(((1+CALCULADORA!$C$16)^(1/12)-1),6),6) -> 0.316281 | G36: 1.185071 | H36: =IF($B36=0,0,G36/POWER(1+CALCULADORA!$C$29,Flujos!$B36/365)) -> 0 | I36: 2024-05-23 | J36: 34 | K36: =+DIAS365($A$2,A36) -> 1034 | L36: 1.845027604e+11 | M36: 2865741500 | N36: 1043267819 | O36: 3909009319
A37: 2024-06-23 | B37: =IF(DIAS365(CALCULADORA!$C$27,A37)<0,0,DIAS365(CALCULADORA!$C$27,A37)) -> 0 | C37: =+HLOOKUP(CALCULADORA!$C$9,Tablas!B:B,Flujos!J37+1,FALSE) -> 0.0066977 | D37: 55.264847 | E37: 0.66977 | F37: =ROUND(D36*ROUND(((1+CALCULADORA!$C$16)^(1/12)-1),6),6) -> 0.311444 | G37: 0.981214 | H37: =IF($B37=0,0,G37/POWER(1+CALCULADORA!$C$29,Flujos!$B37/365)) -> 0 | I37: 2024-06-23 | J37: 35 | K37: =+DIAS365($A$2,A37) -> 1065 | L37: 1.82293495e+11 | M37: 2209265398 | N37: 1027311370 | O37: 3236576768
A38: 2024-07-23 | B38: =IF(DIAS365(CALCULADORA!$C$27,A38)<0,0,DIAS365(CALCULADORA!$C$27,A38)) -> 0 | C38: =+HLOOKUP(CALCULADORA!$C$9,Tablas!B:B,Flujos!J38+1,FALSE) -> 0.01013146 | D38: 54.251701 | E38: 1.013146 | F38: =ROUND(D37*ROUND(((1+CALCULADORA!$C$16)^(1/12)-1),6),6) -> 0.307715 | G38: 1.320861 | H38: =IF($B38=0,0,G38/POWER(1+CALCULADORA!$C$29,Flujos!$B38/365)) -> 0 | I38: 2024-07-23 | J38: 36 | K38: =+DIAS365($A$2,A38) -> 1095 | L38: 1.78951589e+11 | M38: 3341906028 | N38: 1015010180 | O38: 4356916209
A39: 2024-08-23 | B39: =IF(DIAS365(CALCULADORA!$C$27,A39)<0,0,DIAS365(CALCULADORA!$C$27,A39)) -> 0 | C39: =+HLOOKUP(CALCULADORA!$C$9,Tablas!B:B,Flujos!J39+1,FALSE) -> 0.00945651 | D39: 53.30605 | E39: 0.945651 | F39: =ROUND(D38*ROUND(((1+CALCULADORA!$C$16)^(1/12)-1),6),6) -> 0.302073 | G39: 1.247724 | H39: =IF($B39=0,0,G39/POWER(1+CALCULADORA!$C$29,Flujos!$B39/365)) -> 0 | I39: 2024-08-23 | J39: 37 | K39: =+DIAS365($A$2,A39) -> 1126 | L39: 1.758323182e+11 | M39: 3119270843 | N39: 996402447.7 | O39: 4115673291
A40: 2024-09-23 | B40: =IF(DIAS365(CALCULADORA!$C$27,A40)<0,0,DIAS365(CALCULADORA!$C$27,A40)) -> 0 | C40: =+HLOOKUP(CALCULADORA!$C$9,Tablas!B:B,Flujos!J40+1,FALSE) -> 0.00962191 | D40: =+ROUND(D39-E40,6) -> 52.343859 | E40: =ROUND(C40*$D$2,6) -> 0.962191 | F40: =ROUND(D39*ROUND(((1+CALCULADORA!$C$16)^(1/12)-1),6),6) -> 0.296808 | G40: =F40+E40 -> 1.258999 | H40: =IF($B40=0,0,G40/POWER(1+CALCULADORA!$C$29,Flujos!$B40/365)) -> 0 | I40: =+A40 -> 2024-09-23 | J40: 38 | K40: =+DIAS365($A$2,A40) -> 1157 | L40: 1.726584894e+11 | M40: 3173828750 | N40: 979034347.6 | O40: 4152863098
A41: 2024-10-23 | B41: =IF(DIAS365(CALCULADORA!$C$27,A41)<0,0,DIAS365(CALCULADORA!$C$27,A41)) -> 22 | C41: =+HLOOKUP(CALCULADORA!$C$9,Tablas!B:B,Flujos!J41+1,FALSE) -> 0.00955363 | D41: 51.388496 | E41: 0.955363 | F41: =ROUND(D40*ROUND(((1+CALCULADORA!$C$16)^(1/12)-1),6),6) -> 0.291451 | G41: 1.246814 | H41: =IF($B41=0,0,G41/POWER(1+CALCULADORA!$C$29,Flujos!$B41/365)) -> 1.239063225 | I41: 2024-10-23 | J41: 39 | K41: =+DIAS365($A$2,A41) -> 1187 | L41: 1.695071831e+11 | M41: 3151306296 | N41: 961362469.1 | O41: 4112668765
A42: 2024-11-23 | B42: =IF(DIAS365(CALCULADORA!$C$27,A42)<0,0,DIAS365(CALCULADORA!$C$27,A42)) -> 53 | C42: =+HLOOKUP(CALCULADORA!$C$9,Tablas!B:B,Flujos!J42+1,FALSE) -> 0.00846202 | D42: 50.542294 | E42: 0.846202 | F42: =ROUND(D41*ROUND(((1+CALCULADORA!$C$16)^(1/12)-1),6),6) -> 0.286131 | G42: 1.132333 | H42: =IF($B42=0,0,G42/POWER(1+CALCULADORA!$C$29,Flujos!$B42/365)) -> 1.115449357 | I42: 2024-11-23 | J42: 40 | K42: =+DIAS365($A$2,A42) -> 1218 | L42: 1.667159491e+11 | M42: 2791234003 | N42: 943815995.7 | O42: 3735049998
A43: 2024-12-23 | B43: =IF(DIAS365(CALCULADORA!$C$27,A43)<0,0,DIAS365(CALCULADORA!$C$27,A43)) -> 83 | C43: =+HLOOKUP(CALCULADORA!$C$9,Tablas!B:B,Flujos!J43+1,FALSE) -> 0.00835591 | D43: 49.706703 | E43: 0.835591 | F43: =ROUND(D42*ROUND(((1+CALCULADORA!$C$16)^(1/12)-1),6),6) -> 0.281419 | G43: 1.11701 | H43: =IF($B43=0,0,G43/POWER(1+CALCULADORA!$C$29,Flujos!$B43/365)) -> 1.091037683 | I43: 2024-12-23 | J43: 41 | K43: =+DIAS365($A$2,A43) -> 1248 | L43: 1.63959716e+11 | M43: 2756233159 | N43: 928274404.7 | O43: 3684507564
A44: 2025-01-23 | B44: =IF(DIAS365(CALCULADORA!$C$27,A44)<0,0,DIAS365(CALCULADORA!$C$27,A44)) -> 114 | C44: =+HLOOKUP(CALCULADORA!$C$9,Tablas!B:B,Flujos!J44+1,FALSE) -> 0.00825965 | D44: 48.880738 | E44: 0.825965 | F44: =ROUND(D43*ROUND(((1+CALCULADORA!$C$16)^(1/12)-1),6),6) -> 0.276767 | G44: 1.102732 | H44: =IF($B44=0,0,G44/POWER(1+CALCULADORA!$C$29,Flujos!$B44/365)) -> 1.067668828 | I44: 2025-01-23 | J44: 42 | K44: =+DIAS365($A$2,A44) -> 1279 | L44: 1.612352346e+11 | M44: 2724481380 | N44: 912927698.5 | O44: 3637409079
A45: 2025-02-23 | B45: =IF(DIAS365(CALCULADORA!$C$27,A45)<0,0,DIAS365(CALCULADORA!$C$27,A45)) -> 145 | C45: =+HLOOKUP(CALCULADORA!$C$9,Tablas!B:B,Flujos!J45+1,FALSE) -> 0.00817015 | D45: 48.063723 | E45: 0.817015 | F45: =ROUND(D44*ROUND(((1+CALCULADORA!$C$16)^(1/12)-1),6),6) -> 0.272168 | G45: 1.089183 | H45: =IF($B45=0,0,G45/POWER(1+CALCULADORA!$C$29,Flujos!$B45/365)) -> 1.045324997 | I45: 2025-02-23 | J45: 43 | K45: =+DIAS365($A$2,A45) -> 1310 | L45: 1.585402752e+11 | M45: 2694959417 | N45: 897757786.2 | O45: 3592717203
A46: 2025-03-23 | B46: =IF(DIAS365(CALCULADORA!$C$27,A46)<0,0,DIAS365(CALCULADORA!$C$27,A46)) -> 173 | C46: =+HLOOKUP(CALCULADORA!$C$9,Tablas!B:B,Flujos!J46+1,FALSE) -> 0.00807617 | D46: 47.256106 | E46: 0.807617 | F46: =ROUND(D45*ROUND(((1+CALCULADORA!$C$16)^(1/12)-1),6),6) -> 0.267619 | G46: 1.075236 | H46: =IF($B46=0,0,G46/POWER(1+CALCULADORA!$C$29,Flujos!$B46/365)) -> 1.023781965 | I46: 2025-03-23 | J46: 44 | K46: =+DIAS365($A$2,A46) -> 1338 | L46: 1.558763155e+11 | M46: 2663959706 | N46: 882752252.1 | O46: 3546711959
A47: 2025-04-23 | B47: =IF(DIAS365(CALCULADORA!$C$27,A47)<0,0,DIAS365(CALCULADORA!$C$27,A47)) -> 204 | C47: =+HLOOKUP(CALCULADORA!$C$9,Tablas!B:B,Flujos!J47+1,FALSE) -> 0.00797588 | D47: 46.458518 | E47: 0.797588 | F47: =ROUND(D46*ROUND(((1+CALCULADORA!$C$16)^(1/12)-1),6),6) -> 0.263122 | G47: 1.06071 | H47: =IF($B47=0,0,G47/POWER(1+CALCULADORA!$C$29,Flujos!$B47/365)) -> 1.00111562 | I47: 2025-04-23 | J47: 45 | K47: =+DIAS365($A$2,A47) -> 1369 | L47: 1.532454368e+11 | M47: 2630878615 | N47: 867919324.5 | O47: 3498797939
A48: 2025-05-23 | B48: =IF(DIAS365(CALCULADORA!$C$27,A48)<0,0,DIAS365(CALCULADORA!$C$27,A48)) -> 234 | C48: =+HLOOKUP(CALCULADORA!$C$9,Tablas!B:B,Flujos!J48+1,FALSE) -> 0.00787579 | D48: 45.670939 | E48: 0.787579 | F48: =ROUND(D47*ROUND(((1+CALCULADORA!$C$16)^(1/12)-1),6),6) -> 0.258681 | G48: 1.04626 | H48: =IF($B48=0,0,G48/POWER(1+CALCULADORA!$C$29,Flujos!$B48/365)) -> 0.979116101 | I48: 2025-05-23 | J48: 46 | K48: =+DIAS365($A$2,A48) -> 1399 | L48: 1.506475734e+11 | M48: 2597863494 | N48: 853270592.4 | O48: 3451134087
A49: 2025-06-23 | B49: =IF(DIAS365(CALCULADORA!$C$27,A49)<0,0,DIAS365(CALCULADORA!$C$27,A49)) -> 265 | C49: =+HLOOKUP(CALCULADORA!$C$9,Tablas!B:B,Flujos!J49+1,FALSE) -> 0.00778717 | D49: 44.892222 | E49: 0.778717 | F49: =ROUND(D48*ROUND(((1+CALCULADORA!$C$16)^(1/12)-1),6),6) -> 0.254296 | G49: 1.033013 | H49: =IF($B49=0,0,G49/POWER(1+CALCULADORA!$C$29,Flujos!$B49/365)) -> 0.9582619712 | I49: 2025-06-23 | J49: 47 | K49: =+DIAS365($A$2,A49) -> 1430 | L49: 1.480789416e+11 | M49: 2568631803 | N49: 838805688.4 | O49: 3407437491
A50: 2025-07-23 | B50: =IF(DIAS365(CALCULADORA!$C$27,A50)<0,0,DIAS365(CALCULADORA!$C$27,A50)) -> 295 | C50: =+HLOOKUP(CALCULADORA!$C$9,Tablas!B:B,Flujos!J50+1,FALSE) -> 0.00769691 | D50: 44.122531 | E50: 0.769691 | F50: =ROUND(D49*ROUND(((1+CALCULADORA!$C$16)^(1/12)-1),6),6) -> 0.24996 | G50: 1.019651 | H50: =IF($B50=0,0,G50/POWER(1+CALCULADORA!$C$29,Flujos!$B50/365)) -> 0.9378578378 | I50: 2025-07-23 | J50: 48 | K50: =+DIAS365($A$2,A50) -> 1460 | L50: 1.455400824e+11 | M50: 2538859150 | N50: 824503546.6 | O50: 3363362697
A51: 2025-08-23 | B51: =IF(DIAS365(CALCULADORA!$C$27,A51)<0,0,DIAS365(CALCULADORA!$C$27,A51)) -> 326 | C51: =+HLOOKUP(CALCULADORA!$C$9,Tablas!B:B,Flujos!J51+1,FALSE) -> 0.00759873 | D51: 43.362658 | E51: 0.759873 | F51: =ROUND(D50*ROUND(((1+CALCULADORA!$C$16)^(1/12)-1),6),6) -> 0.245674 | G51: 1.005547 | H51: =IF($B51=0,0,G51/POWER(1+CALCULADORA!$C$29,Flujos!$B51/365)) -> 0.9167939389 | I51: 2025-08-23 | J51: 49 | K51: =+DIAS365($A$2,A51) -> 1491 | L51: 1.430336083e+11 | M51: 2506474051 | N51: 810367178.8 | O51: 3316841230
A52: 2025-09-23 | B52: =IF(DIAS365(CALCULADORA!$C$27,A52)<0,0,DIAS365(CALCULADORA!$C$27,A52)) -> 357 | C52: =+HLOOKUP(CALCULADORA!$C$9,Tablas!B:B,Flujos!J52+1,FALSE) -> 0.00750532 | D52: 42.612126 | E52: 0.750532 | F52: =ROUND(D51*ROUND(((1+CALCULADORA!$C$16)^(1/12)-1),6),6) -> 0.241443 | G52: 0.991975 | H52: =IF($B52=0,0,G52/POWER(1+CALCULADORA!$C$29,Flujos!$B52/365)) -> 0.8965076132 | I52: 2025-09-23 | J52: 50 | K52: =+DIAS365($A$2,A52) -> 1522 | L52: 1.40557946e+11 | M52: 2475662358 | N52: 796411131.3 | O52: 3272073489
A53: 2025-10-23 | B53: =IF(DIAS365(CALCULADORA!$C$27,A53)<0,0,DIAS365(CALCULADORA!$C$27,A53)) -> 387 | C53: =+HLOOKUP(CALCULADORA!$C$9,Tablas!B:B,Flujos!J53+1,FALSE) -> 0.00741225 | D53: 41.870901 | E53: 0.741225 | F53: =ROUND(D52*ROUND(((1+CALCULADORA!$C$16)^(1/12)-1),6),6) -> 0.237264 | G53: 0.978489 | H53: =IF($B53=0,0,G53/POWER(1+CALCULADORA!$C$29,Flujos!$B53/365)) -> 0.876831612 | I53: 2025-10-23 | J53: 51 | K53: =+DIAS365($A$2,A53) -> 1552 | L53: 1.381129832e+11 | M53: 2444962815 | N53: 782626643.3 | O53: 3227589458
A54: 2025-11-23 | B54: =IF(DIAS365(CALCULADORA!$C$27,A54)<0,0,DIAS365(CALCULADORA!$C$27,A54)) -> 418 | C54: =+HLOOKUP(CALCULADORA!$C$9,Tablas!B:B,Flujos!J54+1,FALSE) -> 0.00732138 | D54: 41.138763 | E54: 0.732138 | F54: =ROUND(D53*ROUND(((1+CALCULADORA!$C$16)^(1/12)-1),6),6) -> 0.233137 | G54: 0.965275 | H54: =IF($B54=0,0,G54/POWER(1+CALCULADORA!$C$29,Flujos!$B54/365)) -> 0.8574231509 | I54: 2025-11-23 | J54: 52 | K54: =+DIAS365($A$2,A54) -> 1583 | L54: 1.356979942e+11 | M54: 2414988951 | N54: 769013090.3 | O54: 3184002041
A55: 2025-12-23 | B55: =IF(DIAS365(CALCULADORA!$C$27,A55)<0,0,DIAS365(CALCULADORA!$C$27,A55)) -> 448 | C55: =+HLOOKUP(CALCULADORA!$C$9,Tablas!B:B,Flujos!J55+1,FALSE) -> 0.0072295 | D55: 40.415813 | E55: 0.72295 | F55: =ROUND(D54*ROUND(((1+CALCULADORA!$C$16)^(1/12)-1),6),6) -> 0.229061 | G55: 0.952011 | H55: =IF($B55=0,0,G55/POWER(1+CALCULADORA!$C$29,Flujos!$B55/365)) -> 0.8384807758 | I55: 2025-12-23 | J55: 53 | K55: =+DIAS365($A$2,A55) -> 1613 | L55: 1.333133123e+11 | M55: 2384681934 | N55: 755566431.9 | O55: 3140248366
A56: 2026-01-23 | B56: =IF(DIAS365(CALCULADORA!$C$27,A56)<0,0,DIAS365(CALCULADORA!$C$27,A56)) -> 479 | C56: =+HLOOKUP(CALCULADORA!$C$9,Tablas!B:B,Flujos!J56+1,FALSE) -> 0.00771633 | D56: 39.64418 | E56: 0.771633 | F56: =ROUND(D55*ROUND(((1+CALCULADORA!$C$16)^(1/12)-1),6),6) -> 0.225035 | G56: 0.996668 | H56: =IF($B56=0,0,G56/POWER(1+CALCULADORA!$C$29,Flujos!$B56/365)) -> 0.8701328284 | I56: 2026-01-23 | J56: 54 | K56: =+DIAS365($A$2,A56) -> 1644 | L56: 1.307680474e+11 | M56: 2545264922 | N56: 742288522.8 | O56: 3287553444
A57: 2026-02-23 | B57: =IF(DIAS365(CALCULADORA!$C$27,A57)<0,0,DIAS365(CALCULADORA!$C$27,A57)) -> 510 | C57: =+HLOOKUP(CALCULADORA!$C$9,Tablas!B:B,Flujos!J57+1,FALSE) -> 0.0092824 | D57: 38.71594 | E57: 0.92824 | F57: =ROUND(D56*ROUND(((1+CALCULADORA!$C$16)^(1/12)-1),6),6) -> 0.220739 | G57: 1.148979 | H57: =IF($B57=0,0,G57/POWER(1+CALCULADORA!$C$29,Flujos!$B57/365)) -> 0.9943311079 | I57: 2026-02-23 | J57: 55 | K57: =+DIAS365($A$2,A57) -> 1675 | L57: 1.277062075e+11 | M57: 3061839904 | N57: 728116487.8 | O57: 3789956392
A58: 2026-03-23 | B58: =IF(DIAS365(CALCULADORA!$C$27,A58)<0,0,DIAS365(CALCULADORA!$C$27,A58)) -> 538 | C58: =+HLOOKUP(CALCULADORA!$C$9,Tablas!B:B,Flujos!J58+1,FALSE) -> 0.00919094 | D58: 37.796846 | E58: 0.919094 | F58: =ROUND(D57*ROUND(((1+CALCULADORA!$C$16)^(1/12)-1),6),6) -> 0.21557 | G58: 1.134664 | H58: =IF($B58=0,0,G58/POWER(1+CALCULADORA!$C$29,Flujos!$B58/365)) -> 0.9741804459 | I58: 2026-03-23 | J58: 56 | K58: =+DIAS365($A$2,A58) -> 1703 | L58: 1.24674536e+11 | M58: 3031671426 | N58: 711068163.2 | O58: 3742739590
A59: 2026-04-23 | B59: =IF(DIAS365(CALCULADORA!$C$27,A59)<0,0,DIAS365(CALCULADORA!$C$27,A59)) -> 569 | C59: =+HLOOKUP(CALCULADORA!$C$9,Tablas!B:B,Flujos!J59+1,FALSE) -> 0.00909408 | D59: 36.887438 | E59: 0.909408 | F59: =ROUND(D58*ROUND(((1+CALCULADORA!$C$16)^(1/12)-1),6),6) -> 0.210453 | G59: 1.119861 | H59: =IF($B59=0,0,G59/POWER(1+CALCULADORA!$C$29,Flujos!$B59/365)) -> 0.9530597932 | I59: 2026-04-23 | J59: 57 | K59: =+DIAS365($A$2,A59) -> 1734 | L59: 1.216748143e+11 | M59: 2999721735 | N59: 694187816.7 | O59: 3693909552
A60: 2026-05-23 | B60: =IF(DIAS365(CALCULADORA!$C$27,A60)<0,0,DIAS365(CALCULADORA!$C$27,A60)) -> 599 | C60: =+HLOOKUP(CALCULADORA!$C$9,Tablas!B:B,Flujos!J60+1,FALSE) -> 0.00853051 | D60: 36.034387 | E60: 0.853051 | F60: =ROUND(D59*ROUND(((1+CALCULADORA!$C$16)^(1/12)-1),6),6) -> 0.205389 | G60: 1.05844 | H60: =IF($B60=0,0,G60/POWER(1+CALCULADORA!$C$29,Flujos!$B60/365)) -> 0.8931600069 | I60: 2026-05-23 | J60: 58 | K60: =+DIAS365($A$2,A60) -> 1764 | L60: 1.188609886e+11 | M60: 2813825726 | N60: 677485366.1 | O60: 3491311092
A61: 2026-06-23 | B61: =IF(DIAS365(CALCULADORA!$C$27,A61)<0,0,DIAS365(CALCULADORA!$C$27,A61)) -> 630 | C61: =+HLOOKUP(CALCULADORA!$C$9,Tablas!B:B,Flujos!J61+1,FALSE) -> 0.00888582 | D61: 35.145805 | E61: 0.888582 | F61: =ROUND(D60*ROUND(((1+CALCULADORA!$C$16)^(1/12)-1),6),6) -> 0.200639 | G61: 1.089221 | H61: =IF($B61=0,0,G61/POWER(1+CALCULADORA!$C$29,Flujos!$B61/365)) -> 0.9110934537 | I61: 2026-06-23 | J61: 59 | K61: =+DIAS365($A$2,A61) -> 1795 | L61: 1.159299623e+11 | M61: 2931026271 | N61: 661817984.4 | O61: 3592844255
A62: 2026-07-23 | B62: =IF(DIAS365(CALCULADORA!$C$27,A62)<0,0,DIAS365(CALCULADORA!$C$27,A62)) -> 660 | C62: =+HLOOKUP(CALCULADORA!$C$9,Tablas!B:B,Flujos!J62+1,FALSE) -> 0.008783 | D62: 34.267505 | E62: 0.8783 | F62: =ROUND(D61*ROUND(((1+CALCULADORA!$C$16)^(1/12)-1),6),6) -> 0.195692 | G62: 1.073992 | H62: =IF($B62=0,0,G62/POWER(1+CALCULADORA!$C$29,Flujos!$B62/365)) -> 0.8907482195 | I62: 2026-07-23 | J62: 60 | K62: =+DIAS365($A$2,A62) -> 1825 | L62: 1.130328517e+11 | M62: 2897110648 | N62: 645498030.1 | O62: 3542608678
A63: 2026-08-23 | B63: =IF(DIAS365(CALCULADORA!$C$27,A63)<0,0,DIAS365(CALCULADORA!$C$27,A63)) -> 691 | C63: =+HLOOKUP(CALCULADORA!$C$9,Tablas!B:B,Flujos!J63+1,FALSE) -> 0.00865222 | D63: 33.402283 | E63: 0.865222 | F63: =ROUND(D62*ROUND(((1+CALCULADORA!$C$16)^(1/12)-1),6),6) -> 0.190801 | G63: 1.056023 | H63: =IF($B63=0,0,G63/POWER(1+CALCULADORA!$C$29,Flujos!$B63/365)) -> 0.8681828244 | I63: 2026-08-23 | J63: 61 | K63: =+DIAS365($A$2,A63) -> 1856 | L63: 1.101788794e+11 | M63: 2853972298 | N63: 629366918 | O63: 3483339216
A64: 2026-09-23 | B64: =IF(DIAS365(CALCULADORA!$C$27,A64)<0,0,DIAS365(CALCULADORA!$C$27,A64)) -> 722 | C64: =+HLOOKUP(CALCULADORA!$C$9,Tablas!B:B,Flujos!J64+1,FALSE) -> 0.00853397 | D64: 32.548886 | E64: 0.853397 | F64: =ROUND(D63*ROUND(((1+CALCULADORA!$C$16)^(1/12)-1),6),6) -> 0.185984 | G64: 1.039381 | H64: =IF($B64=0,0,G64/POWER(1+CALCULADORA!$C$29,Flujos!$B64/365)) -> 0.8470254946 | I64: 2026-09-23 | J64: 62 | K64: =+DIAS365($A$2,A64) -> 1887 | L64: 1.073639123e+11 | M64: 2814967022 | N64: 613476000.3 | O64: 3428443022
A65: 2026-10-23 | B65: =IF(DIAS365(CALCULADORA!$C$27,A65)<0,0,DIAS365(CALCULADORA!$C$27,A65)) -> 752 | C65: =+HLOOKUP(CALCULADORA!$C$9,Tablas!B:B,Flujos!J65+1,FALSE) -> 0.00843576 | D65: 31.70531 | E65: 0.843576 | F65: =ROUND(D64*ROUND(((1+CALCULADORA!$C$16)^(1/12)-1),6),6) -> 0.181232 | G65: 1.024808 | H65: =IF($B65=0,0,G65/POWER(1+CALCULADORA!$C$29,Flujos!$B65/365)) -> 0.8280779338 | I65: 2026-10-23 | J65: 63 | K65: =+DIAS365($A$2,A65) -> 1917 | L65: 1.045813403e+11 | M65: 2782572028 | N65: 597802263.9 | O65: 3380374292
A66: 2026-11-23 | B66: =IF(DIAS365(CALCULADORA!$C$27,A66)<0,0,DIAS365(CALCULADORA!$C$27,A66)) -> 783 | C66: =+HLOOKUP(CALCULADORA!$C$9,Tablas!B:B,Flujos!J66+1,FALSE) -> 0.00833304 | D66: 30.872006 | E66: 0.833304 | F66: =ROUND(D65*ROUND(((1+CALCULADORA!$C$16)^(1/12)-1),6),6) -> 0.176535 | G66: 1.009839 | H66: =IF($B66=0,0,G66/POWER(1+CALCULADORA!$C$29,Flujos!$B66/365)) -> 0.8088439477 | I66: 2026-11-23 | J66: 64 | K66: =+DIAS365($A$2,A66) -> 1948 | L66: 1.018326509e+11 | M66: 2748689390 | N66: 582308902.9 | O66: 3330998293
A67: =EDATE(A66,1) -> 2026-12-23 | B67: =IF(DIAS365(CALCULADORA!$C$27,A67)<0,0,DIAS365(CALCULADORA!$C$27,A67)) -> 813 | C67: =+HLOOKUP(CALCULADORA!$C$9,Tablas!B:B,Flujos!J67+1,FALSE) -> 0.00819954 | D67: 30.052052 | E67: 0.819954 | F67: =ROUND(D66*ROUND(((1+CALCULADORA!$C$16)^(1/12)-1),6),6) -> 0.171895 | G67: 0.991849 | H67: =IF($B67=0,0,G67/POWER(1+CALCULADORA!$C$29,Flujos!$B67/365)) -> 0.7877078201 | I67: =+A67 -> 2026-12-23 | J67: 65 | K67: =+DIAS365($A$2,A67) -> 1978 | L67: 9.912799709e+10 | M67: 2704653836 | N67: 567004200.3 | O67: 3271658036
A68: 2027-01-23 | B68: =IF(DIAS365(CALCULADORA!$C$27,A68)<0,0,DIAS365(CALCULADORA!$C$27,A68)) -> 844 | C68: =+HLOOKUP(CALCULADORA!$C$9,Tablas!B:B,Flujos!J68+1,FALSE) -> 0.00807043 | D68: =+ROUND(D67-E68,6) -> 29.245009 | E68: =ROUND(C68*$D$2,6) -> 0.807043 | F68: =ROUND(D67*ROUND(((1+CALCULADORA!$C$16)^(1/12)-1),6),6) -> 0.16733 | G68: =F68+E68 -> 0.974373 | H68: =IF($B68=0,0,G68/POWER(1+CALCULADORA!$C$29,Flujos!$B68/365)) -> 0.7670589372 | I68: 2027-01-23 | J68: 66 | K68: =+DIAS365($A$2,A68) -> 2009 | L68: =+L67-M68 -> 9.646593074e+10 | M68: =+$L$2*C68 -> 2662066343 | N68: =+L67*$F$3% -> 551944687.8 | O68: =+N68+M68 -> 3214011030
A69: 2027-02-23 | B69: =IF(DIAS365(CALCULADORA!$C$27,A69)<0,0,DIAS365(CALCULADORA!$C$27,A69)) -> 875 | C69: =+HLOOKUP(CALCULADORA!$C$9,Tablas!B:B,Flujos!J69+1,FALSE) -> 0.00795254 | D69: 28.449755 | E69: 0.795254 | F69: =ROUND(D68*ROUND(((1+CALCULADORA!$C$16)^(1/12)-1),6),6) -> 0.162836 | G69: 0.95809 | H69: =IF($B69=0,0,G69/POWER(1+CALCULADORA!$C$29,Flujos!$B69/365)) -> 0.7476420104 | I69: 2027-02-23 | J69: 67 | K69: =+DIAS365($A$2,A69) -> 2040 | L69: 9.384275093e+10 | M69: 2623179815 | N69: 537122302.4 | O69: 3160302117
A70: 2027-03-23 | B70: =IF(DIAS365(CALCULADORA!$C$27,A70)<0,0,DIAS365(CALCULADORA!$C$27,A70)) -> 903 | C70: =+HLOOKUP(CALCULADORA!$C$9,Tablas!B:B,Flujos!J70+1,FALSE) -> 0.00783889 | D70: 27.665866 | E70: 0.783889 | F70: =ROUND(D69*ROUND(((1+CALCULADORA!$C$16)^(1/12)-1),6),6) -> 0.158408 | G70: 0.942297 | H70: =IF($B70=0,0,G70/POWER(1+CALCULADORA!$C$29,Flujos!$B70/365)) -> 0.7295052039 | I70: 2027-03-23 | J70: 68 | K70: =+DIAS365($A$2,A70) -> 2068 | L70: 9.125705906e+10 | M70: 2585691869 | N70: 522516437.2 | O70: 3108208306
A71: 2027-04-23 | B71: =IF(DIAS365(CALCULADORA!$C$27,A71)<0,0,DIAS365(CALCULADORA!$C$27,A71)) -> 934 | C71: =+HLOOKUP(CALCULADORA!$C$9,Tablas!B:B,Flujos!J71+1,FALSE) -> 0.00768507 | D71: 26.897359 | E71: 0.768507 | F71: =ROUND(D70*ROUND(((1+CALCULADORA!$C$16)^(1/12)-1),6),6) -> 0.154044 | G71: 0.922551 | H71: =IF($B71=0,0,G71/POWER(1+CALCULADORA!$C$29,Flujos!$B71/365)) -> 0.7079700177 | I71: 2027-04-23 | J71: 69 | K71: =+DIAS365($A$2,A71) -> 2099 | L71: 8.872210539e+10 | M71: 2534953675 | N71: 508119304.8 | O71: 3043072980
A72: 2027-05-23 | B72: =IF(DIAS365(CALCULADORA!$C$27,A72)<0,0,DIAS365(CALCULADORA!$C$27,A72)) -> 964 | C72: =+HLOOKUP(CALCULADORA!$C$9,Tablas!B:B,Flujos!J72+1,FALSE) -> 0.00712306 | D72: 26.185053 | E72: 0.712306 | F72: =ROUND(D71*ROUND(((1+CALCULADORA!$C$16)^(1/12)-1),6),6) -> 0.149764 | G72: 0.86207 | H72: =IF($B72=0,0,G72/POWER(1+CALCULADORA!$C$29,Flujos!$B72/365)) -> 0.6559549445 | I72: 2027-05-23 | J72: 70 | K72: =+DIAS365($A$2,A72) -> 2129 | L72: 8.637253315e+10 | M72: 2349572239 | N72: 494004682.8 | O72: 2843576921
A73: 2027-06-23 | B73: =IF(DIAS365(CALCULADORA!$C$27,A73)<0,0,DIAS365(CALCULADORA!$C$27,A73)) -> 995 | C73: =+HLOOKUP(CALCULADORA!$C$9,Tablas!B:B,Flujos!J73+1,FALSE) -> 0.00748188 | D73: 25.436865 | E73: 0.748188 | F73: =ROUND(D72*ROUND(((1+CALCULADORA!$C$16)^(1/12)-1),6),6) -> 0.145798 | G73: 0.893986 | H73: =IF($B73=0,0,G73/POWER(1+CALCULADORA!$C$29,Flujos!$B73/365)) -> 0.6742890264 | I73: 2027-06-23 | J73: 71 | K73: =+DIAS365($A$2,A73) -> 2160 | L73: 8.390460257e+10 | M73: 2467930572 | N73: 480922264.6 | O73: 2948852837
A74: 2027-07-23 | B74: =IF(DIAS365(CALCULADORA!$C$27,A74)<0,0,DIAS365(CALCULADORA!$C$27,A74)) -> 1025 | C74: =+HLOOKUP(CALCULADORA!$C$9,Tablas!B:B,Flujos!J74+1,FALSE) -> 0.00739157 | D74: 24.697708 | E74: 0.739157 | F74: =ROUND(D73*ROUND(((1+CALCULADORA!$C$16)^(1/12)-1),6),6) -> 0.141632 | G74: 0.880789 | H74: =IF($B74=0,0,G74/POWER(1+CALCULADORA!$C$29,Flujos!$B74/365)) -> 0.6587099939 | I74: 2027-07-23 | J74: 72 | K74: =+DIAS365($A$2,A74) -> 2190 | L74: 8.146646115e+10 | M74: 2438141427 | N74: 467180827.1 | O74: 2905322254
A75: 2027-08-23 | B75: =IF(DIAS365(CALCULADORA!$C$27,A75)<0,0,DIAS365(CALCULADORA!$C$27,A75)) -> 1056 | C75: =+HLOOKUP(CALCULADORA!$C$9,Tablas!B:B,Flujos!J75+1,FALSE) -> 0.0073054 | D75: 23.967168 | E75: 0.73054 | F75: =ROUND(D74*ROUND(((1+CALCULADORA!$C$16)^(1/12)-1),6),6) -> 0.137517 | G75: 0.868057 | H75: =IF($B75=0,0,G75/POWER(1+CALCULADORA!$C$29,Flujos!$B75/365)) -> 0.6435088293 | I75: 2027-08-23 | J75: 73 | K75: =+DIAS365($A$2,A75) -> 2221 | L75: 7.905674327e+10 | M75: 2409717879 | N75: 453605255.7 | O75: 2863323134
A76: 2027-09-23 | B76: =IF(DIAS365(CALCULADORA!$C$27,A76)<0,0,DIAS365(CALCULADORA!$C$27,A76)) -> 1087 | C76: =+HLOOKUP(CALCULADORA!$C$9,Tablas!B:B,Flujos!J76+1,FALSE) -> 0.00719986 | D76: 23.247182 | E76: 0.719986 | F76: =ROUND(D75*ROUND(((1+CALCULADORA!$C$16)^(1/12)-1),6),6) -> 0.133449 | G76: 0.853435 | H76: =IF($B76=0,0,G76/POWER(1+CALCULADORA!$C$29,Flujos!$B76/365)) -> 0.6271343835 | I76: 2027-09-23 | J76: 74 | K76: =+DIAS365($A$2,A76) -> 2252 | L76: 7.668183822e+10 | M76: 2374905052 | N76: 440187946.5 | O76: 2815092998
A77: 2027-10-23 | B77: =IF(DIAS365(CALCULADORA!$C$27,A77)<0,0,DIAS365(CALCULADORA!$C$27,A77)) -> 1117 | C77: =+HLOOKUP(CALCULADORA!$C$9,Tablas!B:B,Flujos!J77+1,FALSE) -> 0.00711457 | D77: 22.535725 | E77: 0.711457 | F77: =ROUND(D76*ROUND(((1+CALCULADORA!$C$16)^(1/12)-1),6),6) -> 0.12944 | G77: 0.840897 | H77: =IF($B77=0,0,G77/POWER(1+CALCULADORA!$C$29,Flujos!$B77/365)) -> 0.6126888288 | I77: 2027-10-23 | J77: 75 | K77: =+DIAS365($A$2,A77) -> 2282 | L77: 7.433506644e+10 | M77: 2346771775 | N77: 426964475.2 | O77: 2773736250
A78: 2027-11-23 | B78: =IF(DIAS365(CALCULADORA!$C$27,A78)<0,0,DIAS365(CALCULADORA!$C$27,A78)) -> 1148 | C78: =+HLOOKUP(CALCULADORA!$C$9,Tablas!B:B,Flujos!J78+1,FALSE) -> 0.00700479 | D78: 21.835246 | E78: 0.700479 | F78: =ROUND(D77*ROUND(((1+CALCULADORA!$C$16)^(1/12)-1),6),6) -> 0.125479 | G78: 0.825958 | H78: =IF($B78=0,0,G78/POWER(1+CALCULADORA!$C$29,Flujos!$B78/365)) -> 0.5965392431 | I78: 2027-11-23 | J78: 76 | K78: =+DIAS365($A$2,A78) -> 2313 | L78: 7.202450608e+10 | M78: 2310560366 | N78: 413897649.9 | O78: 2724458016
A79: 2027-12-23 | B79: =IF(DIAS365(CALCULADORA!$C$27,A79)<0,0,DIAS365(CALCULADORA!$C$27,A79)) -> 1178 | C79: =+HLOOKUP(CALCULADORA!$C$9,Tablas!B:B,Flujos!J79+1,FALSE) -> 0.00689147 | D79: 21.146099 | E79: 0.689147 | F79: =ROUND(D78*ROUND(((1+CALCULADORA!$C$16)^(1/12)-1),6),6) -> 0.121579 | G79: 0.810726 | H79: =IF($B79=0,0,G79/POWER(1+CALCULADORA!$C$29,Flujos!$B79/365)) -> 0.5805801084 | I79: 2027-12-23 | J79: 77 | K79: =+DIAS365($A$2,A79) -> 2343 | L79: 6.97513248e+10 | M79: 2273181273 | N79: 401032449.8 | O79: 2674213722
A80: 2028-01-23 | B80: =IF(DIAS365(CALCULADORA!$C$27,A80)<0,0,DIAS365(CALCULADORA!$C$27,A80)) -> 1209 | C80: =+HLOOKUP(CALCULADORA!$C$9,Tablas!B:B,Flujos!J80+1,FALSE) -> 0.00678641 | D80: 20.467458 | E80: 0.678641 | F80: =ROUND(D79*ROUND(((1+CALCULADORA!$C$16)^(1/12)-1),6),6) -> 0.117741 | G80: 0.796382 | H80: =IF($B80=0,0,G80/POWER(1+CALCULADORA!$C$29,Flujos!$B80/365)) -> 0.5653187403 | I80: 2028-01-23 | J80: 78 | K80: =+DIAS365($A$2,A80) -> 2374 | L80: 6.751279803e+10 | M80: 2238526776 | N80: 388375376.5 | O80: 2626902152
A81: 2028-02-23 | B81: =IF(DIAS365(CALCULADORA!$C$27,A81)<0,0,DIAS365(CALCULADORA!$C$27,A81)) -> 1240 | C81: =+HLOOKUP(CALCULADORA!$C$9,Tablas!B:B,Flujos!J81+1,FALSE) -> 0.00668822 | D81: 19.798636 | E81: 0.668822 | F81: =ROUND(D80*ROUND(((1+CALCULADORA!$C$16)^(1/12)-1),6),6) -> 0.113963 | G81: 0.782785 | H81: =IF($B81=0,0,G81/POWER(1+CALCULADORA!$C$29,Flujos!$B81/365)) -> 0.5508055888 | I81: 2028-02-23 | J81: 79 | K81: =+DIAS365($A$2,A81) -> 2405 | L81: 6.530665965e+10 | M81: 2206138378 | N81: 375911259.4 | O81: 2582049638
A82: 2028-03-23 | B82: =IF(DIAS365(CALCULADORA!$C$27,A82)<0,0,DIAS365(CALCULADORA!$C$27,A82)) -> 1268 | C82: =+HLOOKUP(CALCULADORA!$C$9,Tablas!B:B,Flujos!J82+1,FALSE) -> 0.00660068 | D82: 19.138568 | E82: 0.660068 | F82: =ROUND(D81*ROUND(((1+CALCULADORA!$C$16)^(1/12)-1),6),6) -> 0.110239 | G82: 0.770307 | H82: =IF($B82=0,0,G82/POWER(1+CALCULADORA!$C$29,Flujos!$B82/365)) -> 0.5377406702 | I82: 2028-03-23 | J82: 80 | K82: =+DIAS365($A$2,A82) -> 2433 | L82: 6.312939672e+10 | M82: 2177262930 | N82: 363627480.9 | O82: 2540890411
A83: 2028-04-23 | B83: =IF(DIAS365(CALCULADORA!$C$27,A83)<0,0,DIAS365(CALCULADORA!$C$27,A83)) -> 1299 | C83: =+HLOOKUP(CALCULADORA!$C$9,Tablas!B:B,Flujos!J83+1,FALSE) -> 0.00649239 | D83: 18.489329 | E83: 0.649239 | F83: =ROUND(D82*ROUND(((1+CALCULADORA!$C$16)^(1/12)-1),6),6) -> 0.106564 | G83: 0.755803 | H83: =IF($B83=0,0,G83/POWER(1+CALCULADORA!$C$29,Flujos!$B83/365)) -> 0.5229998294 | I83: 2028-04-23 | J83: 81 | K83: =+DIAS365($A$2,A83) -> 2464 | L83: 6.098785372e+10 | M83: 2141543003 | N83: 351504480.9 | O83: 2493047484
A84: 2028-05-23 | B84: =IF(DIAS365(CALCULADORA!$C$27,A84)<0,0,DIAS365(CALCULADORA!$C$27,A84)) -> 1329 | C84: =+HLOOKUP(CALCULADORA!$C$9,Tablas!B:B,Flujos!J84+1,FALSE) -> 0.00590686 | D84: 17.898643 | E84: 0.590686 | F84: =ROUND(D83*ROUND(((1+CALCULADORA!$C$16)^(1/12)-1),6),6) -> 0.102949 | G84: 0.693635 | H84: =IF($B84=0,0,G84/POWER(1+CALCULADORA!$C$29,Flujos!$B84/365)) -> 0.4759166851 | I84: 2028-05-23 | J84: 82 | K84: =+DIAS365($A$2,A84) -> 2494 | L84: 5.903945032e+10 | M84: 1948403393 | N84: 339580369.5 | O84: 2287983763
A85: 2028-06-23 | B85: =IF(DIAS365(CALCULADORA!$C$27,A85)<0,0,DIAS365(CALCULADORA!$C$27,A85)) -> 1360 | C85: =+HLOOKUP(CALCULADORA!$C$9,Tablas!B:B,Flujos!J85+1,FALSE) -> 0.00627883 | D85: 17.27076 | E85: 0.627883 | F85: =ROUND(D84*ROUND(((1+CALCULADORA!$C$16)^(1/12)-1),6),6) -> 0.09966 | G85: 0.727543 | H85: =IF($B85=0,0,G85/POWER(1+CALCULADORA!$C$29,Flujos!$B85/365)) -> 0.4948145876 | I85: 2028-06-23 | J85: 83 | K85: =+DIAS365($A$2,A85) -> 2525 | L85: 5.696835101e+10 | M85: 2071099311 | N85: 328731659.4 | O85: 2399830971
A86: 2028-07-23 | B86: =IF(DIAS365(CALCULADORA!$C$27,A86)<0,0,DIAS365(CALCULADORA!$C$27,A86)) -> 1390 | C86: =+HLOOKUP(CALCULADORA!$C$9,Tablas!B:B,Flujos!J86+1,FALSE) -> 0.00619503 | D86: 16.651257 | E86: 0.619503 | F86: =ROUND(D85*ROUND(((1+CALCULADORA!$C$16)^(1/12)-1),6),6) -> 0.096164 | G86: 0.715667 | H86: =IF($B86=0,0,G86/POWER(1+CALCULADORA!$C$29,Flujos!$B86/365)) -> 0.4826161116 | I86: 2028-07-23 | J86: 84 | K86: =+DIAS365($A$2,A86) -> 2555 | L86: 5.492489349e+10 | M86: 2043457518 | N86: 317199778.4 | O86: 2360657296
A87: 2028-08-23 | B87: =IF(DIAS365(CALCULADORA!$C$27,A87)<0,0,DIAS365(CALCULADORA!$C$27,A87)) -> 1421 | C87: =+HLOOKUP(CALCULADORA!$C$9,Tablas!B:B,Flujos!J87+1,FALSE) -> 0.00609068 | D87: 16.042189 | E87: 0.609068 | F87: =ROUND(D86*ROUND(((1+CALCULADORA!$C$16)^(1/12)-1),6),6) -> 0.092714 | G87: 0.701782 | H87: =IF($B87=0,0,G87/POWER(1+CALCULADORA!$C$29,Flujos!$B87/365)) -> 0.469112435 | I87: 2028-08-23 | J87: 85 | K87: =+DIAS365($A$2,A87) -> 2586 | L87: 5.291585628e+10 | M87: 2009037217 | N87: 305821807 | O87: 2314859024
A88: 2028-09-23 | B88: =IF(DIAS365(CALCULADORA!$C$27,A88)<0,0,DIAS365(CALCULADORA!$C$27,A88)) -> 1452 | C88: =+HLOOKUP(CALCULADORA!$C$9,Tablas!B:B,Flujos!J88+1,FALSE) -> 0.00598231 | D88: 15.443958 | E88: 0.598231 | F88: =ROUND(D87*ROUND(((1+CALCULADORA!$C$16)^(1/12)-1),6),6) -> 0.089323 | G88: 0.687554 | H88: =IF($B88=0,0,G88/POWER(1+CALCULADORA!$C$29,Flujos!$B88/365)) -> 0.4555808174 | I88: 2028-09-23 | J88: 86 | K88: =+DIAS365($A$2,A88) -> 2617 | L88: 5.094256537e+10 | M88: 1973290903 | N88: 294635487.7 | O88: 2267926391
A89: 2028-10-23 | B89: =IF(DIAS365(CALCULADORA!$C$27,A89)<0,0,DIAS365(CALCULADORA!$C$27,A89)) -> 1482 | C89: =+HLOOKUP(CALCULADORA!$C$9,Tablas!B:B,Flujos!J89+1,FALSE) -> 0.00589356 | D89: 14.854602 | E89: 0.589356 | F89: =ROUND(D88*ROUND(((1+CALCULADORA!$C$16)^(1/12)-1),6),6) -> 0.085992 | G89: 0.675348 | H89: =IF($B89=0,0,G89/POWER(1+CALCULADORA!$C$29,Flujos!$B89/365)) -> 0.4437038843 | I89: 2028-10-23 | J89: 87 | K89: =+DIAS365($A$2,A89) -> 2647 | L89: 4.899854904e+10 | M89: 1944016330 | N89: 283648204 | O89: 2227664534
A90: 2028-11-23 | B90: =IF(DIAS365(CALCULADORA!$C$27,A90)<0,0,DIAS365(CALCULADORA!$C$27,A90)) -> 1513 | C90: =+HLOOKUP(CALCULADORA!$C$9,Tablas!B:B,Flujos!J90+1,FALSE) -> 0.00580746 | D90: 14.273856 | E90: 0.580746 | F90: =ROUND(D89*ROUND(((1+CALCULADORA!$C$16)^(1/12)-1),6),6) -> 0.08271 | G90: 0.663456 | H90: =IF($B90=0,0,G90/POWER(1+CALCULADORA!$C$29,Flujos!$B90/365)) -> 0.4320774833 | I90: 2028-11-23 | J90: 88 | K90: =+DIAS365($A$2,A90) -> 2678 | L90: 4.708293317e+10 | M90: 1915615872 | N90: 272823921.1 | O90: 2188439793
A91: 2028-12-23 | B91: =IF(DIAS365(CALCULADORA!$C$27,A91)<0,0,DIAS365(CALCULADORA!$C$27,A91)) -> 1543 | C91: =+HLOOKUP(CALCULADORA!$C$9,Tablas!B:B,Flujos!J91+1,FALSE) -> 0.00569008 | D91: 13.704848 | E91: 0.569008 | F91: =ROUND(D90*ROUND(((1+CALCULADORA!$C$16)^(1/12)-1),6),6) -> 0.079477 | G91: 0.648485 | H91: =IF($B91=0,0,G91/POWER(1+CALCULADORA!$C$29,Flujos!$B91/365)) -> 0.4187515618 | I91: 2028-12-23 | J91: 89 | K91: =+DIAS365($A$2,A91) -> 2708 | L91: 4.52060356e+10 | M91: 1876897570 | N91: 262157771.9 | O91: 2139055342
A92: 2029-01-23 | B92: =IF(DIAS365(CALCULADORA!$C$27,A92)<0,0,DIAS365(CALCULADORA!$C$27,A92)) -> 1574 | C92: =+HLOOKUP(CALCULADORA!$C$9,Tablas!B:B,Flujos!J92+1,FALSE) -> 0.00560659 | D92: 13.144189 | E92: 0.560659 | F92: =ROUND(D91*ROUND(((1+CALCULADORA!$C$16)^(1/12)-1),6),6) -> 0.076309 | G92: 0.636968 | H92: =IF($B92=0,0,G92/POWER(1+CALCULADORA!$C$29,Flujos!$B92/365)) -> 0.407716245 | I92: 2029-01-23 | J92: 90 | K92: =+DIAS365($A$2,A92) -> 2739 | L92: 4.335667757e+10 | M92: 1849358031 | N92: 251707206.2 | O92: 2101065237
A93: 2029-02-23 | B93: =IF(DIAS365(CALCULADORA!$C$27,A93)<0,0,DIAS365(CALCULADORA!$C$27,A93)) -> 1605 | C93: =+HLOOKUP(CALCULADORA!$C$9,Tablas!B:B,Flujos!J93+1,FALSE) -> 0.00553094 | D93: 12.591095 | E93: 0.553094 | F93: =ROUND(D92*ROUND(((1+CALCULADORA!$C$16)^(1/12)-1),6),6) -> 0.073187 | G93: 0.626281 | H93: =IF($B93=0,0,G93/POWER(1+CALCULADORA!$C$29,Flujos!$B93/365)) -> 0.3973685883 | I93: 2029-02-23 | J93: 91 | K93: =+DIAS365($A$2,A93) -> 2770 | L93: 4.153227302e+10 | M93: 1824404550 | N93: 241409980.7 | O93: 2065814531
A94: 2029-03-23 | B94: =IF(DIAS365(CALCULADORA!$C$27,A94)<0,0,DIAS365(CALCULADORA!$C$27,A94)) -> 1633 | C94: =+HLOOKUP(CALCULADORA!$C$9,Tablas!B:B,Flujos!J94+1,FALSE) -> 0.00546354 | D94: 12.044741 | E94: 0.546354 | F94: =ROUND(D93*ROUND(((1+CALCULADORA!$C$16)^(1/12)-1),6),6) -> 0.070107 | G94: 0.616461 | H94: =IF($B94=0,0,G94/POWER(1+CALCULADORA!$C$29,Flujos!$B94/365)) -> 0.3880459007 | I94: 2029-03-23 | J94: 92 | K94: =+DIAS365($A$2,A94) -> 2798 | L94: 3.973010065e+10 | M94: 1802172368 | N94: 231251696.2 | O94: 2033424064
A95: 2029-04-23 | B95: =IF(DIAS365(CALCULADORA!$C$27,A95)<0,0,DIAS365(CALCULADORA!$C$27,A95)) -> 1664 | C95: =+HLOOKUP(CALCULADORA!$C$9,Tablas!B:B,Flujos!J95+1,FALSE) -> 0.00539294 | D95: 11.505447 | E95: 0.539294 | F95: =ROUND(D94*ROUND(((1+CALCULADORA!$C$16)^(1/12)-1),6),6) -> 0.067065 | G95: 0.606359 | H95: =IF($B95=0,0,G95/POWER(1+CALCULADORA!$C$29,Flujos!$B95/365)) -> 0.3783478041 | I95: 2029-04-23 | J95: 93 | K95: =+DIAS365($A$2,A95) -> 2829 | L95: 3.7951216e+10 | M95: 1778884652 | N95: 221217200.4 | O95: 2000101852
A96: 2029-05-23 | B96: =IF(DIAS365(CALCULADORA!$C$27,A96)<0,0,DIAS365(CALCULADORA!$C$27,A96)) -> 1694 | C96: =+HLOOKUP(CALCULADORA!$C$9,Tablas!B:B,Flujos!J96+1,FALSE) -> 0.00479068 | D96: 11.026379 | E96: 0.479068 | F96: =ROUND(D95*ROUND(((1+CALCULADORA!$C$16)^(1/12)-1),6),6) -> 0.064062 | G96: 0.54313 | H96: =IF($B96=0,0,G96/POWER(1+CALCULADORA!$C$29,Flujos!$B96/365)) -> 0.3360254549 | I96: 2029-05-23 | J96: 94 | K96: =+DIAS365($A$2,A96) -> 2859 | L96: 3.637098942e+10 | M96: 1580226578 | N96: 211312370.7 | O96: 1791538949
A97: 2029-06-23 | B97: =IF(DIAS365(CALCULADORA!$C$27,A97)<0,0,DIAS365(CALCULADORA!$C$27,A97)) -> 1725 | C97: =+HLOOKUP(CALCULADORA!$C$9,Tablas!B:B,Flujos!J97+1,FALSE) -> 0.00522308 | D97: 10.504071 | E97: 0.522308 | F97: =ROUND(D96*ROUND(((1+CALCULADORA!$C$16)^(1/12)-1),6),6) -> 0.061395 | G97: 0.583703 | H97: =IF($B97=0,0,G97/POWER(1+CALCULADORA!$C$29,Flujos!$B97/365)) -> 0.3579680017 | I97: 2029-06-23 | J97: 95 | K97: =+DIAS365($A$2,A97) -> 2890 | L97: 3.464813383e+10 | M97: 1722855594 | N97: 202513669.1 | O97: 1925369263
A98: 2029-07-23 | B98: =IF(DIAS365(CALCULADORA!$C$27,A98)<0,0,DIAS365(CALCULADORA!$C$27,A98)) -> 1755 | C98: =+HLOOKUP(CALCULADORA!$C$9,Tablas!B:B,Flujos!J98+1,FALSE) -> 0.0051383 | D98: 9.990241 | E98: 0.51383 | F98: =ROUND(D97*ROUND(((1+CALCULADORA!$C$16)^(1/12)-1),6),6) -> 0.058487 | G98: 0.572317 | H98: =IF($B98=0,0,G98/POWER(1+CALCULADORA!$C$29,Flujos!$B98/365)) -> 0.3480133663 | I98: 2029-07-23 | J98: 96 | K98: =+DIAS365($A$2,A98) -> 2920 | L98: 3.295324328e+10 | M98: 1694890543 | N98: 192920809.2 | O98: 1887811352
A99: =EDATE(A98,1) -> 2029-08-23 | B99: =IF(DIAS365(CALCULADORA!$C$27,A99)<0,0,DIAS365(CALCULADORA!$C$27,A99)) -> 1786 | C99: =+HLOOKUP(CALCULADORA!$C$9,Tablas!B:B,Flujos!J99+1,FALSE) -> 0.00506071 | D99: 9.48417 | E99: 0.506071 | F99: =ROUND(D98*ROUND(((1+CALCULADORA!$C$16)^(1/12)-1),6),6) -> 0.055626 | G99: 0.561697 | H99: =IF($B99=0,0,G99/POWER(1+CALCULADORA!$C$29,Flujos!$B99/365)) -> 0.3385675092 | I99: 2029-08-23 | J99: 97 | K99: =+DIAS365($A$2,A99) -> 2951 | L99: 3.128394614e+10 | M99: 1669297145 | N99: 183483658.6 | O99: 1852780804
A100: 2029-09-23 | B100: =IF(DIAS365(CALCULADORA!$C$27,A100)<0,0,DIAS365(CALCULADORA!$C$27,A100)) -> 1817 | C100: =+HLOOKUP(CALCULADORA!$C$9,Tablas!B:B,Flujos!J100+1,FALSE) -> 0.00499163 | D100: 8.985007 | E100: 0.499163 | F100: =ROUND(D99*ROUND(((1+CALCULADORA!$C$16)^(1/12)-1),6),6) -> 0.052808 | G100: 0.551971 | H100: =IF($B100=0,0,G100/POWER(1+CALCULADORA!$C$29,Flujos!$B100/365)) -> 0.3297944412 | I100: 2029-09-23 | J100: 98 | K100: =+DIAS365($A$2,A100) -> 2982 | L100: 2.963743533e+10 | M100: 1646510808 | N100: 174189012.1 | O100: 1820699820
A101: 2029-10-23 | B101: =IF(DIAS365(CALCULADORA!$C$27,A101)<0,0,DIAS365(CALCULADORA!$C$27,A101)) -> 1847 | C101: =+HLOOKUP(CALCULADORA!$C$9,Tablas!B:B,Flujos!J101+1,FALSE) -> 0.00491692 | D101: 8.493315 | E101: 0.491692 | F101: =ROUND(D100*ROUND(((1+CALCULADORA!$C$16)^(1/12)-1),6),6) -> 0.050029 | G101: 0.541721 | H101: =IF($B101=0,0,G101/POWER(1+CALCULADORA!$C$29,Flujos!$B101/365)) -> 0.3209295728 | I101: 2029-10-23 | J101: 99 | K101: =+DIAS365($A$2,A101) -> 3012 | L101: 2.801556794e+10 | M101: 1621867390 | N101: 165021239.9 | O101: 1786888630
A102: 2029-11-23 | B102: =IF(DIAS365(CALCULADORA!$C$27,A102)<0,0,DIAS365(CALCULADORA!$C$27,A102)) -> 1878 | C102: =+HLOOKUP(CALCULADORA!$C$9,Tablas!B:B,Flujos!J102+1,FALSE) -> 0.00485465 | D102: 8.00785 | E102: 0.485465 | F102: =ROUND(D101*ROUND(((1+CALCULADORA!$C$16)^(1/12)-1),6),6) -> 0.047291 | G102: 0.532756 | H102: =IF($B102=0,0,G102/POWER(1+CALCULADORA!$C$29,Flujos!$B102/365)) -> 0.3128573138 | I102: 2029-11-23 | J102: 100 | K102: =+DIAS365($A$2,A102) -> 3043 | L102: 2.641424058e+10 | M102: 1601327360 | N102: 155990682.3 | O102: 1757318043
A103: 2029-12-23 | B103: =IF(DIAS365(CALCULADORA!$C$27,A103)<0,0,DIAS365(CALCULADORA!$C$27,A103)) -> 1908 | C103: =+HLOOKUP(CALCULADORA!$C$9,Tablas!B:B,Flujos!J103+1,FALSE) -> 0.00479858 | D103: 7.527992 | E103: 0.479858 | F103: =ROUND(D102*ROUND(((1+CALCULADORA!$C$16)^(1/12)-1),6),6) -> 0.044588 | G103: 0.524446 | H103: =IF($B103=0,0,G103/POWER(1+CALCULADORA!$C$29,Flujos!$B103/365)) -> 0.3053695549 | I103: 2029-12-23 | J103: 101 | K103: =+DIAS365($A$2,A103) -> 3073 | L103: 2.483140815e+10 | M103: 1582832428 | N103: 147074491.6 | O103: 1729906919
A104: 2030-01-23 | B104: =IF(DIAS365(CALCULADORA!$C$27,A104)<0,0,DIAS365(CALCULADORA!$C$27,A104)) -> 1939 | C104: =+HLOOKUP(CALCULADORA!$C$9,Tablas!B:B,Flujos!J104+1,FALSE) -> 0.00474455 | D104: 7.053537 | E104: 0.474455 | F104: =ROUND(D103*ROUND(((1+CALCULADORA!$C$16)^(1/12)-1),6),6) -> 0.041916 | G104: 0.516371 | H104: =IF($B104=0,0,G104/POWER(1+CALCULADORA!$C$29,Flujos!$B104/365)) -> 0.2980373537 | I104: 2030-01-23 | J104: 102 | K104: =+DIAS365($A$2,A104) -> 3104 | L104: 2.326639775e+10 | M104: 1565010398 | N104: 138261280.6 | O104: 1703271678
A105: 2030-02-23 | B105: =IF(DIAS365(CALCULADORA!$C$27,A105)<0,0,DIAS365(CALCULADORA!$C$27,A105)) -> 1970 | C105: =+HLOOKUP(CALCULADORA!$C$9,Tablas!B:B,Flujos!J105+1,FALSE) -> 0.00469377 | D105: 6.58416 | E105: 0.469377 | F105: =ROUND(D104*ROUND(((1+CALCULADORA!$C$16)^(1/12)-1),6),6) -> 0.039274 | G105: 0.508651 | H105: =IF($B105=0,0,G105/POWER(1+CALCULADORA!$C$29,Flujos!$B105/365)) -> 0.2910131766 | I105: 2030-02-23 | J105: 103 | K105: =+DIAS365($A$2,A105) -> 3135 | L105: 2.171813736e+10 | M105: 1548260395 | N105: 129547302.7 | O105: 1677807697
A106: 2030-03-23 | B106: =IF(DIAS365(CALCULADORA!$C$27,A106)<0,0,DIAS365(CALCULADORA!$C$27,A106)) -> 1998 | C106: =+HLOOKUP(CALCULADORA!$C$9,Tablas!B:B,Flujos!J106+1,FALSE) -> 0.00464294 | D106: 6.119866 | E106: 0.464294 | F106: =ROUND(D105*ROUND(((1+CALCULADORA!$C$16)^(1/12)-1),6),6) -> 0.036661 | G106: 0.500955 | H106: =IF($B106=0,0,G106/POWER(1+CALCULADORA!$C$29,Flujos!$B106/365)) -> 0.2843443892 | I106: 2030-03-23 | J106: 104 | K106: =+DIAS365($A$2,A106) -> 3163 | L106: 2.018664346e+10 | M106: 1531493899 | N106: 120926588.8 | O106: 1652420487
A107: 2030-04-23 | B107: =IF(DIAS365(CALCULADORA!$C$27,A107)<0,0,DIAS365(CALCULADORA!$C$27,A107)) -> 2029 | C107: =+HLOOKUP(CALCULADORA!$C$9,Tablas!B:B,Flujos!J107+1,FALSE) -> 0.00459497 | D107: 5.660369 | E107: 0.459497 | F107: =ROUND(D106*ROUND(((1+CALCULADORA!$C$16)^(1/12)-1),6),6) -> 0.034075 | G107: 0.493572 | H107: =IF($B107=0,0,G107/POWER(1+CALCULADORA!$C$29,Flujos!$B107/365)) -> 0.2777028635 | I107: 2030-04-23 | J107: 105 | K107: =+DIAS365($A$2,A107) -> 3194 | L107: 1.867097268e+10 | M107: 1515670786 | N107: 112399230.8 | O107: 1628070017
A108: 2030-05-23 | B108: =IF(DIAS365(CALCULADORA!$C$27,A108)<0,0,DIAS365(CALCULADORA!$C$27,A108)) -> 2059 | C108: =+HLOOKUP(CALCULADORA!$C$9,Tablas!B:B,Flujos!J108+1,FALSE) -> 0.0039932 | D108: 5.261049 | E108: 0.39932 | F108: =ROUND(D107*ROUND(((1+CALCULADORA!$C$16)^(1/12)-1),6),6) -> 0.031517 | G108: 0.430837 | H108: =IF($B108=0,0,G108/POWER(1+CALCULADORA!$C$29,Flujos!$B108/365)) -> 0.2403531581 | I108: 2030-05-23 | J108: 106 | K108: =+DIAS365($A$2,A108) -> 3224 | L108: 1.735379833e+10 | M108: 1317174341 | N108: 103959975.9 | O108: 1421134317
A109: 2030-06-23 | B109: =IF(DIAS365(CALCULADORA!$C$27,A109)<0,0,DIAS365(CALCULADORA!$C$27,A109)) -> 2090 | C109: =+HLOOKUP(CALCULADORA!$C$9,Tablas!B:B,Flujos!J109+1,FALSE) -> 0.00448715 | D109: 4.812334 | E109: 0.448715 | F109: =ROUND(D108*ROUND(((1+CALCULADORA!$C$16)^(1/12)-1),6),6) -> 0.029294 | G109: 0.478009 | H109: =IF($B109=0,0,G109/POWER(1+CALCULADORA!$C$29,Flujos!$B109/365)) -> 0.2643363016 | I109: 2030-06-23 | J109: 107 | K109: =+DIAS365($A$2,A109) -> 3255 | L109: 1.587369244e+10 | M109: 1480105891 | N109: 96625949.13 | O109: 1576731840
A110: 2030-07-23 | B110: =IF(DIAS365(CALCULADORA!$C$27,A110)<0,0,DIAS365(CALCULADORA!$C$27,A110)) -> 2120 | C110: =+HLOOKUP(CALCULADORA!$C$9,Tablas!B:B,Flujos!J110+1,FALSE) -> 0.00443495 | D110: 4.368839 | E110: 0.443495 | F110: =ROUND(D109*ROUND(((1+CALCULADORA!$C$16)^(1/12)-1),6),6) -> 0.026795 | G110: 0.47029 | H110: =IF($B110=0,0,G110/POWER(1+CALCULADORA!$C$29,Flujos!$B110/365)) -> 0.2578656394 | I110: 2030-07-23 | J110: 108 | K110: =+DIAS365($A$2,A110) -> 3285 | L110: 1.441080495e+10 | M110: 1462887495 | N110: 88384719.52 | O110: 1551272214
A111: 2030-08-23 | B111: =IF(DIAS365(CALCULADORA!$C$27,A111)<0,0,DIAS365(CALCULADORA!$C$27,A111)) -> 2151 | C111: =+HLOOKUP(CALCULADORA!$C$9,Tablas!B:B,Flujos!J111+1,FALSE) -> 0.00437983 | D111: 3.930856 | E111: 0.437983 | F111: =ROUND(D110*ROUND(((1+CALCULADORA!$C$16)^(1/12)-1),6),6) -> 0.024326 | G111: 0.462309 | H111: =IF($B111=0,0,G111/POWER(1+CALCULADORA!$C$29,Flujos!$B111/365)) -> 0.2512719304 | I111: 2030-08-23 | J111: 109 | K111: =+DIAS365($A$2,A111) -> 3316 | L111: 1.296609902e+10 | M111: 1444705924 | N111: 80239361.95 | O111: 1524945286
A112: 2030-09-23 | B112: =IF(DIAS365(CALCULADORA!$C$27,A112)<0,0,DIAS365(CALCULADORA!$C$27,A112)) -> 2182 | C112: =+HLOOKUP(CALCULADORA!$C$9,Tablas!B:B,Flujos!J112+1,FALSE) -> 0.00432627 | D112: 3.498229 | E112: 0.432627 | F112: =ROUND(D111*ROUND(((1+CALCULADORA!$C$16)^(1/12)-1),6),6) -> 0.021887 | G112: 0.454514 | H112: =IF($B112=0,0,G112/POWER(1+CALCULADORA!$C$29,Flujos!$B112/365)) -> 0.2448740641 | I112: 2030-09-23 | J112: 110 | K112: =+DIAS365($A$2,A112) -> 3347 | L112: 1.15390601e+10 | M112: 1427038926 | N112: 72195239.37 | O112: 1499234165
A113: 2030-10-23 | B113: =IF(DIAS365(CALCULADORA!$C$27,A113)<0,0,DIAS365(CALCULADORA!$C$27,A113)) -> 2212 | C113: =+HLOOKUP(CALCULADORA!$C$9,Tablas!B:B,Flujos!J113+1,FALSE) -> 0.00427015 | D113: 3.071214 | E113: 0.427015 | F113: =ROUND(D112*ROUND(((1+CALCULADORA!$C$16)^(1/12)-1),6),6) -> 0.019478 | G113: 0.446493 | H113: =IF($B113=0,0,G113/POWER(1+CALCULADORA!$C$29,Flujos!$B113/365)) -> 0.2385158118 | I113: 2030-10-23 | J113: 111 | K113: =+DIAS365($A$2,A113) -> 3377 | L113: 1.01305326e+10 | M113: 1408527500 | N113: 64249486.63 | O113: 1472776987
A114: 2030-11-23 | B114: =IF(DIAS365(CALCULADORA!$C$27,A114)<0,0,DIAS365(CALCULADORA!$C$27,A114)) -> 2243 | C114: =+HLOOKUP(CALCULADORA!$C$9,Tablas!B:B,Flujos!J114+1,FALSE) -> 0.00421486 | D114: 2.649728 | E114: 0.421486 | F114: =ROUND(D113*ROUND(((1+CALCULADORA!$C$16)^(1/12)-1),6),6) -> 0.017101 | G114: 0.438587 | H114: =IF($B114=0,0,G114/POWER(1+CALCULADORA!$C$29,Flujos!$B114/365)) -> 0.2322427531 | I114: 2030-11-23 | J114: 112 | K114: =+DIAS365($A$2,A114) -> 3408 | L114: 8740242745 | M114: 1390289854 | N114: 56406805.51 | O114: 1446696659
A115: 2030-12-23 | B115: =IF(DIAS365(CALCULADORA!$C$27,A115)<0,0,DIAS365(CALCULADORA!$C$27,A115)) -> 2273 | C115: =+HLOOKUP(CALCULADORA!$C$9,Tablas!B:B,Flujos!J115+1,FALSE) -> 0.00416269 | D115: 2.233459 | E115: 0.416269 | F115: =ROUND(D114*ROUND(((1+CALCULADORA!$C$16)^(1/12)-1),6),6) -> 0.014754 | G115: 0.431023 | H115: =IF($B115=0,0,G115/POWER(1+CALCULADORA!$C$29,Flujos!$B115/365)) -> 0.2263048481 | I115: 2030-12-23 | J115: 113 | K115: =+DIAS365($A$2,A115) -> 3438 | L115: 7367161392 | M115: 1373081353 | N115: 48665671.6 | O115: 1421747025
A116: 2031-01-23 | B116: =IF(DIAS365(CALCULADORA!$C$27,A116)<0,0,DIAS365(CALCULADORA!$C$27,A116)) -> 2304 | C116: =+HLOOKUP(CALCULADORA!$C$9,Tablas!B:B,Flujos!J116+1,FALSE) -> 0.00409982 | D116: 1.823477 | E116: 0.409982 | F116: =ROUND(D115*ROUND(((1+CALCULADORA!$C$16)^(1/12)-1),6),6) -> 0.012436 | G116: 0.422418 | H116: =IF($B116=0,0,G116/POWER(1+CALCULADORA!$C$29,Flujos!$B116/365)) -> 0.2198465854 | I116: 2031-01-23 | J116: 114 | K116: =+DIAS365($A$2,A116) -> 3469 | L116: 6014817981 | M116: 1352343411 | N116: 41020354.63 | O116: 1393363765
A117: 2031-02-23 | B117: =IF(DIAS365(CALCULADORA!$C$27,A117)<0,0,DIAS365(CALCULADORA!$C$27,A117)) -> 2335 | C117: =+HLOOKUP(CALCULADORA!$C$9,Tablas!B:B,Flujos!J117+1,FALSE) -> 0.00404319 | D117: 1.419158 | E117: 0.404319 | F117: =ROUND(D116*ROUND(((1+CALCULADORA!$C$16)^(1/12)-1),6),6) -> 0.010153 | G117: 0.414472 | H117: =IF($B117=0,0,G117/POWER(1+CALCULADORA!$C$29,Flujos!$B117/365)) -> 0.2138239763 | I117: 2031-02-23 | J117: 115 | K117: =+DIAS365($A$2,A117) -> 3500 | L117: 4681154222 | M117: 1333663760 | N117: 33490506.52 | O117: 1367154266
A118: 2031-03-23 | B118: =IF(DIAS365(CALCULADORA!$C$27,A118)<0,0,DIAS365(CALCULADORA!$C$27,A118)) -> 2363 | C118: =+HLOOKUP(CALCULADORA!$C$9,Tablas!B:B,Flujos!J118+1,FALSE) -> 0.00399023 | D118: 1.020135 | E118: 0.399023 | F118: =ROUND(D117*ROUND(((1+CALCULADORA!$C$16)^(1/12)-1),6),6) -> 0.007902 | G118: 0.406925 | H118: =IF($B118=0,0,G118/POWER(1+CALCULADORA!$C$29,Flujos!$B118/365)) -> 0.2082709861 | I118: 2031-03-23 | J118: 116 | K118: =+DIAS365($A$2,A118) -> 3528 | L118: 3364959548 | M118: 1316194674 | N118: 26064666.71 | O118: 1342259341
A119: 2031-04-23 | B119: =IF(DIAS365(CALCULADORA!$C$27,A119)<0,0,DIAS365(CALCULADORA!$C$27,A119)) -> 2394 | C119: =+HLOOKUP(CALCULADORA!$C$9,Tablas!B:B,Flujos!J119+1,FALSE) -> 0.0039217 | D119: 0.627965 | E119: 0.39217 | F119: =ROUND(D118*ROUND(((1+CALCULADORA!$C$16)^(1/12)-1),6),6) -> 0.00568 | G119: 0.39785 | H119: =IF($B119=0,0,G119/POWER(1+CALCULADORA!$C$29,Flujos!$B119/365)) -> 0.2018448438 | I119: =+A119 -> 2031-04-23 | J119: 117 | K119: =+DIAS365($A$2,A119) -> 3559 | L119: 2071369792 | M119: 1293589756 | N119: 18736094.76 | O119: 1312325851
A120: 2031-05-23 | B120: =IF(DIAS365(CALCULADORA!$C$27,A120)<0,0,DIAS365(CALCULADORA!$C$27,A120)) -> 2424 | C120: =+HLOOKUP(CALCULADORA!$C$9,Tablas!B:B,Flujos!J120+1,FALSE) -> 0.0032861 | D120: 0.299355 | E120: 0.32861 | F120: =ROUND(D119*ROUND(((1+CALCULADORA!$C$16)^(1/12)-1),6),6) -> 0.003497 | G120: 0.332107 | H120: =IF($B120=0,0,G120/POWER(1+CALCULADORA!$C$29,Flujos!$B120/365)) -> 0.1670641722 | I120: =+A120 -> 2031-05-23 | J120: 118 | K120: =+DIAS365($A$2,A120) -> 3589 | L120: 987435452.6 | M120: 1083934339 | N120: 11533387 | O120: 1095467726
A121: 2031-06-23 | B121: =IF(DIAS365(CALCULADORA!$C$27,A121)<0,0,DIAS365(CALCULADORA!$C$27,A121)) -> 2455 | C121: =+HLOOKUP(CALCULADORA!$C$9,Tablas!B:B,Flujos!J121+1,FALSE) -> 0.00299355 | D121: 0 | E121: 0.299355 | F121: =ROUND(D120*ROUND(((1+CALCULADORA!$C$16)^(1/12)-1),6),6) -> 0.001667 | G121: 0.301022 | H121: =IF($B121=0,0,G121/POWER(1+CALCULADORA!$C$29,Flujos!$B121/365)) -> 0.1501023275 | I121: 2031-06-23 | J121: 119 | K121: =+DIAS365($A$2,A121) -> 3620 | L121: -1.692771912e-05 | M121: 987435452.6 | N121: 5498040.6 | O121: 992933493.2
A122: 2031-07-23 | B122: =IF(DIAS365(CALCULADORA!$C$27,A122)<0,0,DIAS365(CALCULADORA!$C$27,A122)) -> 2485 | C122: =+HLOOKUP(CALCULADORA!$C$9,Tablas!B:B,Flujos!J122+1,FALSE) -> 0 | D122: 0 | E122: 0 | F122: =ROUND(D121*ROUND(((1+CALCULADORA!$C$16)^(1/12)-1),6),6) -> 0 | G122: 0 | H122: =IF($B122=0,0,G122/POWER(1+CALCULADORA!$C$29,Flujos!$B122/365)) -> 0 | I122: 2031-07-23 | J122: 120 | K122: =+DIAS365($A$2,A122) -> 3650 | L122: -1.692771912e-05 | M122: 0 | N122: -9.425354004e-08 | O122: -9.425354004e-08
A123: 2031-08-23 | B123: =IF(DIAS365(CALCULADORA!$C$27,A123)<0,0,DIAS365(CALCULADORA!$C$27,A123)) -> 2516 | C123: =+HLOOKUP(CALCULADORA!$C$9,Tablas!B:B,Flujos!J123+1,FALSE) -> 0 | D123: 0 | E123: 0 | F123: =ROUND(D122*ROUND(((1+CALCULADORA!$C$16)^(1/12)-1),6),6) -> 0 | G123: 0 | H123: =IF($B123=0,0,G123/POWER(1+CALCULADORA!$C$29,Flujos!$B123/365)) -> 0 | I123: 2031-08-23 | J123: 121 | K123: =+DIAS365($A$2,A123) -> 3681 | L123: -1.692771912e-05 | M123: 0 | N123: -9.425354004e-08 | O123: -9.425354004e-08
A124: 2031-09-23 | B124: =IF(DIAS365(CALCULADORA!$C$27,A124)<0,0,DIAS365(CALCULADORA!$C$27,A124)) -> 2547 | C124: =+HLOOKUP(CALCULADORA!$C$9,Tablas!B:B,Flujos!J124+1,FALSE) -> 0 | D124: 0 | E124: 0 | F124: =ROUND(D123*ROUND(((1+CALCULADORA!$C$16)^(1/12)-1),6),6) -> 0 | G124: 0 | H124: =IF($B124=0,0,G124/POWER(1+CALCULADORA!$C$29,Flujos!$B124/365)) -> 0 | I124: 2031-09-23 | J124: 122 | K124: =+DIAS365($A$2,A124) -> 3712 | L124: -1.692771912e-05 | M124: 0 | N124: -9.425354004e-08 | O124: -9.425354004e-08
A125: 2031-10-23 | B125: =IF(DIAS365(CALCULADORA!$C$27,A125)<0,0,DIAS365(CALCULADORA!$C$27,A125)) -> 2577 | C125: =+HLOOKUP(CALCULADORA!$C$9,Tablas!B:B,Flujos!J125+1,FALSE) -> 0 | D125: 0 | E125: 0 | F125: =ROUND(D124*ROUND(((1+CALCULADORA!$C$16)^(1/12)-1),6),6) -> 0 | G125: 0 | H125: =IF($B125=0,0,G125/POWER(1+CALCULADORA!$C$29,Flujos!$B125/365)) -> 0 | I125: 2031-10-23 | J125: 123 | K125: =+DIAS365($A$2,A125) -> 3742 | L125: -1.692771912e-05 | M125: 0 | N125: -9.425354004e-08 | O125: -9.425354004e-08
A126: 2031-11-23 | B126: =IF(DIAS365(CALCULADORA!$C$27,A126)<0,0,DIAS365(CALCULADORA!$C$27,A126)) -> 2608 | C126: =+HLOOKUP(CALCULADORA!$C$9,Tablas!B:B,Flujos!J126+1,FALSE) -> 0 | D126: 0 | E126: 0 | F126: =ROUND(D125*ROUND(((1+CALCULADORA!$C$16)^(1/12)-1),6),6) -> 0 | G126: 0 | H126: =IF($B126=0,0,G126/POWER(1+CALCULADORA!$C$29,Flujos!$B126/365)) -> 0 | I126: 2031-11-23 | J126: 124 | K126: =+DIAS365($A$2,A126) -> 3773 | L126: -1.692771912e-05 | M126: 0 | N126: -9.425354004e-08 | O126: -9.425354004e-08
A127: 2031-12-23 | B127: =IF(DIAS365(CALCULADORA!$C$27,A127)<0,0,DIAS365(CALCULADORA!$C$27,A127)) -> 2638 | C127: =+HLOOKUP(CALCULADORA!$C$9,Tablas!B:B,Flujos!J127+1,FALSE) -> 0 | D127: 0 | E127: 0 | F127: =ROUND(D126*ROUND(((1+CALCULADORA!$C$16)^(1/12)-1),6),6) -> 0 | G127: 0 | H127: =IF($B127=0,0,G127/POWER(1+CALCULADORA!$C$29,Flujos!$B127/365)) -> 0 | I127: 2031-12-23 | J127: 125 | K127: =+DIAS365($A$2,A127) -> 3803 | L127: -1.692771912e-05 | M127: 0 | N127: -9.425354004e-08 | O127: -9.425354004e-08
A128: 2032-01-23 | B128: =IF(DIAS365(CALCULADORA!$C$27,A128)<0,0,DIAS365(CALCULADORA!$C$27,A128)) -> 2669 | C128: =+HLOOKUP(CALCULADORA!$C$9,Tablas!B:B,Flujos!J128+1,FALSE) -> 0 | D128: 0 | E128: 0 | F128: =ROUND(D127*ROUND(((1+CALCULADORA!$C$16)^(1/12)-1),6),6) -> 0 | G128: 0 | H128: =IF($B128=0,0,G128/POWER(1+CALCULADORA!$C$29,Flujos!$B128/365)) -> 0 | I128: 2032-01-23 | J128: 126 | K128: =+DIAS365($A$2,A128) -> 3834 | L128: -1.692771912e-05 | M128: 0 | N128: -9.425354004e-08 | O128: -9.425354004e-08
A129: 2032-02-23 | B129: =IF(DIAS365(CALCULADORA!$C$27,A129)<0,0,DIAS365(CALCULADORA!$C$27,A129)) -> 2700 | C129: =+HLOOKUP(CALCULADORA!$C$9,Tablas!B:B,Flujos!J129+1,FALSE) -> 0 | D129: 0 | E129: 0 | F129: =ROUND(D128*ROUND(((1+CALCULADORA!$C$16)^(1/12)-1),6),6) -> 0 | G129: 0 | H129: =IF($B129=0,0,G129/POWER(1+CALCULADORA!$C$29,Flujos!$B129/365)) -> 0 | I129: 2032-02-23 | J129: 127 | K129: =+DIAS365($A$2,A129) -> 3865 | L129: -1.692771912e-05 | M129: 0 | N129: -9.425354004e-08 | O129: -9.425354004e-08
A130: 2032-03-23 | B130: =IF(DIAS365(CALCULADORA!$C$27,A130)<0,0,DIAS365(CALCULADORA!$C$27,A130)) -> 2728 | C130: =+HLOOKUP(CALCULADORA!$C$9,Tablas!B:B,Flujos!J130+1,FALSE) -> 0 | D130: 0 | E130: 0 | F130: =ROUND(D129*ROUND(((1+CALCULADORA!$C$16)^(1/12)-1),6),6) -> 0 | G130: 0 | H130: =IF($B130=0,0,G130/POWER(1+CALCULADORA!$C$29,Flujos!$B130/365)) -> 0 | I130: 2032-03-23 | J130: 128 | K130: =+DIAS365($A$2,A130) -> 3893 | L130: -1.692771912e-05 | M130: 0 | N130: -9.425354004e-08 | O130: -9.425354004e-08
A131: =EDATE(A130,1) -> 2032-04-23 | B131: =IF(DIAS365(CALCULADORA!$C$27,A131)<0,0,DIAS365(CALCULADORA!$C$27,A131)) -> 2759 | C131: =+HLOOKUP(CALCULADORA!$C$9,Tablas!B:B,Flujos!J131+1,FALSE) -> 0 | D131: 0 | E131: 0 | F131: =ROUND(D130*ROUND(((1+CALCULADORA!$C$16)^(1/12)-1),6),6) -> 0 | G131: 0 | H131: =IF($B131=0,0,G131/POWER(1+CALCULADORA!$C$29,Flujos!$B131/365)) -> 0 | I131: =+A131 -> 2032-04-23 | J131: 129 | K131: =+DIAS365($A$2,A131) -> 3924 | L131: -1.692771912e-05 | M131: 0 | N131: -9.425354004e-08 | O131: -9.425354004e-08
A132: 2032-05-23 | B132: =IF(DIAS365(CALCULADORA!$C$27,A132)<0,0,DIAS365(CALCULADORA!$C$27,A132)) -> 2789 | C132: =+HLOOKUP(CALCULADORA!$C$9,Tablas!B:B,Flujos!J132+1,FALSE) -> 0 | D132: =+ROUND(D131-E132,6) -> 0 | E132: =ROUND(C132*$D$2,6) -> 0 | F132: =ROUND(D131*ROUND(((1+CALCULADORA!$C$16)^(1/12)-1),6),6) -> 0 | G132: =F132+E132 -> 0 | H132: =IF($B132=0,0,G132/POWER(1+CALCULADORA!$C$29,Flujos!$B132/365)) -> 0 | I132: 2032-05-23 | J132: 130 | K132: =+DIAS365($A$2,A132) -> 3954 | L132: =+L131-M132 -> -1.692771912e-05 | M132: =+$L$2*C132 -> 0 | N132: =+L131*$F$3% -> -9.425354004e-08 | O132: =+N132+M132 -> -9.425354004e-08
A133: 2032-06-23 | B133: =IF(DIAS365(CALCULADORA!$C$27,A133)<0,0,DIAS365(CALCULADORA!$C$27,A133)) -> 2820 | C133: =+HLOOKUP(CALCULADORA!$C$9,Tablas!B:B,Flujos!J133+1,FALSE) -> 0 | D133: 0 | E133: 0 | F133: =ROUND(D132*ROUND(((1+CALCULADORA!$C$16)^(1/12)-1),6),6) -> 0 | G133: 0 | H133: =IF($B133=0,0,G133/POWER(1+CALCULADORA!$C$29,Flujos!$B133/365)) -> 0 | I133: 2032-06-23 | J133: 131 | K133: =+DIAS365($A$2,A133) -> 3985 | L133: -1.692771912e-05 | M133: 0 | N133: -9.425354004e-08 | O133: -9.425354004e-08
A134: 2032-07-23 | B134: =IF(DIAS365(CALCULADORA!$C$27,A134)<0,0,DIAS365(CALCULADORA!$C$27,A134)) -> 2850 | C134: =+HLOOKUP(CALCULADORA!$C$9,Tablas!B:B,Flujos!J134+1,FALSE) -> 0 | D134: 0 | E134: 0 | F134: =ROUND(D133*ROUND(((1+CALCULADORA!$C$16)^(1/12)-1),6),6) -> 0 | G134: 0 | H134: =IF($B134=0,0,G134/POWER(1+CALCULADORA!$C$29,Flujos!$B134/365)) -> 0 | I134: 2032-07-23 | J134: 132 | K134: =+DIAS365($A$2,A134) -> 4015 | L134: -1.692771912e-05 | M134: 0 | N134: -9.425354004e-08 | O134: -9.425354004e-08
A135: 2032-08-23 | B135: =IF(DIAS365(CALCULADORA!$C$27,A135)<0,0,DIAS365(CALCULADORA!$C$27,A135)) -> 2881 | C135: =+HLOOKUP(CALCULADORA!$C$9,Tablas!B:B,Flujos!J135+1,FALSE) -> 0 | D135: 0 | E135: 0 | F135: =ROUND(D134*ROUND(((1+CALCULADORA!$C$16)^(1/12)-1),6),6) -> 0 | G135: 0 | H135: =IF($B135=0,0,G135/POWER(1+CALCULADORA!$C$29,Flujos!$B135/365)) -> 0 | I135: 2032-08-23 | J135: 133 | K135: =+DIAS365($A$2,A135) -> 4046 | L135: -1.692771912e-05 | M135: 0 | N135: -9.425354004e-08 | O135: -9.425354004e-08
A136: 2032-09-23 | B136: =IF(DIAS365(CALCULADORA!$C$27,A136)<0,0,DIAS365(CALCULADORA!$C$27,A136)) -> 2912 | C136: =+HLOOKUP(CALCULADORA!$C$9,Tablas!B:B,Flujos!J136+1,FALSE) -> 0 | D136: 0 | E136: 0 | F136: =ROUND(D135*ROUND(((1+CALCULADORA!$C$16)^(1/12)-1),6),6) -> 0 | G136: 0 | H136: =IF($B136=0,0,G136/POWER(1+CALCULADORA!$C$29,Flujos!$B136/365)) -> 0 | I136: 2032-09-23 | J136: 134 | K136: =+DIAS365($A$2,A136) -> 4077 | L136: -1.692771912e-05 | M136: 0 | N136: -9.425354004e-08 | O136: -9.425354004e-08
A137: 2032-10-23 | B137: =IF(DIAS365(CALCULADORA!$C$27,A137)<0,0,DIAS365(CALCULADORA!$C$27,A137)) -> 2942 | C137: =+HLOOKUP(CALCULADORA!$C$9,Tablas!B:B,Flujos!J137+1,FALSE) -> 0 | D137: 0 | E137: 0 | F137: =ROUND(D136*ROUND(((1+CALCULADORA!$C$16)^(1/12)-1),6),6) -> 0 | G137: 0 | H137: =IF($B137=0,0,G137/POWER(1+CALCULADORA!$C$29,Flujos!$B137/365)) -> 0 | I137: 2032-10-23 | J137: 135 | K137: =+DIAS365($A$2,A137) -> 4107 | L137: -1.692771912e-05 | M137: 0 | N137: -9.425354004e-08 | O137: -9.425354004e-08
A138: 2032-11-23 | B138: =IF(DIAS365(CALCULADORA!$C$27,A138)<0,0,DIAS365(CALCULADORA!$C$27,A138)) -> 2973 | C138: =+HLOOKUP(CALCULADORA!$C$9,Tablas!B:B,Flujos!J138+1,FALSE) -> 0 | D138: 0 | E138: 0 | F138: =ROUND(D137*ROUND(((1+CALCULADORA!$C$16)^(1/12)-1),6),6) -> 0 | G138: 0 | H138: =IF($B138=0,0,G138/POWER(1+CALCULADORA!$C$29,Flujos!$B138/365)) -> 0 | I138: 2032-11-23 | J138: 136 | K138: =+DIAS365($A$2,A138) -> 4138 | L138: -1.692771912e-05 | M138: 0 | N138: -9.425354004e-08 | O138: -9.425354004e-08
A139: 2032-12-23 | B139: =IF(DIAS365(CALCULADORA!$C$27,A139)<0,0,DIAS365(CALCULADORA!$C$27,A139)) -> 3003 | C139: =+HLOOKUP(CALCULADORA!$C$9,Tablas!B:B,Flujos!J139+1,FALSE) -> 0 | D139: 0 | E139: 0 | F139: =ROUND(D138*ROUND(((1+CALCULADORA!$C$16)^(1/12)-1),6),6) -> 0 | G139: 0 | H139: =IF($B139=0,0,G139/POWER(1+CALCULADORA!$C$29,Flujos!$B139/365)) -> 0 | I139: 2032-12-23 | J139: 137 | K139: =+DIAS365($A$2,A139) -> 4168 | L139: -1.692771912e-05 | M139: 0 | N139: -9.425354004e-08 | O139: -9.425354004e-08
A140: 2033-01-23 | B140: =IF(DIAS365(CALCULADORA!$C$27,A140)<0,0,DIAS365(CALCULADORA!$C$27,A140)) -> 3034 | C140: =+HLOOKUP(CALCULADORA!$C$9,Tablas!B:B,Flujos!J140+1,FALSE) -> 0 | D140: 0 | E140: 0 | F140: =ROUND(D139*ROUND(((1+CALCULADORA!$C$16)^(1/12)-1),6),6) -> 0 | G140: 0 | H140: =IF($B140=0,0,G140/POWER(1+CALCULADORA!$C$29,Flujos!$B140/365)) -> 0 | I140: 2033-01-23 | J140: 138 | K140: =+DIAS365($A$2,A140) -> 4199 | L140: -1.692771912e-05 | M140: 0 | N140: -9.425354004e-08 | O140: -9.425354004e-08
A141: 2033-02-23 | B141: =IF(DIAS365(CALCULADORA!$C$27,A141)<0,0,DIAS365(CALCULADORA!$C$27,A141)) -> 3065 | C141: =+HLOOKUP(CALCULADORA!$C$9,Tablas!B:B,Flujos!J141+1,FALSE) -> 0 | D141: 0 | E141: 0 | F141: =ROUND(D140*ROUND(((1+CALCULADORA!$C$16)^(1/12)-1),6),6) -> 0 | G141: 0 | H141: =IF($B141=0,0,G141/POWER(1+CALCULADORA!$C$29,Flujos!$B141/365)) -> 0 | I141: 2033-02-23 | J141: 139 | K141: =+DIAS365($A$2,A141) -> 4230 | L141: -1.692771912e-05 | M141: 0 | N141: -9.425354004e-08 | O141: -9.425354004e-08
A142: 2033-03-23 | B142: =IF(DIAS365(CALCULADORA!$C$27,A142)<0,0,DIAS365(CALCULADORA!$C$27,A142)) -> 3093 | C142: =+HLOOKUP(CALCULADORA!$C$9,Tablas!B:B,Flujos!J142+1,FALSE) -> 0 | D142: 0 | E142: 0 | F142: =ROUND(D141*ROUND(((1+CALCULADORA!$C$16)^(1/12)-1),6),6) -> 0 | G142: 0 | H142: =IF($B142=0,0,G142/POWER(1+CALCULADORA!$C$29,Flujos!$B142/365)) -> 0 | I142: 2033-03-23 | J142: 140 | K142: =+DIAS365($A$2,A142) -> 4258 | L142: -1.692771912e-05 | M142: 0 | N142: -9.425354004e-08 | O142: -9.425354004e-08
A143: 2033-04-23 | B143: =IF(DIAS365(CALCULADORA!$C$27,A143)<0,0,DIAS365(CALCULADORA!$C$27,A143)) -> 3124 | C143: =+HLOOKUP(CALCULADORA!$C$9,Tablas!B:B,Flujos!J143+1,FALSE) -> 0 | D143: 0 | E143: 0 | F143: =ROUND(D142*ROUND(((1+CALCULADORA!$C$16)^(1/12)-1),6),6) -> 0 | G143: 0 | H143: =IF($B143=0,0,G143/POWER(1+CALCULADORA!$C$29,Flujos!$B143/365)) -> 0 | I143: 2033-04-23 | J143: 141 | K143: =+DIAS365($A$2,A143) -> 4289 | L143: -1.692771912e-05 | M143: 0 | N143: -9.425354004e-08 | O143: -9.425354004e-08
A144: 2033-05-23 | B144: =IF(DIAS365(CALCULADORA!$C$27,A144)<0,0,DIAS365(CALCULADORA!$C$27,A144)) -> 3154 | C144: =+HLOOKUP(CALCULADORA!$C$9,Tablas!B:B,Flujos!J144+1,FALSE) -> 0 | D144: 0 | E144: 0 | F144: =ROUND(D143*ROUND(((1+CALCULADORA!$C$16)^(1/12)-1),6),6) -> 0 | G144: 0 | H144: =IF($B144=0,0,G144/POWER(1+CALCULADORA!$C$29,Flujos!$B144/365)) -> 0 | I144: 2033-05-23 | J144: 142 | K144: =+DIAS365($A$2,A144) -> 4319 | L144: -1.692771912e-05 | M144: 0 | N144: -9.425354004e-08 | O144: -9.425354004e-08
A145: 2033-06-23 | B145: =IF(DIAS365(CALCULADORA!$C$27,A145)<0,0,DIAS365(CALCULADORA!$C$27,A145)) -> 3185 | C145: =+HLOOKUP(CALCULADORA!$C$9,Tablas!B:B,Flujos!J145+1,FALSE) -> 0 | D145: 0 | E145: 0 | F145: =ROUND(D144*ROUND(((1+CALCULADORA!$C$16)^(1/12)-1),6),6) -> 0 | G145: 0 | H145: =IF($B145=0,0,G145/POWER(1+CALCULADORA!$C$29,Flujos!$B145/365)) -> 0 | I145: 2033-06-23 | J145: 143 | K145: =+DIAS365($A$2,A145) -> 4350 | L145: -1.692771912e-05 | M145: 0 | N145: -9.425354004e-08 | O145: -9.425354004e-08
A146: 2033-07-23 | B146: =IF(DIAS365(CALCULADORA!$C$27,A146)<0,0,DIAS365(CALCULADORA!$C$27,A146)) -> 3215 | C146: =+HLOOKUP(CALCULADORA!$C$9,Tablas!B:B,Flujos!J146+1,FALSE) -> 0 | D146: 0 | E146: 0 | F146: =ROUND(D145*ROUND(((1+CALCULADORA!$C$16)^(1/12)-1),6),6) -> 0 | G146: 0 | H146: =IF($B146=0,0,G146/POWER(1+CALCULADORA!$C$29,Flujos!$B146/365)) -> 0 | I146: 2033-07-23 | J146: 144 | K146: =+DIAS365($A$2,A146) -> 4380 | L146: -1.692771912e-05 | M146: 0 | N146: -9.425354004e-08 | O146: -9.425354004e-08
A147: 2033-08-23 | B147: =IF(DIAS365(CALCULADORA!$C$27,A147)<0,0,DIAS365(CALCULADORA!$C$27,A147)) -> 3246 | C147: =+HLOOKUP(CALCULADORA!$C$9,Tablas!B:B,Flujos!J147+1,FALSE) -> 0 | D147: 0 | E147: 0 | F147: =ROUND(D146*ROUND(((1+CALCULADORA!$C$16)^(1/12)-1),6),6) -> 0 | G147: 0 | H147: =IF($B147=0,0,G147/POWER(1+CALCULADORA!$C$29,Flujos!$B147/365)) -> 0 | I147: 2033-08-23 | J147: 145 | K147: =+DIAS365($A$2,A147) -> 4411 | L147: -1.692771912e-05 | M147: 0 | N147: -9.425354004e-08 | O147: -9.425354004e-08
A148: 2033-09-23 | B148: =IF(DIAS365(CALCULADORA!$C$27,A148)<0,0,DIAS365(CALCULADORA!$C$27,A148)) -> 3277 | C148: =+HLOOKUP(CALCULADORA!$C$9,Tablas!B:B,Flujos!J148+1,FALSE) -> 0 | D148: 0 | E148: 0 | F148: =ROUND(D147*ROUND(((1+CALCULADORA!$C$16)^(1/12)-1),6),6) -> 0 | G148: 0 | H148: =IF($B148=0,0,G148/POWER(1+CALCULADORA!$C$29,Flujos!$B148/365)) -> 0 | I148: 2033-09-23 | J148: 146 | K148: =+DIAS365($A$2,A148) -> 4442 | L148: -1.692771912e-05 | M148: 0 | N148: -9.425354004e-08 | O148: -9.425354004e-08
A149: 2033-10-23 | B149: =IF(DIAS365(CALCULADORA!$C$27,A149)<0,0,DIAS365(CALCULADORA!$C$27,A149)) -> 3307 | C149: =+HLOOKUP(CALCULADORA!$C$9,Tablas!B:B,Flujos!J149+1,FALSE) -> 0 | D149: 0 | E149: 0 | F149: =ROUND(D148*ROUND(((1+CALCULADORA!$C$16)^(1/12)-1),6),6) -> 0 | G149: 0 | H149: =IF($B149=0,0,G149/POWER(1+CALCULADORA!$C$29,Flujos!$B149/365)) -> 0 | I149: 2033-10-23 | J149: 147 | K149: =+DIAS365($A$2,A149) -> 4472 | L149: -1.692771912e-05 | M149: 0 | N149: -9.425354004e-08 | O149: -9.425354004e-08
A150: 2033-11-23 | B150: =IF(DIAS365(CALCULADORA!$C$27,A150)<0,0,DIAS365(CALCULADORA!$C$27,A150)) -> 3338 | C150: =+HLOOKUP(CALCULADORA!$C$9,Tablas!B:B,Flujos!J150+1,FALSE) -> 0 | D150: 0 | E150: 0 | F150: =ROUND(D149*ROUND(((1+CALCULADORA!$C$16)^(1/12)-1),6),6) -> 0 | G150: 0 | H150: =IF($B150=0,0,G150/POWER(1+CALCULADORA!$C$29,Flujos!$B150/365)) -> 0 | I150: 2033-11-23 | J150: 148 | K150: =+DIAS365($A$2,A150) -> 4503 | L150: -1.692771912e-05 | M150: 0 | N150: -9.425354004e-08 | O150: -9.425354004e-08
A151: 2033-12-23 | B151: =IF(DIAS365(CALCULADORA!$C$27,A151)<0,0,DIAS365(CALCULADORA!$C$27,A151)) -> 3368 | C151: =+HLOOKUP(CALCULADORA!$C$9,Tablas!B:B,Flujos!J151+1,FALSE) -> 0 | D151: 0 | E151: 0 | F151: =ROUND(D150*ROUND(((1+CALCULADORA!$C$16)^(1/12)-1),6),6) -> 0 | G151: 0 | H151: =IF($B151=0,0,G151/POWER(1+CALCULADORA!$C$29,Flujos!$B151/365)) -> 0 | I151: 2033-12-23 | J151: 149 | K151: =+DIAS365($A$2,A151) -> 4533 | L151: -1.692771912e-05 | M151: 0 | N151: -9.425354004e-08 | O151: -9.425354004e-08
A152: 2034-01-23 | B152: =IF(DIAS365(CALCULADORA!$C$27,A152)<0,0,DIAS365(CALCULADORA!$C$27,A152)) -> 3399 | C152: =+HLOOKUP(CALCULADORA!$C$9,Tablas!B:B,Flujos!J152+1,FALSE) -> 0 | D152: 0 | E152: 0 | F152: =ROUND(D151*ROUND(((1+CALCULADORA!$C$16)^(1/12)-1),6),6) -> 0 | G152: 0 | H152: =IF($B152=0,0,G152/POWER(1+CALCULADORA!$C$29,Flujos!$B152/365)) -> 0 | I152: 2034-01-23 | J152: 150 | K152: =+DIAS365($A$2,A152) -> 4564 | L152: -1.692771912e-05 | M152: 0 | N152: -9.425354004e-08 | O152: -9.425354004e-08
A153: 2034-02-23 | B153: =IF(DIAS365(CALCULADORA!$C$27,A153)<0,0,DIAS365(CALCULADORA!$C$27,A153)) -> 3430 | C153: =+HLOOKUP(CALCULADORA!$C$9,Tablas!B:B,Flujos!J153+1,FALSE) -> 0 | D153: 0 | E153: 0 | F153: =ROUND(D152*ROUND(((1+CALCULADORA!$C$16)^(1/12)-1),6),6) -> 0 | G153: 0 | H153: =IF($B153=0,0,G153/POWER(1+CALCULADORA!$C$29,Flujos!$B153/365)) -> 0 | I153: 2034-02-23 | J153: 151 | K153: =+DIAS365($A$2,A153) -> 4595 | L153: -1.692771912e-05 | M153: 0 | N153: -9.425354004e-08 | O153: -9.425354004e-08
A154: 2034-03-23 | B154: =IF(DIAS365(CALCULADORA!$C$27,A154)<0,0,DIAS365(CALCULADORA!$C$27,A154)) -> 3458 | C154: =+HLOOKUP(CALCULADORA!$C$9,Tablas!B:B,Flujos!J154+1,FALSE) -> 0 | D154: 0 | E154: 0 | F154: =ROUND(D153*ROUND(((1+CALCULADORA!$C$16)^(1/12)-1),6),6) -> 0 | G154: 0 | H154: =IF($B154=0,0,G154/POWER(1+CALCULADORA!$C$29,Flujos!$B154/365)) -> 0 | I154: 2034-03-23 | J154: 152 | K154: =+DIAS365($A$2,A154) -> 4623 | L154: -1.692771912e-05 | M154: 0 | N154: -9.425354004e-08 | O154: -9.425354004e-08
A155: 2034-04-23 | B155: =IF(DIAS365(CALCULADORA!$C$27,A155)<0,0,DIAS365(CALCULADORA!$C$27,A155)) -> 3489 | C155: =+HLOOKUP(CALCULADORA!$C$9,Tablas!B:B,Flujos!J155+1,FALSE) -> 0 | D155: 0 | E155: 0 | F155: =ROUND(D154*ROUND(((1+CALCULADORA!$C$16)^(1/12)-1),6),6) -> 0 | G155: 0 | H155: =IF($B155=0,0,G155/POWER(1+CALCULADORA!$C$29,Flujos!$B155/365)) -> 0 | I155: 2034-04-23 | J155: 153 | K155: =+DIAS365($A$2,A155) -> 4654 | L155: -1.692771912e-05 | M155: 0 | N155: -9.425354004e-08 | O155: -9.425354004e-08
A156: 2034-05-23 | B156: =IF(DIAS365(CALCULADORA!$C$27,A156)<0,0,DIAS365(CALCULADORA!$C$27,A156)) -> 3519 | C156: =+HLOOKUP(CALCULADORA!$C$9,Tablas!B:B,Flujos!J156+1,FALSE) -> 0 | D156: 0 | E156: 0 | F156: =ROUND(D155*ROUND(((1+CALCULADORA!$C$16)^(1/12)-1),6),6) -> 0 | G156: 0 | H156: =IF($B156=0,0,G156/POWER(1+CALCULADORA!$C$29,Flujos!$B156/365)) -> 0 | I156: 2034-05-23 | J156: 154 | K156: =+DIAS365($A$2,A156) -> 4684 | L156: -1.692771912e-05 | M156: 0 | N156: -9.425354004e-08 | O156: -9.425354004e-08
A157: 2034-06-23 | B157: =IF(DIAS365(CALCULADORA!$C$27,A157)<0,0,DIAS365(CALCULADORA!$C$27,A157)) -> 3550 | C157: =+HLOOKUP(CALCULADORA!$C$9,Tablas!B:B,Flujos!J157+1,FALSE) -> 0 | D157: 0 | E157: 0 | F157: =ROUND(D156*ROUND(((1+CALCULADORA!$C$16)^(1/12)-1),6),6) -> 0 | G157: 0 | H157: =IF($B157=0,0,G157/POWER(1+CALCULADORA!$C$29,Flujos!$B157/365)) -> 0 | I157: 2034-06-23 | J157: 155 | K157: =+DIAS365($A$2,A157) -> 4715 | L157: -1.692771912e-05 | M157: 0 | N157: -9.425354004e-08 | O157: -9.425354004e-08
A158: 2034-07-23 | B158: =IF(DIAS365(CALCULADORA!$C$27,A158)<0,0,DIAS365(CALCULADORA!$C$27,A158)) -> 3580 | C158: =+HLOOKUP(CALCULADORA!$C$9,Tablas!B:B,Flujos!J158+1,FALSE) -> 0 | D158: 0 | E158: 0 | F158: =ROUND(D157*ROUND(((1+CALCULADORA!$C$16)^(1/12)-1),6),6) -> 0 | G158: 0 | H158: =IF($B158=0,0,G158/POWER(1+CALCULADORA!$C$29,Flujos!$B158/365)) -> 0 | I158: 2034-07-23 | J158: 156 | K158: =+DIAS365($A$2,A158) -> 4745 | L158: -1.692771912e-05 | M158: 0 | N158: -9.425354004e-08 | O158: -9.425354004e-08
A159: 2034-08-23 | B159: =IF(DIAS365(CALCULADORA!$C$27,A159)<0,0,DIAS365(CALCULADORA!$C$27,A159)) -> 3611 | C159: =+HLOOKUP(CALCULADORA!$C$9,Tablas!B:B,Flujos!J159+1,FALSE) -> 0 | D159: 0 | E159: 0 | F159: =ROUND(D158*ROUND(((1+CALCULADORA!$C$16)^(1/12)-1),6),6) -> 0 | G159: 0 | H159: =IF($B159=0,0,G159/POWER(1+CALCULADORA!$C$29,Flujos!$B159/365)) -> 0 | I159: 2034-08-23 | J159: 157 | K159: =+DIAS365($A$2,A159) -> 4776 | L159: -1.692771912e-05 | M159: 0 | N159: -9.425354004e-08 | O159: -9.425354004e-08
A160: 2034-09-23 | B160: =IF(DIAS365(CALCULADORA!$C$27,A160)<0,0,DIAS365(CALCULADORA!$C$27,A160)) -> 3642 | C160: =+HLOOKUP(CALCULADORA!$C$9,Tablas!B:B,Flujos!J160+1,FALSE) -> 0 | D160: 0 | E160: 0 | F160: =ROUND(D159*ROUND(((1+CALCULADORA!$C$16)^(1/12)-1),6),6) -> 0 | G160: 0 | H160: =IF($B160=0,0,G160/POWER(1+CALCULADORA!$C$29,Flujos!$B160/365)) -> 0 | I160: 2034-09-23 | J160: 158 | K160: =+DIAS365($A$2,A160) -> 4807 | L160: -1.692771912e-05 | M160: 0 | N160: -9.425354004e-08 | O160: -9.425354004e-08
A161: 2034-10-23 | B161: =IF(DIAS365(CALCULADORA!$C$27,A161)<0,0,DIAS365(CALCULADORA!$C$27,A161)) -> 3672 | C161: =+HLOOKUP(CALCULADORA!$C$9,Tablas!B:B,Flujos!J161+1,FALSE) -> 0 | D161: 0 | E161: 0 | F161: =ROUND(D160*ROUND(((1+CALCULADORA!$C$16)^(1/12)-1),6),6) -> 0 | G161: 0 | H161: =IF($B161=0,0,G161/POWER(1+CALCULADORA!$C$29,Flujos!$B161/365)) -> 0 | I161: 2034-10-23 | J161: 159 | K161: =+DIAS365($A$2,A161) -> 4837 | L161: -1.692771912e-05 | M161: 0 | N161: -9.425354004e-08 | O161: -9.425354004e-08
A162: 2034-11-23 | B162: =IF(DIAS365(CALCULADORA!$C$27,A162)<0,0,DIAS365(CALCULADORA!$C$27,A162)) -> 3703 | C162: =+HLOOKUP(CALCULADORA!$C$9,Tablas!B:B,Flujos!J162+1,FALSE) -> 0 | D162: 0 | E162: 0 | F162: =ROUND(D161*ROUND(((1+CALCULADORA!$C$16)^(1/12)-1),6),6) -> 0 | G162: 0 | H162: =IF($B162=0,0,G162/POWER(1+CALCULADORA!$C$29,Flujos!$B162/365)) -> 0 | I162: 2034-11-23 | J162: 160 | K162: =+DIAS365($A$2,A162) -> 4868 | L162: -1.692771912e-05 | M162: 0 | N162: -9.425354004e-08 | O162: -9.425354004e-08
A163: =EDATE(A162,1) -> 2034-12-23 | B163: =IF(DIAS365(CALCULADORA!$C$27,A163)<0,0,DIAS365(CALCULADORA!$C$27,A163)) -> 3733 | C163: =+HLOOKUP(CALCULADORA!$C$9,Tablas!B:B,Flujos!J163+1,FALSE) -> 0 | D163: 0 | E163: 0 | F163: =ROUND(D162*ROUND(((1+CALCULADORA!$C$16)^(1/12)-1),6),6) -> 0 | G163: 0 | H163: =IF($B163=0,0,G163/POWER(1+CALCULADORA!$C$29,Flujos!$B163/365)) -> 0 | I163: 2034-12-23 | J163: 161 | K163: =+DIAS365($A$2,A163) -> 4898 | L163: -1.692771912e-05 | M163: 0 | N163: -9.425354004e-08 | O163: -9.425354004e-08
A164: 2035-01-23 | B164: =IF(DIAS365(CALCULADORA!$C$27,A164)<0,0,DIAS365(CALCULADORA!$C$27,A164)) -> 3764 | C164: =+HLOOKUP(CALCULADORA!$C$9,Tablas!B:B,Flujos!J164+1,FALSE) -> 0 | D164: 0 | E164: 0 | F164: =ROUND(D163*ROUND(((1+CALCULADORA!$C$16)^(1/12)-1),6),6) -> 0 | G164: 0 | H164: =IF($B164=0,0,G164/POWER(1+CALCULADORA!$C$29,Flujos!$B164/365)) -> 0 | I164: 2035-01-23 | J164: 162 | K164: =+DIAS365($A$2,A164) -> 4929 | L164: -1.692771912e-05 | M164: 0 | N164: -9.425354004e-08 | O164: -9.425354004e-08
A165: 2035-02-23 | B165: =IF(DIAS365(CALCULADORA!$C$27,A165)<0,0,DIAS365(CALCULADORA!$C$27,A165)) -> 3795 | C165: =+HLOOKUP(CALCULADORA!$C$9,Tablas!B:B,Flujos!J165+1,FALSE) -> 0 | D165: 0 | E165: 0 | F165: =ROUND(D164*ROUND(((1+CALCULADORA!$C$16)^(1/12)-1),6),6) -> 0 | G165: 0 | H165: =IF($B165=0,0,G165/POWER(1+CALCULADORA!$C$29,Flujos!$B165/365)) -> 0 | I165: 2035-02-23 | J165: 163 | K165: =+DIAS365($A$2,A165) -> 4960 | L165: -1.692771912e-05 | M165: 0 | N165: -9.425354004e-08 | O165: -9.425354004e-08
A166: 2035-03-23 | B166: =IF(DIAS365(CALCULADORA!$C$27,A166)<0,0,DIAS365(CALCULADORA!$C$27,A166)) -> 3823 | C166: =+HLOOKUP(CALCULADORA!$C$9,Tablas!B:B,Flujos!J166+1,FALSE) -> 0 | D166: 0 | E166: 0 | F166: =ROUND(D165*ROUND(((1+CALCULADORA!$C$16)^(1/12)-1),6),6) -> 0 | G166: 0 | H166: =IF($B166=0,0,G166/POWER(1+CALCULADORA!$C$29,Flujos!$B166/365)) -> 0 | I166: 2035-03-23 | J166: 164 | K166: =+DIAS365($A$2,A166) -> 4988 | L166: -1.692771912e-05 | M166: 0 | N166: -9.425354004e-08 | O166: -9.425354004e-08
A167: 2035-04-23 | B167: =IF(DIAS365(CALCULADORA!$C$27,A167)<0,0,DIAS365(CALCULADORA!$C$27,A167)) -> 3854 | C167: =+HLOOKUP(CALCULADORA!$C$9,Tablas!B:B,Flujos!J167+1,FALSE) -> 0 | D167: 0 | E167: 0 | F167: =ROUND(D166*ROUND(((1+CALCULADORA!$C$16)^(1/12)-1),6),6) -> 0 | G167: 0 | H167: =IF($B167=0,0,G167/POWER(1+CALCULADORA!$C$29,Flujos!$B167/365)) -> 0 | I167: 2035-04-23 | J167: 165 | K167: =+DIAS365($A$2,A167) -> 5019 | L167: -1.692771912e-05 | M167: 0 | N167: -9.425354004e-08 | O167: -9.425354004e-08
A168: 2035-05-23 | B168: =IF(DIAS365(CALCULADORA!$C$27,A168)<0,0,DIAS365(CALCULADORA!$C$27,A168)) -> 3884 | C168: =+HLOOKUP(CALCULADORA!$C$9,Tablas!B:B,Flujos!J168+1,FALSE) -> 0 | D168: 0 | E168: 0 | F168: =ROUND(D167*ROUND(((1+CALCULADORA!$C$16)^(1/12)-1),6),6) -> 0 | G168: 0 | H168: =IF($B168=0,0,G168/POWER(1+CALCULADORA!$C$29,Flujos!$B168/365)) -> 0 | I168: 2035-05-23 | J168: 166 | K168: =+DIAS365($A$2,A168) -> 5049 | L168: -1.692771912e-05 | M168: 0 | N168: -9.425354004e-08 | O168: -9.425354004e-08
A169: 2035-06-23 | B169: =IF(DIAS365(CALCULADORA!$C$27,A169)<0,0,DIAS365(CALCULADORA!$C$27,A169)) -> 3915 | C169: =+HLOOKUP(CALCULADORA!$C$9,Tablas!B:B,Flujos!J169+1,FALSE) -> 0 | D169: 0 | E169: 0 | F169: =ROUND(D168*ROUND(((1+CALCULADORA!$C$16)^(1/12)-1),6),6) -> 0 | G169: 0 | H169: =IF($B169=0,0,G169/POWER(1+CALCULADORA!$C$29,Flujos!$B169/365)) -> 0 | I169: 2035-06-23 | J169: 167 | K169: =+DIAS365($A$2,A169) -> 5080 | L169: -1.692771912e-05 | M169: 0 | N169: -9.425354004e-08 | O169: -9.425354004e-08
A170: 2035-07-23 | B170: =IF(DIAS365(CALCULADORA!$C$27,A170)<0,0,DIAS365(CALCULADORA!$C$27,A170)) -> 3945 | C170: =+HLOOKUP(CALCULADORA!$C$9,Tablas!B:B,Flujos!J170+1,FALSE) -> 0 | D170: 0 | E170: 0 | F170: =ROUND(D169*ROUND(((1+CALCULADORA!$C$16)^(1/12)-1),6),6) -> 0 | G170: 0 | H170: =IF($B170=0,0,G170/POWER(1+CALCULADORA!$C$29,Flujos!$B170/365)) -> 0 | I170: 2035-07-23 | J170: 168 | K170: =+DIAS365($A$2,A170) -> 5110 | L170: -1.692771912e-05 | M170: 0 | N170: -9.425354004e-08 | O170: -9.425354004e-08
A171: 2035-08-23 | B171: =IF(DIAS365(CALCULADORA!$C$27,A171)<0,0,DIAS365(CALCULADORA!$C$27,A171)) -> 3976 | C171: =+HLOOKUP(CALCULADORA!$C$9,Tablas!B:B,Flujos!J171+1,FALSE) -> 0 | D171: 0 | E171: 0 | F171: =ROUND(D170*ROUND(((1+CALCULADORA!$C$16)^(1/12)-1),6),6) -> 0 | G171: 0 | H171: =IF($B171=0,0,G171/POWER(1+CALCULADORA!$C$29,Flujos!$B171/365)) -> 0 | I171: 2035-08-23 | J171: 169 | K171: =+DIAS365($A$2,A171) -> 5141 | L171: -1.692771912e-05 | M171: 0 | N171: -9.425354004e-08 | O171: -9.425354004e-08
A172: 2035-09-23 | B172: =IF(DIAS365(CALCULADORA!$C$27,A172)<0,0,DIAS365(CALCULADORA!$C$27,A172)) -> 4007 | C172: =+HLOOKUP(CALCULADORA!$C$9,Tablas!B:B,Flujos!J172+1,FALSE) -> 0 | D172: 0 | E172: 0 | F172: =ROUND(D171*ROUND(((1+CALCULADORA!$C$16)^(1/12)-1),6),6) -> 0 | G172: 0 | H172: =IF($B172=0,0,G172/POWER(1+CALCULADORA!$C$29,Flujos!$B172/365)) -> 0 | I172: 2035-09-23 | J172: 170 | K172: =+DIAS365($A$2,A172) -> 5172 | L172: -1.692771912e-05 | M172: 0 | N172: -9.425354004e-08 | O172: -9.425354004e-08
A173: 2035-10-23 | B173: =IF(DIAS365(CALCULADORA!$C$27,A173)<0,0,DIAS365(CALCULADORA!$C$27,A173)) -> 4037 | C173: =+HLOOKUP(CALCULADORA!$C$9,Tablas!B:B,Flujos!J173+1,FALSE) -> 0 | D173: 0 | E173: 0 | F173: =ROUND(D172*ROUND(((1+CALCULADORA!$C$16)^(1/12)-1),6),6) -> 0 | G173: 0 | H173: =IF($B173=0,0,G173/POWER(1+CALCULADORA!$C$29,Flujos!$B173/365)) -> 0 | I173: 2035-10-23 | J173: 171 | K173: =+DIAS365($A$2,A173) -> 5202 | L173: -1.692771912e-05 | M173: 0 | N173: -9.425354004e-08 | O173: -9.425354004e-08
A174: 2035-11-23 | B174: =IF(DIAS365(CALCULADORA!$C$27,A174)<0,0,DIAS365(CALCULADORA!$C$27,A174)) -> 4068 | C174: =+HLOOKUP(CALCULADORA!$C$9,Tablas!B:B,Flujos!J174+1,FALSE) -> 0 | D174: 0 | E174: 0 | F174: =ROUND(D173*ROUND(((1+CALCULADORA!$C$16)^(1/12)-1),6),6) -> 0 | G174: 0 | H174: =IF($B174=0,0,G174/POWER(1+CALCULADORA!$C$29,Flujos!$B174/365)) -> 0 | I174: 2035-11-23 | J174: 172 | K174: =+DIAS365($A$2,A174) -> 5233 | L174: -1.692771912e-05 | M174: 0 | N174: -9.425354004e-08 | O174: -9.425354004e-08
A175: 2035-12-23 | B175: =IF(DIAS365(CALCULADORA!$C$27,A175)<0,0,DIAS365(CALCULADORA!$C$27,A175)) -> 4098 | C175: =+HLOOKUP(CALCULADORA!$C$9,Tablas!B:B,Flujos!J175+1,FALSE) -> 0 | D175: 0 | E175: 0 | F175: =ROUND(D174*ROUND(((1+CALCULADORA!$C$16)^(1/12)-1),6),6) -> 0 | G175: 0 | H175: =IF($B175=0,0,G175/POWER(1+CALCULADORA!$C$29,Flujos!$B175/365)) -> 0 | I175: 2035-12-23 | J175: 173 | K175: =+DIAS365($A$2,A175) -> 5263 | L175: -1.692771912e-05 | M175: 0 | N175: -9.425354004e-08 | O175: -9.425354004e-08
A176: 2036-01-23 | B176: =IF(DIAS365(CALCULADORA!$C$27,A176)<0,0,DIAS365(CALCULADORA!$C$27,A176)) -> 4129 | C176: =+HLOOKUP(CALCULADORA!$C$9,Tablas!B:B,Flujos!J176+1,FALSE) -> 0 | D176: 0 | E176: 0 | F176: =ROUND(D175*ROUND(((1+CALCULADORA!$C$16)^(1/12)-1),6),6) -> 0 | G176: 0 | H176: =IF($B176=0,0,G176/POWER(1+CALCULADORA!$C$29,Flujos!$B176/365)) -> 0 | I176: 2036-01-23 | J176: 174 | K176: =+DIAS365($A$2,A176) -> 5294 | L176: -1.692771912e-05 | M176: 0 | N176: -9.425354004e-08 | O176: -9.425354004e-08
A177: 2036-02-23 | B177: =IF(DIAS365(CALCULADORA!$C$27,A177)<0,0,DIAS365(CALCULADORA!$C$27,A177)) -> 4160 | C177: =+HLOOKUP(CALCULADORA!$C$9,Tablas!B:B,Flujos!J177+1,FALSE) -> 0 | D177: 0 | E177: 0 | F177: =ROUND(D176*ROUND(((1+CALCULADORA!$C$16)^(1/12)-1),6),6) -> 0 | G177: 0 | H177: =IF($B177=0,0,G177/POWER(1+CALCULADORA!$C$29,Flujos!$B177/365)) -> 0 | I177: 2036-02-23 | J177: 175 | K177: =+DIAS365($A$2,A177) -> 5325 | L177: -1.692771912e-05 | M177: 0 | N177: -9.425354004e-08 | O177: -9.425354004e-08
A178: 2036-03-23 | B178: =IF(DIAS365(CALCULADORA!$C$27,A178)<0,0,DIAS365(CALCULADORA!$C$27,A178)) -> 4188 | C178: =+HLOOKUP(CALCULADORA!$C$9,Tablas!B:B,Flujos!J178+1,FALSE) -> 0 | D178: 0 | E178: 0 | F178: =ROUND(D177*ROUND(((1+CALCULADORA!$C$16)^(1/12)-1),6),6) -> 0 | G178: 0 | H178: =IF($B178=0,0,G178/POWER(1+CALCULADORA!$C$29,Flujos!$B178/365)) -> 0 | I178: 2036-03-23 | J178: 176 | K178: =+DIAS365($A$2,A178) -> 5353 | L178: -1.692771912e-05 | M178: 0 | N178: -9.425354004e-08 | O178: -9.425354004e-08
A179: 2036-04-23 | B179: =IF(DIAS365(CALCULADORA!$C$27,A179)<0,0,DIAS365(CALCULADORA!$C$27,A179)) -> 4219 | C179: =+HLOOKUP(CALCULADORA!$C$9,Tablas!B:B,Flujos!J179+1,FALSE) -> 0 | D179: 0 | E179: 0 | F179: =ROUND(D178*ROUND(((1+CALCULADORA!$C$16)^(1/12)-1),6),6) -> 0 | G179: 0 | H179: =IF($B179=0,0,G179/POWER(1+CALCULADORA!$C$29,Flujos!$B179/365)) -> 0 | I179: 2036-04-23 | J179: 177 | K179: =+DIAS365($A$2,A179) -> 5384 | L179: -1.692771912e-05 | M179: 0 | N179: -9.425354004e-08 | O179: -9.425354004e-08
A180: 2036-05-23 | B180: =IF(DIAS365(CALCULADORA!$C$27,A180)<0,0,DIAS365(CALCULADORA!$C$27,A180)) -> 4249 | C180: =+HLOOKUP(CALCULADORA!$C$9,Tablas!B:B,Flujos!J180+1,FALSE) -> 0 | D180: 0 | E180: 0 | F180: =ROUND(D179*ROUND(((1+CALCULADORA!$C$16)^(1/12)-1),6),6) -> 0 | G180: 0 | H180: =IF($B180=0,0,G180/POWER(1+CALCULADORA!$C$29,Flujos!$B180/365)) -> 0 | I180: 2036-05-23 | J180: 178 | K180: =+DIAS365($A$2,A180) -> 5414 | L180: -1.692771912e-05 | M180: 0 | N180: -9.425354004e-08 | O180: -9.425354004e-08
A181: 2036-06-23 | B181: =IF(DIAS365(CALCULADORA!$C$27,A181)<0,0,DIAS365(CALCULADORA!$C$27,A181)) -> 4280 | C181: =+HLOOKUP(CALCULADORA!$C$9,Tablas!B:B,Flujos!J181+1,FALSE) -> 0 | D181: 0 | E181: 0 | F181: =ROUND(D180*ROUND(((1+CALCULADORA!$C$16)^(1/12)-1),6),6) -> 0 | G181: 0 | H181: =IF($B181=0,0,G181/POWER(1+CALCULADORA!$C$29,Flujos!$B181/365)) -> 0 | I181: 2036-06-23 | J181: 179 | K181: =+DIAS365($A$2,A181) -> 5445 | L181: -1.692771912e-05 | M181: 0 | N181: -9.425354004e-08 | O181: -9.425354004e-08
A182: 2036-07-23 | B182: =IF(DIAS365(CALCULADORA!$C$27,A182)<0,0,DIAS365(CALCULADORA!$C$27,A182)) -> 4310 | C182: =+HLOOKUP(CALCULADORA!$C$9,Tablas!B:B,Flujos!J182+1,FALSE) -> 0 | D182: 0 | E182: 0 | F182: =ROUND(D181*ROUND(((1+CALCULADORA!$C$16)^(1/12)-1),6),6) -> 0 | G182: 0 | H182: =IF($B182=0,0,G182/POWER(1+CALCULADORA!$C$29,Flujos!$B182/365)) -> 0 | I182: 2036-07-23 | J182: 180 | K182: =+DIAS365($A$2,A182) -> 5475 | L182: -1.692771912e-05 | M182: 0 | N182: -9.425354004e-08 | O182: -9.425354004e-08
C183: =+SUMIF(B2:B182,">0",C2:C182) -> 0.52343859 | E183: =SUM(E2:E182) -> 100 | F183: =SUM(F2:F182) -> 25.679285 | G183: =SUM(G2:G182) -> 125.679285 | H183: =SUM(H2:H182) -> 47.81109741 | L183: Totales | M183: =SUM(M2:M182) -> 3.298543377e+11 | N183: =SUM(N2:N182) -> 8.470422199e+10 | O183: 4.145585597e+11

Sheet Características (hidden)
A1: Serie | B1: TIPS N13 A | C1: TIPS N14 A | D1: TIPS N15 A | E1: TIPS N16 A | F1: TIPS N17 A | G1: TIPS N18 A 2034 | H1: TIPS N19 A 2034 | I1: TIPS N20 A 2034 | J1: TIPS N21 A | K1: TIPS N22 A | L1: TIPS N23 A | M1: TIPS N24 A1 2029 | N1: TIPS N24 A2 2039
A2: Nemo MEC | B2: INST10011226 | C2: INST10080327 | D2: INST10270627 | E2: INST10061227 | F2: INST10150328 | G2: INST15040434 | H2: INST15230534 | I2: INST15041034 | J2: INST13240634 | K2: INST070339A | L2: INST15180739 | M2: INST15041029 | N2: INST15041039
A3: ISIN
A4: Emisión | B4: 2016-12-01 | C4: 2017-03-08 | D4: 2017-06-27 | E4: 2017-12-06 | F4: 2018-03-15 | G4: 2021-02-04 | H4: 2021-07-23 | I4: 2021-04-04 | J4: 2021-06-24 | K4: 2024-03-07 | L4: 2024-07-18 | M4: 2024-10-04 | N4: 2026-01-04
A5: Vencimiento contractual | B5: 2026-12-01 | C5: 2027-03-08 | D5: 2042-03-08 | E5: 2027-12-06 | F5: 2033-03-15 | G5: 2034-04-04 | H5: 2034-05-23 | I5: 2034-10-04 | J5: 2034-06-24 | K5: 2039-03-07 | L5: 2039-07-18 | M5: 2029-10-04 | N5: 2039-01-04
A6: Cupón EA | B6: 0.0837 | C6: 0.0775 | D6: 0.069 | E6: 0.0638 | F6: 0.0657 | G6: 0.0683 | H6: 0.0689 | I6: 0.0604 | J6: 0.0606 | K6: 0.109 | L6: 0.1165 | M6: 0.104 | N6: 0.1078
A7: Moneda | B7: COP | C7: COP | D7: COP | E7: COP | F7: COP | G7: COP | H7: COP | I7: COP | J7: COP | K7: COP | L7: COP | M7: COP | N7: COP
A9: Cálculo de tasa y precio sucio a partir del limpio
A10: Fecha de liquidación | B10: =+CALCULADORA!C27 -> 2024-10-01
A11: Fecha último pago cupón | B11: =+VLOOKUP(B10,Flujos!$A$2:$A$182,1) -> 2024-09-23
A12: Valor Par | B12: =+VLOOKUP(B11,Flujos!$A$2:$D$182,4) -> 52.343859
A13: Próximo pago de interés | B13: =+VLOOKUP(EDATE(B10,1),Flujos!$A$2:$F$182,6) -> 0.291451
A14: Días corridos | B14: =+DAYS360(B11,B10,TRUE) -> 8
A15: Días entre flujos | B15: 30
A16: Cupón corrido | B16: =ROUND(B13/B12*B14/B15*100,4) -> 0.1485
A17: Precio limpio | B17: =+TRUNC(Flujos!H183/VLOOKUP(CALCULADORA!C27,Flujos!A:D,4)*100,3) -> 91.34
A18: Nominal | B18: =+CALCULADORA!C28 -> 172658489425
A19: Moneda | B19: 1
A20: Contravalor | B20: =ROUND(B18*B19*(B17+B16)/100,0) -> 157962662098
A21: Precio unitario | B21: =TRUNC(B20/B18,5) -> 0.91488
A22: Precio sucio MEC | B22: =TRUNC(B21/B19*100,3) -> 91.488
A23: Precio sucio modelo | B23: =+B22 -> 91.488
A24: Diferencia | B24: =+B22-B23 -> 0
A25: Tasa de descuento equivalente | B25: =TRUNC(CALCULADORA!C29,5) -> 0.109
A27: Cálculo de precio limpio y sucio a partir de tasa
A28: Tasa de descuento | B28: =TRUNC(CALCULADORA!C29,5) -> 0.109
A29: Precio sucio modelo | B29: =+B23 -> 91.488
A30: Moneda | B30: =+CALCULADORA!$C$43 -> 1
A31: Nominal | B31: =+CALCULADORA!C28 -> 172658489425
A32: Contravalor | B32: =+ROUND(B29/100*B31*B30,0) -> 157961798805
A33: Valor Par | B33: =+VLOOKUP(B11,Flujos!$A$2:$D$182,4) -> 52.343859
A34: Próximo pago de interés | B34: =+VLOOKUP(EDATE(B10,1),Flujos!$A$2:$F$182,6) -> 0.291451
A35: Días corridos | B35: =+DAYS360(B11,B10,TRUE) -> 8
A36: Días entre flujos | B36: 30
A37: Precio unitario | B37: =TRUNC(B32/(B30*B31),5) -> 0.91487
A38: Cupón corrido | B38: =ROUND(B34/B33*B35/B36,6)*100 -> 0.1485
A39: Precio limpio | B39: =ROUND((B37-(B38/100))*100,3) -> 91.339

Sheet TIR de Tenencia (hidden)
A1: =+Flujos!A1 -> Fecha | B1: =+Flujos!L1 -> Saldo / Balance | C1: =+Flujos!M1 -> Pago de Capital | D1: =+Flujos!N1 -> Pago de Intereses | E1: =+Flujos!O1 -> Pago Total | F1: =+CALCULADORA!C27 -> 2024-10-01 | G1: Fecha | H1: Flujo | I1: Fecha | J1: Flujo 1 | K1: TIR | L1: =+DAY(A2) -> 23 | M1: =+MONTH(G2) -> 3 | N1: =+YEAR(G2) -> 2024 | P1: =MATCH(MAX('TIR de Tenencia'!I:I),'TIR de Tenencia'!I:I,0) -> 9
A2: =+Flujos!A2 -> 2021-07-23 | B2: =+Flujos!L2 -> 3.298543377e+11 | C2: =+Flujos!M2 -> 0 | D2: =+Flujos!N2 -> 0 | E2: =+Flujos!O2 -> 0 | G2: =+CALCULADORA!C23 -> 2024-03-07 | H2: =-CALCULADORA!C24 -> -15000000000 | I2: =+G2 -> 2024-03-07 | J2: =+H2 -> -15000000000 | K2: =+XIRR(J2:J9,I2:I9) -> 272.5604691 | L2: =+L1 -> 23 | M2: =+IF(M1=12,1,M1+1) -> 4 | N2: =+IF(M2=1,N1+1,N1) -> 2024 | P2: 1 | Q2: Enero
A3: =+Flujos!A3 -> 2021-08-23 | B3: =+Flujos!L3 -> 3.237617796e+11 | C3: =+Flujos!M3 -> 6092558052 | D3: =+Flujos!N3 -> 1836628952 | E3: =+Flujos!O3 -> 7929187004 | G3: =+DATE(N2,M2,L2) -> 2024-04-23 | H3: =IF(G3<CALCULADORA!$C$23,0,IF(CALCULADORA!$C$27>'TIR de Tenencia'!G3,E3,CALCULADORA!$C$33)) -> 7929187004 | I3: =+IF(H3=H2," ",G3) -> 2024-04-23 | J3: =+IF(H3=H2," ",H3) -> 7929187004 | L3: =+L2 -> 23 | M3: =+IF(M2=12,1,M2+1) -> 5 | N3: =+IF(M3=1,N2+1,N2) -> 2024 | P3: 2 | Q3: Febrero
A4: =+Flujos!A4 -> 2021-09-23 | B4: =+Flujos!L4 -> 3.158716606e+11 | C4: =+Flujos!M4 -> 7890119056 | D4: =+Flujos!N4 -> 1802705589 | E4: =+Flujos!O4 -> 9692824645 | G4: =+DATE(N3,M3,L3) -> 2024-05-23 | H4: =IF(G4<CALCULADORA!$C$23,0,IF(CALCULADORA!$C$27>'TIR de Tenencia'!G4,E4,CALCULADORA!$C$33)) -> 9692824645 | I4: =+IF(H4=H3," ",G4) -> 2024-05-23 | J4: =+IF(H4=H3," ",H4) -> 9692824645 | L4: 23 | M4: 6 | N4: 2024 | P4: 3 | Q4: Marzo
A5: =+Flujos!A5 -> 2021-10-23 | B5: =+Flujos!L5 -> 3.088907784e+11 | C5: =+Flujos!M5 -> 6980882171 | D5: =+Flujos!N5 -> 1758773406 | E5: =+Flujos!O5 -> 8739655577 | G5: 2024-06-23 | H5: =IF(G5<CALCULADORA!$C$23,0,IF(CALCULADORA!$C$27>'TIR de Tenencia'!G5,E5,CALCULADORA!$C$33)) -> 8739655577 | I5: =+IF(H5=H4," ",G5) -> 2024-06-23 | J5: =+IF(H5=H4," ",H5) -> 8739655577 | L5: 23 | M5: 7 | N5: 2024 | P5: 4 | Q5: Abril
A6: =+Flujos!A6 -> 2021-11-23 | B6: =+Flujos!L6 -> 3.028077103e+11 | C6: =+Flujos!M6 -> 6083068142 | D6: =+Flujos!N6 -> 1719903854 | E6: =+Flujos!O6 -> 7802971996 | G6: 2024-07-23 | H6: =IF(G6<CALCULADORA!$C$23,0,IF(CALCULADORA!$C$27>'TIR de Tenencia'!G6,E6,CALCULADORA!$C$33)) -> 7802971996 | I6: 2024-07-23 | J6: 7802971996 | L6: 23 | M6: 8 | N6: 2024 | P6: 5 | Q6: Mayo
A7: =+Flujos!A7 -> 2021-12-23 | B7: =+Flujos!L7 -> 2.962020011e+11 | C7: =+Flujos!M7 -> 6605709146 | D7: =+Flujos!N7 -> 1686033331 | E7: =+Flujos!O7 -> 8291742477 | G7: 2024-08-23 | H7: =IF(G7<CALCULADORA!$C$23,0,IF(CALCULADORA!$C$27>'TIR de Tenencia'!G7,E7,CALCULADORA!$C$33)) -> 8291742477 | I7: 2024-08-23 | J7: 8291742477 | L7: 23 | M7: 9 | N7: 2024 | P7: 6 | Q7: Junio
A8: =+Flujos!A8 -> 2022-01-23 | B8: =+Flujos!L8 -> 2.898658423e+11 | C8: =+Flujos!M8 -> 6336158778 | D8: =+Flujos!N8 -> 1649252742 | E8: =+Flujos!O8 -> 7985411521 | G8: 2024-09-23 | H8: =IF(G8<CALCULADORA!$C$23,0,IF(CALCULADORA!$C$27>'TIR de Tenencia'!G8,E8,CALCULADORA!$C$33)) -> 7985411521 | I8: 2024-09-23 | J8: 7985411521 | L8: 23 | M8: 10 | N8: 2024 | P8: 7 | Q8: Julio
A9: =+Flujos!A9 -> 2022-02-23 | B9: =+Flujos!L9 -> 2.846934624e+11 | C9: =+Flujos!M9 -> 5172379898 | D9: =+Flujos!N9 -> 1613973010 | E9: =+Flujos!O9 -> 6786352909 | G9: 2024-10-23 | H9: =IF(G9<CALCULADORA!$C$23,0,IF(CALCULADORA!$C$27>'TIR de Tenencia'!G9,E9,CALCULADORA!$C$33)) -> 157961798805 | I9: 2024-10-23 | J9: 157961798805 | L9: 23 | M9: 11 | N9: 2024 | P9: 8 | Q9: Agosto
A10: =+Flujos!A10 -> 2022-03-23 | B10: =+Flujos!L10 -> 2.779941077e+11 | C10: =+Flujos!M10 -> 6699354793 | D10: =+Flujos!N10 -> 1585173199 | E10: =+Flujos!O10 -> 8284527992 | G10: 2024-11-23 | H10: =IF(G10<CALCULADORA!$C$23,0,IF(CALCULADORA!$C$27>'TIR de Tenencia'!G10,E10,CALCULADORA!$C$33)) -> 157961798805 | L10: 23 | M10: 12 | N10: 2024 | P10: 9 | Q10: Septiembre
A11: =+Flujos!A11 -> 2022-04-23 | B11: =+Flujos!L11 -> 2.725395769e+11 | C11: =+Flujos!M11 -> 5454530702 | D11: =+Flujos!N11 -> 1547871191 | E11: =+Flujos!O11 -> 7002401893 | G11: 2024-12-23 | H11: =IF(G11<CALCULADORA!$C$23,0,IF(CALCULADORA!$C$27>'TIR de Tenencia'!G11,E11,CALCULADORA!$C$33)) -> 157961798805 | L11: 23 | M11: =+IF(M10=12,1,M10+1) -> 1 | N11: 2025 | P11: 10 | Q11: Octubre
A12: =+Flujos!A12 -> 2022-05-23 | B12: =+Flujos!L12 -> 2.690160564e+11 | C12: =+Flujos!M12 -> 3523520528 | D12: =+Flujos!N12 -> 1517500364 | E12: =+Flujos!O12 -> 5041020892 | G12: 2025-01-23 | H12: =IF(G12<CALCULADORA!$C$23,0,IF(CALCULADORA!$C$27>'TIR de Tenencia'!G12,E12,CALCULADORA!$C$33)) -> 157961798805 | L12: 23 | M12: 2 | N12: 2025 | P12: 11 | Q12: Noviembre
A13: =+Flujos!A13 -> 2022-06-23 | B13: =+Flujos!L13 -> 2.635682482e+11 | C13: =+Flujos!M13 -> 5447808270 | D13: =+Flujos!N13 -> 1497881402 | E13: =+Flujos!O13 -> 6945689673 | G13: 2025-02-23 | H13: =IF(G13<CALCULADORA!$C$23,0,IF(CALCULADORA!$C$27>'TIR de Tenencia'!G13,E13,CALCULADORA!$C$33)) -> 157961798805 | L13: 23 | M13: 3 | N13: 2025 | P13: 12 | Q13: Diciembre
A14: =+Flujos!A14 -> 2022-07-23 | B14: =+Flujos!L14 -> 2.588525252e+11 | C14: =+Flujos!M14 -> 4715722956 | D14: =+Flujos!N14 -> 1467548006 | E14: =+Flujos!O14 -> 6183270962 | G14: 2025-03-23 | H14: =IF(G14<CALCULADORA!$C$23,0,IF(CALCULADORA!$C$27>'TIR de Tenencia'!G14,E14,CALCULADORA!$C$33)) -> 157961798805 | L14: 23 | M14: 4 | N14: 2025
A15: =+Flujos!A15 -> 2022-08-23 | B15: =+Flujos!L15 -> 2.558066865e+11 | C15: =+Flujos!M15 -> 3045838670 | D15: =+Flujos!N15 -> 1441290860 | E15: =+Flujos!O15 -> 4487129531 | G15: 2025-04-23 | H15: =IF(G15<CALCULADORA!$C$23,0,IF(CALCULADORA!$C$27>'TIR de Tenencia'!G15,E15,CALCULADORA!$C$33)) -> 157961798805 | L15: 23 | M15: =+IF(M14=12,1,M14+1) -> 5 | N15: 2025
A16: =+Flujos!A16 -> 2022-09-23 | B16: =+Flujos!L16 -> 2.508599633e+11 | C16: =+Flujos!M16 -> 4946723247 | D16: =+Flujos!N16 -> 1424331631 | E16: =+Flujos!O16 -> 6371054878 | G16: 2025-05-23 | H16: =IF(G16<CALCULADORA!$C$23,0,IF(CALCULADORA!$C$27>'TIR de Tenencia'!G16,E16,CALCULADORA!$C$33)) -> 157961798805 | L16: 23 | M16: 6 | N16: 2025
A17: =+Flujos!A17 -> 2022-10-23 | B17: =+Flujos!L17 -> 2.463823127e+11 | C17: =+Flujos!M17 -> 4477650588 | D17: =+Flujos!N17 -> 1396788276 | E17: =+Flujos!O17 -> 5874438864 | G17: 2025-06-23 | H17: =IF(G17<CALCULADORA!$C$23,0,IF(CALCULADORA!$C$27>'TIR de Tenencia'!G17,E17,CALCULADORA!$C$33)) -> 157961798805 | I17: =+IF(H17=H16," ",G17) ->  | L17: 23 | M17: 7 | N17: 2025
A18: =+Flujos!A18 -> 2022-11-23 | B18: =+Flujos!L18 -> 2.414888807e+11 | C18: =+Flujos!M18 -> 4893431981 | D18: =+Flujos!N18 -> 1371856717 | E18: =+Flujos!O18 -> 6265288698 | G18: 2025-07-23 | H18: =IF(G18<CALCULADORA!$C$23,0,IF(CALCULADORA!$C$27>'TIR de Tenencia'!G18,E18,CALCULADORA!$C$33)) -> 157961798805 | L18: 23 | M18: 8 | N18: 2025
A19: =+Flujos!A19 -> 2022-12-23 | B19: =+Flujos!L19 -> 2.388255543e+11 | C19: =+Flujos!M19 -> 2663326386 | D19: =+Flujos!N19 -> 1344610088 | E19: =+Flujos!O19 -> 4007936474 | G19: 2025-08-23 | H19: =IF(G19<CALCULADORA!$C$23,0,IF(CALCULADORA!$C$27>'TIR de Tenencia'!G19,E19,CALCULADORA!$C$33)) -> 157961798805 | L19: 23 | M19: 9 | N19: 2025
A20: =+Flujos!A20 -> 2023-01-23 | B20: =+Flujos!L20 -> 2.343349701e+11 | C20: =+Flujos!M20 -> 4490584177 | D20: =+Flujos!N20 -> 1329780686 | E20: =+Flujos!O20 -> 5820364863 | G20: 2025-09-23 | H20: =IF(G20<CALCULADORA!$C$23,0,IF(CALCULADORA!$C$27>'TIR de Tenencia'!G20,E20,CALCULADORA!$C$33)) -> 157961798805 | L20: 23 | M20: =+IF(M19=12,1,M19+1) -> 10 | N20: 2025
A21: =+Flujos!A21 -> 2023-02-23 | B21: =+Flujos!L21 -> 2.309717126e+11 | C21: =+Flujos!M21 -> 3363257499 | D21: =+Flujos!N21 -> 1304777114 | E21: =+Flujos!O21 -> 4668034613 | G21: 2025-10-23 | H21: =IF(G21<CALCULADORA!$C$23,0,IF(CALCULADORA!$C$27>'TIR de Tenencia'!G21,E21,CALCULADORA!$C$33)) -> 157961798805 | L21: 23 | M21: 11 | N21: 2025
A22: =+Flujos!A22 -> 2023-03-23 | B22: =+Flujos!L22 -> 2.27566214e+11 | C22: =+Flujos!M22 -> 3405498646 | D22: =+Flujos!N22 -> 1286050496 | E22: =+Flujos!O22 -> 4691549142 | G22: 2025-11-23 | H22: =IF(G22<CALCULADORA!$C$23,0,IF(CALCULADORA!$C$27>'TIR de Tenencia'!G22,E22,CALCULADORA!$C$33)) -> 157961798805 | L22: 23 | M22: 12 | N22: 2025
A23: =+Flujos!A23 -> 2023-04-23 | B23: =+Flujos!L23 -> 2.234695353e+11 | C23: =+Flujos!M23 -> 4096678724 | D23: =+Flujos!N23 -> 1267088680 | E23: =+Flujos!O23 -> 5363767403 | G23: 2025-12-23 | H23: =IF(G23<CALCULADORA!$C$23,0,IF(CALCULADORA!$C$27>'TIR de Tenencia'!G23,E23,CALCULADORA!$C$33)) -> 157961798805 | L23: 23 | M23: 1 | N23: 2026
A24: =+Flujos!A24 -> 2023-05-23 | B24: =+Flujos!L24 -> 2.205862554e+11 | C24: =+Flujos!M24 -> 2883279856 | D24: =+Flujos!N24 -> 1244278372 | E24: =+Flujos!O24 -> 4127558228 | G24: 2026-01-23 | H24: =IF(G24<CALCULADORA!$C$23,0,IF(CALCULADORA!$C$27>'TIR de Tenencia'!G24,E24,CALCULADORA!$C$33)) -> 157961798805 | L24: 23 | M24: 2 | N24: 2026
A25: =+Flujos!A25 -> 2023-06-23 | B25: =+Flujos!L25 -> 2.178333208e+11 | C25: =+Flujos!M25 -> 2752934615 | D25: =+Flujos!N25 -> 1228224270 | E25: =+Flujos!O25 -> 3981158886 | G25: 2026-02-23 | H25: =IF(G25<CALCULADORA!$C$23,0,IF(CALCULADORA!$C$27>'TIR de Tenencia'!G25,E25,CALCULADORA!$C$33)) -> 157961798805 | L25: 23 | M25: 3 | N25: 2026
A26: =+Flujos!A26 -> 2023-07-23 | B26: =+Flujos!L26 -> 2.14381194e+11 | C26: =+Flujos!M26 -> 3452126855 | D26: =+Flujos!N26 -> 1212895930 | E26: =+Flujos!O26 -> 4665022785 | G26: 2026-03-23 | H26: =IF(G26<CALCULADORA!$C$23,0,IF(CALCULADORA!$C$27>'TIR de Tenencia'!G26,E26,CALCULADORA!$C$33)) -> 157961798805 | J26: =+IF(H26=H25," ",H26) ->  | L26: 23 | M26: 4 | N26: 2026
A27: =+Flujos!A27 -> 2023-08-23 | B27: =+Flujos!L27 -> 2.123321223e+11 | C27: =+Flujos!M27 -> 2049071638 | D27: =+Flujos!N27 -> 1193674488 | E27: =+Flujos!O27 -> 3242746126 | G27: 2026-04-23 | H27: =IF(G27<CALCULADORA!$C$23,0,IF(CALCULADORA!$C$27>'TIR de Tenencia'!G27,E27,CALCULADORA!$C$33)) -> 157961798805 | L27: 23 | M27: 5 | N27: 2026
A28: =+Flujos!A28 -> 2023-09-23 | B28: =+Flujos!L28 -> 2.097747847e+11 | C28: =+Flujos!M28 -> 2557337590 | D28: =+Flujos!N28 -> 1182265257 | E28: =+Flujos!O28 -> 3739602847 | G28: 2026-05-23 | H28: =IF(G28<CALCULADORA!$C$23,0,IF(CALCULADORA!$C$27>'TIR de Tenencia'!G28,E28,CALCULADORA!$C$33)) -> 157961798805 | L28: 23 | M28: 6 | N28: 2026
A29: =+Flujos!A29 -> 2023-10-23 | B29: =+Flujos!L29 -> 2.074083437e+11 | C29: =+Flujos!M29 -> 2366440989 | D29: =+Flujos!N29 -> 1168026001 | E29: =+Flujos!O29 -> 3534466991 | G29: 2026-06-23 | H29: =IF(G29<CALCULADORA!$C$23,0,IF(CALCULADORA!$C$27>'TIR de Tenencia'!G29,E29,CALCULADORA!$C$33)) -> 157961798805 | L29: 23 | M29: 7 | N29: 2026
A30: =+Flujos!A30 -> 2023-11-23 | B30: =+Flujos!L30 -> 2.050597083e+11 | C30: =+Flujos!M30 -> 2348635452 | D30: =+Flujos!N30 -> 1154849658 | E30: =+Flujos!O30 -> 3503485110 | G30: 2026-07-23 | H30: =IF(G30<CALCULADORA!$C$23,0,IF(CALCULADORA!$C$27>'TIR de Tenencia'!G30,E30,CALCULADORA!$C$33)) -> 157961798805 | L30: 23 | M30: 8 | N30: 2026
A31: =+Flujos!A31 -> 2023-12-23 | B31: =+Flujos!L31 -> 2.018043857e+11 | C31: =+Flujos!M31 -> 3255322563 | D31: =+Flujos!N31 -> 1141772456 | E31: =+Flujos!O31 -> 4397095019 | G31: 2026-08-23 | H31: =IF(G31<CALCULADORA!$C$23,0,IF(CALCULADORA!$C$27>'TIR de Tenencia'!G31,E31,CALCULADORA!$C$33)) -> 157961798805 | L31: 23 | M31: 9 | N31: 2026
A32: =+Flujos!A32 -> 2024-01-23 | B32: =+Flujos!L32 -> 1.990192111e+11 | C32: =+Flujos!M32 -> 2785174578 | D32: =+Flujos!N32 -> 1123646820 | E32: =+Flujos!O32 -> 3908821398 | G32: 2026-09-23 | H32: =IF(G32<CALCULADORA!$C$23,0,IF(CALCULADORA!$C$27>'TIR de Tenencia'!G32,E32,CALCULADORA!$C$33)) -> 157961798805 | L32: 23 | M32: 10 | N32: 2026
A33: =+Flujos!A33 -> 2024-02-23 | B33: =+Flujos!L33 -> 1.947784191e+11 | C33: =+Flujos!M33 -> 4240792084 | D33: =+Flujos!N33 -> 1108138968 | E33: =+Flujos!O33 -> 5348931051 | G33: 2026-10-23 | H33: =IF(G33<CALCULADORA!$C$23,0,IF(CALCULADORA!$C$27>'TIR de Tenencia'!G33,E33,CALCULADORA!$C$33)) -> 157961798805 | L33: 23 | M33: 11 | N33: 2026
A34: =+Flujos!A34 -> 2024-03-23 | B34: =+Flujos!L34 -> 1.917152169e+11 | C34: =+Flujos!M34 -> 3063202203 | D34: =+Flujos!N34 -> 1084526237 | E34: =+Flujos!O34 -> 4147728440 | G34: 2026-11-23 | H34: =IF(G34<CALCULADORA!$C$23,0,IF(CALCULADORA!$C$27>'TIR de Tenencia'!G34,E34,CALCULADORA!$C$33)) -> 157961798805 | L34: 23 | M34: 12 | N34: 2026
A35: =+Flujos!A35 -> 2024-04-23 | B35: =+Flujos!L35 -> 1.873685019e+11 | C35: =+Flujos!M35 -> 4346714909 | D35: =+Flujos!N35 -> 1067470327 | E35: =+Flujos!O35 -> 5414185236 | G35: =+DATE(N34,M34,L34) -> 2026-12-23 | H35: =IF(G35<CALCULADORA!$C$23,0,IF(CALCULADORA!$C$27>'TIR de Tenencia'!G35,E35,CALCULADORA!$C$33)) -> 157961798805 | L35: 23 | M35: 1 | N35: 2027
A36: =+Flujos!A36 -> 2024-05-23 | B36: =+Flujos!L36 -> 1.845027604e+11 | C36: =+Flujos!M36 -> 2865741500 | D36: =+Flujos!N36 -> 1043267819 | E36: =+Flujos!O36 -> 3909009319 | G36: 2027-01-23 | H36: =IF(G36<CALCULADORA!$C$23,0,IF(CALCULADORA!$C$27>'TIR de Tenencia'!G36,E36,CALCULADORA!$C$33)) -> 157961798805 | I36: =+IF(IF(H36=H35," ",G36)=CALCULADORA!C27,'TIR de Tenencia'!G36,CALCULADORA!C27) -> 2024-10-01 | L36: 23 | M36: 2 | N36: 2027
A37: =+Flujos!A37 -> 2024-06-23 | B37: =+Flujos!L37 -> 1.82293495e+11 | C37: =+Flujos!M37 -> 2209265398 | D37: =+Flujos!N37 -> 1027311370 | E37: =+Flujos!O37 -> 3236576768 | G37: 2027-02-23 | H37: =IF(G37<CALCULADORA!$C$23,0,IF(CALCULADORA!$C$27>'TIR de Tenencia'!G37,E37,CALCULADORA!$C$33)) -> 157961798805 | L37: 23 | M37: 3 | N37: 2027
A38: =+Flujos!A38 -> 2024-07-23 | B38: =+Flujos!L38 -> 1.78951589e+11 | C38: =+Flujos!M38 -> 3341906028 | D38: =+Flujos!N38 -> 1015010180 | E38: =+Flujos!O38 -> 4356916209 | G38: 2027-03-23 | H38: =IF(G38<CALCULADORA!$C$23,0,IF(CALCULADORA!$C$27>'TIR de Tenencia'!G38,E38,CALCULADORA!$C$33)) -> 157961798805 | L38: 23 | M38: 4 | N38: 2027
A39: =+Flujos!A39 -> 2024-08-23 | B39: =+Flujos!L39 -> 1.758323182e+11 | C39: =+Flujos!M39 -> 3119270843 | D39: =+Flujos!N39 -> 996402447.7 | E39: =+Flujos!O39 -> 4115673291 | G39: 2027-04-23 | H39: =IF(G39<CALCULADORA!$C$23,0,IF(CALCULADORA!$C$27>'TIR de Tenencia'!G39,E39,CALCULADORA!$C$33)) -> 157961798805 | L39: 23 | M39: 5 | N39: 2027
A40: =+Flujos!A40 -> 2024-09-23 | B40: =+Flujos!L40 -> 1.726584894e+11 | C40: =+Flujos!M40 -> 3173828750 | D40: =+Flujos!N40 -> 979034347.6 | E40: =+Flujos!O40 -> 4152863098 | G40: 2027-05-23 | H40: =IF(G40<CALCULADORA!$C$23,0,IF(CALCULADORA!$C$27>'TIR de Tenencia'!G40,E40,CALCULADORA!$C$33)) -> 157961798805 | L40: 23 | M40: 6 | N40: 2027
A41: =+Flujos!A41 -> 2024-10-23 | B41: =+Flujos!L41 -> 1.695071831e+11 | C41: =+Flujos!M41 -> 3151306296 | D41: =+Flujos!N41 -> 961362469.1 | E41: =+Flujos!O41 -> 4112668765 | G41: 2027-06-23 | H41: =IF(G41<CALCULADORA!$C$23,0,IF(CALCULADORA!$C$27>'TIR de Tenencia'!G41,E41,CALCULADORA!$C$33)) -> 157961798805 | L41: 23 | M41: 7 | N41: 2027
A42: =+Flujos!A42 -> 2024-11-23 | B42: =+Flujos!L42 -> 1.667159491e+11 | C42: =+Flujos!M42 -> 2791234003 | D42: =+Flujos!N42 -> 943815995.7 | E42: =+Flujos!O42 -> 3735049998 | G42: 2027-07-23 | H42: =IF(G42<CALCULADORA!$C$23,0,IF(CALCULADORA!$C$27>'TIR de Tenencia'!G42,E42,CALCULADORA!$C$33)) -> 157961798805 | L42: 23 | M42: 8 | N42: 2027
A43: =+Flujos!A43 -> 2024-12-23 | B43: =+Flujos!L43 -> 1.63959716e+11 | C43: =+Flujos!M43 -> 2756233159 | D43: =+Flujos!N43 -> 928274404.7 | E43: =+Flujos!O43 -> 3684507564 | G43: 2027-08-23 | H43: =IF(G43<CALCULADORA!$C$23,0,IF(CALCULADORA!$C$27>'TIR de Tenencia'!G43,E43,CALCULADORA!$C$33)) -> 157961798805 | L43: 23 | M43: 9 | N43: 2027
A44: =+Flujos!A44 -> 2025-01-23 | B44: =+Flujos!L44 -> 1.612352346e+11 | C44: =+Flujos!M44 -> 2724481380 | D44: =+Flujos!N44 -> 912927698.5 | E44: =+Flujos!O44 -> 3637409079 | G44: 2027-09-23 | H44: =IF(G44<CALCULADORA!$C$23,0,IF(CALCULADORA!$C$27>'TIR de Tenencia'!G44,E44,CALCULADORA!$C$33)) -> 157961798805 | L44: 23 | M44: 10 | N44: 2027
A45: =+Flujos!A45 -> 2025-02-23 | B45: =+Flujos!L45 -> 1.585402752e+11 | C45: =+Flujos!M45 -> 2694959417 | D45: =+Flujos!N45 -> 897757786.2 | E45: =+Flujos!O45 -> 3592717203 | G45: 2027-10-23 | H45: =IF(G45<CALCULADORA!$C$23,0,IF(CALCULADORA!$C$27>'TIR de Tenencia'!G45,E45,CALCULADORA!$C$33)) -> 157961798805 | L45: 23 | M45: 11 | N45: 2027
A46: =+Flujos!A46 -> 2025-03-23 | B46: =+Flujos!L46 -> 1.558763155e+11 | C46: =+Flujos!M46 -> 2663959706 | D46: =+Flujos!N46 -> 882752252.1 | E46: =+Flujos!O46 -> 3546711959 | G46: 2027-11-23 | H46: =IF(G46<CALCULADORA!$C$23,0,IF(CALCULADORA!$C$27>'TIR de Tenencia'!G46,E46,CALCULADORA!$C$33)) -> 157961798805 | L46: 23 | M46: 12 | N46: 2027
A47: =+Flujos!A47 -> 2025-04-23 | B47: =+Flujos!L47 -> 1.532454368e+11 | C47: =+Flujos!M47 -> 2630878615 | D47: =+Flujos!N47 -> 867919324.5 | E47: =+Flujos!O47 -> 3498797939 | G47: 2027-12-23 | H47: =IF(G47<CALCULADORA!$C$23,0,IF(CALCULADORA!$C$27>'TIR de Tenencia'!G47,E47,CALCULADORA!$C$33)) -> 157961798805 | L47: 23 | M47: 1 | N47: 2028
A48: =+Flujos!A48 -> 2025-05-23 | B48: =+Flujos!L48 -> 1.506475734e+11 | C48: =+Flujos!M48 -> 2597863494 | D48: =+Flujos!N48 -> 853270592.4 | E48: =+Flujos!O48 -> 3451134087 | G48: 2028-01-23 | H48: =IF(G48<CALCULADORA!$C$23,0,IF(CALCULADORA!$C$27>'TIR de Tenencia'!G48,E48,CALCULADORA!$C$33)) -> 157961798805 | L48: 23 | M48: 2 | N48: 2028
A49: =+Flujos!A49 -> 2025-06-23 | B49: =+Flujos!L49 -> 1.480789416e+11 | C49: =+Flujos!M49 -> 2568631803 | D49: =+Flujos!N49 -> 838805688.4 | E49: =+Flujos!O49 -> 3407437491 | G49: 2028-02-23 | H49: =IF(G49<CALCULADORA!$C$23,0,IF(CALCULADORA!$C$27>'TIR de Tenencia'!G49,E49,CALCULADORA!$C$33)) -> 157961798805 | L49: 23 | M49: 3 | N49: 2028
A50: =+Flujos!A50 -> 2025-07-23 | B50: =+Flujos!L50 -> 1.455400824e+11 | C50: =+Flujos!M50 -> 2538859150 | D50: =+Flujos!N50 -> 824503546.6 | E50: =+Flujos!O50 -> 3363362697 | G50: 2028-03-23 | H50: =IF(G50<CALCULADORA!$C$23,0,IF(CALCULADORA!$C$27>'TIR de Tenencia'!G50,E50,CALCULADORA!$C$33)) -> 157961798805 | L50: 23 | M50: 4 | N50: 2028
A51: =+Flujos!A51 -> 2025-08-23 | B51: =+Flujos!L51 -> 1.430336083e+11 | C51: =+Flujos!M51 -> 2506474051 | D51: =+Flujos!N51 -> 810367178.8 | E51: =+Flujos!O51 -> 3316841230 | G51: 2028-04-23 | H51: =IF(G51<CALCULADORA!$C$23,0,IF(CALCULADORA!$C$27>'TIR de Tenencia'!G51,E51,CALCULADORA!$C$33)) -> 157961798805 | L51: 23 | M51: 5 | N51: 2028
A52: =+Flujos!A52 -> 2025-09-23 | B52: =+Flujos!L52 -> 1.40557946e+11 | C52: =+Flujos!M52 -> 2475662358 | D52: =+Flujos!N52 -> 796411131.3 | E52: =+Flujos!O52 -> 3272073489 | G52: 2028-05-23 | H52: =IF(G52<CALCULADORA!$C$23,0,IF(CALCULADORA!$C$27>'TIR de Tenencia'!G52,E52,CALCULADORA!$C$33)) -> 157961798805 | L52: 23 | M52: 6 | N52: 2028
A53: =+Flujos!A53 -> 2025-10-23 | B53: =+Flujos!L53 -> 1.381129832e+11 | C53: =+Flujos!M53 -> 2444962815 | D53: =+Flujos!N53 -> 782626643.3 | E53: =+Flujos!O53 -> 3227589458 | G53: 2028-06-23 | H53: =IF(G53<CALCULADORA!$C$23,0,IF(CALCULADORA!$C$27>'TIR de Tenencia'!G53,E53,CALCULADORA!$C$33)) -> 157961798805 | L53: 23 | M53: 7 | N53: 2028
A54: =+Flujos!A54 -> 2025-11-23 | B54: =+Flujos!L54 -> 1.356979942e+11 | C54: =+Flujos!M54 -> 2414988951 | D54: =+Flujos!N54 -> 769013090.3 | E54: =+Flujos!O54 -> 3184002041 | G54: 2028-07-23 | H54: =IF(G54<CALCULADORA!$C$23,0,IF(CALCULADORA!$C$27>'TIR de Tenencia'!G54,E54,CALCULADORA!$C$33)) -> 157961798805 | L54: 23 | M54: 8 | N54: 2028
A55: =+Flujos!A55 -> 2025-12-23 | B55: =+Flujos!L55 -> 1.333133123e+11 | C55: =+Flujos!M55 -> 2384681934 | D55: =+Flujos!N55 -> 755566431.9 | E55: =+Flujos!O55 -> 3140248366 | G55: 2028-08-23 | H55: =IF(G55<CALCULADORA!$C$23,0,IF(CALCULADORA!$C$27>'TIR de Tenencia'!G55,E55,CALCULADORA!$C$33)) -> 157961798805 | L55: 23 | M55: 9 | N55: 2028
A56: =+Flujos!A56 -> 2026-01-23 | B56: =+Flujos!L56 -> 1.307680474e+11 | C56: =+Flujos!M56 -> 2545264922 | D56: =+Flujos!N56 -> 742288522.8 | E56: =+Flujos!O56 -> 3287553444 | G56: 2028-09-23 | H56: =IF(G56<CALCULADORA!$C$23,0,IF(CALCULADORA!$C$27>'TIR de Tenencia'!G56,E56,CALCULADORA!$C$33)) -> 157961798805 | L56: 23 | M56: 10 | N56: 2028
A57: =+Flujos!A57 -> 2026-02-23 | B57: =+Flujos!L57 -> 1.277062075e+11 | C57: =+Flujos!M57 -> 3061839904 | D57: =+Flujos!N57 -> 728116487.8 | E57: =+Flujos!O57 -> 3789956392 | G57: 2028-10-23 | H57: =IF(G57<CALCULADORA!$C$23,0,IF(CALCULADORA!$C$27>'TIR de Tenencia'!G57,E57,CALCULADORA!$C$33)) -> 157961798805 | L57: 23 | M57: 11 | N57: 2028
A58: =+Flujos!A58 -> 2026-03-23 | B58: =+Flujos!L58 -> 1.24674536e+11 | C58: =+Flujos!M58 -> 3031671426 | D58: =+Flujos!N58 -> 711068163.2 | E58: =+Flujos!O58 -> 3742739590 | G58: 2028-11-23 | H58: =IF(G58<CALCULADORA!$C$23,0,IF(CALCULADORA!$C$27>'TIR de Tenencia'!G58,E58,CALCULADORA!$C$33)) -> 157961798805 | L58: 23 | M58: 12 | N58: 2028
A59: =+Flujos!A59 -> 2026-04-23 | B59: =+Flujos!L59 -> 1.216748143e+11 | C59: =+Flujos!M59 -> 2999721735 | D59: =+Flujos!N59 -> 694187816.7 | E59: =+Flujos!O59 -> 3693909552 | G59: 2028-12-23 | H59: =IF(G59<CALCULADORA!$C$23,0,IF(CALCULADORA!$C$27>'TIR de Tenencia'!G59,E59,CALCULADORA!$C$33)) -> 157961798805 | L59: 23 | M59: 1 | N59: 2029
A60: =+Flujos!A60 -> 2026-05-23 | B60: =+Flujos!L60 -> 1.188609886e+11 | C60: =+Flujos!M60 -> 2813825726 | D60: =+Flujos!N60 -> 677485366.1 | E60: =+Flujos!O60 -> 3491311092 | G60: 2029-01-23 | H60: =IF(G60<CALCULADORA!$C$23,0,IF(CALCULADORA!$C$27>'TIR de Tenencia'!G60,E60,CALCULADORA!$C$33)) -> 157961798805 | L60: 23 | M60: 2 | N60: 2029
A61: =+Flujos!A61 -> 2026-06-23 | B61: =+Flujos!L61 -> 1.159299623e+11 | C61: =+Flujos!M61 -> 2931026271 | D61: =+Flujos!N61 -> 661817984.4 | E61: =+Flujos!O61 -> 3592844255 | G61: 2029-02-23 | H61: =IF(G61<CALCULADORA!$C$23,0,IF(CALCULADORA!$C$27>'TIR de Tenencia'!G61,E61,CALCULADORA!$C$33)) -> 157961798805 | L61: 23 | M61: 3 | N61: 2029
A62: =+Flujos!A62 -> 2026-07-23 | B62: =+Flujos!L62 -> 1.130328517e+11 | C62: =+Flujos!M62 -> 2897110648 | D62: =+Flujos!N62 -> 645498030.1 | E62: =+Flujos!O62 -> 3542608678 | G62: 2029-03-23 | H62: =IF(G62<CALCULADORA!$C$23,0,IF(CALCULADORA!$C$27>'TIR de Tenencia'!G62,E62,CALCULADORA!$C$33)) -> 157961798805 | L62: 23 | M62: 4 | N62: 2029
A63: =+Flujos!A63 -> 2026-08-23 | B63: =+Flujos!L63 -> 1.101788794e+11 | C63: =+Flujos!M63 -> 2853972298 | D63: =+Flujos!N63 -> 629366918 | E63: =+Flujos!O63 -> 3483339216 | G63: 2029-04-23 | H63: =IF(G63<CALCULADORA!$C$23,0,IF(CALCULADORA!$C$27>'TIR de Tenencia'!G63,E63,CALCULADORA!$C$33)) -> 157961798805 | L63: 23 | M63: 5 | N63: 2029
A64: =+Flujos!A64 -> 2026-09-23 | B64: =+Flujos!L64 -> 1.073639123e+11 | C64: =+Flujos!M64 -> 2814967022 | D64: =+Flujos!N64 -> 613476000.3 | E64: =+Flujos!O64 -> 3428443022 | G64: 2029-05-23 | H64: =IF(G64<CALCULADORA!$C$23,0,IF(CALCULADORA!$C$27>'TIR de Tenencia'!G64,E64,CALCULADORA!$C$33)) -> 157961798805 | L64: 23 | M64: 6 | N64: 2029
A65: =+Flujos!A65 -> 2026-10-23 | B65: =+Flujos!L65 -> 1.045813403e+11 | C65: =+Flujos!M65 -> 2782572028 | D65: =+Flujos!N65 -> 597802263.9 | E65: =+Flujos!O65 -> 3380374292 | G65: 2029-06-23 | H65: =IF(G65<CALCULADORA!$C$23,0,IF(CALCULADORA!$C$27>'TIR de Tenencia'!G65,E65,CALCULADORA!$C$33)) -> 157961798805 | L65: 23 | M65: 7 | N65: 2029
A66: =+Flujos!A66 -> 2026-11-23 | B66: =+Flujos!L66 -> 1.018326509e+11 | C66: =+Flujos!M66 -> 2748689390 | D66: =+Flujos!N66 -> 582308902.9 | E66: =+Flujos!O66 -> 3330998293 | G66: 2029-07-23 | H66: =IF(G66<CALCULADORA!$C$23,0,IF(CALCULADORA!$C$27>'TIR de Tenencia'!G66,E66,CALCULADORA!$C$33)) -> 157961798805 | L66: 23 | M66: 8 | N66: =+IF(M66=1,N65+1,N65) -> 2029
A67: =+Flujos!A67 -> 2026-12-23 | B67: =+Flujos!L67 -> 9.912799709e+10 | C67: =+Flujos!M67 -> 2704653836 | D67: =+Flujos!N67 -> 567004200.3 | E67: =+Flujos!O67 -> 3271658036 | G67: =+DATE(N66,M66,L66) -> 2029-08-23 | H67: =IF(G67<CALCULADORA!$C$23,0,IF(CALCULADORA!$C$27>'TIR de Tenencia'!G67,E67,CALCULADORA!$C$33)) -> 157961798805 | L67: =+L66 -> 23 | M67: =+IF(M66=12,1,M66+1) -> 9 | N67: 2029
A68: =+Flujos!A68 -> 2027-01-23 | B68: =+Flujos!L68 -> 9.646593074e+10 | C68: =+Flujos!M68 -> 2662066343 | D68: =+Flujos!N68 -> 551944687.8 | E68: =+Flujos!O68 -> 3214011030 | G68: 2029-09-23 | H68: =IF(G68<CALCULADORA!$C$23,0,IF(CALCULADORA!$C$27>'TIR de Tenencia'!G68,E68,CALCULADORA!$C$33)) -> 157961798805 | I68: =+IF(H68=H67," ",G68) ->  | J68: =+IF(H68=H67," ",H68) ->  | L68: 23 | M68: 10 | N68: 2029
A69: =+Flujos!A69 -> 2027-02-23 | B69: =+Flujos!L69 -> 9.384275093e+10 | C69: =+Flujos!M69 -> 2623179815 | D69: =+Flujos!N69 -> 537122302.4 | E69: =+Flujos!O69 -> 3160302117 | G69: 2029-10-23 | H69: =IF(G69<CALCULADORA!$C$23,0,IF(CALCULADORA!$C$27>'TIR de Tenencia'!G69,E69,CALCULADORA!$C$33)) -> 157961798805 | L69: 23 | M69: 11 | N69: 2029
A70: =+Flujos!A70 -> 2027-03-23 | B70: =+Flujos!L70 -> 9.125705906e+10 | C70: =+Flujos!M70 -> 2585691869 | D70: =+Flujos!N70 -> 522516437.2 | E70: =+Flujos!O70 -> 3108208306 | G70: 2029-11-23 | H70: =IF(G70<CALCULADORA!$C$23,0,IF(CALCULADORA!$C$27>'TIR de Tenencia'!G70,E70,CALCULADORA!$C$33)) -> 157961798805 | L70: 23 | M70: 12 | N70: 2029
A71: =+Flujos!A71 -> 2027-04-23 | B71: =+Flujos!L71 -> 8.872210539e+10 | C71: =+Flujos!M71 -> 2534953675 | D71: =+Flujos!N71 -> 508119304.8 | E71: =+Flujos!O71 -> 3043072980 | G71: 2029-12-23 | H71: =IF(G71<CALCULADORA!$C$23,0,IF(CALCULADORA!$C$27>'TIR de Tenencia'!G71,E71,CALCULADORA!$C$33)) -> 157961798805 | L71: 23 | M71: 1 | N71: 2030
A72: =+Flujos!A72 -> 2027-05-23 | B72: =+Flujos!L72 -> 8.637253315e+10 | C72: =+Flujos!M72 -> 2349572239 | D72: =+Flujos!N72 -> 494004682.8 | E72: =+Flujos!O72 -> 2843576921 | G72: 2030-01-23 | H72: =IF(G72<CALCULADORA!$C$23,0,IF(CALCULADORA!$C$27>'TIR de Tenencia'!G72,E72,CALCULADORA!$C$33)) -> 157961798805 | L72: 23 | M72: 2 | N72: 2030
A73: =+Flujos!A73 -> 2027-06-23 | B73: =+Flujos!L73 -> 8.390460257e+10 | C73: =+Flujos!M73 -> 2467930572 | D73: =+Flujos!N73 -> 480922264.6 | E73: =+Flujos!O73 -> 2948852837 | G73: 2030-02-23 | H73: =IF(G73<CALCULADORA!$C$23,0,IF(CALCULADORA!$C$27>'TIR de Tenencia'!G73,E73,CALCULADORA!$C$33)) -> 157961798805 | L73: 23 | M73: 3 | N73: 2030
A74: =+Flujos!A74 -> 2027-07-23 | B74: =+Flujos!L74 -> 8.146646115e+10 | C74: =+Flujos!M74 -> 2438141427 | D74: =+Flujos!N74 -> 467180827.1 | E74: =+Flujos!O74 -> 2905322254 | G74: 2030-03-23 | H74: =IF(G74<CALCULADORA!$C$23,0,IF(CALCULADORA!$C$27>'TIR de Tenencia'!G74,E74,CALCULADORA!$C$33)) -> 157961798805 | L74: 23 | M74: 4 | N74: 2030
A75: =+Flujos!A75 -> 2027-08-23 | B75: =+Flujos!L75 -> 7.905674327e+10 | C75: =+Flujos!M75 -> 2409717879 | D75: =+Flujos!N75 -> 453605255.7 | E75: =+Flujos!O75 -> 2863323134 | G75: 2030-04-23 | H75: =IF(G75<CALCULADORA!$C$23,0,IF(CALCULADORA!$C$27>'TIR de Tenencia'!G75,E75,CALCULADORA!$C$33)) -> 157961798805 | L75: 23 | M75: 5 | N75: 2030
A76: =+Flujos!A76 -> 2027-09-23 | B76: =+Flujos!L76 -> 7.668183822e+10 | C76: =+Flujos!M76 -> 2374905052 | D76: =+Flujos!N76 -> 440187946.5 | E76: =+Flujos!O76 -> 2815092998 | G76: 2030-05-23 | H76: =IF(G76<CALCULADORA!$C$23,0,IF(CALCULADORA!$C$27>'TIR de Tenencia'!G76,E76,CALCULADORA!$C$33)) -> 157961798805 | L76: 23 | M76: 6 | N76: 2030
A77: =+Flujos!A77 -> 2027-10-23 | B77: =+Flujos!L77 -> 7.433506644e+10 | C77: =+Flujos!M77 -> 2346771775 | D77: =+Flujos!N77 -> 426964475.2 | E77: =+Flujos!O77 -> 2773736250 | G77: 2030-06-23 | H77: =IF(G77<CALCULADORA!$C$23,0,IF(CALCULADORA!$C$27>'TIR de Tenencia'!G77,E77,CALCULADORA!$C$33)) -> 157961798805 | L77: 23 | M77: 7 | N77: 2030
A78: =+Flujos!A78 -> 2027-11-23 | B78: =+Flujos!L78 -> 7.202450608e+10 | C78: =+Flujos!M78 -> 2310560366 | D78: =+Flujos!N78 -> 413897649.9 | E78: =+Flujos!O78 -> 2724458016 | G78: 2030-07-23 | H78: =IF(G78<CALCULADORA!$C$23,0,IF(CALCULADORA!$C$27>'TIR de Tenencia'!G78,E78,CALCULADORA!$C$33)) -> 157961798805 | L78: 23 | M78: 8 | N78: 2030
A79: =+Flujos!A79 -> 2027-12-23 | B79: =+Flujos!L79 -> 6.97513248e+10 | C79: =+Flujos!M79 -> 2273181273 | D79: =+Flujos!N79 -> 401032449.8 | E79: =+Flujos!O79 -> 2674213722 | G79: 2030-08-23 | H79: =IF(G79<CALCULADORA!$C$23,0,IF(CALCULADORA!$C$27>'TIR de Tenencia'!G79,E79,CALCULADORA!$C$33)) -> 157961798805 | L79: 23 | M79: 9 | N79: 2030
A80: =+Flujos!A80 -> 2028-01-23 | B80: =+Flujos!L80 -> 6.751279803e+10 | C80: =+Flujos!M80 -> 2238526776 | D80: =+Flujos!N80 -> 388375376.5 | E80: =+Flujos!O80 -> 2626902152 | G80: 2030-09-23 | H80: =IF(G80<CALCULADORA!$C$23,0,IF(CALCULADORA!$C$27>'TIR de Tenencia'!G80,E80,CALCULADORA!$C$33)) -> 157961798805 | L80: 23 | M80: 10 | N80: 2030
A81: =+Flujos!A81 -> 2028-02-23 | B81: =+Flujos!L81 -> 6.530665965e+10 | C81: =+Flujos!M81 -> 2206138378 | D81: =+Flujos!N81 -> 375911259.4 | E81: =+Flujos!O81 -> 2582049638 | G81: 2030-10-23 | H81: =IF(G81<CALCULADORA!$C$23,0,IF(CALCULADORA!$C$27>'TIR de Tenencia'!G81,E81,CALCULADORA!$C$33)) -> 157961798805 | L81: 23 | M81: 11 | N81: 2030
A82: =+Flujos!A82 -> 2028-03-23 | B82: =+Flujos!L82 -> 6.312939672e+10 | C82: =+Flujos!M82 -> 2177262930 | D82: =+Flujos!N82 -> 363627480.9 | E82: =+Flujos!O82 -> 2540890411 | G82: 2030-11-23 | H82: =IF(G82<CALCULADORA!$C$23,0,IF(CALCULADORA!$C$27>'TIR de Tenencia'!G82,E82,CALCULADORA!$C$33)) -> 157961798805 | L82: 23 | M82: 12 | N82: 2030
A83: =+Flujos!A83 -> 2028-04-23 | B83: =+Flujos!L83 -> 6.098785372e+10 | C83: =+Flujos!M83 -> 2141543003 | D83: =+Flujos!N83 -> 351504480.9 | E83: =+Flujos!O83 -> 2493047484 | G83: 2030-12-23 | H83: =IF(G83<CALCULADORA!$C$23,0,IF(CALCULADORA!$C$27>'TIR de Tenencia'!G83,E83,CALCULADORA!$C$33)) -> 157961798805 | L83: 23 | M83: 1 | N83: 2031
A84: =+Flujos!A84 -> 2028-05-23 | B84: =+Flujos!L84 -> 5.903945032e+10 | C84: =+Flujos!M84 -> 1948403393 | D84: =+Flujos!N84 -> 339580369.5 | E84: =+Flujos!O84 -> 2287983763 | G84: 2031-01-23 | H84: =IF(G84<CALCULADORA!$C$23,0,IF(CALCULADORA!$C$27>'TIR de Tenencia'!G84,E84,CALCULADORA!$C$33)) -> 157961798805 | L84: 23 | M84: 2 | N84: 2031
A85: =+Flujos!A85 -> 2028-06-23 | B85: =+Flujos!L85 -> 5.696835101e+10 | C85: =+Flujos!M85 -> 2071099311 | D85: =+Flujos!N85 -> 328731659.4 | E85: =+Flujos!O85 -> 2399830971 | G85: 2031-02-23 | H85: =IF(G85<CALCULADORA!$C$23,0,IF(CALCULADORA!$C$27>'TIR de Tenencia'!G85,E85,CALCULADORA!$C$33)) -> 157961798805 | L85: 23 | M85: 3 | N85: 2031
A86: =+Flujos!A86 -> 2028-07-23 | B86: =+Flujos!L86 -> 5.492489349e+10 | C86: =+Flujos!M86 -> 2043457518 | D86: =+Flujos!N86 -> 317199778.4 | E86: =+Flujos!O86 -> 2360657296 | G86: 2031-03-23 | H86: =IF(G86<CALCULADORA!$C$23,0,IF(CALCULADORA!$C$27>'TIR de Tenencia'!G86,E86,CALCULADORA!$C$33)) -> 157961798805 | L86: 23 | M86: 4 | N86: 2031
A87: =+Flujos!A87 -> 2028-08-23 | B87: =+Flujos!L87 -> 5.291585628e+10 | C87: =+Flujos!M87 -> 2009037217 | D87: =+Flujos!N87 -> 305821807 | E87: =+Flujos!O87 -> 2314859024 | G87: 2031-04-23 | H87: =IF(G87<CALCULADORA!$C$23,0,IF(CALCULADORA!$C$27>'TIR de Tenencia'!G87,E87,CALCULADORA!$C$33)) -> 157961798805 | L87: 23 | M87: 5 | N87: 2031
A88: =+Flujos!A88 -> 2028-09-23 | B88: =+Flujos!L88 -> 5.094256537e+10 | C88: =+Flujos!M88 -> 1973290903 | D88: =+Flujos!N88 -> 294635487.7 | E88: =+Flujos!O88 -> 2267926391 | G88: 2031-05-23 | H88: =IF(G88<CALCULADORA!$C$23,0,IF(CALCULADORA!$C$27>'TIR de Tenencia'!G88,E88,CALCULADORA!$C$33)) -> 157961798805 | L88: 23 | M88: 6 | N88: 2031
A89: =+Flujos!A89 -> 2028-10-23 | B89: =+Flujos!L89 -> 4.899854904e+10 | C89: =+Flujos!M89 -> 1944016330 | D89: =+Flujos!N89 -> 283648204 | E89: =+Flujos!O89 -> 2227664534 | G89: 2031-06-23 | H89: =IF(G89<CALCULADORA!$C$23,0,IF(CALCULADORA!$C$27>'TIR de Tenencia'!G89,E89,CALCULADORA!$C$33)) -> 157961798805 | L89: 23 | M89: 7 | N89: 2031
A90: =+Flujos!A90 -> 2028-11-23 | B90: =+Flujos!L90 -> 4.708293317e+10 | C90: =+Flujos!M90 -> 1915615872 | D90: =+Flujos!N90 -> 272823921.1 | E90: =+Flujos!O90 -> 2188439793 | G90: 2031-07-23 | H90: =IF(G90<CALCULADORA!$C$23,0,IF(CALCULADORA!$C$27>'TIR de Tenencia'!G90,E90,CALCULADORA!$C$33)) -> 157961798805 | L90: 23 | M90: 8 | N90: 2031
A91: =+Flujos!A91 -> 2028-12-23 | B91: =+Flujos!L91 -> 4.52060356e+10 | C91: =+Flujos!M91 -> 1876897570 | D91: =+Flujos!N91 -> 262157771.9 | E91: =+Flujos!O91 -> 2139055342 | G91: 2031-08-23 | H91: =IF(G91<CALCULADORA!$C$23,0,IF(CALCULADORA!$C$27>'TIR de Tenencia'!G91,E91,CALCULADORA!$C$33)) -> 157961798805 | L91: 23 | M91: 9 | N91: 2031
A92: =+Flujos!A92 -> 2029-01-23 | B92: =+Flujos!L92 -> 4.335667757e+10 | C92: =+Flujos!M92 -> 1849358031 | D92: =+Flujos!N92 -> 251707206.2 | E92: =+Flujos!O92 -> 2101065237 | G92: 2031-09-23 | H92: =IF(G92<CALCULADORA!$C$23,0,IF(CALCULADORA!$C$27>'TIR de Tenencia'!G92,E92,CALCULADORA!$C$33)) -> 157961798805 | L92: 23 | M92: 10 | N92: 2031
A93: =+Flujos!A93 -> 2029-02-23 | B93: =+Flujos!L93 -> 4.153227302e+10 | C93: =+Flujos!M93 -> 1824404550 | D93: =+Flujos!N93 -> 241409980.7 | E93: =+Flujos!O93 -> 2065814531 | G93: 2031-10-23 | H93: =IF(G93<CALCULADORA!$C$23,0,IF(CALCULADORA!$C$27>'TIR de Tenencia'!G93,E93,CALCULADORA!$C$33)) -> 157961798805 | L93: 23 | M93: 11 | N93: 2031
A94: =+Flujos!A94 -> 2029-03-23 | B94: =+Flujos!L94 -> 3.973010065e+10 | C94: =+Flujos!M94 -> 1802172368 | D94: =+Flujos!N94 -> 231251696.2 | E94: =+Flujos!O94 -> 2033424064 | G94: 2031-11-23 | H94: =IF(G94<CALCULADORA!$C$23,0,IF(CALCULADORA!$C$27>'TIR de Tenencia'!G94,E94,CALCULADORA!$C$33)) -> 157961798805 | L94: 23 | M94: 12 | N94: 2031
A95: =+Flujos!A95 -> 2029-04-23 | B95: =+Flujos!L95 -> 3.7951216e+10 | C95: =+Flujos!M95 -> 1778884652 | D95: =+Flujos!N95 -> 221217200.4 | E95: =+Flujos!O95 -> 2000101852 | G95: 2031-12-23 | H95: =IF(G95<CALCULADORA!$C$23,0,IF(CALCULADORA!$C$27>'TIR de Tenencia'!G95,E95,CALCULADORA!$C$33)) -> 157961798805 | L95: 23 | M95: 1 | N95: 2032
A96: =+Flujos!A96 -> 2029-05-23 | B96: =+Flujos!L96 -> 3.637098942e+10 | C96: =+Flujos!M96 -> 1580226578 | D96: =+Flujos!N96 -> 211312370.7 | E96: =+Flujos!O96 -> 1791538949 | G96: 2032-01-23 | H96: =IF(G96<CALCULADORA!$C$23,0,IF(CALCULADORA!$C$27>'TIR de Tenencia'!G96,E96,CALCULADORA!$C$33)) -> 157961798805 | L96: 23 | M96: 2 | N96: 2032
A97: =+Flujos!A97 -> 2029-06-23 | B97: =+Flujos!L97 -> 3.464813383e+10 | C97: =+Flujos!M97 -> 1722855594 | D97: =+Flujos!N97 -> 202513669.1 | E97: =+Flujos!O97 -> 1925369263 | G97: 2032-02-23 | H97: =IF(G97<CALCULADORA!$C$23,0,IF(CALCULADORA!$C$27>'TIR de Tenencia'!G97,E97,CALCULADORA!$C$33)) -> 157961798805 | L97: 23 | M97: 3 | N97: 2032
A98: =+Flujos!A98 -> 2029-07-23 | B98: =+Flujos!L98 -> 3.295324328e+10 | C98: =+Flujos!M98 -> 1694890543 | D98: =+Flujos!N98 -> 192920809.2 | E98: =+Flujos!O98 -> 1887811352 | G98: 2032-03-23 | H98: =IF(G98<CALCULADORA!$C$23,0,IF(CALCULADORA!$C$27>'TIR de Tenencia'!G98,E98,CALCULADORA!$C$33)) -> 157961798805 | L98: 23 | M98: 4 | N98: 2032
A99: =+Flujos!A99 -> 2029-08-23 | B99: =+Flujos!L99 -> 3.128394614e+10 | C99: =+Flujos!M99 -> 1669297145 | D99: =+Flujos!N99 -> 183483658.6 | E99: =+Flujos!O99 -> 1852780804 | G99: =+DATE(N98,M98,L98) -> 2032-04-23 | H99: =IF(G99<CALCULADORA!$C$23,0,IF(CALCULADORA!$C$27>'TIR de Tenencia'!G99,E99,CALCULADORA!$C$33)) -> 157961798805 | L99: 23 | M99: 5 | N99: 2032
A100: =+Flujos!A100 -> 2029-09-23 | B100: =+Flujos!L100 -> 2.963743533e+10 | C100: =+Flujos!M100 -> 1646510808 | D100: =+Flujos!N100 -> 174189012.1 | E100: =+Flujos!O100 -> 1820699820 | G100: 2032-05-23 | H100: =IF(G100<CALCULADORA!$C$23,0,IF(CALCULADORA!$C$27>'TIR de Tenencia'!G100,E100,CALCULADORA!$C$33)) -> 157961798805 | L100: 23 | M100: 6 | N100: 2032
A101: =+Flujos!A101 -> 2029-10-23 | B101: =+Flujos!L101 -> 2.801556794e+10 | C101: =+Flujos!M101 -> 1621867390 | D101: =+Flujos!N101 -> 165021239.9 | E101: =+Flujos!O101 -> 1786888630 | G101: 2032-06-23 | H101: =IF(G101<CALCULADORA!$C$23,0,IF(CALCULADORA!$C$27>'TIR de Tenencia'!G101,E101,CALCULADORA!$C$33)) -> 157961798805 | L101: 23 | M101: 7 | N101: 2032
A102: =+Flujos!A102 -> 2029-11-23 | B102: =+Flujos!L102 -> 2.641424058e+10 | C102: =+Flujos!M102 -> 1601327360 | D102: =+Flujos!N102 -> 155990682.3 | E102: =+Flujos!O102 -> 1757318043 | G102: 2032-07-23 | H102: =IF(G102<CALCULADORA!$C$23,0,IF(CALCULADORA!$C$27>'TIR de Tenencia'!G102,E102,CALCULADORA!$C$33)) -> 157961798805 | L102: 23 | M102: 8 | N102: 2032
A103: =+Flujos!A103 -> 2029-12-23 | B103: =+Flujos!L103 -> 2.483140815e+10 | C103: =+Flujos!M103 -> 1582832428 | D103: =+Flujos!N103 -> 147074491.6 | E103: =+Flujos!O103 -> 1729906919 | G103: 2032-08-23 | H103: =IF(G103<CALCULADORA!$C$23,0,IF(CALCULADORA!$C$27>'TIR de Tenencia'!G103,E103,CALCULADORA!$C$33)) -> 157961798805 | L103: 23 | M103: 9 | N103: 2032
A104: =+Flujos!A104 -> 2030-01-23 | B104: =+Flujos!L104 -> 2.326639775e+10 | C104: =+Flujos!M104 -> 1565010398 | D104: =+Flujos!N104 -> 138261280.6 | E104: =+Flujos!O104 -> 1703271678 | G104: 2032-09-23 | H104: =IF(G104<CALCULADORA!$C$23,0,IF(CALCULADORA!$C$27>'TIR de Tenencia'!G104,E104,CALCULADORA!$C$33)) -> 157961798805 | L104: 23 | M104: 10 | N104: 2032
A105: =+Flujos!A105 -> 2030-02-23 | B105: =+Flujos!L105 -> 2.171813736e+10 | C105: =+Flujos!M105 -> 1548260395 | D105: =+Flujos!N105 -> 129547302.7 | E105: =+Flujos!O105 -> 1677807697 | G105: 2032-10-23 | H105: =IF(G105<CALCULADORA!$C$23,0,IF(CALCULADORA!$C$27>'TIR de Tenencia'!G105,E105,CALCULADORA!$C$33)) -> 157961798805 | L105: 23 | M105: 11 | N105: 2032
A106: =+Flujos!A106 -> 2030-03-23 | B106: =+Flujos!L106 -> 2.018664346e+10 | C106: =+Flujos!M106 -> 1531493899 | D106: =+Flujos!N106 -> 120926588.8 | E106: =+Flujos!O106 -> 1652420487 | G106: 2032-11-23 | H106: =IF(G106<CALCULADORA!$C$23,0,IF(CALCULADORA!$C$27>'TIR de Tenencia'!G106,E106,CALCULADORA!$C$33)) -> 157961798805 | L106: 23 | M106: 12 | N106: 2032
A107: =+Flujos!A107 -> 2030-04-23 | B107: =+Flujos!L107 -> 1.867097268e+10 | C107: =+Flujos!M107 -> 1515670786 | D107: =+Flujos!N107 -> 112399230.8 | E107: =+Flujos!O107 -> 1628070017 | G107: 2032-12-23 | H107: =IF(G107<CALCULADORA!$C$23,0,IF(CALCULADORA!$C$27>'TIR de Tenencia'!G107,E107,CALCULADORA!$C$33)) -> 157961798805 | L107: 23 | M107: 1 | N107: 2033
A108: =+Flujos!A108 -> 2030-05-23 | B108: =+Flujos!L108 -> 1.735379833e+10 | C108: =+Flujos!M108 -> 1317174341 | D108: =+Flujos!N108 -> 103959975.9 | E108: =+Flujos!O108 -> 1421134317 | G108: 2033-01-23 | H108: =IF(G108<CALCULADORA!$C$23,0,IF(CALCULADORA!$C$27>'TIR de Tenencia'!G108,E108,CALCULADORA!$C$33)) -> 157961798805 | L108: 23 | M108: 2 | N108: 2033
A109: =+Flujos!A109 -> 2030-06-23 | B109: =+Flujos!L109 -> 1.587369244e+10 | C109: =+Flujos!M109 -> 1480105891 | D109: =+Flujos!N109 -> 96625949.13 | E109: =+Flujos!O109 -> 1576731840 | G109: 2033-02-23 | H109: =IF(G109<CALCULADORA!$C$23,0,IF(CALCULADORA!$C$27>'TIR de Tenencia'!G109,E109,CALCULADORA!$C$33)) -> 157961798805 | L109: 23 | M109: 3 | N109: 2033
A110: =+Flujos!A110 -> 2030-07-23 | B110: =+Flujos!L110 -> 1.441080495e+10 | C110: =+Flujos!M110 -> 1462887495 | D110: =+Flujos!N110 -> 88384719.52 | E110: =+Flujos!O110 -> 1551272214 | G110: 2033-03-23 | H110: =IF(G110<CALCULADORA!$C$23,0,IF(CALCULADORA!$C$27>'TIR de Tenencia'!G110,E110,CALCULADORA!$C$33)) -> 157961798805 | L110: 23 | M110: 4 | N110: 2033
A111: =+Flujos!A111 -> 2030-08-23 | B111: =+Flujos!L111 -> 1.296609902e+10 | C111: =+Flujos!M111 -> 1444705924 | D111: =+Flujos!N111 -> 80239361.95 | E111: =+Flujos!O111 -> 1524945286 | G111: 2033-04-23 | H111: =IF(G111<CALCULADORA!$C$23,0,IF(CALCULADORA!$C$27>'TIR de Tenencia'!G111,E111,CALCULADORA!$C$33)) -> 157961798805 | L111: 23 | M111: 5 | N111: =+IF(M111=1,N110+1,N110) -> 2033
A112: =+Flujos!A112 -> 2030-09-23 | B112: =+Flujos!L112 -> 1.15390601e+10 | C112: =+Flujos!M112 -> 1427038926 | D112: =+Flujos!N112 -> 72195239.37 | E112: =+Flujos!O112 -> 1499234165 | G112: 2033-05-23 | H112: =IF(G112<CALCULADORA!$C$23,0,IF(CALCULADORA!$C$27>'TIR de Tenencia'!G112,E112,CALCULADORA!$C$33)) -> 157961798805 | L112: 23 | M112: 6 | N112: 2033
A113: =+Flujos!A113 -> 2030-10-23 | B113: =+Flujos!L113 -> 1.01305326e+10 | C113: =+Flujos!M113 -> 1408527500 | D113: =+Flujos!N113 -> 64249486.63 | E113: =+Flujos!O113 -> 1472776987 | G113: 2033-06-23 | H113: =IF(G113<CALCULADORA!$C$23,0,IF(CALCULADORA!$C$27>'TIR de Tenencia'!G113,E113,CALCULADORA!$C$33)) -> 157961798805 | L113: 23 | M113: 7 | N113: 2033
A114: =+Flujos!A114 -> 2030-11-23 | B114: =+Flujos!L114 -> 8740242745 | C114: =+Flujos!M114 -> 1390289854 | D114: =+Flujos!N114 -> 56406805.51 | E114: =+Flujos!O114 -> 1446696659 | G114: 2033-07-23 | H114: =IF(G114<CALCULADORA!$C$23,0,IF(CALCULADORA!$C$27>'TIR de Tenencia'!G114,E114,CALCULADORA!$C$33)) -> 157961798805 | L114: 23 | M114: 8 | N114: 2033
A115: =+Flujos!A115 -> 2030-12-23 | B115: =+Flujos!L115 -> 7367161392 | C115: =+Flujos!M115 -> 1373081353 | D115: =+Flujos!N115 -> 48665671.6 | E115: =+Flujos!O115 -> 1421747025 | G115: 2033-08-23 | H115: =IF(G115<CALCULADORA!$C$23,0,IF(CALCULADORA!$C$27>'TIR de Tenencia'!G115,E115,CALCULADORA!$C$33)) -> 157961798805 | L115: 23 | M115: 9 | N115: 2033
A116: =+Flujos!A116 -> 2031-01-23 | B116: =+Flujos!L116 -> 6014817981 | C116: =+Flujos!M116 -> 1352343411 | D116: =+Flujos!N116 -> 41020354.63 | E116: =+Flujos!O116 -> 1393363765 | G116: 2033-09-23 | H116: =IF(G116<CALCULADORA!$C$23,0,IF(CALCULADORA!$C$27>'TIR de Tenencia'!G116,E116,CALCULADORA!$C$33)) -> 157961798805 | L116: 23 | M116: 10 | N116: 2033
A117: =+Flujos!A117 -> 2031-02-23 | B117: =+Flujos!L117 -> 4681154222 | C117: =+Flujos!M117 -> 1333663760 | D117: =+Flujos!N117 -> 33490506.52 | E117: =+Flujos!O117 -> 1367154266 | G117: 2033-10-23 | H117: =IF(G117<CALCULADORA!$C$23,0,IF(CALCULADORA!$C$27>'TIR de Tenencia'!G117,E117,CALCULADORA!$C$33)) -> 157961798805 | L117: 23 | M117: 11 | N117: 2033
A118: =+Flujos!A118 -> 2031-03-23 | B118: =+Flujos!L118 -> 3364959548 | C118: =+Flujos!M118 -> 1316194674 | D118: =+Flujos!N118 -> 26064666.71 | E118: =+Flujos!O118 -> 1342259341 | G118: 2033-11-23 | H118: =IF(G118<CALCULADORA!$C$23,0,IF(CALCULADORA!$C$27>'TIR de Tenencia'!G118,E118,CALCULADORA!$C$33)) -> 157961798805 | L118: 23 | M118: 12 | N118: 2033
A119: =+Flujos!A119 -> 2031-04-23 | B119: =+Flujos!L119 -> 2071369792 | C119: =+Flujos!M119 -> 1293589756 | D119: =+Flujos!N119 -> 18736094.76 | E119: =+Flujos!O119 -> 1312325851 | G119: 2033-12-23 | H119: =IF(G119<CALCULADORA!$C$23,0,IF(CALCULADORA!$C$27>'TIR de Tenencia'!G119,E119,CALCULADORA!$C$33)) -> 157961798805 | L119: 23 | M119: 1 | N119: 2034
A120: =+Flujos!A120 -> 2031-05-23 | B120: =+Flujos!L120 -> 987435452.6 | C120: =+Flujos!M120 -> 1083934339 | D120: =+Flujos!N120 -> 11533387 | E120: =+Flujos!O120 -> 1095467726 | G120: 2034-01-23 | H120: =IF(G120<CALCULADORA!$C$23,0,IF(CALCULADORA!$C$27>'TIR de Tenencia'!G120,E120,CALCULADORA!$C$33)) -> 157961798805 | L120: 23 | M120: 2 | N120: 2034
A121: =+Flujos!A121 -> 2031-06-23 | B121: =+Flujos!L121 -> -1.692771912e-05 | C121: =+Flujos!M121 -> 987435452.6 | D121: =+Flujos!N121 -> 5498040.6 | E121: =+Flujos!O121 -> 992933493.2 | G121: 2034-02-23 | H121: =IF(G121<CALCULADORA!$C$23,0,IF(CALCULADORA!$C$27>'TIR de Tenencia'!G121,E121,CALCULADORA!$C$33)) -> 157961798805 | L121: 23 | M121: 3 | N121: 2034
A122: =+Flujos!A122 -> 2031-07-23 | B122: =+Flujos!L122 -> -1.692771912e-05 | C122: =+Flujos!M122 -> 0 | D122: =+Flujos!N122 -> -9.425354004e-08 | E122: =+Flujos!O122 -> -9.425354004e-08 | G122: 2034-03-23 | H122: =IF(G122<CALCULADORA!$C$23,0,IF(CALCULADORA!$C$27>'TIR de Tenencia'!G122,E122,CALCULADORA!$C$33)) -> 157961798805 | L122: 23 | M122: 4 | N122: 2034
A123: =+Flujos!A123 -> 2031-08-23 | B123: =+Flujos!L123 -> -1.692771912e-05 | C123: =+Flujos!M123 -> 0 | D123: =+Flujos!N123 -> -9.425354004e-08 | E123: =+Flujos!O123 -> -9.425354004e-08 | G123: 2034-04-23 | H123: =IF(G123<CALCULADORA!$C$23,0,IF(CALCULADORA!$C$27>'TIR de Tenencia'!G123,E123,CALCULADORA!$C$33)) -> 157961798805 | L123: 23 | M123: 5 | N123: 2034
A124: =+Flujos!A124 -> 2031-09-23 | B124: =+Flujos!L124 -> -1.692771912e-05 | C124: =+Flujos!M124 -> 0 | D124: =+Flujos!N124 -> -9.425354004e-08 | E124: =+Flujos!O124 -> -9.425354004e-08 | G124: 2034-05-23 | H124: =IF(G124<CALCULADORA!$C$23,0,IF(CALCULADORA!$C$27>'TIR de Tenencia'!G124,E124,CALCULADORA!$C$33)) -> 157961798805 | L124: 23 | M124: 6 | N124: 2034
A125: =+Flujos!A125 -> 2031-10-23 | B125: =+Flujos!L125 -> -1.692771912e-05 | C125: =+Flujos!M125 -> 0 | D125: =+Flujos!N125 -> -9.425354004e-08 | E125: =+Flujos!O125 -> -9.425354004e-08 | G125: 2034-06-23 | H125: =IF(G125<CALCULADORA!$C$23,0,IF(CALCULADORA!$C$27>'TIR de Tenencia'!G125,E125,CALCULADORA!$C$33)) -> 157961798805 | L125: 23 | M125: 7 | N125: 2034
A126: =+Flujos!A126 -> 2031-11-23 | B126: =+Flujos!L126 -> -1.692771912e-05 | C126: =+Flujos!M126 -> 0 | D126: =+Flujos!N126 -> -9.425354004e-08 | E126: =+Flujos!O126 -> -9.425354004e-08 | G126: 2034-07-23 | H126: =IF(G126<CALCULADORA!$C$23,0,IF(CALCULADORA!$C$27>'TIR de Tenencia'!G126,E126,CALCULADORA!$C$33)) -> 157961798805 | L126: 23 | M126: 8 | N126: 2034
A127: =+Flujos!A127 -> 2031-12-23 | B127: =+Flujos!L127 -> -1.692771912e-05 | C127: =+Flujos!M127 -> 0 | D127: =+Flujos!N127 -> -9.425354004e-08 | E127: =+Flujos!O127 -> -9.425354004e-08 | G127: 2034-08-23 | H127: =IF(G127<CALCULADORA!$C$23,0,IF(CALCULADORA!$C$27>'TIR de Tenencia'!G127,E127,CALCULADORA!$C$33)) -> 157961798805 | L127: 23 | M127: 9 | N127: 2034
A128: =+Flujos!A128 -> 2032-01-23 | B128: =+Flujos!L128 -> -1.692771912e-05 | C128: =+Flujos!M128 -> 0 | D128: =+Flujos!N128 -> -9.425354004e-08 | E128: =+Flujos!O128 -> -9.425354004e-08 | G128: 2034-09-23 | H128: =IF(G128<CALCULADORA!$C$23,0,IF(CALCULADORA!$C$27>'TIR de Tenencia'!G128,E128,CALCULADORA!$C$33)) -> 157961798805 | L128: 23 | M128: 10 | N128: 2034
A129: =+Flujos!A129 -> 2032-02-23 | B129: =+Flujos!L129 -> -1.692771912e-05 | C129: =+Flujos!M129 -> 0 | D129: =+Flujos!N129 -> -9.425354004e-08 | E129: =+Flujos!O129 -> -9.425354004e-08 | G129: 2034-10-23 | H129: =IF(G129<CALCULADORA!$C$23,0,IF(CALCULADORA!$C$27>'TIR de Tenencia'!G129,E129,CALCULADORA!$C$33)) -> 157961798805 | L129: 23 | M129: 11 | N129: 2034
A130: =+Flujos!A130 -> 2032-03-23 | B130: =+Flujos!L130 -> -1.692771912e-05 | C130: =+Flujos!M130 -> 0 | D130: =+Flujos!N130 -> -9.425354004e-08 | E130: =+Flujos!O130 -> -9.425354004e-08 | G130: 2034-11-23 | H130: =IF(G130<CALCULADORA!$C$23,0,IF(CALCULADORA!$C$27>'TIR de Tenencia'!G130,E130,CALCULADORA!$C$33)) -> 157961798805 | L130: 23 | M130: 12 | N130: 2034
A131: =+Flujos!A131 -> 2032-04-23 | B131: =+Flujos!L131 -> -1.692771912e-05 | C131: =+Flujos!M131 -> 0 | D131: =+Flujos!N131 -> -9.425354004e-08 | E131: =+Flujos!O131 -> -9.425354004e-08 | G131: =+DATE(N130,M130,L130) -> 2034-12-23 | H131: =IF(G131<CALCULADORA!$C$23,0,IF(CALCULADORA!$C$27>'TIR de Tenencia'!G131,E131,CALCULADORA!$C$33)) -> 157961798805 | L131: =+L130 -> 23 | M131: =+IF(M130=12,1,M130+1) -> 1 | N131: =+IF(M131=1,N130+1,N130) -> 2035
A132: =+Flujos!A132 -> 2032-05-23 | B132: =+Flujos!L132 -> -1.692771912e-05 | C132: =+Flujos!M132 -> 0 | D132: =+Flujos!N132 -> -9.425354004e-08 | E132: =+Flujos!O132 -> -9.425354004e-08 | G132: 2035-01-23 | H132: =IF(G132<CALCULADORA!$C$23,0,IF(CALCULADORA!$C$27>'TIR de Tenencia'!G132,E132,CALCULADORA!$C$33)) -> 157961798805 | I132: =+IF(H132=H131," ",G132) ->  | J132: =+IF(H132=H131," ",H132) ->  | L132: 23 | M132: 2 | N132: 2035
A133: =+Flujos!A133 -> 2032-06-23 | B133: =+Flujos!L133 -> -1.692771912e-05 | C133: =+Flujos!M133 -> 0 | D133: =+Flujos!N133 -> -9.425354004e-08 | E133: =+Flujos!O133 -> -9.425354004e-08 | G133: 2035-02-23 | H133: =IF(G133<CALCULADORA!$C$23,0,IF(CALCULADORA!$C$27>'TIR de Tenencia'!G133,E133,CALCULADORA!$C$33)) -> 157961798805 | L133: 23 | M133: 3 | N133: 2035
A134: =+Flujos!A134 -> 2032-07-23 | B134: =+Flujos!L134 -> -1.692771912e-05 | C134: =+Flujos!M134 -> 0 | D134: =+Flujos!N134 -> -9.425354004e-08 | E134: =+Flujos!O134 -> -9.425354004e-08 | G134: 2035-03-23 | H134: =IF(G134<CALCULADORA!$C$23,0,IF(CALCULADORA!$C$27>'TIR de Tenencia'!G134,E134,CALCULADORA!$C$33)) -> 157961798805 | L134: 23 | M134: 4 | N134: 2035
A135: =+Flujos!A135 -> 2032-08-23 | B135: =+Flujos!L135 -> -1.692771912e-05 | C135: =+Flujos!M135 -> 0 | D135: =+Flujos!N135 -> -9.425354004e-08 | E135: =+Flujos!O135 -> -9.425354004e-08 | G135: 2035-04-23 | H135: =IF(G135<CALCULADORA!$C$23,0,IF(CALCULADORA!$C$27>'TIR de Tenencia'!G135,E135,CALCULADORA!$C$33)) -> 157961798805 | L135: 23 | M135: 5 | N135: 2035
A136: =+Flujos!A136 -> 2032-09-23 | B136: =+Flujos!L136 -> -1.692771912e-05 | C136: =+Flujos!M136 -> 0 | D136: =+Flujos!N136 -> -9.425354004e-08 | E136: =+Flujos!O136 -> -9.425354004e-08 | G136: 2035-05-23 | H136: =IF(G136<CALCULADORA!$C$23,0,IF(CALCULADORA!$C$27>'TIR de Tenencia'!G136,E136,CALCULADORA!$C$33)) -> 157961798805 | L136: 23 | M136: 6 | N136: 2035
A137: =+Flujos!A137 -> 2032-10-23 | B137: =+Flujos!L137 -> -1.692771912e-05 | C137: =+Flujos!M137 -> 0 | D137: =+Flujos!N137 -> -9.425354004e-08 | E137: =+Flujos!O137 -> -9.425354004e-08 | G137: 2035-06-23 | H137: =IF(G137<CALCULADORA!$C$23,0,IF(CALCULADORA!$C$27>'TIR de Tenencia'!G137,E137,CALCULADORA!$C$33)) -> 157961798805 | L137: 23 | M137: 7 | N137: 2035
A138: =+Flujos!A138 -> 2032-11-23 | B138: =+Flujos!L138 -> -1.692771912e-05 | C138: =+Flujos!M138 -> 0 | D138: =+Flujos!N138 -> -9.425354004e-08 | E138: =+Flujos!O138 -> -9.425354004e-08 | G138: 2035-07-23 | H138: =IF(G138<CALCULADORA!$C$23,0,IF(CALCULADORA!$C$27>'TIR de Tenencia'!G138,E138,CALCULADORA!$C$33)) -> 157961798805 | L138: 23 | M138: 8 | N138: 2035
A139: =+Flujos!A139 -> 2032-12-23 | B139: =+Flujos!L139 -> -1.692771912e-05 | C139: =+Flujos!M139 -> 0 | D139: =+Flujos!N139 -> -9.425354004e-08 | E139: =+Flujos!O139 -> -9.425354004e-08 | G139: 2035-08-23 | H139: =IF(G139<CALCULADORA!$C$23,0,IF(CALCULADORA!$C$27>'TIR de Tenencia'!G139,E139,CALCULADORA!$C$33)) -> 157961798805 | L139: 23 | M139: 9 | N139: 2035
A140: =+Flujos!A140 -> 2033-01-23 | B140: =+Flujos!L140 -> -1.692771912e-05 | C140: =+Flujos!M140 -> 0 | D140: =+Flujos!N140 -> -9.425354004e-08 | E140: =+Flujos!O140 -> -9.425354004e-08 | G140: 2035-09-23 | H140: =IF(G140<CALCULADORA!$C$23,0,IF(CALCULADORA!$C$27>'TIR de Tenencia'!G140,E140,CALCULADORA!$C$33)) -> 157961798805 | L140: 23 | M140: 10 | N140: 2035
A141: =+Flujos!A141 -> 2033-02-23 | B141: =+Flujos!L141 -> -1.692771912e-05 | C141: =+Flujos!M141 -> 0 | D141: =+Flujos!N141 -> -9.425354004e-08 | E141: =+Flujos!O141 -> -9.425354004e-08 | G141: 2035-10-23 | H141: =IF(G141<CALCULADORA!$C$23,0,IF(CALCULADORA!$C$27>'TIR de Tenencia'!G141,E141,CALCULADORA!$C$33)) -> 157961798805 | L141: 23 | M141: 11 | N141: 2035
A142: =+Flujos!A142 -> 2033-03-23 | B142: =+Flujos!L142 -> -1.692771912e-05 | C142: =+Flujos!M142 -> 0 | D142: =+Flujos!N142 -> -9.425354004e-08 | E142: =+Flujos!O142 -> -9.425354004e-08 | G142: 2035-11-23 | H142: =IF(G142<CALCULADORA!$C$23,0,IF(CALCULADORA!$C$27>'TIR de Tenencia'!G142,E142,CALCULADORA!$C$33)) -> 157961798805 | L142: 23 | M142: 12 | N142: 2035
A143: =+Flujos!A143 -> 2033-04-23 | B143: =+Flujos!L143 -> -1.692771912e-05 | C143: =+Flujos!M143 -> 0 | D143: =+Flujos!N143 -> -9.425354004e-08 | E143: =+Flujos!O143 -> -9.425354004e-08 | G143: 2035-12-23 | H143: =IF(G143<CALCULADORA!$C$23,0,IF(CALCULADORA!$C$27>'TIR de Tenencia'!G143,E143,CALCULADORA!$C$33)) -> 157961798805 | L143: 23 | M143: 1 | N143: 2036
A144: =+Flujos!A144 -> 2033-05-23 | B144: =+Flujos!L144 -> -1.692771912e-05 | C144: =+Flujos!M144 -> 0 | D144: =+Flujos!N144 -> -9.425354004e-08 | E144: =+Flujos!O144 -> -9.425354004e-08 | G144: 2036-01-23 | H144: =IF(G144<CALCULADORA!$C$23,0,IF(CALCULADORA!$C$27>'TIR de Tenencia'!G144,E144,CALCULADORA!$C$33)) -> 157961798805 | L144: 23 | M144: 2 | N144: 2036
A145: =+Flujos!A145 -> 2033-06-23 | B145: =+Flujos!L145 -> -1.692771912e-05 | C145: =+Flujos!M145 -> 0 | D145: =+Flujos!N145 -> -9.425354004e-08 | E145: =+Flujos!O145 -> -9.425354004e-08 | G145: 2036-02-23 | H145: =IF(G145<CALCULADORA!$C$23,0,IF(CALCULADORA!$C$27>'TIR de Tenencia'!G145,E145,CALCULADORA!$C$33)) -> 157961798805 | L145: 23 | M145: 3 | N145: 2036
A146: =+Flujos!A146 -> 2033-07-23 | B146: =+Flujos!L146 -> -1.692771912e-05 | C146: =+Flujos!M146 -> 0 | D146: =+Flujos!N146 -> -9.425354004e-08 | E146: =+Flujos!O146 -> -9.425354004e-08 | G146: 2036-03-23 | H146: =IF(G146<CALCULADORA!$C$23,0,IF(CALCULADORA!$C$27>'TIR de Tenencia'!G146,E146,CALCULADORA!$C$33)) -> 157961798805 | L146: 23 | M146: 4 | N146: 2036
A147: =+Flujos!A147 -> 2033-08-23 | B147: =+Flujos!L147 -> -1.692771912e-05 | C147: =+Flujos!M147 -> 0 | D147: =+Flujos!N147 -> -9.425354004e-08 | E147: =+Flujos!O147 -> -9.425354004e-08 | G147: 2036-04-23 | H147: =IF(G147<CALCULADORA!$C$23,0,IF(CALCULADORA!$C$27>'TIR de Tenencia'!G147,E147,CALCULADORA!$C$33)) -> 157961798805 | L147: 23 | M147: 5 | N147: 2036
A148: =+Flujos!A148 -> 2033-09-23 | B148: =+Flujos!L148 -> -1.692771912e-05 | C148: =+Flujos!M148 -> 0 | D148: =+Flujos!N148 -> -9.425354004e-08 | E148: =+Flujos!O148 -> -9.425354004e-08 | G148: 2036-05-23 | H148: =IF(G148<CALCULADORA!$C$23,0,IF(CALCULADORA!$C$27>'TIR de Tenencia'!G148,E148,CALCULADORA!$C$33)) -> 157961798805 | L148: 23 | M148: 6 | N148: 2036
A149: =+Flujos!A149 -> 2033-10-23 | B149: =+Flujos!L149 -> -1.692771912e-05 | C149: =+Flujos!M149 -> 0 | D149: =+Flujos!N149 -> -9.425354004e-08 | E149: =+Flujos!O149 -> -9.425354004e-08 | G149: 2036-06-23 | H149: =IF(G149<CALCULADORA!$C$23,0,IF(CALCULADORA!$C$27>'TIR de Tenencia'!G149,E149,CALCULADORA!$C$33)) -> 157961798805 | L149: 23 | M149: 7 | N149: 2036
A150: =+Flujos!A150 -> 2033-11-23 | B150: =+Flujos!L150 -> -1.692771912e-05 | C150: =+Flujos!M150 -> 0 | D150: =+Flujos!N150 -> -9.425354004e-08 | E150: =+Flujos!O150 -> -9.425354004e-08 | G150: 2036-07-23 | H150: =IF(G150<CALCULADORA!$C$23,0,IF(CALCULADORA!$C$27>'TIR de Tenencia'!G150,E150,CALCULADORA!$C$33)) -> 157961798805 | L150: 23 | M150: 8 | N150: 2036
A151: =+Flujos!A151 -> 2033-12-23 | B151: =+Flujos!L151 -> -1.692771912e-05 | C151: =+Flujos!M151 -> 0 | D151: =+Flujos!N151 -> -9.425354004e-08 | E151: =+Flujos!O151 -> -9.425354004e-08 | G151: 2036-08-23 | H151: =IF(G151<CALCULADORA!$C$23,0,IF(CALCULADORA!$C$27>'TIR de Tenencia'!G151,E151,CALCULADORA!$C$33)) -> 157961798805 | L151: 23 | M151: 9 | N151: 2036
A152: =+Flujos!A152 -> 2034-01-23 | B152: =+Flujos!L152 -> -1.692771912e-05 | C152: =+Flujos!M152 -> 0 | D152: =+Flujos!N152 -> -9.425354004e-08 | E152: =+Flujos!O152 -> -9.425354004e-08 | G152: 2036-09-23 | H152: =IF(G152<CALCULADORA!$C$23,0,IF(CALCULADORA!$C$27>'TIR de Tenencia'!G152,E152,CALCULADORA!$C$33)) -> 157961798805 | L152: 23 | M152: 10 | N152: 2036
A153: =+Flujos!A153 -> 2034-02-23 | B153: =+Flujos!L153 -> -1.692771912e-05 | C153: =+Flujos!M153 -> 0 | D153: =+Flujos!N153 -> -9.425354004e-08 | E153: =+Flujos!O153 -> -9.425354004e-08 | G153: 2036-10-23 | H153: =IF(G153<CALCULADORA!$C$23,0,IF(CALCULADORA!$C$27>'TIR de Tenencia'!G153,E153,CALCULADORA!$C$33)) -> 157961798805 | L153: 23 | M153: 11 | N153: 2036
A154: =+Flujos!A154 -> 2034-03-23 | B154: =+Flujos!L154 -> -1.692771912e-05 | C154: =+Flujos!M154 -> 0 | D154: =+Flujos!N154 -> -9.425354004e-08 | E154: =+Flujos!O154 -> -9.425354004e-08 | G154: 2036-11-23 | H154: =IF(G154<CALCULADORA!$C$23,0,IF(CALCULADORA!$C$27>'TIR de Tenencia'!G154,E154,CALCULADORA!$C$33)) -> 157961798805 | L154: 23 | M154: 12 | N154: 2036
A155: =+Flujos!A155 -> 2034-04-23 | B155: =+Flujos!L155 -> -1.692771912e-05 | C155: =+Flujos!M155 -> 0 | D155: =+Flujos!N155 -> -9.425354004e-08 | E155: =+Flujos!O155 -> -9.425354004e-08 | G155: 2036-12-23 | H155: =IF(G155<CALCULADORA!$C$23,0,IF(CALCULADORA!$C$27>'TIR de Tenencia'!G155,E155,CALCULADORA!$C$33)) -> 157961798805 | L155: 23 | M155: 1 | N155: 2037
A156: =+Flujos!A156 -> 2034-05-23 | B156: =+Flujos!L156 -> -1.692771912e-05 | C156: =+Flujos!M156 -> 0 | D156: =+Flujos!N156 -> -9.425354004e-08 | E156: =+Flujos!O156 -> -9.425354004e-08 | G156: 2037-01-23 | H156: =IF(G156<CALCULADORA!$C$23,0,IF(CALCULADORA!$C$27>'TIR de Tenencia'!G156,E156,CALCULADORA!$C$33)) -> 157961798805 | L156: 23 | M156: 2 | N156: 2037
A157: =+Flujos!A157 -> 2034-06-23 | B157: =+Flujos!L157 -> -1.692771912e-05 | C157: =+Flujos!M157 -> 0 | D157: =+Flujos!N157 -> -9.425354004e-08 | E157: =+Flujos!O157 -> -9.425354004e-08 | G157: 2037-02-23 | H157: =IF(G157<CALCULADORA!$C$23,0,IF(CALCULADORA!$C$27>'TIR de Tenencia'!G157,E157,CALCULADORA!$C$33)) -> 157961798805 | L157: 23 | M157: 3 | N157: 2037
A158: =+Flujos!A158 -> 2034-07-23 | B158: =+Flujos!L158 -> -1.692771912e-05 | C158: =+Flujos!M158 -> 0 | D158: =+Flujos!N158 -> -9.425354004e-08 | E158: =+Flujos!O158 -> -9.425354004e-08 | G158: 2037-03-23 | H158: =IF(G158<CALCULADORA!$C$23,0,IF(CALCULADORA!$C$27>'TIR de Tenencia'!G158,E158,CALCULADORA!$C$33)) -> 157961798805 | L158: 23 | M158: 4 | N158: 2037
A159: =+Flujos!A159 -> 2034-08-23 | B159: =+Flujos!L159 -> -1.692771912e-05 | C159: =+Flujos!M159 -> 0 | D159: =+Flujos!N159 -> -9.425354004e-08 | E159: =+Flujos!O159 -> -9.425354004e-08 | G159: 2037-04-23 | H159: =IF(G159<CALCULADORA!$C$23,0,IF(CALCULADORA!$C$27>'TIR de Tenencia'!G159,E159,CALCULADORA!$C$33)) -> 157961798805 | L159: 23 | M159: 5 | N159: 2037
A160: =+Flujos!A160 -> 2034-09-23 | B160: =+Flujos!L160 -> -1.692771912e-05 | C160: =+Flujos!M160 -> 0 | D160: =+Flujos!N160 -> -9.425354004e-08 | E160: =+Flujos!O160 -> -9.425354004e-08 | G160: 2037-05-23 | H160: =IF(G160<CALCULADORA!$C$23,0,IF(CALCULADORA!$C$27>'TIR de Tenencia'!G160,E160,CALCULADORA!$C$33)) -> 157961798805 | L160: 23 | M160: 6 | N160: 2037
A161: =+Flujos!A161 -> 2034-10-23 | B161: =+Flujos!L161 -> -1.692771912e-05 | C161: =+Flujos!M161 -> 0 | D161: =+Flujos!N161 -> -9.425354004e-08 | E161: =+Flujos!O161 -> -9.425354004e-08 | G161: 2037-06-23 | H161: =IF(G161<CALCULADORA!$C$23,0,IF(CALCULADORA!$C$27>'TIR de Tenencia'!G161,E161,CALCULADORA!$C$33)) -> 157961798805 | L161: 23 | M161: 7 | N161: 2037
A162: =+Flujos!A162 -> 2034-11-23 | B162: =+Flujos!L162 -> -1.692771912e-05 | C162: =+Flujos!M162 -> 0 | D162: =+Flujos!N162 -> -9.425354004e-08 | E162: =+Flujos!O162 -> -9.425354004e-08 | G162: 2037-07-23 | H162: =IF(G162<CALCULADORA!$C$23,0,IF(CALCULADORA!$C$27>'TIR de Tenencia'!G162,E162,CALCULADORA!$C$33)) -> 157961798805 | L162: 23 | M162: 8 | N162: 2037
A163: =+Flujos!A163 -> 2034-12-23 | B163: =+Flujos!L163 -> -1.692771912e-05 | C163: =+Flujos!M163 -> 0 | D163: =+Flujos!N163 -> -9.425354004e-08 | E163: =+Flujos!O163 -> -9.425354004e-08 | G163: =+DATE(N162,M162,L162) -> 2037-08-23 | H163: =IF(G163<CALCULADORA!$C$23,0,IF(CALCULADORA!$C$27>'TIR de Tenencia'!G163,E163,CALCULADORA!$C$33)) -> 157961798805 | L163: 23 | M163: 9 | N163: 2037
A164: =+Flujos!A164 -> 2035-01-23 | B164: =+Flujos!L164 -> -1.692771912e-05 | C164: =+Flujos!M164 -> 0 | D164: =+Flujos!N164 -> -9.425354004e-08 | E164: =+Flujos!O164 -> -9.425354004e-08 | G164: 2037-09-23 | H164: =IF(G164<CALCULADORA!$C$23,0,IF(CALCULADORA!$C$27>'TIR de Tenencia'!G164,E164,CALCULADORA!$C$33)) -> 157961798805 | L164: 23 | M164: 10 | N164: 2037
A165: =+Flujos!A165 -> 2035-02-23 | B165: =+Flujos!L165 -> -1.692771912e-05 | C165: =+Flujos!M165 -> 0 | D165: =+Flujos!N165 -> -9.425354004e-08 | E165: =+Flujos!O165 -> -9.425354004e-08 | G165: 2037-10-23 | H165: =IF(G165<CALCULADORA!$C$23,0,IF(CALCULADORA!$C$27>'TIR de Tenencia'!G165,E165,CALCULADORA!$C$33)) -> 157961798805 | L165: 23 | M165: 11 | N165: 2037
A166: =+Flujos!A166 -> 2035-03-23 | B166: =+Flujos!L166 -> -1.692771912e-05 | C166: =+Flujos!M166 -> 0 | D166: =+Flujos!N166 -> -9.425354004e-08 | E166: =+Flujos!O166 -> -9.425354004e-08 | G166: 2037-11-23 | H166: =IF(G166<CALCULADORA!$C$23,0,IF(CALCULADORA!$C$27>'TIR de Tenencia'!G166,E166,CALCULADORA!$C$33)) -> 157961798805 | L166: 23 | M166: 12 | N166: 2037
A167: =+Flujos!A167 -> 2035-04-23 | B167: =+Flujos!L167 -> -1.692771912e-05 | C167: =+Flujos!M167 -> 0 | D167: =+Flujos!N167 -> -9.425354004e-08 | E167: =+Flujos!O167 -> -9.425354004e-08 | G167: 2037-12-23 | H167: =IF(G167<CALCULADORA!$C$23,0,IF(CALCULADORA!$C$27>'TIR de Tenencia'!G167,E167,CALCULADORA!$C$33)) -> 157961798805 | L167: 23 | M167: 1 | N167: 2038
A168: =+Flujos!A168 -> 2035-05-23 | B168: =+Flujos!L168 -> -1.692771912e-05 | C168: =+Flujos!M168 -> 0 | D168: =+Flujos!N168 -> -9.425354004e-08 | E168: =+Flujos!O168 -> -9.425354004e-08 | G168: 2038-01-23 | H168: =IF(G168<CALCULADORA!$C$23,0,IF(CALCULADORA!$C$27>'TIR de Tenencia'!G168,E168,CALCULADORA!$C$33)) -> 157961798805 | L168: 23 | M168: 2 | N168: 2038
A169: =+Flujos!A169 -> 2035-06-23 | B169: =+Flujos!L169 -> -1.692771912e-05 | C169: =+Flujos!M169 -> 0 | D169: =+Flujos!N169 -> -9.425354004e-08 | E169: =+Flujos!O169 -> -9.425354004e-08 | G169: 2038-02-23 | H169: =IF(G169<CALCULADORA!$C$23,0,IF(CALCULADORA!$C$27>'TIR de Tenencia'!G169,E169,CALCULADORA!$C$33)) -> 157961798805 | L169: 23 | M169: 3 | N169: 2038
A170: =+Flujos!A170 -> 2035-07-23 | B170: =+Flujos!L170 -> -1.692771912e-05 | C170: =+Flujos!M170 -> 0 | D170: =+Flujos!N170 -> -9.425354004e-08 | E170: =+Flujos!O170 -> -9.425354004e-08 | G170: 2038-03-23 | H170: =IF(G170<CALCULADORA!$C$23,0,IF(CALCULADORA!$C$27>'TIR de Tenencia'!G170,E170,CALCULADORA!$C$33)) -> 157961798805 | L170: 23 | M170: 4 | N170: 2038
A171: =+Flujos!A171 -> 2035-08-23 | B171: =+Flujos!L171 -> -1.692771912e-05 | C171: =+Flujos!M171 -> 0 | D171: =+Flujos!N171 -> -9.425354004e-08 | E171: =+Flujos!O171 -> -9.425354004e-08 | G171: 2038-04-23 | H171: =IF(G171<CALCULADORA!$C$23,0,IF(CALCULADORA!$C$27>'TIR de Tenencia'!G171,E171,CALCULADORA!$C$33)) -> 157961798805 | L171: 23 | M171: 5 | N171: 2038
A172: =+Flujos!A172 -> 2035-09-23 | B172: =+Flujos!L172 -> -1.692771912e-05 | C172: =+Flujos!M172 -> 0 | D172: =+Flujos!N172 -> -9.425354004e-08 | E172: =+Flujos!O172 -> -9.425354004e-08 | G172: 2038-05-23 | H172: =IF(G172<CALCULADORA!$C$23,0,IF(CALCULADORA!$C$27>'TIR de Tenencia'!G172,E172,CALCULADORA!$C$33)) -> 157961798805 | L172: 23 | M172: 6 | N172: 2038
A173: =+Flujos!A173 -> 2035-10-23 | B173: =+Flujos!L173 -> -1.692771912e-05 | C173: =+Flujos!M173 -> 0 | D173: =+Flujos!N173 -> -9.425354004e-08 | E173: =+Flujos!O173 -> -9.425354004e-08 | G173: 2038-06-23 | H173: =IF(G173<CALCULADORA!$C$23,0,IF(CALCULADORA!$C$27>'TIR de Tenencia'!G173,E173,CALCULADORA!$C$33)) -> 157961798805 | L173: 23 | M173: 7 | N173: 2038
A174: =+Flujos!A174 -> 2035-11-23 | B174: =+Flujos!L174 -> -1.692771912e-05 | C174: =+Flujos!M174 -> 0 | D174: =+Flujos!N174 -> -9.425354004e-08 | E174: =+Flujos!O174 -> -9.425354004e-08 | G174: 2038-07-23 | H174: =IF(G174<CALCULADORA!$C$23,0,IF(CALCULADORA!$C$27>'TIR de Tenencia'!G174,E174,CALCULADORA!$C$33)) -> 157961798805 | L174: 23 | M174: 8 | N174: 2038
A175: =+Flujos!A175 -> 2035-12-23 | B175: =+Flujos!L175 -> -1.692771912e-05 | C175: =+Flujos!M175 -> 0 | D175: =+Flujos!N175 -> -9.425354004e-08 | E175: =+Flujos!O175 -> -9.425354004e-08 | G175: 2038-08-23 | H175: =IF(G175<CALCULADORA!$C$23,0,IF(CALCULADORA!$C$27>'TIR de Tenencia'!G175,E175,CALCULADORA!$C$33)) -> 157961798805 | L175: 23 | M175: 9 | N175: 2038
A176: =+Flujos!A176 -> 2036-01-23 | B176: =+Flujos!L176 -> -1.692771912e-05 | C176: =+Flujos!M176 -> 0 | D176: =+Flujos!N176 -> -9.425354004e-08 | E176: =+Flujos!O176 -> -9.425354004e-08 | G176: 2038-09-23 | H176: =IF(G176<CALCULADORA!$C$23,0,IF(CALCULADORA!$C$27>'TIR de Tenencia'!G176,E176,CALCULADORA!$C$33)) -> 157961798805 | L176: 23 | M176: 10 | N176: 2038
A177: =+Flujos!A177 -> 2036-02-23 | B177: =+Flujos!L177 -> -1.692771912e-05 | C177: =+Flujos!M177 -> 0 | D177: =+Flujos!N177 -> -9.425354004e-08 | E177: =+Flujos!O177 -> -9.425354004e-08 | G177: 2038-10-23 | H177: =IF(G177<CALCULADORA!$C$23,0,IF(CALCULADORA!$C$27>'TIR de Tenencia'!G177,E177,CALCULADORA!$C$33)) -> 157961798805 | L177: 23 | M177: 11 | N177: 2038
A178: =+Flujos!A178 -> 2036-03-23 | B178: =+Flujos!L178 -> -1.692771912e-05 | C178: =+Flujos!M178 -> 0 | D178: =+Flujos!N178 -> -9.425354004e-08 | E178: =+Flujos!O178 -> -9.425354004e-08 | G178: 2038-11-23 | H178: =IF(G178<CALCULADORA!$C$23,0,IF(CALCULADORA!$C$27>'TIR de Tenencia'!G178,E178,CALCULADORA!$C$33)) -> 157961798805 | L178: 23 | M178: 12 | N178: 2038
A179: =+Flujos!A179 -> 2036-04-23 | B179: =+Flujos!L179 -> -1.692771912e-05 | C179: =+Flujos!M179 -> 0 | D179: =+Flujos!N179 -> -9.425354004e-08 | E179: =+Flujos!O179 -> -9.425354004e-08 | G179: 2038-12-23 | H179: =IF(G179<CALCULADORA!$C$23,0,IF(CALCULADORA!$C$27>'TIR de Tenencia'!G179,E179,CALCULADORA!$C$33)) -> 157961798805 | L179: 23 | M179: 1 | N179: 2039
A180: =+Flujos!A180 -> 2036-05-23 | B180: =+Flujos!L180 -> -1.692771912e-05 | C180: =+Flujos!M180 -> 0 | D180: =+Flujos!N180 -> -9.425354004e-08 | E180: =+Flujos!O180 -> -9.425354004e-08 | G180: 2039-01-23 | H180: =IF(G180<CALCULADORA!$C$23,0,IF(CALCULADORA!$C$27>'TIR de Tenencia'!G180,E180,CALCULADORA!$C$33)) -> 157961798805 | L180: 23 | M180: 2 | N180: 2039
A181: =+Flujos!A181 -> 2036-06-23 | B181: =+Flujos!L181 -> -1.692771912e-05 | C181: =+Flujos!M181 -> 0 | D181: =+Flujos!N181 -> -9.425354004e-08 | E181: =+Flujos!O181 -> -9.425354004e-08 | G181: 2039-02-23 | H181: =IF(G181<CALCULADORA!$C$23,0,IF(CALCULADORA!$C$27>'TIR de Tenencia'!G181,E181,CALCULADORA!$C$33)) -> 157961798805 | L181: 23 | M181: 3 | N181: 2039
A182: =+Flujos!A182 -> 2036-07-23 | B182: =+Flujos!L182 -> -1.692771912e-05 | C182: =+Flujos!M182 -> 0 | D182: =+Flujos!N182 -> -9.425354004e-08 | E182: =+Flujos!O182 -> -9.425354004e-08 | G182: 2039-03-23 | H182: =IF(G182<CALCULADORA!$C$23,0,IF(CALCULADORA!$C$27>'TIR de Tenencia'!G182,E182,CALCULADORA!$C$33)) -> 157961798805 | L182: 23 | M182: 4 | N182: 2039
B183: Totales | C183: =SUM(C2:C182) -> 3.298543377e+11 | D183: 8.470422199e+10 | E183: 4.145585597e+11
I184: =+IF(H184=H183," ",H184) ->  | K184: =+MONTH(A184) -> 1 | L184: =+YEAR(A184) -> 1900
K185: 1 | L185: 1900
K186: 1 | L186: 1900
K187: 1 | L187: 1900
K188: 1 | L188: 1900
K189: 1 | L189: 1900
K190: 1 | L190: 1900
K191: 1 | L191: 1900
K192: 1 | L192: 1900
K193: 1 | L193: 1900
K194: 1 | L194: 1900
K195: 1 | L195: 1900
K196: 1 | L196: 1900
K197: 1 | L197: 1900
K198: 1 | L198: 1900
K199: 1 | L199: 1900
K200: 1 | L200: 1900
... 4300 more rows

Sheet Tabla de Amortizacion (hidden)
A1: FECHA | B1: Tabla de Amortización Valoración | E1: Tabla de Amortización Valoración | F1: Tabla de Amortización Valoración | G1: Tabla de Amortización Valoración | H1: Tabla de Amortización Valoración | I1: Tabla de Amortización Valoración | J1: Tabla de Amortización Valoración | K1: Tabla de Amortización Valoración | L1: Tabla de Amortización Valoración | M1: Tabla de Amortización Valoración | N1: Tabla de Amortización Valoración | O1: Tabla de Amortización Valoración | P1: Tabla de Amortización Valoración | Q1: Tabla de Amortización Valoración
B2: =+CALCULADORA!C9 -> TIPS N19 A 2034 | E2: =+Características!$B$1 -> TIPS N13 A | F2: =+Características!$C$1 -> TIPS N14 A | G2: =+Características!$D$1 -> TIPS N15 A | H2: =+Características!$E$1 -> TIPS N16 A | I2: =+Características!$F$1 -> TIPS N17 A | J2: =+Características!$G$1 -> TIPS N18 A 2034 | K2: =+Características!$H$1 -> TIPS N19 A 2034 | L2: =+Características!$I$1 -> TIPS N20 A 2034 | M2: =+Características!$J$1 -> TIPS N21 A | N2: =+Características!$K$1 -> TIPS N22 A | O2: =+Características!$L$1 -> TIPS N23 A | P2: =+Características!$M$1 -> TIPS N24 A1 2029 | Q2: =+Características!$N$1 -> TIPS N24 A2 2039
A3: =+Flujos!A3 -> 2021-08-23 | B3: =+VLOOKUP(A3,$D$2:$O$182,MATCH($B$2,$D$2:$O$2,0),FALSE) -> 0.01847045 | D3: =+A3 -> 2021-08-23 | E3: 0.02044998 | F3: 0.01368171 | G3: 0.02659682 | H3: 0.02356776 | I3: 0.03571942 | J3: 0.00605857 | K3: 0.01847045 | L3: 0.0158525 | M3: 0.01952549 | N3: 0.01619246 | O3: 0.02708248 | P3: 0.08952366 | Q3: 0.01756376
A4: =+Flujos!A4 -> 2021-09-23 | B4: =+VLOOKUP(A4,$D$2:$O$182,MATCH($B$2,$D$2:$O$2,0),FALSE) -> 0.02392001 | D4: =+A4 -> 2021-09-23 | E4: 0.01389231 | F4: 0.01183556 | G4: 0.02294987 | H4: 0.02133346 | I4: 0.02457022 | J4: 0.0236512 | K4: 0.02392001 | L4: 0.02892144 | M4: 0.02834999 | N4: 0.0239413 | O4: 0.02840141 | P4: 0.08643382 | Q4: 0.03098767
A5: =+Flujos!A5 -> 2021-10-23 | B5: 0.02116353 | D5: 2021-10-23 | E5: 0.01675198 | F5: 0.01424274 | G5: 0.02656322 | H5: 0.02897295 | I5: 0.0199412 | J5: 0.02121142 | K5: 0.02116353 | L5: 0.02259371 | M5: 0.02654497 | N5: 0.0317479 | O5: 0.03572706 | P5: 0.08371351 | Q5: 0.03004741
A6: =+Flujos!A6 -> 2021-11-23 | B6: 0.01844168 | D6: 2021-11-23 | E6: 0.01204601 | F6: 0.01511885 | G6: 0.02616427 | H6: 0.02223212 | I6: 0.01917548 | J6: 0.02364436 | K6: 0.01844168 | L6: 0.02618229 | M6: 0.02677209 | N6: 0.02672574 | O6: 0.02525313 | P6: 0.08107387 | Q6: 0.02913248
A7: =+Flujos!A7 -> 2021-12-23 | B7: 0.02002614 | D7: 2021-12-23 | E7: 0.01163129 | F7: 0.01640594 | G7: 0.02127747 | H7: 0.02047248 | I7: 0.01949236 | J7: 0.02091759 | K7: 0.02002614 | L7: 0.02214692 | M7: 0.02176445 | N7: 0.04114774 | O7: 0.02463223 | P7: 0.07851118 | Q7: 0.02823587
A8: =+Flujos!A8 -> 2022-01-23 | B8: 0.01920896 | D8: 2022-01-23 | E8: 0.01407613 | F8: 0.01820595 | G8: 0.02742637 | H8: 0.02060537 | I8: 0.02337156 | J8: 0.02529812 | K8: 0.01920896 | L8: 0.01938706 | M8: 0.01831821 | N8: 0.04541162 | O8: 0.02403121 | P8: 0.07602482 | Q8: 0.02735769
A9: =+Flujos!A9 -> 2022-02-23 | B9: 0.0156808 | D9: 2022-02-23 | E9: 0.01742161 | F9: 0.02362088 | G9: 0.02119926 | H9: 0.02115641 | I9: 0.01787675 | J9: 0.01834793 | K9: 0.0156808 | L9: 0.01884397 | M9: 0.01794704 | N9: 0.06420672 | O9: 0.0234325 | P9: 0.07361853 | Q9: 0.02650803
A10: =+Flujos!A10 -> 2022-03-23 | B10: 0.02031004 | D10: 2022-03-23 | E10: 0.01186987 | F10: 0.02330254 | G10: 0.01664172 | H10: 0.01838404 | I10: 0.02257094 | J10: 0.01917264 | K10: 0.02031004 | L10: 0.02129778 | M10: 0.01610036 | N10: 0.02516028 | O10: 0.02284745 | P10: 0.0712853 | Q10: 0.02568528
A11: =+Flujos!A11 -> 2022-04-23 | B11: 0.01653618 | D11: 2022-04-23 | E11: 0.02125241 | F11: 0.02457678 | G11: 0.01428269 | H11: 0.02119569 | I11: 0.01776765 | J11: 0.01797415 | K11: 0.01653618 | L11: 0.01328574 | M11: 0.0146862 | N11: 0.02434856 | O11: 0.02227155 | P11: 0.06903065 | Q11: 0.02488615
A12: =+Flujos!A12 -> 2022-05-23 | B12: 0.01068205 | D12: 2022-05-23 | E12: 0.01996124 | F12: 0.02252216 | G12: 0.01979017 | H12: 0.02337674 | I12: 0.01561815 | J12: 0.0192707 | K12: 0.01068205 | L12: 0.01759811 | M12: 0.01427731 | N12: 0.02357658 | O12: 0.02169902 | P12: 0.06685727 | Q12: 0.02411122
A13: =+Flujos!A13 -> 2022-06-23 | B13: =+VLOOKUP(A13,$D$2:$O$182,MATCH($B$2,$D$2:$O$2,0),FALSE) -> 0.0165158 | D13: 2022-06-23 | E13: 0.01495962 | F13: 0.02172866 | G13: 0.01486948 | H13: 0.01376149 | I13: 0.01843288 | J13: 0.01051969 | K13: 0.0165158 | L13: 0.01624602 | M13: 0.01730595 | N13: 0.02282144 | O13: 0.02113875 | P13: 0.0647542 | Q13: 0.02336364
A14: =+Flujos!A14 -> 2022-07-23 | B14: 0.01429638 | D14: 2022-07-23 | E14: 0.01775622 | F14: 0.01924675 | G14: 0.01443206 | H14: 0.01698375 | I14: 0.0167106 | J14: 0.02197584 | K14: 0.01429638 | L14: 0.01670805 | M14: 0.01376916 | N14: 0.02208693 | O14: 0.02059326 | P14: 0.06213107 | Q14: 0.02263826
A15: =+Flujos!A15 -> 2022-08-23 | B15: 0.00923389 | D15: 2022-08-23 | E15: 0.01861186 | F15: 0.01952513 | G15: 0.01976905 | H15: 0.022644 | I15: 0.02242677 | J15: 0.01699029 | K15: 0.00923389 | L15: 0.01450048 | M15: 0.01483369 | N15: 0.02137717 | O15: 0.02005058 | P15: 0.06285082 | Q15: 0.02193298
A16: =+Flujos!A16 -> 2022-09-23 | B16: 0.01499669 | D16: 2022-09-23 | E16: 0.01496187 | F16: 0.02071941 | G16: 0.01836559 | H16: 0.01870053 | I16: 0.0225063 | J16: 0.01325195 | K16: 0.01499669 | L16: 0.0159464 | M16: 0.01289312 | N16: 0.02067141 | O16: 0.01953635 | P16: 0.0341913 | Q16: 0.0212508
A17: =+Flujos!A17 -> 2022-10-23 | B17: 0.01357463 | D17: 2022-10-23 | E17: 0.01762456 | F17: 0.02070901 | G17: 0.01807762 | H17: 0.02424875 | I17: 0.01981603 | J17: 0.01007138 | K17: 0.01357463 | L17: 0.01568914 | M17: 0.01178352 | N17: 0.01998859 | O17: 0.01902565 | P17: 0 | Q17: 0.02058627
A18: =+Flujos!A18 -> 2022-11-23 | B18: 0.01483513 | D18: 2022-11-23 | E18: 0.0128802 | F18: 0.01853392 | G18: 0.02047601 | H18: 0.01717284 | I18: 0.01604535 | J18: 0.02083114 | K18: 0.01483513 | L18: 0.01075758 | M18: 0.01040654 | N18: 0.01932882 | O18: 0.01852632 | P18: 0 | Q18: 0.01993819
A19: =+Flujos!A19 -> 2022-12-23 | B19: 0.00807425 | D19: 2022-12-23 | E19: 0.01380986 | F19: 0.01617943 | G19: 0.01518027 | H19: 0.01614614 | I19: 0.019135 | J19: 0.01314528 | K19: 0.00807425 | L19: 0.01354073 | M19: 0.01326818 | N19: 0.01869005 | O19: 0.01802633 | P19: 0 | Q19: 0.01930658
A20: =+Flujos!A20 -> 2023-01-23 | B20: 0.01361384 | D20: 2023-01-23 | E20: 0.01326533 | F20: 0.01960572 | G20: 0.02128655 | H20: 0.01870624 | I20: 0.01850661 | J20: 0.01464749 | K20: 0.01361384 | L20: 0.01276501 | M20: 0.01401153 | N20: 0.01807229 | O20: 0.017561 | P20: 0 | Q20: 0.01869862
A21: =+Flujos!A21 -> 2023-02-23 | B21: 0.01019619 | D21: 2023-02-23 | E21: 0.01197941 | F21: 0.017751 | G21: 0.01596307 | H21: 0.0282862 | I21: 0.01447718 | J21: 0.01006517 | K21: 0.01019619 | L21: 0.01161447 | M21: 0.01373559 | N21: 0.01747531 | O21: 0.01709585 | P21: 0 | Q21: 0.01810776
A22: =+Flujos!A22 -> 2023-03-23 | B22: 0.01032425 | D22: 2023-03-23 | E22: 0.01272617 | F22: 0.0201187 | G22: 0.01999637 | H22: 0.01329859 | I22: 0.01654485 | J22: 0.01054455 | K22: 0.01032425 | L22: 0.01331859 | M22: 0.01440303 | N22: 0.01689977 | O22: 0.01665295 | P22: 0 | Q22: 0.01753504
A23: =+Flujos!A23 -> 2023-04-23 | B23: 0.01241966 | D23: 2023-04-23 | E23: 0.01530562 | F23: 0.01828355 | G23: 0.01469504 | H23: 0.01814356 | I23: 0.01661799 | J23: 0.00992201 | K23: 0.01241966 | L23: 0.00949922 | M23: 0.01222623 | N23: 0.01634331 | O23: 0.0162132 | P23: 0 | Q23: 0.0169782
A24: =+Flujos!A24 -> 2023-05-23 | B24: 0.00874107 | D24: 2023-05-23 | E24: 0.01334941 | F24: 0.01320268 | G24: 0.01966265 | H24: 0.01595792 | I24: 0.0193822 | J24: 0.00999066 | K24: 0.00874107 | L24: 0.01038323 | M24: 0.01260328 | N24: 0.01580866 | O24: 0.01577523 | P24: 0 | Q24: 0.01644019
A25: =+Flujos!A25 -> 2023-06-23 | B25: 0.00834591 | D25: 2023-06-23 | E25: 0.01343126 | F25: 0.01729486 | G25: 0.01651748 | H25: 0.01681101 | I25: 0.02416772 | J25: 0.00939988 | K25: 0.00834591 | L25: 0.01440096 | M25: 0.01062882 | N25: 0.01528917 | O25: 0.01535409 | P25: 0 | Q25: 0.01591809
A26: =+Flujos!A26 -> 2023-07-23 | B26: 0.01046561 | D26: 2023-07-23 | E26: 0.01613141 | F26: 0.01540016 | G26: 0.01611479 | H26: 0.01544912 | I26: 0.02190972 | J26: 0.00657291 | K26: 0.01046561 | L26: 0.0111731 | M26: 0.00970835 | N26: 0.0147851 | O26: 0.01492421 | P26: 0 | Q26: 0.015411
A27: =+Flujos!A27 -> 2023-08-23 | B27: 0.00621205 | D27: 2023-08-23 | E27: 0.01431813 | F27: 0.01890395 | G27: 0.01270605 | H27: 0.01386443 | I27: 0.00938747 | J27: 0.0127433 | K27: 0.00621205 | L27: 0.01300945 | M27: 0.00918628 | N27: 0.01429342 | O27: 0.01452477 | P27: 0 | Q27: 0.01492632
A28: =+Flujos!A28 -> 2023-09-23 | B28: 0.00775293 | D28: 2023-09-23 | E28: 0.01628853 | F28: 0.01500383 | G28: 0.01494734 | H28: 0.01572838 | I28: 0.00224242 | J28: 0.00847706 | K28: 0.00775293 | L28: 0.01152998 | M28: 0.01352611 | N28: 0.0138143 | O28: 0.01413414 | P28: 0 | Q28: 0.01444899
A29: =+Flujos!A29 -> 2023-10-23 | B29: 0.0071742 | D29: 2023-10-23 | E29: 0.01435779 | F29: 0.02084695 | G29: 0.01662729 | H29: 0.02086454 | I29: 0.00663784 | J29: 0.00962463 | K29: 0.0071742 | L29: 0.00854143 | M29: 0.01143474 | N29: 0.01334956 | O29: 0.01374426 | P29: 0 | Q29: 0.01399496
A30: =+Flujos!A30 -> 2023-11-23 | B30: 0.00712022 | D30: 2023-11-23 | E30: 0.01661774 | F30: 0.01219917 | G30: 0.01673982 | H30: 0.01103635 | I30: 0.01070316 | J30: 0.00867892 | K30: 0.00712022 | L30: 0.00922056 | M30: 0.00832034 | N30: 0.01290002 | O30: 0.01336775 | P30: 0 | Q30: 0.0135593
A31: =+Flujos!A31 -> 2023-12-23 | B31: 0.00986897 | D31: 2023-12-23 | E31: 0.01476718 | F31: 0.0160444 | G31: 0.01522799 | H31: 0.00328742 | I31: 0.01145043 | J31: 0.00606589 | K31: 0.00986897 | L31: 0.01068278 | M31: 0.01294797 | N31: 0.01246468 | O31: 0.0129987 | P31: 0 | Q31: 0.01314263
A32: =+Flujos!A32 -> 2024-01-23 | B32: 0.00844365 | D32: 2024-01-23 | E32: 0.01467772 | F32: 0.0126768 | G32: 0.01799877 | H32: 0.00335904 | I32: 0.00932192 | J32: 0.0056227 | K32: 0.00844365 | L32: 0.00840043 | M32: 0.0092125 | N32: 0.01204274 | O32: 0.0126332 | P32: 0 | Q32: 0.01273935
A33: =+Flujos!A33 -> 2024-02-23 | B33: 0.01285656 | D33: 2024-02-23 | E33: 0.0121292 | F33: 0.01359303 | G33: 0.01670931 | H33: 0.0047029 | I33: 0.01425703 | J33: 0.00739365 | K33: 0.01285656 | L33: 0.00942713 | M33: 0.01153683 | N33: 0.01163324 | O33: 0.01227182 | P33: 0 | Q33: 0.01232327
A34: =+Flujos!A34 -> 2024-03-23 | B34: 0.00928653 | D34: 2024-03-23 | E34: 0.01172219 | F34: 0.01628187 | G34: 0.01902509 | H34: 0.00592936 | I34: 0.01300706 | J34: 0.01001431 | K34: 0.00928653 | L34: 0.0082664 | M34: 0.01028062 | N34: 0.01123305 | O34: 0.01193727 | P34: 0 | Q34: 0.01194616
A35: =+Flujos!A35 -> 2024-04-23 | B35: 0.01317768 | D35: 2024-04-23 | E35: 0.01530554 | F35: 0.01221051 | G35: 0.01549794 | H35: 0.00934888 | I35: 0.01105333 | J35: 0.0087118 | K35: 0.01317768 | L35: 0.01171722 | M35: 0.0088502 | N35: 0.01084537 | O35: 0.01160839 | P35: 0 | Q35: 0.01157658
A36: =+Flujos!A36 -> 2024-05-23 | B36: 0.0086879 | D36: 2024-05-23 | E36: 0.01318137 | F36: 0.0154152 | G36: 0.00120175 | H36: 0.0094674 | I36: 0.01644809 | J36: 0.00753429 | K36: 0.0086879 | L36: 0.00993075 | M36: 0.01112976 | N36: 0.01045758 | O36: 0.01128233 | P36: 0 | Q36: 0.01122096
A37: =+Flujos!A37 -> 2024-06-23 | B37: 0.0066977 | D37: 2024-06-23 | E37: 0.01449017 | F37: 0.014099 | G37: 0.00117287 | H37: 0.01645422 | I37: 0.01266616 | J37: 0.01076061 | K37: 0.0066977 | L37: 0.01268487 | M37: 0.01043272 | N37: 0.01008711 | O37: 0.01095933 | P37: 0 | Q37: 0.01087454
A38: =+Flujos!A38 -> 2024-07-23 | B38: 0.01013146 | D38: 2024-07-23 | E38: 0.01049837 | F38: 0.01640389 | G38: 0.00631143 | H38: 0.01360503 | I38: 0.01359347 | J38: 0.01157145 | K38: 0.01013146 | L38: 0.01235936 | M38: 0.01092245 | N38: 0.00973645 | O38: 0.01063267 | P38: 0 | Q38: 0.01053669
A39: =+Flujos!A39 -> 2024-08-23 | B39: 0.00945651 | D39: 2024-08-23 | E39: 0.01470858 | F39: 0.00988778 | G39: 0.00710865 | H39: 0.01503896 | I39: 0.01185657 | J39: 0.00497716 | K39: 0.00945651 | L39: 0.01144497 | M39: 0.01285958 | N39: 0.00939885 | O39: 0.01033496 | P39: 0 | Q39: 0.01020979
A40: =+Flujos!A40 -> 2024-09-23 | B40: 0.00962191 | D40: 2024-09-23 | E40: 0.01444744 | F40: 0.00087918 | G40: 0.00697761 | H40: 0.01366977 | I40: 0.01347089 | J40: 0.00412667 | K40: 0.00962191 | L40: 0.01134134 | M40: 0.00949357 | N40: 0.00908665 | O40: 0.0100399 | P40: 0 | Q40: 0.00989301
A41: =+Flujos!A41 -> 2024-10-23 | B41: 0.00955363 | D41: 2024-10-23 | E41: 0.01291791 | F41: 0.00348549 | G41: 0.01336185 | H41: 0.01395939 | I41: 0.01437008 | J41: 0.00606006 | K41: 0.00955363 | L41: 0.01091842 | M41: 0.01123087 | N41: 0.00878362 | O41: 0.00976022 | P41: 0 | Q41: 0.00958203
A42: =+Flujos!A42 -> 2024-11-23 | B42: 0.00846202 | D42: 2024-11-23 | E42: 0.01272832 | F42: 0.00474617 | G42: 0.00978246 | H42: 0.01200633 | I42: 0.01209825 | J42: 0.0072122 | K42: 0.00846202 | L42: 0.01047117 | M42: 0.0094597 | N42: 0.00849204 | O42: 0.00947357 | P42: 0 | Q42: 0.00928416
A43: =+Flujos!A43 -> 2024-12-23 | B43: 0.00835591 | D43: 2024-12-23 | E43: 0.00010085 | F43: 0.00903694 | G43: 0.01328964 | H43: 0.01270412 | I43: 0.01289714 | J43: 0.00720664 | K43: 0.00835591 | L43: 0.0093315 | M43: 0.00933735 | N43: 0.00821073 | O43: 0.0091893 | P43: 0 | Q43: 0.00899291
A44: =+Flujos!A44 -> 2025-01-23 | B44: 0.00825965 | D44: 2025-01-23 | E44: 0.00259768 | F44: 0.0052115 | G44: 0.01251384 | H44: 0.01132464 | I44: 0.01219468 | J44: 0.01030488 | K44: 0.00825965 | L44: 0.00961754 | M44: 0.0092241 | N44: 0.00793906 | O44: 0.00892006 | P44: 0 | Q44: 0.00871169
A45: =+Flujos!A45 -> 2025-02-23 | B45: 0.00817015 | D45: 2025-02-23 | E45: 0.00257446 | F45: 0.00984007 | G45: 0.01011529 | H45: 0.00969269 | I45: 0.01176555 | J45: 0.00688408 | K45: 0.00817015 | L45: 0.00972914 | M45: 0.00915108 | N45: 0.00767524 | O45: 0.00866439 | P45: 0 | Q45: 0.00843713
A46: =+Flujos!A46 -> 2025-03-23 | B46: 0.00807617 | D46: 2025-03-23 | E46: 0.00600046 | F46: 0.00958311 | G46: 0.01229326 | H46: 0.01363761 | I46: 0.01069626 | J46: 0.00721743 | K46: 0.00807617 | L46: 0.0097173 | M46: 0.00906245 | N46: 0.00742206 | O46: 0.00841901 | P46: 0 | Q46: 0.00816979
A47: =+Flujos!A47 -> 2025-04-23 | B47: 0.00797588 | D47: 2025-04-23 | E47: 0.00721973 | F47: 0.01028221 | G47: 0.01129489 | H47: 0.01135293 | I47: 0.01330106 | J47: 0.00712144 | K47: 0.00797588 | L47: 0.00961608 | M47: 0.00893652 | N47: 0.00717308 | O47: 0.00816672 | P47: 0 | Q47: 0.00791427
A48: =+Flujos!A48 -> 2025-05-23 | B48: 0.00787579 | D48: 2025-05-23 | E48: 0.00767481 | F48: 0.00824404 | G48: 0.00951999 | H48: 0.01013605 | I48: 0.01010537 | J48: 0.00705233 | K48: 0.00787579 | L48: 0.00955603 | M48: 0.00886014 | N48: 0.0069335 | O48: 0.00793075 | P48: 0 | Q48: 0.00766624
A49: =+Flujos!A49 -> 2025-06-23 | B49: 0.00778717 | D49: 2025-06-23 | E49: 0.011827 | F49: 0.00970398 | G49: 0.01382827 | H49: 0.01023478 | I49: 0.00953173 | J49: 0.0069805 | K49: 0.00778717 | L49: 0.00939729 | M49: 0.00875792 | N49: 0.00669932 | O49: 0.00770621 | P49: 0 | Q49: 0.00742499
A50: =+Flujos!A50 -> 2025-07-23 | B50: 0.00769691 | D50: 2025-07-23 | E50: 0.0112454 | F50: 0.008772 | G50: 0.00905725 | H50: 0.0082423 | I50: 0.00893678 | J50: 0.00691476 | K50: 0.00769691 | L50: 0.00934002 | M50: 0.00848117 | N50: 0.00647583 | O50: 0.00748003 | P50: 0 | Q50: 0.00719066
A51: =+Flujos!A51 -> 2025-08-23 | B51: 0.00759873 | D51: 2025-08-23 | E51: 0.0122264 | F51: 0.01334663 | G51: 0.01029287 | H51: 0.01079955 | I51: 0.00961686 | J51: 0.00683628 | K51: 0.00759873 | L51: 0.00925607 | M51: 0.00859307 | N51: 0.00626115 | O51: 0.00727438 | P51: 0 | Q51: 0.00696451
A52: =+Flujos!A52 -> 2025-09-23 | B52: 0.00750532 | D52: 2025-09-23 | E52: 0.00968244 | F52: 0.00920606 | G52: 0.01148269 | H52: 0.01187544 | I52: 0.00779207 | J52: 0.00677018 | K52: 0.00750532 | L52: 0.00917938 | M52: 0.00853326 | N52: 0.00605157 | O52: 0.00706268 | P52: 0 | Q52: 0.00674566
A53: =+Flujos!A53 -> 2025-10-23 | B53: 0.00741225 | D53: 2025-10-23 | E53: 0.01374424 | F53: 0.01075445 | G53: 0.00948177 | H53: 0.01019234 | I53: 0.01006071 | J53: 0.00670912 | K53: 0.00741225 | L53: 0.00909691 | M53: 0.00844637 | N53: 0.00584868 | O53: 0.00685276 | P53: 0 | Q53: 0.00653132
A54: =+Flujos!A54 -> 2025-11-23 | B54: 0.00732138 | D54: 2025-11-23 | E54: 0.00903524 | F54: 0.00724663 | G54: 0.00804489 | H54: 0.01059437 | I54: 0.01081909 | J54: 0.00663638 | K54: 0.00732138 | L54: 0.00897391 | M54: 0.00835055 | N54: 0.00565254 | O54: 0.00663767 | P54: 0 | Q54: 0.00632657
A55: =+Flujos!A55 -> 2025-12-23 | B55: 0.0072295 | D55: 2025-12-23 | E55: 0.01006501 | F55: 0.00948708 | G55: 0.01157107 | H55: 0.0111525 | I55: 0.00763213 | J55: 0.00656838 | K55: 0.0072295 | L55: 0.00889224 | M55: 0.00828405 | N55: 0.00604564 | O55: 0.00645224 | P55: 0 | Q55: 0.00612574
A56: =+Flujos!A56 -> 2026-01-23 | B56: 0.00771633 | D56: 2026-01-23 | E56: 0.00694017 | F56: 0.0084972 | G56: 0.0091879 | H56: 0.00963262 | I56: 0.00913507 | J56: 0.00650024 | K56: 0.00771633 | L56: 0.00848911 | M56: 0.00820962 | N56: 0.00663945 | O56: 0.00626852 | P56: 0 | Q56: 0.00593149
A57: =+Flujos!A57 -> 2026-02-23 | B57: 0.0092824 | D57: 2026-02-23 | E57: 0.01032482 | F57: 0.0089106 | G57: 0.01061184 | H57: 0.00611365 | I57: 0.00824169 | J57: 0.00642697 | K57: 0.0092824 | L57: 0.00870489 | M57: 0.00812969 | N57: 0.006435 | O57: 0.00608278 | P57: 0 | Q57: 0.00574501
A58: =+Flujos!A58 -> 2026-03-23 | B58: 0.00919094 | D58: 2026-03-23 | E58: 0.01014255 | F58: 0.00780819 | G58: 0.00963164 | H58: 0.00810022 | I58: 0.00595712 | J58: 0.00636207 | K58: 0.00919094 | L58: 0.00860476 | M58: 0.00803449 | N58: 0.00623942 | O58: 0.00591346 | P58: 0 | Q58: 0.00556465
A59: =+Flujos!A59 -> 2026-04-23 | B59: 0.00909408 | D59: 2026-04-23 | E59: 0.01028269 | F59: 0.00961772 | G59: 0.00826396 | H59: 0.00639594 | I59: 0.00799775 | J59: 0.00838067 | K59: 0.00909408 | L59: 0.00850689 | M59: 0.00799256 | N59: 0.00604926 | O59: 0.00574473 | P59: 0 | Q59: 0.00538809
A60: =+Flujos!A60 -> 2026-05-23 | B60: 0.00853051 | D60: 2026-05-23 | E60: 0.01217725 | F60: 0.00795294 | G60: 0.00754122 | H60: 0.0099169 | I60: 0.00630369 | J60: 0.00840351 | K60: 0.00853051 | L60: 0.00841182 | M60: 0.00791806 | N60: 0.00586563 | O60: 0.00558003 | P60: 0 | Q60: 0.00521746
A61: =+Flujos!A61 -> 2026-06-23 | B61: 0.00888582 | D61: 2026-06-23 | E61: 0.00910267 | F61: 0.00689769 | G61: 0.0075995 | H61: 0.00934268 | I61: 0.00676965 | J61: 0.00837344 | K61: 0.00888582 | L61: 0.0083349 | M61: 0.0078255 | N61: 0.0056866 | O61: 0.00541888 | P61: 0 | Q61: 0.00505283
A62: =+Flujos!A62 -> 2026-07-23 | B62: 0.008783 | D62: 2026-07-23 | E62: 0.00848117 | F62: 0.00769056 | G62: 0.0058627 | H62: 0.0055879 | I62: 0.00687964 | J62: 0.0083116 | K62: 0.008783 | L62: 0.00823345 | M62: 0.00754612 | N62: 0.00528817 | O62: 0.00526235 | P62: 0 | Q62: 0.00489356
A63: =+Flujos!A63 -> 2026-08-23 | B63: 0.00865222 | D63: 2026-08-23 | E63: 0.00793732 | F63: 0.00873037 | G63: 0.00651442 | H63: 0.00736599 | I63: 0.00709652 | J63: 0.00820058 | K63: 0.00865222 | L63: 0.00812967 | M63: 0.00768378 | N63: 0.00534308 | O63: 0.00510914 | P63: 0 | Q63: 0.00473705
A64: =+Flujos!A64 -> 2026-09-23 | B64: 0.00853397 | D64: 2026-09-23 | E64: 0.00813077 | F64: 0.00635374 | G64: 0.00768038 | H64: 0.00620802 | I64: 0.00499626 | J64: 0.00766353 | K64: 0.00853397 | L64: 0.00804904 | M64: 0.00762316 | N64: 0.00518012 | O64: 0.00496455 | P64: 0 | Q64: 0.00458577
A65: =+Flujos!A65 -> 2026-10-23 | B65: 0.00843576 | D65: 2026-10-23 | E65: 0.0116814 | F65: 0.00702952 | G65: 0.00561159 | H65: 0.00603929 | I65: 0.00604351 | J65: 0.00804507 | K65: 0.00843576 | L65: 0.0079253 | M65: 0.00752367 | N65: 0.00502285 | O65: 0.0048228 | P65: 0 | Q65: 0.00443967
A66: =+Flujos!A66 -> 2026-11-23 | B66: 0.00833304 | D66: 2026-11-23 | E66: 0.00784629 | F66: 0.00685882 | G66: 0.00380373 | H66: 0.00558452 | I66: 0.00593204 | J66: 0.00795937 | K66: 0.00833304 | L66: 0.00780158 | M66: 0.00745271 | N66: 0.00486995 | O66: 0.00467432 | P66: 0 | Q66: 0.00429773
A67: =+Flujos!A67 -> 2026-12-23 | B67: 0.00819954 | D67: 2026-12-23 | E67: 0.00750415 | F67: 0.00752729 | G67: 0.00534973 | H67: 0.00572911 | I67: 0.00511061 | J67: 0.00784726 | K67: 0.00819954 | L67: 0.00767363 | M67: 0.00738634 | N67: 0.00471814 | O67: 0.00453199 | P67: 0 | Q67: 0.00416027
A68: =+Flujos!A68 -> 2027-01-23 | B68: =+VLOOKUP(A68,$D$2:$O$182,MATCH($B$2,$D$2:$O$2,0),FALSE) -> 0.00807043 | D68: =+A68 -> 2027-01-23 | E68: 0.00886363 | F68: 0.00782742 | G68: 0.0047784 | H68: 0.0058543 | I68: 0.00705012 | J68: 0.00776321 | K68: 0.00807043 | L68: 0.00724624 | M68: 0.00730118 | N68: 0.00457393 | O68: 0.00440303 | P68: 0 | Q68: 0.00402765
A69: =+Flujos!A69 -> 2027-02-23 | B69: 0.00795254 | D69: 2027-02-23 | E69: 0.00786875 | F69: 0.0057107 | G69: 0.00629813 | H69: 0.0058232 | I69: 0.00714261 | J69: 0.00766959 | K69: 0.00795254 | L69: 0.00744717 | M69: 0.00722947 | N69: 0.00443189 | O69: 0.00427825 | P69: 0 | Q69: 0.00390002
A70: =+Flujos!A70 -> 2027-03-23 | B70: 0.00783889 | D70: 2027-03-23 | E70: 0.00717001 | F70: 0.0049743 | G70: 0.00444419 | H70: 0.00630288 | I70: 0.00630244 | J70: 0.00754808 | K70: 0.00783889 | L70: 0.00734199 | M70: 0.00715819 | N70: 0.00429599 | O70: 0.00415676 | P70: 0 | Q70: 0.0037757
A71: =+Flujos!A71 -> 2027-04-23 | B71: 0.00768507 | D71: 2027-04-23 | E71: 0.00753296 | F71: 0.00467522 | G71: 0.00523832 | H71: 0.00466736 | I71: 0.00592662 | J71: 0.0074547 | K71: 0.00768507 | L71: 0.00722851 | M71: 0.0070896 | N71: 0.00416307 | O71: 0.00403997 | P71: 0 | Q71: 0.00365513
A72: =+Flujos!A72 -> 2027-05-23 | B72: 0.00712306 | D72: 2027-05-23 | E72: 0.00797559 | F72: 0.00608281 | G72: 0.00482507 | H72: 0.00544469 | I72: 0.00511144 | J72: 0.00734541 | K72: 0.00712306 | L72: 0.0071003 | M72: 0.00701272 | N72: 0.00403375 | O72: 0.00392408 | P72: 0 | Q72: 0.00353871
A73: =+Flujos!A73 -> 2027-06-23 | B73: 0.00748188 | D73: 2027-06-23 | E73: 0.00507735 | F73: 0.00605835 | G73: 0.00538974 | H73: 0.00553811 | I73: 0.00541929 | J73: 0.00726755 | K73: 0.00748188 | L73: 0.00699718 | M73: 0.00694603 | N73: 0.00390791 | O73: 0.00441888 | P73: 0 | Q73: 0.00342465
A74: =+Flujos!A74 -> 2027-07-23 | B74: 0.00739157 | D74: 2027-07-23 | E74: 0.00793204 | F74: 0.0046723 | G74: 0.00476348 | H74: 0.00572962 | I74: 0.00538604 | J74: 0.00716896 | K74: 0.00739157 | L74: 0.00687548 | M74: 0.00662342 | N74: 0.00355057 | O74: 0.0042852 | P74: 0 | Q74: 0.00331473
A75: =+Flujos!A75 -> 2027-08-23 | B75: 0.0073054 | D75: 2027-08-23 | E75: 0.00654332 | F75: 0.00512363 | G75: 0.00552716 | H75: 0.00462437 | I75: 0.00624491 | J75: 0.0070898 | K75: 0.0073054 | L75: 0.00678514 | M75: 0.00678199 | N75: 0.00366532 | O75: 0.00448793 | P75: 0 | Q75: 0.00320557
A76: =+Flujos!A76 -> 2027-09-23 | B76: 0.00719986 | D76: 2027-09-23 | E76: 0.00538377 | F76: 0.00499619 | G76: 0.00513644 | H76: 0.00552078 | I76: 0.00492567 | J76: 0.00649772 | K76: 0.00719986 | L76: 0.00668838 | M76: 0.00671212 | N76: 0.00355348 | O76: 0.0043575 | P76: 0 | Q76: 0.00310222
A77: =+Flujos!A77 -> 2027-10-23 | B77: 0.00711457 | D77: 2027-10-23 | E77: 0.00605675 | F77: 0.00623352 | G77: 0.00466968 | H77: 0.00538949 | I77: 0.00603166 | J77: 0.006881 | K77: 0.00711457 | L77: 0.00658629 | M77: 0.0066382 | N77: 0.00344456 | O77: 0.0042284 | P77: 0 | Q77: 0.00300237
A78: =+Flujos!A78 -> 2027-11-23 | B78: 0.00700479 | D78: 2027-11-23 | E78: 0.00674591 | F78: 0.0049786 | G78: 0.00470663 | H78: 0.00447927 | I78: 0.0047426 | J78: 0.00677913 | K78: 0.00700479 | L78: 0.0064785 | M78: 0.00656857 | N78: 0.00333997 | O78: 0.00411162 | P78: 0 | Q78: 0.00290588
A79: =+Flujos!A79 -> 2027-12-23 | B79: 0.00689147 | D79: 2027-12-23 | E79: 0.00578832 | F79: 0.00372572 | G79: 0.00351463 | H79: 0.00543398 | I79: 0.00526167 | J79: 0.00668855 | K79: 0.00689147 | L79: 0.00637048 | M79: 0.00650587 | N79: 0.00323885 | O79: 0.00399993 | P79: 0 | Q79: 0.00281171
A80: =+Flujos!A80 -> 2028-01-23 | B80: 0.00678641 | D80: 2028-01-23 | E80: 0.00573167 | F80: 0.00469667 | G80: 0.00403741 | H80: 0.00475194 | I80: 0.0061127 | J80: 0.00660179 | K80: 0.00678641 | L80: 0.00592541 | M80: 0.00643579 | N80: 0.00314099 | O80: 0.0038874 | P80: 0 | Q80: 0.00271927
A81: =+Flujos!A81 -> 2028-02-23 | B81: 0.00668822 | D81: 2028-02-23 | E81: 0.00498663 | F81: 0.00430156 | G81: 0.00383969 | H81: 0.00437582 | I81: 0.00477433 | J81: 0.00650814 | K81: 0.00668822 | L81: 0.00617466 | M81: 0.00636811 | N81: 0.00304632 | O81: 0.00377998 | P81: 0 | Q81: 0.00262736
A82: =+Flujos!A82 -> 2028-03-23 | B82: 0.00660068 | D82: 2028-03-23 | E82: 0.00427695 | F82: 0.00499132 | G82: 0.00450982 | H82: 0.00396867 | I82: 0.00451628 | J82: 0.00643884 | K82: 0.00660068 | L82: 0.00608298 | M82: 0.00629338 | N82: 0.00295366 | O82: 0.00368085 | P82: 0 | Q82: 0.00254235
A83: =+Flujos!A83 -> 2028-04-23 | B83: 0.00649239 | D83: 2028-04-23 | E83: 0.00494324 | F83: 0.00437396 | G83: 0.00456853 | H83: 0.00471269 | I83: 0.00450732 | J83: 0.00634124 | K83: 0.00649239 | L83: 0.00599118 | M83: 0.00622781 | N83: 0.00286401 | O83: 0.00358085 | P83: 0 | Q83: 0.00245955
A84: =+Flujos!A84 -> 2028-05-23 | B84: 0.00590686 | D84: 2028-05-23 | E84: 0.0051546 | F84: 0.00440034 | G84: 0.00473504 | H84: 0.00454962 | I84: 0.00441705 | J84: 0.00626112 | K84: 0.00590686 | L84: 0.00587269 | M84: 0.00615243 | N84: 0.00277754 | O84: 0.00347991 | P84: 0 | Q84: 0.00303185
A85: =+Flujos!A85 -> 2028-06-23 | B85: 0.00627883 | D85: 2028-06-23 | E85: 0.00473523 | F85: 0.00473489 | G85: 0.00294366 | H85: 0.00408183 | I85: 0.00440395 | J85: 0.006201 | K85: 0.00627883 | L85: 0.00576482 | M85: 0.00608441 | N85: 0.00269321 | O85: 0.00338763 | P85: 0 | Q85: 0.00293807
A86: =+Flujos!A86 -> 2028-07-23 | B86: 0.00619503 | D86: 2028-07-23 | E86: 0.00542712 | F86: 0.00416042 | G86: 0.00350635 | H86: 0.00377575 | I86: 0.0040079 | J86: 0.00610736 | K86: 0.00619503 | L86: 0.0056569 | M86: 0.00577163 | N86: 0.00237341 | O86: 0.00295005 | P86: 0 | Q86: 0.00284542
A87: =+Flujos!A87 -> 2028-08-23 | B87: 0.00609068 | D87: 2028-08-23 | E87: 0.00481406 | F87: 0.00384573 | G87: 0.00421507 | H87: 0.00401216 | I87: 0.00423038 | J87: 0.00602786 | K87: 0.00609068 | L87: 0.00555065 | M87: 0.00593015 | N87: 0.00253367 | O87: 0.00319864 | P87: 0 | Q87: 0.00275463
A88: =+Flujos!A88 -> 2028-09-23 | B88: 0.00598231 | D88: 2028-09-23 | E88: 0.00396974 | F88: 0.00478712 | G88: 0.00397343 | H88: 0.00396072 | I88: 0.00423832 | J88: 0.0054481 | K88: 0.00598231 | L88: 0.00545348 | M88: 0.0058536 | N88: 0.00245956 | O88: 0.0031106 | P88: 0 | Q88: 0.00266653
A89: =+Flujos!A89 -> 2028-10-23 | B89: 0.00589356 | D89: 2028-10-23 | E89: 0.00603652 | F89: 0.00432551 | G89: 0.00400108 | H89: 0.00389466 | I89: 0.00416357 | J89: 0.00586338 | K89: 0.00589356 | L89: 0.00533935 | M89: 0.00576135 | N89: 0.00238802 | O89: 0.00302443 | P89: 0 | Q89: 0.00258123
A90: =+Flujos!A90 -> 2028-11-23 | B90: 0.00580746 | D90: 2028-11-23 | E90: 0.0053256 | F90: 0.00391349 | G90: 0.00351272 | H90: 0.0038351 | I90: 0.00392305 | J90: 0.00577826 | K90: 0.00580746 | L90: 0.00524703 | M90: 0.005692 | N90: 0.00231896 | O90: 0.0029417 | P90: 0 | Q90: 0.00250158
A91: =+Flujos!A91 -> 2028-12-23 | B91: 0.00569008 | D91: 2028-12-23 | E91: 0.0043832 | F91: 0.00446803 | G91: 0.00347111 | H91: 0.00138727 | I91: 0 | J91: 0.0056807 | K91: 0.00569008 | L91: 0.00515073 | M91: 0.00561884 | N91: 0.00225234 | O91: 0.00286184 | P91: 0 | Q91: 0.00241949
A92: =+Flujos!A92 -> 2029-01-23 | B92: 0.00560659 | D92: 2029-01-23 | E92: 0.00584916 | F92: 0.00378612 | G92: 0.00325578 | H92: 0 | I92: 0 | J92: 0.00561205 | K92: 0.00560659 | L92: 0.00471476 | M92: 0.00554852 | N92: 0.00218788 | O92: 0.00277517 | P92: 0 | Q92: 0.00234389
A93: =+Flujos!A93 -> 2029-02-23 | B93: 0.00553094 | D93: 2029-02-23 | E93: 0.00420411 | F93: 0.00378136 | G93: 0 | H93: 0 | I93: 0 | J93: 0.00552632 | K93: 0.00553094 | L93: 0.00499294 | M93: 0.00547902 | N93: 0.00212576 | O93: 0.00269866 | P93: 0 | Q93: 0.00227024
A94: =+Flujos!A94 -> 2029-03-23 | B94: 0.00546354 | D94: 2029-03-23 | E94: 0.00451446 | F94: 0.00372234 | G94: 0 | H94: 0 | I94: 0 | J94: 0.0054503 | K94: 0.00546354 | L94: 0.00491104 | M94: 0.00540574 | N94: 0.00124371 | O94: 0.00262709 | P94: 0 | Q94: 0.00219945
A95: =+Flujos!A95 -> 2029-04-23 | B95: 0.00539294 | D95: 2029-04-23 | E95: 0.00523661 | F95: 0.00373141 | G95: 0 | H95: 0 | I95: 0 | J95: 0.00539237 | K95: 0.00539294 | L95: 0.00481773 | M95: 0.00533606 | N95: 0 | O95: 0.00255894 | P95: 0 | Q95: 0.00165685
A96: =+Flujos!A96 -> 2029-05-23 | B96: 0.00479068 | D96: 2029-05-23 | E96: 0.00430354 | F96: 0.00369151 | G96: 0 | H96: 0 | I96: 0 | J96: 0.00533494 | K96: 0.00479068 | L96: 0.00473848 | M96: 0.00526034 | N96: 0 | O96: 0.00248927 | P96: 0 | Q96: 0.00205937
A97: =+Flujos!A97 -> 2029-06-23 | B97: 0.00522308 | D97: 2029-06-23 | E97: 0.00424648 | F97: 0.00369774 | G97: 0 | H97: 0 | I97: 0 | J97: 0.00528027 | K97: 0.00522308 | L97: 0.00465318 | M97: 0.00518662 | N97: 0 | O97: 0.00242399 | P97: 0 | Q97: 0.0019948
A98: =+Flujos!A98 -> 2029-07-23 | B98: 0.0051383 | D98: 2029-07-23 | E98: 0.00396342 | F98: 0.00045307 | G98: 0 | H98: 0 | I98: 0 | J98: 0.00522466 | K98: 0.0051383 | L98: 0.00455507 | M98: 0.00486038 | N98: 0 | O98: 0.00200825 | P98: 0 | Q98: 0.00192967
A99: =+Flujos!A99 -> 2029-08-23 | B99: 0.00506071 | D99: 2029-08-23 | E99: 0.00419391 | F99: 0 | G99: 0 | H99: 0 | I99: 0 | J99: 0.00517675 | K99: 0.00506071 | L99: 0.0044559 | M99: 0.00502087 | N99: 0 | O99: 0.00229268 | P99: 0 | Q99: 0.03269908
A100: =+Flujos!A100 -> 2029-09-23 | B100: 0.00499163 | D100: 2029-09-23 | E100: 0.00417498 | F100: 0 | G100: 0 | H100: 0 | I100: 0 | J100: 0.00460437 | K100: 0.00499163 | L100: 0.00437053 | M100: 0.00492044 | N100: 0 | O100: 0.00223409 | P100: 0 | Q100: 0
A101: =+Flujos!A101 -> 2029-10-23 | B101: 0.00491692 | D101: 2029-10-23 | E101: 0.00409497 | F101: 0 | G101: 0 | H101: 0 | I101: 0 | J101: 0.00506866 | K101: 0.00491692 | L101: 0.00430127 | M101: 0.00479822 | N101: 0 | O101: 0.00217695 | P101: 0 | Q101: 0
A102: =+Flujos!A102 -> 2029-11-23 | B102: 0.00485465 | D102: 2029-11-23 | E102: 0.00407577 | F102: 0 | G102: 0 | H102: 0 | I102: 0 | J102: 0.00502622 | K102: 0.00485465 | L102: 0.00421095 | M102: 0 | N102: 0 | O102: 0.00211804 | P102: 0 | Q102: 0
A103: =+Flujos!A103 -> 2029-12-23 | B103: 0.00479858 | D103: 2029-12-23 | E103: 0.00404038 | F103: 0 | G103: 0 | H103: 0 | I103: 0 | J103: 0.00498554 | K103: 0.00479858 | L103: 0.00410824 | M103: 0 | N103: 0 | O103: 0.00206047 | P103: 0 | Q103: 0
A104: =+Flujos!A104 -> 2030-01-23 | B104: 0.00474455 | D104: 2030-01-23 | E104: 0.00053247 | F104: 0 | G104: 0 | H104: 0 | I104: 0 | J104: 0.00493076 | K104: 0.00474455 | L104: 0.00362503 | M104: 0 | N104: 0 | O104: 0.00200229 | P104: 0 | Q104: 0
A105: =+Flujos!A105 -> 2030-02-23 | B105: 0.00469377 | D105: 2030-02-23 | E105: 0 | F105: 0 | G105: 0 | H105: 0 | I105: 0 | J105: 0.00488713 | K105: 0.00469377 | L105: 0.00390851 | M105: 0 | N105: 0 | O105: 0.00194769 | P105: 0 | Q105: 0
A106: =+Flujos!A106 -> 2030-03-23 | B106: 0.00464294 | D106: 2030-03-23 | E106: 0 | F106: 0 | G106: 0 | H106: 0 | I106: 0 | J106: 0.00484265 | K106: 0.00464294 | L106: 0.00311362 | M106: 0 | N106: 0 | O106: 0.00188797 | P106: 0 | Q106: 0
A107: =+Flujos!A107 -> 2030-04-23 | B107: 0.00459497 | D107: 2030-04-23 | E107: 0 | F107: 0 | G107: 0 | H107: 0 | I107: 0 | J107: 0.00480255 | K107: 0.00459497 | L107: 0 | M107: 0 | N107: 0 | O107: 0.00183892 | P107: 0 | Q107: 0
A108: =+Flujos!A108 -> 2030-05-23 | B108: 0.0039932 | D108: 2030-05-23 | E108: 0 | F108: 0 | G108: 0 | H108: 0 | I108: 0 | J108: 0.00475234 | K108: 0.0039932 | L108: 0 | M108: 0 | N108: 0 | O108: 0.00178801 | P108: 0 | Q108: 0
A109: =+Flujos!A109 -> 2030-06-23 | B109: 0.00448715 | D109: 2030-06-23 | E109: 0 | F109: 0 | G109: 0 | H109: 0 | I109: 0 | J109: 0.00470339 | K109: 0.00448715 | L109: 0 | M109: 0 | N109: 0 | O109: 0.00174232 | P109: 0 | Q109: 0
A110: =+Flujos!A110 -> 2030-07-23 | B110: 0.00443495 | D110: 2030-07-23 | E110: 0 | F110: 0 | G110: 0 | H110: 0 | I110: 0 | J110: 0.0046573 | K110: 0.00443495 | L110: 0 | M110: 0 | N110: 0 | O110: 0.0013338 | P110: 0 | Q110: 0
A111: =+Flujos!A111 -> 2030-08-23 | B111: 0.00437983 | D111: 2030-08-23 | E111: 0 | F111: 0 | G111: 0 | H111: 0 | I111: 0 | J111: 0.00461411 | K111: 0.00437983 | L111: 0 | M111: 0 | N111: 0 | O111: 0.00164771 | P111: 0 | Q111: 0
A112: =+Flujos!A112 -> 2030-09-23 | B112: 0.00432627 | D112: 2030-09-23 | E112: 0 | F112: 0 | G112: 0 | H112: 0 | I112: 0 | J112: 0.00401812 | K112: 0.00432627 | L112: 0 | M112: 0 | N112: 0 | O112: 0.00160278 | P112: 0 | Q112: 0
A113: =+Flujos!A113 -> 2030-10-23 | B113: 0.00427015 | D113: 2030-10-23 | E113: 0 | F113: 0 | G113: 0 | H113: 0 | I113: 0 | J113: 0.00453027 | K113: 0.00427015 | L113: 0 | M113: 0 | N113: 0 | O113: 0.00156087 | P113: 0 | Q113: 0
A114: =+Flujos!A114 -> 2030-11-23 | B114: 0.00421486 | D114: 2030-11-23 | E114: 0 | F114: 0 | G114: 0 | H114: 0 | I114: 0 | J114: 0.00448591 | K114: 0.00421486 | L114: 0 | M114: 0 | N114: 0 | O114: 0.00151999 | P114: 0 | Q114: 0
A115: =+Flujos!A115 -> 2030-12-23 | B115: 0.00416269 | D115: 2030-12-23 | E115: 0 | F115: 0 | G115: 0 | H115: 0 | I115: 0 | J115: 0.00443772 | K115: 0.00416269 | L115: 0 | M115: 0 | N115: 0 | O115: 0.00140378 | P115: 0 | Q115: 0
A116: =+Flujos!A116 -> 2031-01-23 | B116: 0.00409982 | D116: 2031-01-23 | E116: 0 | F116: 0 | G116: 0 | H116: 0 | I116: 0 | J116: 0.00439664 | K116: 0.00409982 | L116: 0 | M116: 0 | N116: 0 | O116: 0 | P116: 0 | Q116: 0
A117: =+Flujos!A117 -> 2031-02-23 | B117: 0.00404319 | D117: 2031-02-23 | E117: 0 | F117: 0 | G117: 0 | H117: 0 | I117: 0 | J117: 0.00435166 | K117: 0.00404319 | L117: 0 | M117: 0 | N117: 0 | O117: 0 | P117: 0 | Q117: 0
A118: =+Flujos!A118 -> 2031-03-23 | B118: 0.00399023 | D118: 2031-03-23 | E118: 0 | F118: 0 | G118: 0 | H118: 0 | I118: 0 | J118: 0.00430634 | K118: 0.00399023 | L118: 0 | M118: 0.0034931 | N118: 0 | O118: 0 | P118: 0 | Q118: 0
A119: =+Flujos!A119 -> 2031-04-23 | B119: 0.0039217 | D119: 2031-04-23 | E119: 0 | F119: 0 | G119: 0 | H119: 0 | I119: 0 | J119: 0.00426491 | K119: 0.0039217 | L119: 0 | M119: 0.00347564 | N119: 0 | O119: 0 | P119: 0 | Q119: 0
A120: =+Flujos!A120 -> 2031-05-23 | B120: 0.0032861 | D120: 2031-05-23 | E120: 0 | F120: 0 | G120: 0 | H120: 0 | I120: 0 | J120: 0.00421909 | K120: 0.0032861 | L120: 0 | M120: 0.00343602 | N120: 0 | O120: 0 | P120: 0 | Q120: 0
A121: =+Flujos!A121 -> 2031-06-23 | B121: 0.00299355 | D121: 2031-06-23 | E121: 0 | F121: 0 | G121: 0 | H121: 0 | I121: 0 | J121: 0.00416845 | K121: 0.00299355 | L121: 0 | M121: 0.00339938 | N121: 0 | O121: 0 | P121: 0 | Q121: 0
A122: =+Flujos!A122 -> 2031-07-23 | B122: 0 | D122: 2031-07-23 | E122: 0 | F122: 0 | G122: 0 | H122: 0 | I122: 0 | J122: 0.00412656 | K122: 0 | L122: 0 | M122: 0.00307355 | N122: 0 | O122: 0 | P122: 0 | Q122: 0
A123: =+Flujos!A123 -> 2031-08-23 | B123: 0 | D123: 2031-08-23 | E123: 0 | F123: 0 | G123: 0 | H123: 0 | I123: 0 | J123: 0.00368383 | K123: 0 | L123: 0 | M123: 0.00331983 | N123: 0 | O123: 0 | P123: 0 | Q123: 0
A124: =+Flujos!A124 -> 2031-09-23 | B124: 0 | D124: 2031-09-23 | E124: 0 | F124: 0 | G124: 0 | H124: 0 | I124: 0 | J124: 0 | K124: 0 | L124: 0 | M124: 0.00328478 | N124: 0 | O124: 0 | P124: 0 | Q124: 0
A125: =+Flujos!A125 -> 2031-10-23 | B125: 0 | D125: 2031-10-23 | E125: 0 | F125: 0 | G125: 0 | H125: 0 | I125: 0 | J125: 0 | K125: 0 | L125: 0 | M125: 0.00324896 | N125: 0 | O125: 0 | P125: 0 | Q125: 0
A126: =+Flujos!A126 -> 2031-11-23 | B126: 0 | D126: 2031-11-23 | E126: 0 | F126: 0 | G126: 0 | H126: 0 | I126: 0 | J126: 0 | K126: 0 | L126: 0 | M126: 0.0026646 | N126: 0 | O126: 0 | P126: 0 | Q126: 0
A127: =+Flujos!A127 -> 2031-12-23 | B127: 0 | D127: 2031-12-23 | E127: 0 | F127: 0 | G127: 0 | H127: 0 | I127: 0 | J127: 0 | K127: 0 | L127: 0 | M127: 0 | N127: 0 | O127: 0 | P127: 0 | Q127: 0
A128: =+Flujos!A128 -> 2032-01-23 | B128: 0 | D128: 2032-01-23 | E128: 0 | F128: 0 | G128: 0 | H128: 0 | I128: 0 | J128: 0 | K128: 0 | L128: 0 | M128: 0 | N128: 0 | O128: 0 | P128: 0 | Q128: 0
A129: =+Flujos!A129 -> 2032-02-23 | B129: 0 | D129: 2032-02-23 | E129: 0 | F129: 0 | G129: 0 | H129: 0 | I129: 0 | J129: 0 | K129: 0 | L129: 0 | M129: 0 | N129: 0 | O129: 0 | P129: 0 | Q129: 0
A130: =+Flujos!A130 -> 2032-03-23 | B130: 0 | D130: 2032-03-23 | E130: 0 | F130: 0 | G130: 0 | H130: 0 | I130: 0 | J130: 0 | K130: 0 | L130: 0 | M130: 0 | N130: 0 | O130: 0 | P130: 0 | Q130: 0
A131: =+Flujos!A131 -> 2032-04-23 | B131: 0 | D131: 2032-04-23 | E131: 0 | F131: 0 | G131: 0 | H131: 0 | I131: 0 | J131: 0 | K131: 0 | L131: 0 | M131: 0 | N131: 0 | O131: 0 | P131: 0 | Q131: 0
A132: =+Flujos!A132 -> 2032-05-23 | B132: =+VLOOKUP(A132,$D$2:$O$182,MATCH($B$2,$D$2:$O$2,0),FALSE) -> 0 | D132: =+A132 -> 2032-05-23 | E132: 0 | F132: 0 | G132: 0 | H132: 0 | I132: 0 | J132: 0 | K132: 0 | L132: 0 | M132: 0 | N132: 0 | O132: 0 | P132: 0 | Q132: 0
A133: =+Flujos!A133 -> 2032-06-23 | B133: 0 | D133: 2032-06-23 | E133: 0 | F133: 0 | G133: 0 | H133: 0 | I133: 0 | J133: 0 | K133: 0 | L133: 0 | M133: 0 | N133: 0 | O133: 0 | P133: 0 | Q133: 0
A134: =+Flujos!A134 -> 2032-07-23 | B134: 0 | D134: 2032-07-23 | E134: 0 | F134: 0 | G134: 0 | H134: 0 | I134: 0 | J134: 0 | K134: 0 | L134: 0 | M134: 0 | N134: 0 | O134: 0 | P134: 0 | Q134: 0
A135: =+Flujos!A135 -> 2032-08-23 | B135: 0 | D135: 2032-08-23 | E135: 0 | F135: 0 | G135: 0 | H135: 0 | I135: 0 | J135: 0 | K135: 0 | L135: 0 | M135: 0 | N135: 0 | O135: 0 | P135: 0 | Q135: 0
A136: =+Flujos!A136 -> 2032-09-23 | B136: 0 | D136: 2032-09-23 | E136: 0 | F136: 0 | G136: 0 | H136: 0 | I136: 0 | J136: 0 | K136: 0 | L136: 0 | M136: 0 | N136: 0 | O136: 0 | P136: 0 | Q136: 0
A137: =+Flujos!A137 -> 2032-10-23 | B137: 0 | D137: 2032-10-23 | E137: 0 | F137: 0 | G137: 0 | H137: 0 | I137: 0 | J137: 0 | K137: 0 | L137: 0 | M137: 0 | N137: 0 | O137: 0 | P137: 0 | Q137: 0
A138: =+Flujos!A138 -> 2032-11-23 | B138: 0 | D138: 2032-11-23 | E138: 0 | F138: 0 | G138: 0 | H138: 0 | I138: 0 | J138: 0 | K138: 0 | L138: 0 | M138: 0 | N138: 0 | O138: 0 | P138: 0 | Q138: 0
A139: =+Flujos!A139 -> 2032-12-23 | B139: 0 | D139: 2032-12-23 | E139: 0 | F139: 0 | G139: 0 | H139: 0 | I139: 0 | J139: 0 | K139: 0 | L139: 0 | M139: 0 | N139: 0 | O139: 0 | P139: 0 | Q139: 0
A140: =+Flujos!A140 -> 2033-01-23 | B140: 0 | D140: 2033-01-23 | E140: 0 | F140: 0 | G140: 0 | H140: 0 | I140: 0 | J140: 0 | K140: 0 | L140: 0 | M140: 0 | N140: 0 | O140: 0 | P140: 0 | Q140: 0
A141: =+Flujos!A141 -> 2033-02-23 | B141: 0 | D141: 2033-02-23 | E141: 0 | F141: 0 | G141: 0 | H141: 0 | I141: 0 | J141: 0 | K141: 0 | L141: 0 | M141: 0 | N141: 0 | O141: 0 | P141: 0 | Q141: 0
A142: =+Flujos!A142 -> 2033-03-23 | B142: 0 | D142: 2033-03-23 | E142: 0 | F142: 0 | G142: 0 | H142: 0 | I142: 0 | J142: 0 | K142: 0 | L142: 0 | M142: 0 | N142: 0 | O142: 0 | P142: 0 | Q142: 0
A143: =+Flujos!A143 -> 2033-04-23 | B143: 0 | D143: 2033-04-23 | E143: 0 | F143: 0 | G143: 0 | H143: 0 | I143: 0 | J143: 0 | K143: 0 | L143: 0 | M143: 0 | N143: 0 | O143: 0 | P143: 0 | Q143: 0
A144: =+Flujos!A144 -> 2033-05-23 | B144: 0 | D144: 2033-05-23 | E144: 0 | F144: 0 | G144: 0 | H144: 0 | I144: 0 | J144: 0 | K144: 0 | L144: 0 | M144: 0 | N144: 0 | O144: 0 | P144: 0 | Q144: 0
A145: =+Flujos!A145 -> 2033-06-23 | B145: 0 | D145: 2033-06-23 | E145: 0 | F145: 0 | G145: 0 | H145: 0 | I145: 0 | J145: 0 | K145: 0 | L145: 0 | M145: 0 | N145: 0 | O145: 0 | P145: 0 | Q145: 0
A146: =+Flujos!A146 -> 2033-07-23 | B146: 0 | D146: 2033-07-23 | E146: 0 | F146: 0 | G146: 0 | H146: 0 | I146: 0 | J146: 0 | K146: 0 | L146: 0 | M146: 0 | N146: 0 | O146: 0 | P146: 0 | Q146: 0
A147: =+Flujos!A147 -> 2033-08-23 | B147: 0 | D147: 2033-08-23 | E147: 0 | F147: 0 | G147: 0 | H147: 0 | I147: 0 | J147: 0 | K147: 0 | L147: 0 | M147: 0 | N147: 0 | O147: 0 | P147: 0 | Q147: 0
A148: =+Flujos!A148 -> 2033-09-23 | B148: 0 | D148: 2033-09-23 | E148: 0 | F148: 0 | G148: 0 | H148: 0 | I148: 0 | J148: 0 | K148: 0 | L148: 0 | M148: 0 | N148: 0 | O148: 0 | P148: 0 | Q148: 0
A149: =+Flujos!A149 -> 2033-10-23 | B149: 0 | D149: 2033-10-23 | E149: 0 | F149: 0 | G149: 0 | H149: 0 | I149: 0 | J149: 0 | K149: 0 | L149: 0 | M149: 0 | N149: 0 | O149: 0 | P149: 0 | Q149: 0
A150: =+Flujos!A150 -> 2033-11-23 | B150: 0 | D150: 2033-11-23 | E150: 0 | F150: 0 | G150: 0 | H150: 0 | I150: 0 | J150: 0 | K150: 0 | L150: 0 | M150: 0 | N150: 0 | O150: 0 | P150: 0 | Q150: 0
A151: =+Flujos!A151 -> 2033-12-23 | B151: 0 | D151: 2033-12-23 | E151: 0 | F151: 0 | G151: 0 | H151: 0 | I151: 0 | J151: 0 | K151: 0 | L151: 0 | M151: 0 | N151: 0 | O151: 0 | P151: 0 | Q151: 0
A152: =+Flujos!A152 -> 2034-01-23 | B152: 0 | D152: 2034-01-23 | E152: 0 | F152: 0 | G152: 0 | H152: 0 | I152: 0 | J152: 0 | K152: 0 | L152: 0 | M152: 0 | N152: 0 | O152: 0 | P152: 0 | Q152: 0
A153: =+Flujos!A153 -> 2034-02-23 | B153: 0 | D153: 2034-02-23 | E153: 0 | F153: 0 | G153: 0 | H153: 0 | I153: 0 | J153: 0 | K153: 0 | L153: 0 | M153: 0 | N153: 0 | O153: 0 | P153: 0 | Q153: 0
A154: =+Flujos!A154 -> 2034-03-23 | B154: 0 | D154: 2034-03-23 | E154: 0 | F154: 0 | G154: 0 | H154: 0 | I154: 0 | J154: 0 | K154: 0 | L154: 0 | M154: 0 | N154: 0 | O154: 0 | P154: 0 | Q154: 0
A155: =+Flujos!A155 -> 2034-04-23 | B155: 0 | D155: 2034-04-23 | E155: 0 | F155: 0 | G155: 0 | H155: 0 | I155: 0 | J155: 0 | K155: 0 | L155: 0 | M155: 0 | N155: 0 | O155: 0 | P155: 0 | Q155: 0
A156: =+Flujos!A156 -> 2034-05-23 | B156: 0 | D156: 2034-05-23 | E156: 0 | F156: 0 | G156: 0 | H156: 0 | I156: 0 | J156: 0 | K156: 0 | L156: 0 | M156: 0 | N156: 0 | O156: 0 | P156: 0 | Q156: 0
A157: =+Flujos!A157 -> 2034-06-23 | B157: 0 | D157: 2034-06-23 | E157: 0 | F157: 0 | G157: 0 | H157: 0 | I157: 0 | J157: 0 | K157: 0 | L157: 0 | M157: 0 | N157: 0 | O157: 0 | P157: 0 | Q157: 0
A158: =+Flujos!A158 -> 2034-07-23 | B158: 0 | D158: 2034-07-23 | E158: 0 | F158: 0 | G158: 0 | H158: 0 | I158: 0 | J158: 0 | K158: 0 | L158: 0 | M158: 0 | N158: 0 | O158: 0 | P158: 0 | Q158: 0
A159: =+Flujos!A159 -> 2034-08-23 | B159: 0 | D159: 2034-08-23 | E159: 0 | F159: 0 | G159: 0 | H159: 0 | I159: 0 | J159: 0 | K159: 0 | L159: 0 | M159: 0 | N159: 0 | O159: 0 | P159: 0 | Q159: 0
A160: =+Flujos!A160 -> 2034-09-23 | B160: 0 | D160: 2034-09-23 | E160: 0 | F160: 0 | G160: 0 | H160: 0 | I160: 0 | J160: 0 | K160: 0 | L160: 0 | M160: 0 | N160: 0 | O160: 0 | P160: 0 | Q160: 0
A161: =+Flujos!A161 -> 2034-10-23 | B161: 0 | D161: 2034-10-23 | E161: 0 | F161: 0 | G161: 0 | H161: 0 | I161: 0 | J161: 0 | K161: 0 | L161: 0 | M161: 0 | N161: 0 | O161: 0 | P161: 0 | Q161: 0
A162: =+Flujos!A162 -> 2034-11-23 | B162: 0 | D162: 2034-11-23 | E162: 0 | F162: 0 | G162: 0 | H162: 0 | I162: 0 | J162: 0 | K162: 0 | L162: 0 | M162: 0 | N162: 0 | O162: 0 | P162: 0 | Q162: 0
A163: =+Flujos!A163 -> 2034-12-23 | B163: 0 | D163: 2034-12-23 | E163: 0 | F163: 0 | G163: 0 | H163: 0 | I163: 0 | J163: 0 | K163: 0 | L163: 0 | M163: 0 | N163: 0 | O163: 0 | P163: 0 | Q163: 0
A164: =+Flujos!A164 -> 2035-01-23 | B164: 0 | D164: 2035-01-23 | E164: 0 | F164: 0 | G164: 0 | H164: 0 | I164: 0 | J164: 0 | K164: 0 | L164: 0 | M164: 0 | N164: 0 | O164: 0 | P164: 0 | Q164: 0
A165: =+Flujos!A165 -> 2035-02-23 | B165: 0 | D165: 2035-02-23 | E165: 0 | F165: 0 | G165: 0 | H165: 0 | I165: 0 | J165: 0 | K165: 0 | L165: 0 | M165: 0 | N165: 0 | O165: 0 | P165: 0 | Q165: 0
A166: =+Flujos!A166 -> 2035-03-23 | B166: 0 | D166: 2035-03-23 | E166: 0 | F166: 0 | G166: 0 | H166: 0 | I166: 0 | J166: 0 | K166: 0 | L166: 0 | M166: 0 | N166: 0 | O166: 0 | P166: 0 | Q166: 0
A167: =+Flujos!A167 -> 2035-04-23 | B167: 0 | D167: 2035-04-23 | E167: 0 | F167: 0 | G167: 0 | H167: 0 | I167: 0 | J167: 0 | K167: 0 | L167: 0 | M167: 0 | N167: 0 | O167: 0 | P167: 0 | Q167: 0
A168: =+Flujos!A168 -> 2035-05-23 | B168: 0 | D168: 2035-05-23 | E168: 0 | F168: 0 | G168: 0 | H168: 0 | I168: 0 | J168: 0 | K168: 0 | L168: 0 | M168: 0 | N168: 0 | O168: 0 | P168: 0 | Q168: 0
A169: =+Flujos!A169 -> 2035-06-23 | B169: 0 | D169: 2035-06-23 | E169: 0 | F169: 0 | G169: 0 | H169: 0 | I169: 0 | J169: 0 | K169: 0 | L169: 0 | M169: 0 | N169: 0 | O169: 0 | P169: 0 | Q169: 0
A170: =+Flujos!A170 -> 2035-07-23 | B170: 0 | D170: 2035-07-23 | E170: 0 | F170: 0 | G170: 0 | H170: 0 | I170: 0 | J170: 0 | K170: 0 | L170: 0 | M170: 0 | N170: 0 | O170: 0 | P170: 0 | Q170: 0
A171: =+Flujos!A171 -> 2035-08-23 | B171: 0 | D171: 2035-08-23 | E171: 0 | F171: 0 | G171: 0 | H171: 0 | I171: 0 | J171: 0 | K171: 0 | L171: 0 | M171: 0 | N171: 0 | O171: 0 | P171: 0 | Q171: 0
A172: =+Flujos!A172 -> 2035-09-23 | B172: 0 | D172: 2035-09-23 | E172: 0 | F172: 0 | G172: 0 | H172: 0 | I172: 0 | J172: 0 | K172: 0 | L172: 0 | M172: 0 | N172: 0 | O172: 0 | P172: 0 | Q172: 0
A173: =+Flujos!A173 -> 2035-10-23 | B173: 0 | D173: 2035-10-23 | E173: 0 | F173: 0 | G173: 0 | H173: 0 | I173: 0 | J173: 0 | K173: 0 | L173: 0 | M173: 0 | N173: 0 | O173: 0 | P173: 0 | Q173: 0
A174: =+Flujos!A174 -> 2035-11-23 | B174: 0 | D174: 2035-11-23 | E174: 0 | F174: 0 | G174: 0 | H174: 0 | I174: 0 | J174: 0 | K174: 0 | L174: 0 | M174: 0 | N174: 0 | O174: 0 | P174: 0 | Q174: 0
A175: =+Flujos!A175 -> 2035-12-23 | B175: 0 | D175: 2035-12-23 | E175: 0 | F175: 0 | G175: 0 | H175: 0 | I175: 0 | J175: 0 | K175: 0 | L175: 0 | M175: 0 | N175: 0 | O175: 0 | P175: 0 | Q175: 0
A176: =+Flujos!A176 -> 2036-01-23 | B176: 0 | D176: 2036-01-23 | E176: 0 | F176: 0 | G176: 0 | H176: 0 | I176: 0 | J176: 0 | K176: 0 | L176: 0 | M176: 0 | N176: 0 | O176: 0 | P176: 0 | Q176: 0
A177: =+Flujos!A177 -> 2036-02-23 | B177: 0 | D177: 2036-02-23 | E177: 0 | F177: 0 | G177: 0 | H177: 0 | I177: 0 | J177: 0 | K177: 0 | L177: 0 | M177: 0 | N177: 0 | O177: 0 | P177: 0 | Q177: 0
A178: =+Flujos!A178 -> 2036-03-23 | B178: 0 | D178: 2036-03-23 | E178: 0 | F178: 0 | G178: 0 | H178: 0 | I178: 0 | J178: 0 | K178: 0 | L178: 0 | M178: 0 | N178: 0 | O178: 0 | P178: 0 | Q178: 0
A179: =+Flujos!A179 -> 2036-04-23 | B179: 0 | D179: 2036-04-23 | E179: 0 | F179: 0 | G179: 0 | H179: 0 | I179: 0 | J179: 0 | K179: 0 | L179: 0 | M179: 0 | N179: 0 | O179: 0 | P179: 0 | Q179: 0
A180: =+Flujos!A180 -> 2036-05-23 | B180: 0 | D180: 2036-05-23 | E180: 0 | F180: 0 | G180: 0 | H180: 0 | I180: 0 | J180: 0 | K180: 0 | L180: 0 | M180: 0 | N180: 0 | O180: 0 | P180: 0 | Q180: 0
A181: =+Flujos!A181 -> 2036-06-23 | B181: 0 | D181: 2036-06-23 | E181: 0 | F181: 0 | G181: 0 | H181: 0 | I181: 0 | J181: 0 | K181: 0 | L181: 0 | M181: 0 | N181: 0 | O181: 0 | P181: 0 | Q181: 0
A182: =+Flujos!A182 -> 2036-07-23 | B182: 0 | D182: 2036-07-23 | E182: 0 | F182: 0 | G182: 0 | H182: 0 | I182: 0 | J182: 0 | K182: 0 | L182: 0 | M182: 0 | N182: 0 | O182: 0 | P182: 0 | Q182: 0
E183: =SUM(E3:E182) -> 1 | F183: 1 | G183: 1 | H183: 1 | I183: 1 | J183: 1 | K183: 1 | L183: 1 | M183: =SUM(M3:M182) -> 1 | N183: =SUM(N3:N182) -> 1 | O183: 1
E184: =1-E183 -> 0 | F184: 0 | G184: 0 | H184: 0 | I184: 0 | J184: 0 | K184: 0 | L184: 0 | M184: =1-M183 -> 0 | N184: =1-N183 -> 0 | O184: 0

Sheet Tablas (hidden)
A1: FECHA | B1: =+CALCULADORA!C9 -> TIPS N19 A 2034 | C1: Valoración
A2: =+'Tabla de Amortizacion'!A3 -> 2021-08-23 | B2: =+ROUND(C2,8) -> 0.01847045 | C2: =+VLOOKUP(A2,'Tabla de Amortizacion'!$D$2:$Q$182,MATCH(Tablas!$B$1,'Tabla de Amortizacion'!$D$2:$Q$2,0)) -> 0.01847045 | E2: =IF([1]CALCULADORA!$F$10="Contractual",ROUND('[1]Tabla de Amortizacion'!C3,8),IF([1]CALCULADORA!$F$10="6% (Medio)",ROUND('[1]Tabla de Amortizacion'!F3,8),IF([1]CALCULADORA!$F$10="10% (Medio Alto)",ROUND('[1]Tabla de Amortizacion'!H3,8),IF([1]CALCULADORA!$F$10="14% (Alto)",ROUND('[1]Tabla de Amortizacion'!#REF!,8),IF([1]CALCULADORA!$F$10=20%,ROUND('[1]Tabla de Amortizacion'!#REF!,8),ROUND('[1]Tabla de Amortizacion'!K3,8)))))) -> 0
A3: =EDATE(A2,1) -> 2021-09-23 | B3: =+ROUND(C3,8) -> 0.02392001 | C3: =+VLOOKUP(A3,'Tabla de Amortizacion'!$D$2:$Q$182,MATCH(Tablas!$B$1,'Tabla de Amortizacion'!$D$2:$Q$2,0)) -> 0.02392001 | E3: =IF([1]CALCULADORA!$F$10="Contractual",ROUND('[1]Tabla de Amortizacion'!C4,8),IF([1]CALCULADORA!$F$10="6% (Medio)",ROUND('[1]Tabla de Amortizacion'!F4,8),IF([1]CALCULADORA!$F$10="10% (Medio Alto)",ROUND('[1]Tabla de Amortizacion'!H4,8),IF([1]CALCULADORA!$F$10="14% (Alto)",ROUND('[1]Tabla de Amortizacion'!#REF!,8),IF([1]CALCULADORA!$F$10=20%,ROUND('[1]Tabla de Amortizacion'!#REF!,8),ROUND('[1]Tabla de Amortizacion'!K4,8)))))) -> 0
A4: 2021-10-23 | B4: 0.02116353 | C4: =+VLOOKUP(A4,'Tabla de Amortizacion'!$D$2:$Q$182,MATCH(Tablas!$B$1,'Tabla de Amortizacion'!$D$2:$Q$2,0)) -> 0.02116353 | E4: =IF([1]CALCULADORA!$F$10="Contractual",ROUND('[1]Tabla de Amortizacion'!C5,8),IF([1]CALCULADORA!$F$10="6% (Medio)",ROUND('[1]Tabla de Amortizacion'!F5,8),IF([1]CALCULADORA!$F$10="10% (Medio Alto)",ROUND('[1]Tabla de Amortizacion'!H5,8),IF([1]CALCULADORA!$F$10="14% (Alto)",ROUND('[1]Tabla de Amortizacion'!#REF!,8),IF([1]CALCULADORA!$F$10=20%,ROUND('[1]Tabla de Amortizacion'!#REF!,8),ROUND('[1]Tabla de Amortizacion'!K5,8)))))) -> 0
A5: 2021-11-23 | B5: 0.01844168 | C5: =+VLOOKUP(A5,'Tabla de Amortizacion'!$D$2:$Q$182,MATCH(Tablas!$B$1,'Tabla de Amortizacion'!$D$2:$Q$2,0)) -> 0.01844168 | E5: =IF([1]CALCULADORA!$F$10="Contractual",ROUND('[1]Tabla de Amortizacion'!C6,8),IF([1]CALCULADORA!$F$10="6% (Medio)",ROUND('[1]Tabla de Amortizacion'!F6,8),IF([1]CALCULADORA!$F$10="10% (Medio Alto)",ROUND('[1]Tabla de Amortizacion'!H6,8),IF([1]CALCULADORA!$F$10="14% (Alto)",ROUND('[1]Tabla de Amortizacion'!#REF!,8),IF([1]CALCULADORA!$F$10=20%,ROUND('[1]Tabla de Amortizacion'!#REF!,8),ROUND('[1]Tabla de Amortizacion'!K6,8)))))) -> 0
A6: 2021-12-23 | B6: 0.02002614 | C6: =+VLOOKUP(A6,'Tabla de Amortizacion'!$D$2:$Q$182,MATCH(Tablas!$B$1,'Tabla de Amortizacion'!$D$2:$Q$2,0)) -> 0.02002614 | E6: =IF([1]CALCULADORA!$F$10="Contractual",ROUND('[1]Tabla de Amortizacion'!C7,8),IF([1]CALCULADORA!$F$10="6% (Medio)",ROUND('[1]Tabla de Amortizacion'!F7,8),IF([1]CALCULADORA!$F$10="10% (Medio Alto)",ROUND('[1]Tabla de Amortizacion'!H7,8),IF([1]CALCULADORA!$F$10="14% (Alto)",ROUND('[1]Tabla de Amortizacion'!#REF!,8),IF([1]CALCULADORA!$F$10=20%,ROUND('[1]Tabla de Amortizacion'!#REF!,8),ROUND('[1]Tabla de Amortizacion'!K7,8)))))) -> 0
A7: 2022-01-23 | B7: 0.01920896 | C7: =+VLOOKUP(A7,'Tabla de Amortizacion'!$D$2:$Q$182,MATCH(Tablas!$B$1,'Tabla de Amortizacion'!$D$2:$Q$2,0)) -> 0.01920896 | E7: =IF([1]CALCULADORA!$F$10="Contractual",ROUND('[1]Tabla de Amortizacion'!C8,8),IF([1]CALCULADORA!$F$10="6% (Medio)",ROUND('[1]Tabla de Amortizacion'!F8,8),IF([1]CALCULADORA!$F$10="10% (Medio Alto)",ROUND('[1]Tabla de Amortizacion'!H8,8),IF([1]CALCULADORA!$F$10="14% (Alto)",ROUND('[1]Tabla de Amortizacion'!#REF!,8),IF([1]CALCULADORA!$F$10=20%,ROUND('[1]Tabla de Amortizacion'!#REF!,8),ROUND('[1]Tabla de Amortizacion'!K8,8)))))) -> 0
A8: 2022-02-23 | B8: 0.0156808 | C8: =+VLOOKUP(A8,'Tabla de Amortizacion'!$D$2:$Q$182,MATCH(Tablas!$B$1,'Tabla de Amortizacion'!$D$2:$Q$2,0)) -> 0.0156808 | E8: =IF([1]CALCULADORA!$F$10="Contractual",ROUND('[1]Tabla de Amortizacion'!C9,8),IF([1]CALCULADORA!$F$10="6% (Medio)",ROUND('[1]Tabla de Amortizacion'!F9,8),IF([1]CALCULADORA!$F$10="10% (Medio Alto)",ROUND('[1]Tabla de Amortizacion'!H9,8),IF([1]CALCULADORA!$F$10="14% (Alto)",ROUND('[1]Tabla de Amortizacion'!#REF!,8),IF([1]CALCULADORA!$F$10=20%,ROUND('[1]Tabla de Amortizacion'!#REF!,8),ROUND('[1]Tabla de Amortizacion'!K9,8)))))) -> 0
A9: 2022-03-23 | B9: 0.02031004 | C9: =+VLOOKUP(A9,'Tabla de Amortizacion'!$D$2:$Q$182,MATCH(Tablas!$B$1,'Tabla de Amortizacion'!$D$2:$Q$2,0)) -> 0.02031004 | E9: =IF([1]CALCULADORA!$F$10="Contractual",ROUND('[1]Tabla de Amortizacion'!C10,8),IF([1]CALCULADORA!$F$10="6% (Medio)",ROUND('[1]Tabla de Amortizacion'!F10,8),IF([1]CALCULADORA!$F$10="10% (Medio Alto)",ROUND('[1]Tabla de Amortizacion'!H10,8),IF([1]CALCULADORA!$F$10="14% (Alto)",ROUND('[1]Tabla de Amortizacion'!#REF!,8),IF([1]CALCULADORA!$F$10=20%,ROUND('[1]Tabla de Amortizacion'!#REF!,8),ROUND('[1]Tabla de Amortizacion'!K10,8)))))) -> 0
A10: 2022-04-23 | B10: 0.01653618 | C10: =+VLOOKUP(A10,'Tabla de Amortizacion'!$D$2:$Q$182,MATCH(Tablas!$B$1,'Tabla de Amortizacion'!$D$2:$Q$2,0)) -> 0.01653618 | E10: =IF([1]CALCULADORA!$F$10="Contractual",ROUND('[1]Tabla de Amortizacion'!C11,8),IF([1]CALCULADORA!$F$10="6% (Medio)",ROUND('[1]Tabla de Amortizacion'!F11,8),IF([1]CALCULADORA!$F$10="10% (Medio Alto)",ROUND('[1]Tabla de Amortizacion'!H11,8),IF([1]CALCULADORA!$F$10="14% (Alto)",ROUND('[1]Tabla de Amortizacion'!#REF!,8),IF([1]CALCULADORA!$F$10=20%,ROUND('[1]Tabla de Amortizacion'!#REF!,8),ROUND('[1]Tabla de Amortizacion'!K11,8)))))) -> 0
A11: 2022-05-23 | B11: 0.01068205 | C11: =+VLOOKUP(A11,'Tabla de Amortizacion'!$D$2:$Q$182,MATCH(Tablas!$B$1,'Tabla de Amortizacion'!$D$2:$Q$2,0)) -> 0.01068205 | E11: =IF([1]CALCULADORA!$F$10="Contractual",ROUND('[1]Tabla de Amortizacion'!C12,8),IF([1]CALCULADORA!$F$10="6% (Medio)",ROUND('[1]Tabla de Amortizacion'!F12,8),IF([1]CALCULADORA!$F$10="10% (Medio Alto)",ROUND('[1]Tabla de Amortizacion'!H12,8),IF([1]CALCULADORA!$F$10="14% (Alto)",ROUND('[1]Tabla de Amortizacion'!#REF!,8),IF([1]CALCULADORA!$F$10=20%,ROUND('[1]Tabla de Amortizacion'!#REF!,8),ROUND('[1]Tabla de Amortizacion'!K12,8)))))) -> 0
A12: 2022-06-23 | B12: 0.0165158 | C12: =+VLOOKUP(A12,'Tabla de Amortizacion'!$D$2:$Q$182,MATCH(Tablas!$B$1,'Tabla de Amortizacion'!$D$2:$Q$2,0)) -> 0.0165158 | E12: =IF([1]CALCULADORA!$F$10="Contractual",ROUND('[1]Tabla de Amortizacion'!C13,8),IF([1]CALCULADORA!$F$10="6% (Medio)",ROUND('[1]Tabla de Amortizacion'!F13,8),IF([1]CALCULADORA!$F$10="10% (Medio Alto)",ROUND('[1]Tabla de Amortizacion'!H13,8),IF([1]CALCULADORA!$F$10="14% (Alto)",ROUND('[1]Tabla de Amortizacion'!#REF!,8),IF([1]CALCULADORA!$F$10=20%,ROUND('[1]Tabla de Amortizacion'!#REF!,8),ROUND('[1]Tabla de Amortizacion'!K13,8)))))) -> 0
A13: 2022-07-23 | B13: 0.01429638 | C13: =+VLOOKUP(A13,'Tabla de Amortizacion'!$D$2:$Q$182,MATCH(Tablas!$B$1,'Tabla de Amortizacion'!$D$2:$Q$2,0)) -> 0.01429638 | E13: =IF([1]CALCULADORA!$F$10="Contractual",ROUND('[1]Tabla de Amortizacion'!C14,8),IF([1]CALCULADORA!$F$10="6% (Medio)",ROUND('[1]Tabla de Amortizacion'!F14,8),IF([1]CALCULADORA!$F$10="10% (Medio Alto)",ROUND('[1]Tabla de Amortizacion'!H14,8),IF([1]CALCULADORA!$F$10="14% (Alto)",ROUND('[1]Tabla de Amortizacion'!#REF!,8),IF([1]CALCULADORA!$F$10=20%,ROUND('[1]Tabla de Amortizacion'!#REF!,8),ROUND('[1]Tabla de Amortizacion'!K14,8)))))) -> 0
A14: 2022-08-23 | B14: 0.00923389 | C14: =+VLOOKUP(A14,'Tabla de Amortizacion'!$D$2:$Q$182,MATCH(Tablas!$B$1,'Tabla de Amortizacion'!$D$2:$Q$2,0)) -> 0.00923389 | E14: =IF([1]CALCULADORA!$F$10="Contractual",ROUND('[1]Tabla de Amortizacion'!C15,8),IF([1]CALCULADORA!$F$10="6% (Medio)",ROUND('[1]Tabla de Amortizacion'!F15,8),IF([1]CALCULADORA!$F$10="10% (Medio Alto)",ROUND('[1]Tabla de Amortizacion'!H15,8),IF([1]CALCULADORA!$F$10="14% (Alto)",ROUND('[1]Tabla de Amortizacion'!#REF!,8),IF([1]CALCULADORA!$F$10=20%,ROUND('[1]Tabla de Amortizacion'!#REF!,8),ROUND('[1]Tabla de Amortizacion'!K15,8)))))) -> 0
A15: 2022-09-23 | B15: 0.01499669 | C15: =+VLOOKUP(A15,'Tabla de Amortizacion'!$D$2:$Q$182,MATCH(Tablas!$B$1,'Tabla de Amortizacion'!$D$2:$Q$2,0)) -> 0.01499669 | E15: =IF([1]CALCULADORA!$F$10="Contractual",ROUND('[1]Tabla de Amortizacion'!C16,8),IF([1]CALCULADORA!$F$10="6% (Medio)",ROUND('[1]Tabla de Amortizacion'!F16,8),IF([1]CALCULADORA!$F$10="10% (Medio Alto)",ROUND('[1]Tabla de Amortizacion'!H16,8),IF([1]CALCULADORA!$F$10="14% (Alto)",ROUND('[1]Tabla de Amortizacion'!#REF!,8),IF([1]CALCULADORA!$F$10=20%,ROUND('[1]Tabla de Amortizacion'!#REF!,8),ROUND('[1]Tabla de Amortizacion'!K16,8)))))) -> 0
A16: 2022-10-23 | B16: 0.01357463 | C16: =+VLOOKUP(A16,'Tabla de Amortizacion'!$D$2:$Q$182,MATCH(Tablas!$B$1,'Tabla de Amortizacion'!$D$2:$Q$2,0)) -> 0.01357463 | E16: =IF([1]CALCULADORA!$F$10="Contractual",ROUND('[1]Tabla de Amortizacion'!C17,8),IF([1]CALCULADORA!$F$10="6% (Medio)",ROUND('[1]Tabla de Amortizacion'!F17,8),IF([1]CALCULADORA!$F$10="10% (Medio Alto)",ROUND('[1]Tabla de Amortizacion'!H17,8),IF([1]CALCULADORA!$F$10="14% (Alto)",ROUND('[1]Tabla de Amortizacion'!#REF!,8),IF([1]CALCULADORA!$F$10=20%,ROUND('[1]Tabla de Amortizacion'!#REF!,8),ROUND('[1]Tabla de Amortizacion'!K17,8)))))) -> 0
A17: 2022-11-23 | B17: 0.01483513 | C17: =+VLOOKUP(A17,'Tabla de Amortizacion'!$D$2:$Q$182,MATCH(Tablas!$B$1,'Tabla de Amortizacion'!$D$2:$Q$2,0)) -> 0.01483513 | E17: =IF([1]CALCULADORA!$F$10="Contractual",ROUND('[1]Tabla de Amortizacion'!C18,8),IF([1]CALCULADORA!$F$10="6% (Medio)",ROUND('[1]Tabla de Amortizacion'!F18,8),IF([1]CALCULADORA!$F$10="10% (Medio Alto)",ROUND('[1]Tabla de Amortizacion'!H18,8),IF([1]CALCULADORA!$F$10="14% (Alto)",ROUND('[1]Tabla de Amortizacion'!#REF!,8),IF([1]CALCULADORA!$F$10=20%,ROUND('[1]Tabla de Amortizacion'!#REF!,8),ROUND('[1]Tabla de Amortizacion'!K18,8)))))) -> 0
A18: 2022-12-23 | B18: 0.00807425 | C18: =+VLOOKUP(A18,'Tabla de Amortizacion'!$D$2:$Q$182,MATCH(Tablas!$B$1,'Tabla de Amortizacion'!$D$2:$Q$2,0)) -> 0.00807425 | E18: =IF([1]CALCULADORA!$F$10="Contractual",ROUND('[1]Tabla de Amortizacion'!C19,8),IF([1]CALCULADORA!$F$10="6% (Medio)",ROUND('[1]Tabla de Amortizacion'!F19,8),IF([1]CALCULADORA!$F$10="10% (Medio Alto)",ROUND('[1]Tabla de Amortizacion'!H19,8),IF([1]CALCULADORA!$F$10="14% (Alto)",ROUND('[1]Tabla de Amortizacion'!#REF!,8),IF([1]CALCULADORA!$F$10=20%,ROUND('[1]Tabla de Amortizacion'!#REF!,8),ROUND('[1]Tabla de Amortizacion'!K19,8)))))) -> 0
A19: 2023-01-23 | B19: 0.01361384 | C19: =+VLOOKUP(A19,'Tabla de Amortizacion'!$D$2:$Q$182,MATCH(Tablas!$B$1,'Tabla de Amortizacion'!$D$2:$Q$2,0)) -> 0.01361384 | E19: =IF([1]CALCULADORA!$F$10="Contractual",ROUND('[1]Tabla de Amortizacion'!C20,8),IF([1]CALCULADORA!$F$10="6% (Medio)",ROUND('[1]Tabla de Amortizacion'!F20,8),IF([1]CALCULADORA!$F$10="10% (Medio Alto)",ROUND('[1]Tabla de Amortizacion'!H20,8),IF([1]CALCULADORA!$F$10="14% (Alto)",ROUND('[1]Tabla de Amortizacion'!#REF!,8),IF([1]CALCULADORA!$F$10=20%,ROUND('[1]Tabla de Amortizacion'!#REF!,8),ROUND('[1]Tabla de Amortizacion'!K20,8)))))) -> 0
A20: 2023-02-23 | B20: 0.01019619 | C20: =+VLOOKUP(A20,'Tabla de Amortizacion'!$D$2:$Q$182,MATCH(Tablas!$B$1,'Tabla de Amortizacion'!$D$2:$Q$2,0)) -> 0.01019619 | E20: =IF([1]CALCULADORA!$F$10="Contractual",ROUND('[1]Tabla de Amortizacion'!C21,8),IF([1]CALCULADORA!$F$10="6% (Medio)",ROUND('[1]Tabla de Amortizacion'!F21,8),IF([1]CALCULADORA!$F$10="10% (Medio Alto)",ROUND('[1]Tabla de Amortizacion'!H21,8),IF([1]CALCULADORA!$F$10="14% (Alto)",ROUND('[1]Tabla de Amortizacion'!#REF!,8),IF([1]CALCULADORA!$F$10=20%,ROUND('[1]Tabla de Amortizacion'!#REF!,8),ROUND('[1]Tabla de Amortizacion'!K21,8)))))) -> 0
A21: 2023-03-23 | B21: 0.01032425 | C21: =+VLOOKUP(A21,'Tabla de Amortizacion'!$D$2:$Q$182,MATCH(Tablas!$B$1,'Tabla de Amortizacion'!$D$2:$Q$2,0)) -> 0.01032425 | E21: =IF([1]CALCULADORA!$F$10="Contractual",ROUND('[1]Tabla de Amortizacion'!C22,8),IF([1]CALCULADORA!$F$10="6% (Medio)",ROUND('[1]Tabla de Amortizacion'!F22,8),IF([1]CALCULADORA!$F$10="10% (Medio Alto)",ROUND('[1]Tabla de Amortizacion'!H22,8),IF([1]CALCULADORA!$F$10="14% (Alto)",ROUND('[1]Tabla de Amortizacion'!#REF!,8),IF([1]CALCULADORA!$F$10=20%,ROUND('[1]Tabla de Amortizacion'!#REF!,8),ROUND('[1]Tabla de Amortizacion'!K22,8)))))) -> 0
A22: 2023-04-23 | B22: 0.01241966 | C22: =+VLOOKUP(A22,'Tabla de Amortizacion'!$D$2:$Q$182,MATCH(Tablas!$B$1,'Tabla de Amortizacion'!$D$2:$Q$2,0)) -> 0.01241966 | E22: =IF([1]CALCULADORA!$F$10="Contractual",ROUND('[1]Tabla de Amortizacion'!C23,8),IF([1]CALCULADORA!$F$10="6% (Medio)",ROUND('[1]Tabla de Amortizacion'!F23,8),IF([1]CALCULADORA!$F$10="10% (Medio Alto)",ROUND('[1]Tabla de Amortizacion'!H23,8),IF([1]CALCULADORA!$F$10="14% (Alto)",ROUND('[1]Tabla de Amortizacion'!#REF!,8),IF([1]CALCULADORA!$F$10=20%,ROUND('[1]Tabla de Amortizacion'!#REF!,8),ROUND('[1]Tabla de Amortizacion'!K23,8)))))) -> 0
A23: 2023-05-23 | B23: 0.00874107 | C23: =+VLOOKUP(A23,'Tabla de Amortizacion'!$D$2:$Q$182,MATCH(Tablas!$B$1,'Tabla de Amortizacion'!$D$2:$Q$2,0)) -> 0.00874107 | E23: =IF([1]CALCULADORA!$F$10="Contractual",ROUND('[1]Tabla de Amortizacion'!C24,8),IF([1]CALCULADORA!$F$10="6% (Medio)",ROUND('[1]Tabla de Amortizacion'!F24,8),IF([1]CALCULADORA!$F$10="10% (Medio Alto)",ROUND('[1]Tabla de Amortizacion'!H24,8),IF([1]CALCULADORA!$F$10="14% (Alto)",ROUND('[1]Tabla de Amortizacion'!#REF!,8),IF([1]CALCULADORA!$F$10=20%,ROUND('[1]Tabla de Amortizacion'!#REF!,8),ROUND('[1]Tabla de Amortizacion'!K24,8)))))) -> 0
A24: 2023-06-23 | B24: 0.00834591 | C24: =+VLOOKUP(A24,'Tabla de Amortizacion'!$D$2:$Q$182,MATCH(Tablas!$B$1,'Tabla de Amortizacion'!$D$2:$Q$2,0)) -> 0.00834591 | E24: =IF([1]CALCULADORA!$F$10="Contractual",ROUND('[1]Tabla de Amortizacion'!C25,8),IF([1]CALCULADORA!$F$10="6% (Medio)",ROUND('[1]Tabla de Amortizacion'!F25,8),IF([1]CALCULADORA!$F$10="10% (Medio Alto)",ROUND('[1]Tabla de Amortizacion'!H25,8),IF([1]CALCULADORA!$F$10="14% (Alto)",ROUND('[1]Tabla de Amortizacion'!#REF!,8),IF([1]CALCULADORA!$F$10=20%,ROUND('[1]Tabla de Amortizacion'!#REF!,8),ROUND('[1]Tabla de Amortizacion'!K25,8)))))) -> 0
A25: 2023-07-23 | B25: 0.01046561 | C25: =+VLOOKUP(A25,'Tabla de Amortizacion'!$D$2:$Q$182,MATCH(Tablas!$B$1,'Tabla de Amortizacion'!$D$2:$Q$2,0)) -> 0.01046561 | E25: =IF([1]CALCULADORA!$F$10="Contractual",ROUND('[1]Tabla de Amortizacion'!C26,8),IF([1]CALCULADORA!$F$10="6% (Medio)",ROUND('[1]Tabla de Amortizacion'!F26,8),IF([1]CALCULADORA!$F$10="10% (Medio Alto)",ROUND('[1]Tabla de Amortizacion'!H26,8),IF([1]CALCULADORA!$F$10="14% (Alto)",ROUND('[1]Tabla de Amortizacion'!#REF!,8),IF([1]CALCULADORA!$F$10=20%,ROUND('[1]Tabla de Amortizacion'!#REF!,8),ROUND('[1]Tabla de Amortizacion'!K26,8)))))) -> 0
A26: 2023-08-23 | B26: 0.00621205 | C26: =+VLOOKUP(A26,'Tabla de Amortizacion'!$D$2:$Q$182,MATCH(Tablas!$B$1,'Tabla de Amortizacion'!$D$2:$Q$2,0)) -> 0.00621205 | E26: =IF([1]CALCULADORA!$F$10="Contractual",ROUND('[1]Tabla de Amortizacion'!C27,8),IF([1]CALCULADORA!$F$10="6% (Medio)",ROUND('[1]Tabla de Amortizacion'!F27,8),IF([1]CALCULADORA!$F$10="10% (Medio Alto)",ROUND('[1]Tabla de Amortizacion'!H27,8),IF([1]CALCULADORA!$F$10="14% (Alto)",ROUND('[1]Tabla de Amortizacion'!#REF!,8),IF([1]CALCULADORA!$F$10=20%,ROUND('[1]Tabla de Amortizacion'!#REF!,8),ROUND('[1]Tabla de Amortizacion'!K27,8)))))) -> 0
A27: 2023-09-23 | B27: 0.00775293 | C27: =+VLOOKUP(A27,'Tabla de Amortizacion'!$D$2:$Q$182,MATCH(Tablas!$B$1,'Tabla de Amortizacion'!$D$2:$Q$2,0)) -> 0.00775293 | E27: =IF([1]CALCULADORA!$F$10="Contractual",ROUND('[1]Tabla de Amortizacion'!C28,8),IF([1]CALCULADORA!$F$10="6% (Medio)",ROUND('[1]Tabla de Amortizacion'!F28,8),IF([1]CALCULADORA!$F$10="10% (Medio Alto)",ROUND('[1]Tabla de Amortizacion'!H28,8),IF([1]CALCULADORA!$F$10="14% (Alto)",ROUND('[1]Tabla de Amortizacion'!#REF!,8),IF([1]CALCULADORA!$F$10=20%,ROUND('[1]Tabla de Amortizacion'!#REF!,8),ROUND('[1]Tabla de Amortizacion'!K28,8)))))) -> 0
A28: 2023-10-23 | B28: 0.0071742 | C28: =+VLOOKUP(A28,'Tabla de Amortizacion'!$D$2:$Q$182,MATCH(Tablas!$B$1,'Tabla de Amortizacion'!$D$2:$Q$2,0)) -> 0.0071742 | E28: =IF([1]CALCULADORA!$F$10="Contractual",ROUND('[1]Tabla de Amortizacion'!C29,8),IF([1]CALCULADORA!$F$10="6% (Medio)",ROUND('[1]Tabla de Amortizacion'!F29,8),IF([1]CALCULADORA!$F$10="10% (Medio Alto)",ROUND('[1]Tabla de Amortizacion'!H29,8),IF([1]CALCULADORA!$F$10="14% (Alto)",ROUND('[1]Tabla de Amortizacion'!#REF!,8),IF([1]CALCULADORA!$F$10=20%,ROUND('[1]Tabla de Amortizacion'!#REF!,8),ROUND('[1]Tabla de Amortizacion'!K29,8)))))) -> 0
A29: 2023-11-23 | B29: 0.00712022 | C29: =+VLOOKUP(A29,'Tabla de Amortizacion'!$D$2:$Q$182,MATCH(Tablas!$B$1,'Tabla de Amortizacion'!$D$2:$Q$2,0)) -> 0.00712022 | E29: =IF([1]CALCULADORA!$F$10="Contractual",ROUND('[1]Tabla de Amortizacion'!C30,8),IF([1]CALCULADORA!$F$10="6% (Medio)",ROUND('[1]Tabla de Amortizacion'!F30,8),IF([1]CALCULADORA!$F$10="10% (Medio Alto)",ROUND('[1]Tabla de Amortizacion'!H30,8),IF([1]CALCULADORA!$F$10="14% (Alto)",ROUND('[1]Tabla de Amortizacion'!#REF!,8),IF([1]CALCULADORA!$F$10=20%,ROUND('[1]Tabla de Amortizacion'!#REF!,8),ROUND('[1]Tabla de Amortizacion'!K30,8)))))) -> 0
A30: 2023-12-23 | B30: 0.00986897 | C30: =+VLOOKUP(A30,'Tabla de Amortizacion'!$D$2:$Q$182,MATCH(Tablas!$B$1,'Tabla de Amortizacion'!$D$2:$Q$2,0)) -> 0.00986897 | E30: =IF([1]CALCULADORA!$F$10="Contractual",ROUND('[1]Tabla de Amortizacion'!C31,8),IF([1]CALCULADORA!$F$10="6% (Medio)",ROUND('[1]Tabla de Amortizacion'!F31,8),IF([1]CALCULADORA!$F$10="10% (Medio Alto)",ROUND('[1]Tabla de Amortizacion'!H31,8),IF([1]CALCULADORA!$F$10="14% (Alto)",ROUND('[1]Tabla de Amortizacion'!#REF!,8),IF([1]CALCULADORA!$F$10=20%,ROUND('[1]Tabla de Amortizacion'!#REF!,8),ROUND('[1]Tabla de Amortizacion'!K31,8)))))) -> 0
A31: 2024-01-23 | B31: 0.00844365 | C31: =+VLOOKUP(A31,'Tabla de Amortizacion'!$D$2:$Q$182,MATCH(Tablas!$B$1,'Tabla de Amortizacion'!$D$2:$Q$2,0)) -> 0.00844365 | E31: =IF([1]CALCULADORA!$F$10="Contractual",ROUND('[1]Tabla de Amortizacion'!C32,8),IF([1]CALCULADORA!$F$10="6% (Medio)",ROUND('[1]Tabla de Amortizacion'!F32,8),IF([1]CALCULADORA!$F$10="10% (Medio Alto)",ROUND('[1]Tabla de Amortizacion'!H32,8),IF([1]CALCULADORA!$F$10="14% (Alto)",ROUND('[1]Tabla de Amortizacion'!#REF!,8),IF([1]CALCULADORA!$F$10=20%,ROUND('[1]Tabla de Amortizacion'!#REF!,8),ROUND('[1]Tabla de Amortizacion'!K32,8)))))) -> 0
A32: 2024-02-23 | B32: 0.01285656 | C32: =+VLOOKUP(A32,'Tabla de Amortizacion'!$D$2:$Q$182,MATCH(Tablas!$B$1,'Tabla de Amortizacion'!$D$2:$Q$2,0)) -> 0.01285656 | E32: =IF([1]CALCULADORA!$F$10="Contractual",ROUND('[1]Tabla de Amortizacion'!C33,8),IF([1]CALCULADORA!$F$10="6% (Medio)",ROUND('[1]Tabla de Amortizacion'!F33,8),IF([1]CALCULADORA!$F$10="10% (Medio Alto)",ROUND('[1]Tabla de Amortizacion'!H33,8),IF([1]CALCULADORA!$F$10="14% (Alto)",ROUND('[1]Tabla de Amortizacion'!#REF!,8),IF([1]CALCULADORA!$F$10=20%,ROUND('[1]Tabla de Amortizacion'!#REF!,8),ROUND('[1]Tabla de Amortizacion'!K33,8)))))) -> 0
A33: 2024-03-23 | B33: 0.00928653 | C33: =+VLOOKUP(A33,'Tabla de Amortizacion'!$D$2:$Q$182,MATCH(Tablas!$B$1,'Tabla de Amortizacion'!$D$2:$Q$2,0)) -> 0.00928653 | E33: =IF([1]CALCULADORA!$F$10="Contractual",ROUND('[1]Tabla de Amortizacion'!C34,8),IF([1]CALCULADORA!$F$10="6% (Medio)",ROUND('[1]Tabla de Amortizacion'!F34,8),IF([1]CALCULADORA!$F$10="10% (Medio Alto)",ROUND('[1]Tabla de Amortizacion'!H34,8),IF([1]CALCULADORA!$F$10="14% (Alto)",ROUND('[1]Tabla de Amortizacion'!#REF!,8),IF([1]CALCULADORA!$F$10=20%,ROUND('[1]Tabla de Amortizacion'!#REF!,8),ROUND('[1]Tabla de Amortizacion'!K34,8)))))) -> 0
A34: 2024-04-23 | B34: 0.01317768 | C34: =+VLOOKUP(A34,'Tabla de Amortizacion'!$D$2:$Q$182,MATCH(Tablas!$B$1,'Tabla de Amortizacion'!$D$2:$Q$2,0)) -> 0.01317768 | E34: =IF([1]CALCULADORA!$F$10="Contractual",ROUND('[1]Tabla de Amortizacion'!C35,8),IF([1]CALCULADORA!$F$10="6% (Medio)",ROUND('[1]Tabla de Amortizacion'!F35,8),IF([1]CALCULADORA!$F$10="10% (Medio Alto)",ROUND('[1]Tabla de Amortizacion'!H35,8),IF([1]CALCULADORA!$F$10="14% (Alto)",ROUND('[1]Tabla de Amortizacion'!#REF!,8),IF([1]CALCULADORA!$F$10=20%,ROUND('[1]Tabla de Amortizacion'!#REF!,8),ROUND('[1]Tabla de Amortizacion'!K35,8)))))) -> 0
A35: 2024-05-23 | B35: 0.0086879 | C35: =+VLOOKUP(A35,'Tabla de Amortizacion'!$D$2:$Q$182,MATCH(Tablas!$B$1,'Tabla de Amortizacion'!$D$2:$Q$2,0)) -> 0.0086879 | E35: =IF([1]CALCULADORA!$F$10="Contractual",ROUND('[1]Tabla de Amortizacion'!C36,8),IF([1]CALCULADORA!$F$10="6% (Medio)",ROUND('[1]Tabla de Amortizacion'!F36,8),IF([1]CALCULADORA!$F$10="10% (Medio Alto)",ROUND('[1]Tabla de Amortizacion'!H36,8),IF([1]CALCULADORA!$F$10="14% (Alto)",ROUND('[1]Tabla de Amortizacion'!#REF!,8),IF([1]CALCULADORA!$F$10=20%,ROUND('[1]Tabla de Amortizacion'!#REF!,8),ROUND('[1]Tabla de Amortizacion'!K36,8)))))) -> 0
A36: 2024-06-23 | B36: 0.0066977 | C36: =+VLOOKUP(A36,'Tabla de Amortizacion'!$D$2:$Q$182,MATCH(Tablas!$B$1,'Tabla de Amortizacion'!$D$2:$Q$2,0)) -> 0.0066977 | E36: =IF([1]CALCULADORA!$F$10="Contractual",ROUND('[1]Tabla de Amortizacion'!C37,8),IF([1]CALCULADORA!$F$10="6% (Medio)",ROUND('[1]Tabla de Amortizacion'!F37,8),IF([1]CALCULADORA!$F$10="10% (Medio Alto)",ROUND('[1]Tabla de Amortizacion'!H37,8),IF([1]CALCULADORA!$F$10="14% (Alto)",ROUND('[1]Tabla de Amortizacion'!#REF!,8),IF([1]CALCULADORA!$F$10=20%,ROUND('[1]Tabla de Amortizacion'!#REF!,8),ROUND('[1]Tabla de Amortizacion'!K37,8)))))) -> 0
A37: 2024-07-23 | B37: 0.01013146 | C37: =+VLOOKUP(A37,'Tabla de Amortizacion'!$D$2:$Q$182,MATCH(Tablas!$B$1,'Tabla de Amortizacion'!$D$2:$Q$2,0)) -> 0.01013146 | E37: =IF([1]CALCULADORA!$F$10="Contractual",ROUND('[1]Tabla de Amortizacion'!C38,8),IF([1]CALCULADORA!$F$10="6% (Medio)",ROUND('[1]Tabla de Amortizacion'!F38,8),IF([1]CALCULADORA!$F$10="10% (Medio Alto)",ROUND('[1]Tabla de Amortizacion'!H38,8),IF([1]CALCULADORA!$F$10="14% (Alto)",ROUND('[1]Tabla de Amortizacion'!#REF!,8),IF([1]CALCULADORA!$F$10=20%,ROUND('[1]Tabla de Amortizacion'!#REF!,8),ROUND('[1]Tabla de Amortizacion'!K38,8)))))) -> 0
A38: 2024-08-23 | B38: 0.00945651 | C38: =+VLOOKUP(A38,'Tabla de Amortizacion'!$D$2:$Q$182,MATCH(Tablas!$B$1,'Tabla de Amortizacion'!$D$2:$Q$2,0)) -> 0.00945651 | E38: =IF([1]CALCULADORA!$F$10="Contractual",ROUND('[1]Tabla de Amortizacion'!C39,8),IF([1]CALCULADORA!$F$10="6% (Medio)",ROUND('[1]Tabla de Amortizacion'!F39,8),IF([1]CALCULADORA!$F$10="10% (Medio Alto)",ROUND('[1]Tabla de Amortizacion'!H39,8),IF([1]CALCULADORA!$F$10="14% (Alto)",ROUND('[1]Tabla de Amortizacion'!#REF!,8),IF([1]CALCULADORA!$F$10=20%,ROUND('[1]Tabla de Amortizacion'!#REF!,8),ROUND('[1]Tabla de Amortizacion'!K39,8)))))) -> 0
A39: 2024-09-23 | B39: 0.00962191 | C39: =+VLOOKUP(A39,'Tabla de Amortizacion'!$D$2:$Q$182,MATCH(Tablas!$B$1,'Tabla de Amortizacion'!$D$2:$Q$2,0)) -> 0.00962191 | E39: =IF([1]CALCULADORA!$F$10="Contractual",ROUND('[1]Tabla de Amortizacion'!C40,8),IF([1]CALCULADORA!$F$10="6% (Medio)",ROUND('[1]Tabla de Amortizacion'!F40,8),IF([1]CALCULADORA!$F$10="10% (Medio Alto)",ROUND('[1]Tabla de Amortizacion'!H40,8),IF([1]CALCULADORA!$F$10="14% (Alto)",ROUND('[1]Tabla de Amortizacion'!#REF!,8),IF([1]CALCULADORA!$F$10=20%,ROUND('[1]Tabla de Amortizacion'!#REF!,8),ROUND('[1]Tabla de Amortizacion'!K40,8)))))) -> 0
A40: 2024-10-23 | B40: 0.00955363 | C40: =+VLOOKUP(A40,'Tabla de Amortizacion'!$D$2:$Q$182,MATCH(Tablas!$B$1,'Tabla de Amortizacion'!$D$2:$Q$2,0)) -> 0.00955363 | E40: =IF([1]CALCULADORA!$F$10="Contractual",ROUND('[1]Tabla de Amortizacion'!C41,8),IF([1]CALCULADORA!$F$10="6% (Medio)",ROUND('[1]Tabla de Amortizacion'!F41,8),IF([1]CALCULADORA!$F$10="10% (Medio Alto)",ROUND('[1]Tabla de Amortizacion'!H41,8),IF([1]CALCULADORA!$F$10="14% (Alto)",ROUND('[1]Tabla de Amortizacion'!#REF!,8),IF([1]CALCULADORA!$F$10=20%,ROUND('[1]Tabla de Amortizacion'!#REF!,8),ROUND('[1]Tabla de Amortizacion'!K41,8)))))) -> 0
A41: 2024-11-23 | B41: 0.00846202 | C41: =+VLOOKUP(A41,'Tabla de Amortizacion'!$D$2:$Q$182,MATCH(Tablas!$B$1,'Tabla de Amortizacion'!$D$2:$Q$2,0)) -> 0.00846202 | E41: =IF([1]CALCULADORA!$F$10="Contractual",ROUND('[1]Tabla de Amortizacion'!C42,8),IF([1]CALCULADORA!$F$10="6% (Medio)",ROUND('[1]Tabla de Amortizacion'!F42,8),IF([1]CALCULADORA!$F$10="10% (Medio Alto)",ROUND('[1]Tabla de Amortizacion'!H42,8),IF([1]CALCULADORA!$F$10="14% (Alto)",ROUND('[1]Tabla de Amortizacion'!#REF!,8),IF([1]CALCULADORA!$F$10=20%,ROUND('[1]Tabla de Amortizacion'!#REF!,8),ROUND('[1]Tabla de Amortizacion'!K42,8)))))) -> 0
A42: 2024-12-23 | B42: 0.00835591 | C42: =+VLOOKUP(A42,'Tabla de Amortizacion'!$D$2:$Q$182,MATCH(Tablas!$B$1,'Tabla de Amortizacion'!$D$2:$Q$2,0)) -> 0.00835591 | E42: =IF([1]CALCULADORA!$F$10="Contractual",ROUND('[1]Tabla de Amortizacion'!C43,8),IF([1]CALCULADORA!$F$10="6% (Medio)",ROUND('[1]Tabla de Amortizacion'!F43,8),IF([1]CALCULADORA!$F$10="10% (Medio Alto)",ROUND('[1]Tabla de Amortizacion'!H43,8),IF([1]CALCULADORA!$F$10="14% (Alto)",ROUND('[1]Tabla de Amortizacion'!#REF!,8),IF([1]CALCULADORA!$F$10=20%,ROUND('[1]Tabla de Amortizacion'!#REF!,8),ROUND('[1]Tabla de Amortizacion'!K43,8)))))) -> 0
A43: 2025-01-23 | B43: 0.00825965 | C43: =+VLOOKUP(A43,'Tabla de Amortizacion'!$D$2:$Q$182,MATCH(Tablas!$B$1,'Tabla de Amortizacion'!$D$2:$Q$2,0)) -> 0.00825965 | E43: =IF([1]CALCULADORA!$F$10="Contractual",ROUND('[1]Tabla de Amortizacion'!C44,8),IF([1]CALCULADORA!$F$10="6% (Medio)",ROUND('[1]Tabla de Amortizacion'!F44,8),IF([1]CALCULADORA!$F$10="10% (Medio Alto)",ROUND('[1]Tabla de Amortizacion'!H44,8),IF([1]CALCULADORA!$F$10="14% (Alto)",ROUND('[1]Tabla de Amortizacion'!#REF!,8),IF([1]CALCULADORA!$F$10=20%,ROUND('[1]Tabla de Amortizacion'!#REF!,8),ROUND('[1]Tabla de Amortizacion'!K44,8)))))) -> 0
A44: 2025-02-23 | B44: 0.00817015 | C44: =+VLOOKUP(A44,'Tabla de Amortizacion'!$D$2:$Q$182,MATCH(Tablas!$B$1,'Tabla de Amortizacion'!$D$2:$Q$2,0)) -> 0.00817015 | E44: =IF([1]CALCULADORA!$F$10="Contractual",ROUND('[1]Tabla de Amortizacion'!C45,8),IF([1]CALCULADORA!$F$10="6% (Medio)",ROUND('[1]Tabla de Amortizacion'!F45,8),IF([1]CALCULADORA!$F$10="10% (Medio Alto)",ROUND('[1]Tabla de Amortizacion'!H45,8),IF([1]CALCULADORA!$F$10="14% (Alto)",ROUND('[1]Tabla de Amortizacion'!#REF!,8),IF([1]CALCULADORA!$F$10=20%,ROUND('[1]Tabla de Amortizacion'!#REF!,8),ROUND('[1]Tabla de Amortizacion'!K45,8)))))) -> 0
A45: 2025-03-23 | B45: 0.00807617 | C45: =+VLOOKUP(A45,'Tabla de Amortizacion'!$D$2:$Q$182,MATCH(Tablas!$B$1,'Tabla de Amortizacion'!$D$2:$Q$2,0)) -> 0.00807617 | E45: =IF([1]CALCULADORA!$F$10="Contractual",ROUND('[1]Tabla de Amortizacion'!C46,8),IF([1]CALCULADORA!$F$10="6% (Medio)",ROUND('[1]Tabla de Amortizacion'!F46,8),IF([1]CALCULADORA!$F$10="10% (Medio Alto)",ROUND('[1]Tabla de Amortizacion'!H46,8),IF([1]CALCULADORA!$F$10="14% (Alto)",ROUND('[1]Tabla de Amortizacion'!#REF!,8),IF([1]CALCULADORA!$F$10=20%,ROUND('[1]Tabla de Amortizacion'!#REF!,8),ROUND('[1]Tabla de Amortizacion'!K46,8)))))) -> 0
A46: 2025-04-23 | B46: 0.00797588 | C46: =+VLOOKUP(A46,'Tabla de Amortizacion'!$D$2:$Q$182,MATCH(Tablas!$B$1,'Tabla de Amortizacion'!$D$2:$Q$2,0)) -> 0.00797588 | E46: =IF([1]CALCULADORA!$F$10="Contractual",ROUND('[1]Tabla de Amortizacion'!C47,8),IF([1]CALCULADORA!$F$10="6% (Medio)",ROUND('[1]Tabla de Amortizacion'!F47,8),IF([1]CALCULADORA!$F$10="10% (Medio Alto)",ROUND('[1]Tabla de Amortizacion'!H47,8),IF([1]CALCULADORA!$F$10="14% (Alto)",ROUND('[1]Tabla de Amortizacion'!#REF!,8),IF([1]CALCULADORA!$F$10=20%,ROUND('[1]Tabla de Amortizacion'!#REF!,8),ROUND('[1]Tabla de Amortizacion'!K47,8)))))) -> 0
A47: 2025-05-23 | B47: 0.00787579 | C47: =+VLOOKUP(A47,'Tabla de Amortizacion'!$D$2:$Q$182,MATCH(Tablas!$B$1,'Tabla de Amortizacion'!$D$2:$Q$2,0)) -> 0.00787579 | E47: =IF([1]CALCULADORA!$F$10="Contractual",ROUND('[1]Tabla de Amortizacion'!C48,8),IF([1]CALCULADORA!$F$10="6% (Medio)",ROUND('[1]Tabla de Amortizacion'!F48,8),IF([1]CALCULADORA!$F$10="10% (Medio Alto)",ROUND('[1]Tabla de Amortizacion'!H48,8),IF([1]CALCULADORA!$F$10="14% (Alto)",ROUND('[1]Tabla de Amortizacion'!#REF!,8),IF([1]CALCULADORA!$F$10=20%,ROUND('[1]Tabla de Amortizacion'!#REF!,8),ROUND('[1]Tabla de Amortizacion'!K48,8)))))) -> 0
A48: 2025-06-23 | B48: 0.00778717 | C48: =+VLOOKUP(A48,'Tabla de Amortizacion'!$D$2:$Q$182,MATCH(Tablas!$B$1,'Tabla de Amortizacion'!$D$2:$Q$2,0)) -> 0.00778717 | E48: =IF([1]CALCULADORA!$F$10="Contractual",ROUND('[1]Tabla de Amortizacion'!C49,8),IF([1]CALCULADORA!$F$10="6% (Medio)",ROUND('[1]Tabla de Amortizacion'!F49,8),IF([1]CALCULADORA!$F$10="10% (Medio Alto)",ROUND('[1]Tabla de Amortizacion'!H49,8),IF([1]CALCULADORA!$F$10="14% (Alto)",ROUND('[1]Tabla de Amortizacion'!#REF!,8),IF([1]CALCULADORA!$F$10=20%,ROUND('[1]Tabla de Amortizacion'!#REF!,8),ROUND('[1]Tabla de Amortizacion'!K49,8)))))) -> 0
A49: 2025-07-23 | B49: 0.00769691 | C49: =+VLOOKUP(A49,'Tabla de Amortizacion'!$D$2:$Q$182,MATCH(Tablas!$B$1,'Tabla de Amortizacion'!$D$2:$Q$2,0)) -> 0.00769691 | E49: =IF([1]CALCULADORA!$F$10="Contractual",ROUND('[1]Tabla de Amortizacion'!C50,8),IF([1]CALCULADORA!$F$10="6% (Medio)",ROUND('[1]Tabla de Amortizacion'!F50,8),IF([1]CALCULADORA!$F$10="10% (Medio Alto)",ROUND('[1]Tabla de Amortizacion'!H50,8),IF([1]CALCULADORA!$F$10="14% (Alto)",ROUND('[1]Tabla de Amortizacion'!#REF!,8),IF([1]CALCULADORA!$F$10=20%,ROUND('[1]Tabla de Amortizacion'!#REF!,8),ROUND('[1]Tabla de Amortizacion'!K50,8)))))) -> 0
A50: 2025-08-23 | B50: 0.00759873 | C50: =+VLOOKUP(A50,'Tabla de Amortizacion'!$D$2:$Q$182,MATCH(Tablas!$B$1,'Tabla de Amortizacion'!$D$2:$Q$2,0)) -> 0.00759873 | E50: =IF([1]CALCULADORA!$F$10="Contractual",ROUND('[1]Tabla de Amortizacion'!C51,8),IF([1]CALCULADORA!$F$10="6% (Medio)",ROUND('[1]Tabla de Amortizacion'!F51,8),IF([1]CALCULADORA!$F$10="10% (Medio Alto)",ROUND('[1]Tabla de Amortizacion'!H51,8),IF([1]CALCULADORA!$F$10="14% (Alto)",ROUND('[1]Tabla de Amortizacion'!#REF!,8),IF([1]CALCULADORA!$F$10=20%,ROUND('[1]Tabla de Amortizacion'!#REF!,8),ROUND('[1]Tabla de Amortizacion'!K51,8)))))) -> 0
A51: 2025-09-23 | B51: 0.00750532 | C51: =+VLOOKUP(A51,'Tabla de Amortizacion'!$D$2:$Q$182,MATCH(Tablas!$B$1,'Tabla de Amortizacion'!$D$2:$Q$2,0)) -> 0.00750532 | E51: =IF([1]CALCULADORA!$F$10="Contractual",ROUND('[1]Tabla de Amortizacion'!C52,8),IF([1]CALCULADORA!$F$10="6% (Medio)",ROUND('[1]Tabla de Amortizacion'!F52,8),IF([1]CALCULADORA!$F$10="10% (Medio Alto)",ROUND('[1]Tabla de Amortizacion'!H52,8),IF([1]CALCULADORA!$F$10="14% (Alto)",ROUND('[1]Tabla de Amortizacion'!#REF!,8),IF([1]CALCULADORA!$F$10=20%,ROUND('[1]Tabla de Amortizacion'!#REF!,8),ROUND('[1]Tabla de Amortizacion'!K52,8)))))) -> 0
A52: 2025-10-23 | B52: 0.00741225 | C52: =+VLOOKUP(A52,'Tabla de Amortizacion'!$D$2:$Q$182,MATCH(Tablas!$B$1,'Tabla de Amortizacion'!$D$2:$Q$2,0)) -> 0.00741225 | E52: =IF([1]CALCULADORA!$F$10="Contractual",ROUND('[1]Tabla de Amortizacion'!C53,8),IF([1]CALCULADORA!$F$10="6% (Medio)",ROUND('[1]Tabla de Amortizacion'!F53,8),IF([1]CALCULADORA!$F$10="10% (Medio Alto)",ROUND('[1]Tabla de Amortizacion'!H53,8),IF([1]CALCULADORA!$F$10="14% (Alto)",ROUND('[1]Tabla de Amortizacion'!#REF!,8),IF([1]CALCULADORA!$F$10=20%,ROUND('[1]Tabla de Amortizacion'!#REF!,8),ROUND('[1]Tabla de Amortizacion'!K53,8)))))) -> 0
A53: 2025-11-23 | B53: 0.00732138 | C53: =+VLOOKUP(A53,'Tabla de Amortizacion'!$D$2:$Q$182,MATCH(Tablas!$B$1,'Tabla de Amortizacion'!$D$2:$Q$2,0)) -> 0.00732138 | E53: =IF([1]CALCULADORA!$F$10="Contractual",ROUND('[1]Tabla de Amortizacion'!C54,8),IF([1]CALCULADORA!$F$10="6% (Medio)",ROUND('[1]Tabla de Amortizacion'!F54,8),IF([1]CALCULADORA!$F$10="10% (Medio Alto)",ROUND('[1]Tabla de Amortizacion'!H54,8),IF([1]CALCULADORA!$F$10="14% (Alto)",ROUND('[1]Tabla de Amortizacion'!#REF!,8),IF([1]CALCULADORA!$F$10=20%,ROUND('[1]Tabla de Amortizacion'!#REF!,8),ROUND('[1]Tabla de Amortizacion'!K54,8)))))) -> 0
A54: 2025-12-23 | B54: 0.0072295 | C54: =+VLOOKUP(A54,'Tabla de Amortizacion'!$D$2:$Q$182,MATCH(Tablas!$B$1,'Tabla de Amortizacion'!$D$2:$Q$2,0)) -> 0.0072295 | E54: =IF([1]CALCULADORA!$F$10="Contractual",ROUND('[1]Tabla de Amortizacion'!C55,8),IF([1]CALCULADORA!$F$10="6% (Medio)",ROUND('[1]Tabla de Amortizacion'!F55,8),IF([1]CALCULADORA!$F$10="10% (Medio Alto)",ROUND('[1]Tabla de Amortizacion'!H55,8),IF([1]CALCULADORA!$F$10="14% (Alto)",ROUND('[1]Tabla de Amortizacion'!#REF!,8),IF([1]CALCULADORA!$F$10=20%,ROUND('[1]Tabla de Amortizacion'!#REF!,8),ROUND('[1]Tabla de Amortizacion'!K55,8)))))) -> 0
A55: 2026-01-23 | B55: 0.00771633 | C55: =+VLOOKUP(A55,'Tabla de Amortizacion'!$D$2:$Q$182,MATCH(Tablas!$B$1,'Tabla de Amortizacion'!$D$2:$Q$2,0)) -> 0.00771633 | E55: =IF([1]CALCULADORA!$F$10="Contractual",ROUND('[1]Tabla de Amortizacion'!C56,8),IF([1]CALCULADORA!$F$10="6% (Medio)",ROUND('[1]Tabla de Amortizacion'!F56,8),IF([1]CALCULADORA!$F$10="10% (Medio Alto)",ROUND('[1]Tabla de Amortizacion'!H56,8),IF([1]CALCULADORA!$F$10="14% (Alto)",ROUND('[1]Tabla de Amortizacion'!#REF!,8),IF([1]CALCULADORA!$F$10=20%,ROUND('[1]Tabla de Amortizacion'!#REF!,8),ROUND('[1]Tabla de Amortizacion'!K56,8)))))) -> 0
A56: 2026-02-23 | B56: 0.0092824 | C56: =+VLOOKUP(A56,'Tabla de Amortizacion'!$D$2:$Q$182,MATCH(Tablas!$B$1,'Tabla de Amortizacion'!$D$2:$Q$2,0)) -> 0.0092824 | E56: =IF([1]CALCULADORA!$F$10="Contractual",ROUND('[1]Tabla de Amortizacion'!C57,8),IF([1]CALCULADORA!$F$10="6% (Medio)",ROUND('[1]Tabla de Amortizacion'!F57,8),IF([1]CALCULADORA!$F$10="10% (Medio Alto)",ROUND('[1]Tabla de Amortizacion'!H57,8),IF([1]CALCULADORA!$F$10="14% (Alto)",ROUND('[1]Tabla de Amortizacion'!#REF!,8),IF([1]CALCULADORA!$F$10=20%,ROUND('[1]Tabla de Amortizacion'!#REF!,8),ROUND('[1]Tabla de Amortizacion'!K57,8)))))) -> 0
A57: 2026-03-23 | B57: 0.00919094 | C57: =+VLOOKUP(A57,'Tabla de Amortizacion'!$D$2:$Q$182,MATCH(Tablas!$B$1,'Tabla de Amortizacion'!$D$2:$Q$2,0)) -> 0.00919094 | E57: =IF([1]CALCULADORA!$F$10="Contractual",ROUND('[1]Tabla de Amortizacion'!C58,8),IF([1]CALCULADORA!$F$10="6% (Medio)",ROUND('[1]Tabla de Amortizacion'!F58,8),IF([1]CALCULADORA!$F$10="10% (Medio Alto)",ROUND('[1]Tabla de Amortizacion'!H58,8),IF([1]CALCULADORA!$F$10="14% (Alto)",ROUND('[1]Tabla de Amortizacion'!#REF!,8),IF([1]CALCULADORA!$F$10=20%,ROUND('[1]Tabla de Amortizacion'!#REF!,8),ROUND('[1]Tabla de Amortizacion'!K58,8)))))) -> 0
A58: 2026-04-23 | B58: 0.00909408 | C58: =+VLOOKUP(A58,'Tabla de Amortizacion'!$D$2:$Q$182,MATCH(Tablas!$B$1,'Tabla de Amortizacion'!$D$2:$Q$2,0)) -> 0.00909408 | E58: =IF([1]CALCULADORA!$F$10="Contractual",ROUND('[1]Tabla de Amortizacion'!C59,8),IF([1]CALCULADORA!$F$10="6% (Medio)",ROUND('[1]Tabla de Amortizacion'!F59,8),IF([1]CALCULADORA!$F$10="10% (Medio Alto)",ROUND('[1]Tabla de Amortizacion'!H59,8),IF([1]CALCULADORA!$F$10="14% (Alto)",ROUND('[1]Tabla de Amortizacion'!#REF!,8),IF([1]CALCULADORA!$F$10=20%,ROUND('[1]Tabla de Amortizacion'!#REF!,8),ROUND('[1]Tabla de Amortizacion'!K59,8)))))) -> 0
A59: 2026-05-23 | B59: 0.00853051 | C59: =+VLOOKUP(A59,'Tabla de Amortizacion'!$D$2:$Q$182,MATCH(Tablas!$B$1,'Tabla de Amortizacion'!$D$2:$Q$2,0)) -> 0.00853051 | E59: =IF([1]CALCULADORA!$F$10="Contractual",ROUND('[1]Tabla de Amortizacion'!C60,8),IF([1]CALCULADORA!$F$10="6% (Medio)",ROUND('[1]Tabla de Amortizacion'!F60,8),IF([1]CALCULADORA!$F$10="10% (Medio Alto)",ROUND('[1]Tabla de Amortizacion'!H60,8),IF([1]CALCULADORA!$F$10="14% (Alto)",ROUND('[1]Tabla de Amortizacion'!#REF!,8),IF([1]CALCULADORA!$F$10=20%,ROUND('[1]Tabla de Amortizacion'!#REF!,8),ROUND('[1]Tabla de Amortizacion'!K60,8)))))) -> 0
A60: 2026-06-23 | B60: 0.00888582 | C60: =+VLOOKUP(A60,'Tabla de Amortizacion'!$D$2:$Q$182,MATCH(Tablas!$B$1,'Tabla de Amortizacion'!$D$2:$Q$2,0)) -> 0.00888582 | E60: =IF([1]CALCULADORA!$F$10="Contractual",ROUND('[1]Tabla de Amortizacion'!C61,8),IF([1]CALCULADORA!$F$10="6% (Medio)",ROUND('[1]Tabla de Amortizacion'!F61,8),IF([1]CALCULADORA!$F$10="10% (Medio Alto)",ROUND('[1]Tabla de Amortizacion'!H61,8),IF([1]CALCULADORA!$F$10="14% (Alto)",ROUND('[1]Tabla de Amortizacion'!#REF!,8),IF([1]CALCULADORA!$F$10=20%,ROUND('[1]Tabla de Amortizacion'!#REF!,8),ROUND('[1]Tabla de Amortizacion'!K61,8)))))) -> 0
A61: 2026-07-23 | B61: 0.008783 | C61: =+VLOOKUP(A61,'Tabla de Amortizacion'!$D$2:$Q$182,MATCH(Tablas!$B$1,'Tabla de Amortizacion'!$D$2:$Q$2,0)) -> 0.008783 | E61: =IF([1]CALCULADORA!$F$10="Contractual",ROUND('[1]Tabla de Amortizacion'!C62,8),IF([1]CALCULADORA!$F$10="6% (Medio)",ROUND('[1]Tabla de Amortizacion'!F62,8),IF([1]CALCULADORA!$F$10="10% (Medio Alto)",ROUND('[1]Tabla de Amortizacion'!H62,8),IF([1]CALCULADORA!$F$10="14% (Alto)",ROUND('[1]Tabla de Amortizacion'!#REF!,8),IF([1]CALCULADORA!$F$10=20%,ROUND('[1]Tabla de Amortizacion'!#REF!,8),ROUND('[1]Tabla de Amortizacion'!K62,8)))))) -> 0
A62: 2026-08-23 | B62: 0.00865222 | C62: =+VLOOKUP(A62,'Tabla de Amortizacion'!$D$2:$Q$182,MATCH(Tablas!$B$1,'Tabla de Amortizacion'!$D$2:$Q$2,0)) -> 0.00865222 | E62: =IF([1]CALCULADORA!$F$10="Contractual",ROUND('[1]Tabla de Amortizacion'!C63,8),IF([1]CALCULADORA!$F$10="6% (Medio)",ROUND('[1]Tabla de Amortizacion'!F63,8),IF([1]CALCULADORA!$F$10="10% (Medio Alto)",ROUND('[1]Tabla de Amortizacion'!H63,8),IF([1]CALCULADORA!$F$10="14% (Alto)",ROUND('[1]Tabla de Amortizacion'!#REF!,8),IF([1]CALCULADORA!$F$10=20%,ROUND('[1]Tabla de Amortizacion'!#REF!,8),ROUND('[1]Tabla de Amortizacion'!K63,8)))))) -> 0
A63: 2026-09-23 | B63: 0.00853397 | C63: =+VLOOKUP(A63,'Tabla de Amortizacion'!$D$2:$Q$182,MATCH(Tablas!$B$1,'Tabla de Amortizacion'!$D$2:$Q$2,0)) -> 0.00853397 | E63: =IF([1]CALCULADORA!$F$10="Contractual",ROUND('[1]Tabla de Amortizacion'!C64,8),IF([1]CALCULADORA!$F$10="6% (Medio)",ROUND('[1]Tabla de Amortizacion'!F64,8),IF([1]CALCULADORA!$F$10="10% (Medio Alto)",ROUND('[1]Tabla de Amortizacion'!H64,8),IF([1]CALCULADORA!$F$10="14% (Alto)",ROUND('[1]Tabla de Amortizacion'!#REF!,8),IF([1]CALCULADORA!$F$10=20%,ROUND('[1]Tabla de Amortizacion'!#REF!,8),ROUND('[1]Tabla de Amortizacion'!K64,8)))))) -> 0
A64: 2026-10-23 | B64: 0.00843576 | C64: =+VLOOKUP(A64,'Tabla de Amortizacion'!$D$2:$Q$182,MATCH(Tablas!$B$1,'Tabla de Amortizacion'!$D$2:$Q$2,0)) -> 0.00843576 | E64: =IF([1]CALCULADORA!$F$10="Contractual",ROUND('[1]Tabla de Amortizacion'!C65,8),IF([1]CALCULADORA!$F$10="6% (Medio)",ROUND('[1]Tabla de Amortizacion'!F65,8),IF([1]CALCULADORA!$F$10="10% (Medio Alto)",ROUND('[1]Tabla de Amortizacion'!H65,8),IF([1]CALCULADORA!$F$10="14% (Alto)",ROUND('[1]Tabla de Amortizacion'!#REF!,8),IF([1]CALCULADORA!$F$10=20%,ROUND('[1]Tabla de Amortizacion'!#REF!,8),ROUND('[1]Tabla de Amortizacion'!K65,8)))))) -> 0
A65: 2026-11-23 | B65: 0.00833304 | C65: =+VLOOKUP(A65,'Tabla de Amortizacion'!$D$2:$Q$182,MATCH(Tablas!$B$1,'Tabla de Amortizacion'!$D$2:$Q$2,0)) -> 0.00833304 | E65: =IF([1]CALCULADORA!$F$10="Contractual",ROUND('[1]Tabla de Amortizacion'!C66,8),IF([1]CALCULADORA!$F$10="6% (Medio)",ROUND('[1]Tabla de Amortizacion'!F66,8),IF([1]CALCULADORA!$F$10="10% (Medio Alto)",ROUND('[1]Tabla de Amortizacion'!H66,8),IF([1]CALCULADORA!$F$10="14% (Alto)",ROUND('[1]Tabla de Amortizacion'!#REF!,8),IF([1]CALCULADORA!$F$10=20%,ROUND('[1]Tabla de Amortizacion'!#REF!,8),ROUND('[1]Tabla de Amortizacion'!K66,8)))))) -> 0
A66: 2026-12-23 | B66: 0.00819954 | C66: =+VLOOKUP(A66,'Tabla de Amortizacion'!$D$2:$Q$182,MATCH(Tablas!$B$1,'Tabla de Amortizacion'!$D$2:$Q$2,0)) -> 0.00819954 | E66: =IF([1]CALCULADORA!$F$10="Contractual",ROUND('[1]Tabla de Amortizacion'!C67,8),IF([1]CALCULADORA!$F$10="6% (Medio)",ROUND('[1]Tabla de Amortizacion'!F67,8),IF([1]CALCULADORA!$F$10="10% (Medio Alto)",ROUND('[1]Tabla de Amortizacion'!H67,8),IF([1]CALCULADORA!$F$10="14% (Alto)",ROUND('[1]Tabla de Amortizacion'!#REF!,8),IF([1]CALCULADORA!$F$10=20%,ROUND('[1]Tabla de Amortizacion'!#REF!,8),ROUND('[1]Tabla de Amortizacion'!K67,8)))))) -> 0
A67: =EDATE(A66,1) -> 2027-01-23 | B67: =+ROUND(C67,8) -> 0.00807043 | C67: =+VLOOKUP(A67,'Tabla de Amortizacion'!$D$2:$Q$182,MATCH(Tablas!$B$1,'Tabla de Amortizacion'!$D$2:$Q$2,0)) -> 0.00807043 | E67: =IF([1]CALCULADORA!$F$10="Contractual",ROUND('[1]Tabla de Amortizacion'!C68,8),IF([1]CALCULADORA!$F$10="6% (Medio)",ROUND('[1]Tabla de Amortizacion'!F68,8),IF([1]CALCULADORA!$F$10="10% (Medio Alto)",ROUND('[1]Tabla de Amortizacion'!H68,8),IF([1]CALCULADORA!$F$10="14% (Alto)",ROUND('[1]Tabla de Amortizacion'!#REF!,8),IF([1]CALCULADORA!$F$10=20%,ROUND('[1]Tabla de Amortizacion'!#REF!,8),ROUND('[1]Tabla de Amortizacion'!K68,8)))))) -> 0
A68: 2027-02-23 | B68: 0.00795254 | C68: =+VLOOKUP(A68,'Tabla de Amortizacion'!$D$2:$Q$182,MATCH(Tablas!$B$1,'Tabla de Amortizacion'!$D$2:$Q$2,0)) -> 0.00795254 | E68: =IF([1]CALCULADORA!$F$10="Contractual",ROUND('[1]Tabla de Amortizacion'!C69,8),IF([1]CALCULADORA!$F$10="6% (Medio)",ROUND('[1]Tabla de Amortizacion'!F69,8),IF([1]CALCULADORA!$F$10="10% (Medio Alto)",ROUND('[1]Tabla de Amortizacion'!H69,8),IF([1]CALCULADORA!$F$10="14% (Alto)",ROUND('[1]Tabla de Amortizacion'!#REF!,8),IF([1]CALCULADORA!$F$10=20%,ROUND('[1]Tabla de Amortizacion'!#REF!,8),ROUND('[1]Tabla de Amortizacion'!K69,8)))))) -> 0
A69: 2027-03-23 | B69: 0.00783889 | C69: =+VLOOKUP(A69,'Tabla de Amortizacion'!$D$2:$Q$182,MATCH(Tablas!$B$1,'Tabla de Amortizacion'!$D$2:$Q$2,0)) -> 0.00783889 | E69: =IF([1]CALCULADORA!$F$10="Contractual",ROUND('[1]Tabla de Amortizacion'!C70,8),IF([1]CALCULADORA!$F$10="6% (Medio)",ROUND('[1]Tabla de Amortizacion'!F70,8),IF([1]CALCULADORA!$F$10="10% (Medio Alto)",ROUND('[1]Tabla de Amortizacion'!H70,8),IF([1]CALCULADORA!$F$10="14% (Alto)",ROUND('[1]Tabla de Amortizacion'!#REF!,8),IF([1]CALCULADORA!$F$10=20%,ROUND('[1]Tabla de Amortizacion'!#REF!,8),ROUND('[1]Tabla de Amortizacion'!K70,8)))))) -> 0
A70: 2027-04-23 | B70: 0.00768507 | C70: =+VLOOKUP(A70,'Tabla de Amortizacion'!$D$2:$Q$182,MATCH(Tablas!$B$1,'Tabla de Amortizacion'!$D$2:$Q$2,0)) -> 0.00768507 | E70: =IF([1]CALCULADORA!$F$10="Contractual",ROUND('[1]Tabla de Amortizacion'!C71,8),IF([1]CALCULADORA!$F$10="6% (Medio)",ROUND('[1]Tabla de Amortizacion'!F71,8),IF([1]CALCULADORA!$F$10="10% (Medio Alto)",ROUND('[1]Tabla de Amortizacion'!H71,8),IF([1]CALCULADORA!$F$10="14% (Alto)",ROUND('[1]Tabla de Amortizacion'!#REF!,8),IF([1]CALCULADORA!$F$10=20%,ROUND('[1]Tabla de Amortizacion'!#REF!,8),ROUND('[1]Tabla de Amortizacion'!K71,8)))))) -> 0
A71: 2027-05-23 | B71: 0.00712306 | C71: =+VLOOKUP(A71,'Tabla de Amortizacion'!$D$2:$Q$182,MATCH(Tablas!$B$1,'Tabla de Amortizacion'!$D$2:$Q$2,0)) -> 0.00712306 | E71: =IF([1]CALCULADORA!$F$10="Contractual",ROUND('[1]Tabla de Amortizacion'!C72,8),IF([1]CALCULADORA!$F$10="6% (Medio)",ROUND('[1]Tabla de Amortizacion'!F72,8),IF([1]CALCULADORA!$F$10="10% (Medio Alto)",ROUND('[1]Tabla de Amortizacion'!H72,8),IF([1]CALCULADORA!$F$10="14% (Alto)",ROUND('[1]Tabla de Amortizacion'!#REF!,8),IF([1]CALCULADORA!$F$10=20%,ROUND('[1]Tabla de Amortizacion'!#REF!,8),ROUND('[1]Tabla de Amortizacion'!K72,8)))))) -> 0
A72: 2027-06-23 | B72: 0.00748188 | C72: =+VLOOKUP(A72,'Tabla de Amortizacion'!$D$2:$Q$182,MATCH(Tablas!$B$1,'Tabla de Amortizacion'!$D$2:$Q$2,0)) -> 0.00748188 | E72: =IF([1]CALCULADORA!$F$10="Contractual",ROUND('[1]Tabla de Amortizacion'!C73,8),IF([1]CALCULADORA!$F$10="6% (Medio)",ROUND('[1]Tabla de Amortizacion'!F73,8),IF([1]CALCULADORA!$F$10="10% (Medio Alto)",ROUND('[1]Tabla de Amortizacion'!H73,8),IF([1]CALCULADORA!$F$10="14% (Alto)",ROUND('[1]Tabla de Amortizacion'!#REF!,8),IF([1]CALCULADORA!$F$10=20%,ROUND('[1]Tabla de Amortizacion'!#REF!,8),ROUND('[1]Tabla de Amortizacion'!K73,8)))))) -> 0
A73: 2027-07-23 | B73: 0.00739157 | C73: =+VLOOKUP(A73,'Tabla de Amortizacion'!$D$2:$Q$182,MATCH(Tablas!$B$1,'Tabla de Amortizacion'!$D$2:$Q$2,0)) -> 0.00739157 | E73: =IF([1]CALCULADORA!$F$10="Contractual",ROUND('[1]Tabla de Amortizacion'!C74,8),IF([1]CALCULADORA!$F$10="6% (Medio)",ROUND('[1]Tabla de Amortizacion'!F74,8),IF([1]CALCULADORA!$F$10="10% (Medio Alto)",ROUND('[1]Tabla de Amortizacion'!H74,8),IF([1]CALCULADORA!$F$10="14% (Alto)",ROUND('[1]Tabla de Amortizacion'!#REF!,8),IF([1]CALCULADORA!$F$10=20%,ROUND('[1]Tabla de Amortizacion'!#REF!,8),ROUND('[1]Tabla de Amortizacion'!K74,8)))))) -> 0
A74: 2027-08-23 | B74: 0.0073054 | C74: =+VLOOKUP(A74,'Tabla de Amortizacion'!$D$2:$Q$182,MATCH(Tablas!$B$1,'Tabla de Amortizacion'!$D$2:$Q$2,0)) -> 0.0073054 | E74: =IF([1]CALCULADORA!$F$10="Contractual",ROUND('[1]Tabla de Amortizacion'!C75,8),IF([1]CALCULADORA!$F$10="6% (Medio)",ROUND('[1]Tabla de Amortizacion'!F75,8),IF([1]CALCULADORA!$F$10="10% (Medio Alto)",ROUND('[1]Tabla de Amortizacion'!H75,8),IF([1]CALCULADORA!$F$10="14% (Alto)",ROUND('[1]Tabla de Amortizacion'!#REF!,8),IF([1]CALCULADORA!$F$10=20%,ROUND('[1]Tabla de Amortizacion'!#REF!,8),ROUND('[1]Tabla de Amortizacion'!K75,8)))))) -> 0
A75: 2027-09-23 | B75: 0.00719986 | C75: =+VLOOKUP(A75,'Tabla de Amortizacion'!$D$2:$Q$182,MATCH(Tablas!$B$1,'Tabla de Amortizacion'!$D$2:$Q$2,0)) -> 0.00719986 | E75: =IF([1]CALCULADORA!$F$10="Contractual",ROUND('[1]Tabla de Amortizacion'!C76,8),IF([1]CALCULADORA!$F$10="6% (Medio)",ROUND('[1]Tabla de Amortizacion'!F76,8),IF([1]CALCULADORA!$F$10="10% (Medio Alto)",ROUND('[1]Tabla de Amortizacion'!H76,8),IF([1]CALCULADORA!$F$10="14% (Alto)",ROUND('[1]Tabla de Amortizacion'!#REF!,8),IF([1]CALCULADORA!$F$10=20%,ROUND('[1]Tabla de Amortizacion'!#REF!,8),ROUND('[1]Tabla de Amortizacion'!K76,8)))))) -> 0
A76: 2027-10-23 | B76: 0.00711457 | C76: =+VLOOKUP(A76,'Tabla de Amortizacion'!$D$2:$Q$182,MATCH(Tablas!$B$1,'Tabla de Amortizacion'!$D$2:$Q$2,0)) -> 0.00711457 | E76: =IF([1]CALCULADORA!$F$10="Contractual",ROUND('[1]Tabla de Amortizacion'!C77,8),IF([1]CALCULADORA!$F$10="6% (Medio)",ROUND('[1]Tabla de Amortizacion'!F77,8),IF([1]CALCULADORA!$F$10="10% (Medio Alto)",ROUND('[1]Tabla de Amortizacion'!H77,8),IF([1]CALCULADORA!$F$10="14% (Alto)",ROUND('[1]Tabla de Amortizacion'!#REF!,8),IF([1]CALCULADORA!$F$10=20%,ROUND('[1]Tabla de Amortizacion'!#REF!,8),ROUND('[1]Tabla de Amortizacion'!K77,8)))))) -> 0
A77: 2027-11-23 | B77: 0.00700479 | C77: =+VLOOKUP(A77,'Tabla de Amortizacion'!$D$2:$Q$182,MATCH(Tablas!$B$1,'Tabla de Amortizacion'!$D$2:$Q$2,0)) -> 0.00700479 | E77: =IF([1]CALCULADORA!$F$10="Contractual",ROUND('[1]Tabla de Amortizacion'!C78,8),IF([1]CALCULADORA!$F$10="6% (Medio)",ROUND('[1]Tabla de Amortizacion'!F78,8),IF([1]CALCULADORA!$F$10="10% (Medio Alto)",ROUND('[1]Tabla de Amortizacion'!H78,8),IF([1]CALCULADORA!$F$10="14% (Alto)",ROUND('[1]Tabla de Amortizacion'!#REF!,8),IF([1]CALCULADORA!$F$10=20%,ROUND('[1]Tabla de Amortizacion'!#REF!,8),ROUND('[1]Tabla de Amortizacion'!K78,8)))))) -> 0
A78: 2027-12-23 | B78: 0.00689147 | C78: =+VLOOKUP(A78,'Tabla de Amortizacion'!$D$2:$Q$182,MATCH(Tablas!$B$1,'Tabla de Amortizacion'!$D$2:$Q$2,0)) -> 0.00689147 | E78: =IF([1]CALCULADORA!$F$10="Contractual",ROUND('[1]Tabla de Amortizacion'!C79,8),IF([1]CALCULADORA!$F$10="6% (Medio)",ROUND('[1]Tabla de Amortizacion'!F79,8),IF([1]CALCULADORA!$F$10="10% (Medio Alto)",ROUND('[1]Tabla de Amortizacion'!H79,8),IF([1]CALCULADORA!$F$10="14% (Alto)",ROUND('[1]Tabla de Amortizacion'!#REF!,8),IF([1]CALCULADORA!$F$10=20%,ROUND('[1]Tabla de Amortizacion'!#REF!,8),ROUND('[1]Tabla de Amortizacion'!K79,8)))))) -> 0
A79: 2028-01-23 | B79: 0.00678641 | C79: =+VLOOKUP(A79,'Tabla de Amortizacion'!$D$2:$Q$182,MATCH(Tablas!$B$1,'Tabla de Amortizacion'!$D$2:$Q$2,0)) -> 0.00678641 | E79: =IF([1]CALCULADORA!$F$10="Contractual",ROUND('[1]Tabla de Amortizacion'!C80,8),IF([1]CALCULADORA!$F$10="6% (Medio)",ROUND('[1]Tabla de Amortizacion'!F80,8),IF([1]CALCULADORA!$F$10="10% (Medio Alto)",ROUND('[1]Tabla de Amortizacion'!H80,8),IF([1]CALCULADORA!$F$10="14% (Alto)",ROUND('[1]Tabla de Amortizacion'!#REF!,8),IF([1]CALCULADORA!$F$10=20%,ROUND('[1]Tabla de Amortizacion'!#REF!,8),ROUND('[1]Tabla de Amortizacion'!K80,8)))))) -> 0
A80: 2028-02-23 | B80: 0.00668822 | C80: =+VLOOKUP(A80,'Tabla de Amortizacion'!$D$2:$Q$182,MATCH(Tablas!$B$1,'Tabla de Amortizacion'!$D$2:$Q$2,0)) -> 0.00668822 | E80: =IF([1]CALCULADORA!$F$10="Contractual",ROUND('[1]Tabla de Amortizacion'!C81,8),IF([1]CALCULADORA!$F$10="6% (Medio)",ROUND('[1]Tabla de Amortizacion'!F81,8),IF([1]CALCULADORA!$F$10="10% (Medio Alto)",ROUND('[1]Tabla de Amortizacion'!H81,8),IF([1]CALCULADORA!$F$10="14% (Alto)",ROUND('[1]Tabla de Amortizacion'!#REF!,8),IF([1]CALCULADORA!$F$10=20%,ROUND('[1]Tabla de Amortizacion'!#REF!,8),ROUND('[1]Tabla de Amortizacion'!K81,8)))))) -> 0
A81: 2028-03-23 | B81: 0.00660068 | C81: =+VLOOKUP(A81,'Tabla de Amortizacion'!$D$2:$Q$182,MATCH(Tablas!$B$1,'Tabla de Amortizacion'!$D$2:$Q$2,0)) -> 0.00660068 | E81: =IF([1]CALCULADORA!$F$10="Contractual",ROUND('[1]Tabla de Amortizacion'!C82,8),IF([1]CALCULADORA!$F$10="6% (Medio)",ROUND('[1]Tabla de Amortizacion'!F82,8),IF([1]CALCULADORA!$F$10="10% (Medio Alto)",ROUND('[1]Tabla de Amortizacion'!H82,8),IF([1]CALCULADORA!$F$10="14% (Alto)",ROUND('[1]Tabla de Amortizacion'!#REF!,8),IF([1]CALCULADORA!$F$10=20%,ROUND('[1]Tabla de Amortizacion'!#REF!,8),ROUND('[1]Tabla de Amortizacion'!K82,8)))))) -> 0
A82: 2028-04-23 | B82: 0.00649239 | C82: =+VLOOKUP(A82,'Tabla de Amortizacion'!$D$2:$Q$182,MATCH(Tablas!$B$1,'Tabla de Amortizacion'!$D$2:$Q$2,0)) -> 0.00649239 | E82: =IF([1]CALCULADORA!$F$10="Contractual",ROUND('[1]Tabla de Amortizacion'!C83,8),IF([1]CALCULADORA!$F$10="6% (Medio)",ROUND('[1]Tabla de Amortizacion'!F83,8),IF([1]CALCULADORA!$F$10="10% (Medio Alto)",ROUND('[1]Tabla de Amortizacion'!H83,8),IF([1]CALCULADORA!$F$10="14% (Alto)",ROUND('[1]Tabla de Amortizacion'!#REF!,8),IF([1]CALCULADORA!$F$10=20%,ROUND('[1]Tabla de Amortizacion'!#REF!,8),ROUND('[1]Tabla de Amortizacion'!K83,8)))))) -> 0
A83: 2028-05-23 | B83: 0.00590686 | C83: =+VLOOKUP(A83,'Tabla de Amortizacion'!$D$2:$Q$182,MATCH(Tablas!$B$1,'Tabla de Amortizacion'!$D$2:$Q$2,0)) -> 0.00590686 | E83: =IF([1]CALCULADORA!$F$10="Contractual",ROUND('[1]Tabla de Amortizacion'!C84,8),IF([1]CALCULADORA!$F$10="6% (Medio)",ROUND('[1]Tabla de Amortizacion'!F84,8),IF([1]CALCULADORA!$F$10="10% (Medio Alto)",ROUND('[1]Tabla de Amortizacion'!H84,8),IF([1]CALCULADORA!$F$10="14% (Alto)",ROUND('[1]Tabla de Amortizacion'!#REF!,8),IF([1]CALCULADORA!$F$10=20%,ROUND('[1]Tabla de Amortizacion'!#REF!,8),ROUND('[1]Tabla de Amortizacion'!K84,8)))))) -> 0
A84: 2028-06-23 | B84: 0.00627883 | C84: =+VLOOKUP(A84,'Tabla de Amortizacion'!$D$2:$Q$182,MATCH(Tablas!$B$1,'Tabla de Amortizacion'!$D$2:$Q$2,0)) -> 0.00627883 | E84: =IF([1]CALCULADORA!$F$10="Contractual",ROUND('[1]Tabla de Amortizacion'!C85,8),IF([1]CALCULADORA!$F$10="6% (Medio)",ROUND('[1]Tabla de Amortizacion'!F85,8),IF([1]CALCULADORA!$F$10="10% (Medio Alto)",ROUND('[1]Tabla de Amortizacion'!H85,8),IF([1]CALCULADORA!$F$10="14% (Alto)",ROUND('[1]Tabla de Amortizacion'!#REF!,8),IF([1]CALCULADORA!$F$10=20%,ROUND('[1]Tabla de Amortizacion'!#REF!,8),ROUND('[1]Tabla de Amortizacion'!K85,8)))))) -> 0
A85: 2028-07-23 | B85: 0.00619503 | C85: =+VLOOKUP(A85,'Tabla de Amortizacion'!$D$2:$Q$182,MATCH(Tablas!$B$1,'Tabla de Amortizacion'!$D$2:$Q$2,0)) -> 0.00619503 | E85: =IF([1]CALCULADORA!$F$10="Contractual",ROUND('[1]Tabla de Amortizacion'!C86,8),IF([1]CALCULADORA!$F$10="6% (Medio)",ROUND('[1]Tabla de Amortizacion'!F86,8),IF([1]CALCULADORA!$F$10="10% (Medio Alto)",ROUND('[1]Tabla de Amortizacion'!H86,8),IF([1]CALCULADORA!$F$10="14% (Alto)",ROUND('[1]Tabla de Amortizacion'!#REF!,8),IF([1]CALCULADORA!$F$10=20%,ROUND('[1]Tabla de Amortizacion'!#REF!,8),ROUND('[1]Tabla de Amortizacion'!K86,8)))))) -> 0
A86: 2028-08-23 | B86: 0.00609068 | C86: =+VLOOKUP(A86,'Tabla de Amortizacion'!$D$2:$Q$182,MATCH(Tablas!$B$1,'Tabla de Amortizacion'!$D$2:$Q$2,0)) -> 0.00609068 | E86: =IF([1]CALCULADORA!$F$10="Contractual",ROUND('[1]Tabla de Amortizacion'!C87,8),IF([1]CALCULADORA!$F$10="6% (Medio)",ROUND('[1]Tabla de Amortizacion'!F87,8),IF([1]CALCULADORA!$F$10="10% (Medio Alto)",ROUND('[1]Tabla de Amortizacion'!H87,8),IF([1]CALCULADORA!$F$10="14% (Alto)",ROUND('[1]Tabla de Amortizacion'!#REF!,8),IF([1]CALCULADORA!$F$10=20%,ROUND('[1]Tabla de Amortizacion'!#REF!,8),ROUND('[1]Tabla de Amortizacion'!K87,8)))))) -> 0
A87: 2028-09-23 | B87: 0.00598231 | C87: =+VLOOKUP(A87,'Tabla de Amortizacion'!$D$2:$Q$182,MATCH(Tablas!$B$1,'Tabla de Amortizacion'!$D$2:$Q$2,0)) -> 0.00598231 | E87: =IF([1]CALCULADORA!$F$10="Contractual",ROUND('[1]Tabla de Amortizacion'!C88,8),IF([1]CALCULADORA!$F$10="6% (Medio)",ROUND('[1]Tabla de Amortizacion'!F88,8),IF([1]CALCULADORA!$F$10="10% (Medio Alto)",ROUND('[1]Tabla de Amortizacion'!H88,8),IF([1]CALCULADORA!$F$10="14% (Alto)",ROUND('[1]Tabla de Amortizacion'!#REF!,8),IF([1]CALCULADORA!$F$10=20%,ROUND('[1]Tabla de Amortizacion'!#REF!,8),ROUND('[1]Tabla de Amortizacion'!K88,8)))))) -> 0
A88: 2028-10-23 | B88: 0.00589356 | C88: =+VLOOKUP(A88,'Tabla de Amortizacion'!$D$2:$Q$182,MATCH(Tablas!$B$1,'Tabla de Amortizacion'!$D$2:$Q$2,0)) -> 0.00589356 | E88: =IF([1]CALCULADORA!$F$10="Contractual",ROUND('[1]Tabla de Amortizacion'!C89,8),IF([1]CALCULADORA!$F$10="6% (Medio)",ROUND('[1]Tabla de Amortizacion'!F89,8),IF([1]CALCULADORA!$F$10="10% (Medio Alto)",ROUND('[1]Tabla de Amortizacion'!H89,8),IF([1]CALCULADORA!$F$10="14% (Alto)",ROUND('[1]Tabla de Amortizacion'!#REF!,8),IF([1]CALCULADORA!$F$10=20%,ROUND('[1]Tabla de Amortizacion'!#REF!,8),ROUND('[1]Tabla de Amortizacion'!K89,8)))))) -> 0
A89: 2028-11-23 | B89: 0.00580746 | C89: =+VLOOKUP(A89,'Tabla de Amortizacion'!$D$2:$Q$182,MATCH(Tablas!$B$1,'Tabla de Amortizacion'!$D$2:$Q$2,0)) -> 0.00580746 | E89: =IF([1]CALCULADORA!$F$10="Contractual",ROUND('[1]Tabla de Amortizacion'!C90,8),IF([1]CALCULADORA!$F$10="6% (Medio)",ROUND('[1]Tabla de Amortizacion'!F90,8),IF([1]CALCULADORA!$F$10="10% (Medio Alto)",ROUND('[1]Tabla de Amortizacion'!H90,8),IF([1]CALCULADORA!$F$10="14% (Alto)",ROUND('[1]Tabla de Amortizacion'!#REF!,8),IF([1]CALCULADORA!$F$10=20%,ROUND('[1]Tabla de Amortizacion'!#REF!,8),ROUND('[1]Tabla de Amortizacion'!K90,8)))))) -> 0
A90: 2028-12-23 | B90: 0.00569008 | C90: =+VLOOKUP(A90,'Tabla de Amortizacion'!$D$2:$Q$182,MATCH(Tablas!$B$1,'Tabla de Amortizacion'!$D$2:$Q$2,0)) -> 0.00569008 | E90: =IF([1]CALCULADORA!$F$10="Contractual",ROUND('[1]Tabla de Amortizacion'!C91,8),IF([1]CALCULADORA!$F$10="6% (Medio)",ROUND('[1]Tabla de Amortizacion'!F91,8),IF([1]CALCULADORA!$F$10="10% (Medio Alto)",ROUND('[1]Tabla de Amortizacion'!H91,8),IF([1]CALCULADORA!$F$10="14% (Alto)",ROUND('[1]Tabla de Amortizacion'!#REF!,8),IF([1]CALCULADORA!$F$10=20%,ROUND('[1]Tabla de Amortizacion'!#REF!,8),ROUND('[1]Tabla de Amortizacion'!K91,8)))))) -> 0
A91: 2029-01-23 | B91: 0.00560659 | C91: =+VLOOKUP(A91,'Tabla de Amortizacion'!$D$2:$Q$182,MATCH(Tablas!$B$1,'Tabla de Amortizacion'!$D$2:$Q$2,0)) -> 0.00560659 | E91: =IF([1]CALCULADORA!$F$10="Contractual",ROUND('[1]Tabla de Amortizacion'!C92,8),IF([1]CALCULADORA!$F$10="6% (Medio)",ROUND('[1]Tabla de Amortizacion'!F92,8),IF([1]CALCULADORA!$F$10="10% (Medio Alto)",ROUND('[1]Tabla de Amortizacion'!H92,8),IF([1]CALCULADORA!$F$10="14% (Alto)",ROUND('[1]Tabla de Amortizacion'!#REF!,8),IF([1]CALCULADORA!$F$10=20%,ROUND('[1]Tabla de Amortizacion'!#REF!,8),ROUND('[1]Tabla de Amortizacion'!K92,8)))))) -> 0
A92: 2029-02-23 | B92: 0.00553094 | C92: =+VLOOKUP(A92,'Tabla de Amortizacion'!$D$2:$Q$182,MATCH(Tablas!$B$1,'Tabla de Amortizacion'!$D$2:$Q$2,0)) -> 0.00553094 | E92: =IF([1]CALCULADORA!$F$10="Contractual",ROUND('[1]Tabla de Amortizacion'!C93,8),IF([1]CALCULADORA!$F$10="6% (Medio)",ROUND('[1]Tabla de Amortizacion'!F93,8),IF([1]CALCULADORA!$F$10="10% (Medio Alto)",ROUND('[1]Tabla de Amortizacion'!H93,8),IF([1]CALCULADORA!$F$10="14% (Alto)",ROUND('[1]Tabla de Amortizacion'!#REF!,8),IF([1]CALCULADORA!$F$10=20%,ROUND('[1]Tabla de Amortizacion'!#REF!,8),ROUND('[1]Tabla de Amortizacion'!K93,8)))))) -> 0
A93: 2029-03-23 | B93: 0.00546354 | C93: =+VLOOKUP(A93,'Tabla de Amortizacion'!$D$2:$Q$182,MATCH(Tablas!$B$1,'Tabla de Amortizacion'!$D$2:$Q$2,0)) -> 0.00546354 | E93: =IF([1]CALCULADORA!$F$10="Contractual",ROUND('[1]Tabla de Amortizacion'!C94,8),IF([1]CALCULADORA!$F$10="6% (Medio)",ROUND('[1]Tabla de Amortizacion'!F94,8),IF([1]CALCULADORA!$F$10="10% (Medio Alto)",ROUND('[1]Tabla de Amortizacion'!H94,8),IF([1]CALCULADORA!$F$10="14% (Alto)",ROUND('[1]Tabla de Amortizacion'!#REF!,8),IF([1]CALCULADORA!$F$10=20%,ROUND('[1]Tabla de Amortizacion'!#REF!,8),ROUND('[1]Tabla de Amortizacion'!K94,8)))))) -> 0
A94: 2029-04-23 | B94: 0.00539294 | C94: =+VLOOKUP(A94,'Tabla de Amortizacion'!$D$2:$Q$182,MATCH(Tablas!$B$1,'Tabla de Amortizacion'!$D$2:$Q$2,0)) -> 0.00539294 | E94: =IF([1]CALCULADORA!$F$10="Contractual",ROUND('[1]Tabla de Amortizacion'!C95,8),IF([1]CALCULADORA!$F$10="6% (Medio)",ROUND('[1]Tabla de Amortizacion'!F95,8),IF([1]CALCULADORA!$F$10="10% (Medio Alto)",ROUND('[1]Tabla de Amortizacion'!H95,8),IF([1]CALCULADORA!$F$10="14% (Alto)",ROUND('[1]Tabla de Amortizacion'!#REF!,8),IF([1]CALCULADORA!$F$10=20%,ROUND('[1]Tabla de Amortizacion'!#REF!,8),ROUND('[1]Tabla de Amortizacion'!K95,8)))))) -> 0
A95: 2029-05-23 | B95: 0.00479068 | C95: =+VLOOKUP(A95,'Tabla de Amortizacion'!$D$2:$Q$182,MATCH(Tablas!$B$1,'Tabla de Amortizacion'!$D$2:$Q$2,0)) -> 0.00479068 | E95: =IF([1]CALCULADORA!$F$10="Contractual",ROUND('[1]Tabla de Amortizacion'!C96,8),IF([1]CALCULADORA!$F$10="6% (Medio)",ROUND('[1]Tabla de Amortizacion'!F96,8),IF([1]CALCULADORA!$F$10="10% (Medio Alto)",ROUND('[1]Tabla de Amortizacion'!H96,8),IF([1]CALCULADORA!$F$10="14% (Alto)",ROUND('[1]Tabla de Amortizacion'!#REF!,8),IF([1]CALCULADORA!$F$10=20%,ROUND('[1]Tabla de Amortizacion'!#REF!,8),ROUND('[1]Tabla de Amortizacion'!K96,8)))))) -> 0
A96: 2029-06-23 | B96: 0.00522308 | C96: =+VLOOKUP(A96,'Tabla de Amortizacion'!$D$2:$Q$182,MATCH(Tablas!$B$1,'Tabla de Amortizacion'!$D$2:$Q$2,0)) -> 0.00522308 | E96: =IF([1]CALCULADORA!$F$10="Contractual",ROUND('[1]Tabla de Amortizacion'!C97,8),IF([1]CALCULADORA!$F$10="6% (Medio)",ROUND('[1]Tabla de Amortizacion'!F97,8),IF([1]CALCULADORA!$F$10="10% (Medio Alto)",ROUND('[1]Tabla de Amortizacion'!H97,8),IF([1]CALCULADORA!$F$10="14% (Alto)",ROUND('[1]Tabla de Amortizacion'!#REF!,8),IF([1]CALCULADORA!$F$10=20%,ROUND('[1]Tabla de Amortizacion'!#REF!,8),ROUND('[1]Tabla de Amortizacion'!K97,8)))))) -> 0
A97: 2029-07-23 | B97: 0.0051383 | C97: =+VLOOKUP(A97,'Tabla de Amortizacion'!$D$2:$Q$182,MATCH(Tablas!$B$1,'Tabla de Amortizacion'!$D$2:$Q$2,0)) -> 0.0051383 | E97: =IF([1]CALCULADORA!$F$10="Contractual",ROUND('[1]Tabla de Amortizacion'!C98,8),IF([1]CALCULADORA!$F$10="6% (Medio)",ROUND('[1]Tabla de Amortizacion'!F98,8),IF([1]CALCULADORA!$F$10="10% (Medio Alto)",ROUND('[1]Tabla de Amortizacion'!H98,8),IF([1]CALCULADORA!$F$10="14% (Alto)",ROUND('[1]Tabla de Amortizacion'!#REF!,8),IF([1]CALCULADORA!$F$10=20%,ROUND('[1]Tabla de Amortizacion'!#REF!,8),ROUND('[1]Tabla de Amortizacion'!K98,8)))))) -> 0
A98: 2029-08-23 | B98: 0.00506071 | C98: =+VLOOKUP(A98,'Tabla de Amortizacion'!$D$2:$Q$182,MATCH(Tablas!$B$1,'Tabla de Amortizacion'!$D$2:$Q$2,0)) -> 0.00506071 | E98: =IF([1]CALCULADORA!$F$10="Contractual",ROUND('[1]Tabla de Amortizacion'!C99,8),IF([1]CALCULADORA!$F$10="6% (Medio)",ROUND('[1]Tabla de Amortizacion'!F99,8),IF([1]CALCULADORA!$F$10="10% (Medio Alto)",ROUND('[1]Tabla de Amortizacion'!H99,8),IF([1]CALCULADORA!$F$10="14% (Alto)",ROUND('[1]Tabla de Amortizacion'!#REF!,8),IF([1]CALCULADORA!$F$10=20%,ROUND('[1]Tabla de Amortizacion'!#REF!,8),ROUND('[1]Tabla de Amortizacion'!K99,8)))))) -> 0
A99: 2029-09-23 | B99: 0.00499163 | C99: =+VLOOKUP(A99,'Tabla de Amortizacion'!$D$2:$Q$182,MATCH(Tablas!$B$1,'Tabla de Amortizacion'!$D$2:$Q$2,0)) -> 0.00499163 | E99: =IF([1]CALCULADORA!$F$10="Contractual",ROUND('[1]Tabla de Amortizacion'!C100,8),IF([1]CALCULADORA!$F$10="6% (Medio)",ROUND('[1]Tabla de Amortizacion'!F100,8),IF([1]CALCULADORA!$F$10="10% (Medio Alto)",ROUND('[1]Tabla de Amortizacion'!H100,8),IF([1]CALCULADORA!$F$10="14% (Alto)",ROUND('[1]Tabla de Amortizacion'!#REF!,8),IF([1]CALCULADORA!$F$10=20%,ROUND('[1]Tabla de Amortizacion'!#REF!,8),ROUND('[1]Tabla de Amortizacion'!K100,8)))))) -> 0
A100: 2029-10-23 | B100: 0.00491692 | C100: =+VLOOKUP(A100,'Tabla de Amortizacion'!$D$2:$Q$182,MATCH(Tablas!$B$1,'Tabla de Amortizacion'!$D$2:$Q$2,0)) -> 0.00491692 | E100: =IF([1]CALCULADORA!$F$10="Contractual",ROUND('[1]Tabla de Amortizacion'!C101,8),IF([1]CALCULADORA!$F$10="6% (Medio)",ROUND('[1]Tabla de Amortizacion'!F101,8),IF([1]CALCULADORA!$F$10="10% (Medio Alto)",ROUND('[1]Tabla de Amortizacion'!H101,8),IF([1]CALCULADORA!$F$10="14% (Alto)",ROUND('[1]Tabla de Amortizacion'!#REF!,8),IF([1]CALCULADORA!$F$10=20%,ROUND('[1]Tabla de Amortizacion'!#REF!,8),ROUND('[1]Tabla de Amortizacion'!K101,8)))))) -> 0
A101: 2029-11-23 | B101: 0.00485465 | C101: =+VLOOKUP(A101,'Tabla de Amortizacion'!$D$2:$Q$182,MATCH(Tablas!$B$1,'Tabla de Amortizacion'!$D$2:$Q$2,0)) -> 0.00485465 | E101: =IF([1]CALCULADORA!$F$10="Contractual",ROUND('[1]Tabla de Amortizacion'!C102,8),IF([1]CALCULADORA!$F$10="6% (Medio)",ROUND('[1]Tabla de Amortizacion'!F102,8),IF([1]CALCULADORA!$F$10="10% (Medio Alto)",ROUND('[1]Tabla de Amortizacion'!H102,8),IF([1]CALCULADORA!$F$10="14% (Alto)",ROUND('[1]Tabla de Amortizacion'!#REF!,8),IF([1]CALCULADORA!$F$10=20%,ROUND('[1]Tabla de Amortizacion'!#REF!,8),ROUND('[1]Tabla de Amortizacion'!K102,8)))))) -> 0
A102: 2029-12-23 | B102: 0.00479858 | C102: =+VLOOKUP(A102,'Tabla de Amortizacion'!$D$2:$Q$182,MATCH(Tablas!$B$1,'Tabla de Amortizacion'!$D$2:$Q$2,0)) -> 0.00479858 | E102: =IF([1]CALCULADORA!$F$10="Contractual",ROUND('[1]Tabla de Amortizacion'!C103,8),IF([1]CALCULADORA!$F$10="6% (Medio)",ROUND('[1]Tabla de Amortizacion'!F103,8),IF([1]CALCULADORA!$F$10="10% (Medio Alto)",ROUND('[1]Tabla de Amortizacion'!H103,8),IF([1]CALCULADORA!$F$10="14% (Alto)",ROUND('[1]Tabla de Amortizacion'!#REF!,8),IF([1]CALCULADORA!$F$10=20%,ROUND('[1]Tabla de Amortizacion'!#REF!,8),ROUND('[1]Tabla de Amortizacion'!K103,8)))))) -> 0
A103: 2030-01-23 | B103: 0.00474455 | C103: =+VLOOKUP(A103,'Tabla de Amortizacion'!$D$2:$Q$182,MATCH(Tablas!$B$1,'Tabla de Amortizacion'!$D$2:$Q$2,0)) -> 0.00474455 | E103: =IF([1]CALCULADORA!$F$10="Contractual",ROUND('[1]Tabla de Amortizacion'!C104,8),IF([1]CALCULADORA!$F$10="6% (Medio)",ROUND('[1]Tabla de Amortizacion'!F104,8),IF([1]CALCULADORA!$F$10="10% (Medio Alto)",ROUND('[1]Tabla de Amortizacion'!H104,8),IF([1]CALCULADORA!$F$10="14% (Alto)",ROUND('[1]Tabla de Amortizacion'!#REF!,8),IF([1]CALCULADORA!$F$10=20%,ROUND('[1]Tabla de Amortizacion'!#REF!,8),ROUND('[1]Tabla de Amortizacion'!K104,8)))))) -> 0
A104: 2030-02-23 | B104: 0.00469377 | C104: =+VLOOKUP(A104,'Tabla de Amortizacion'!$D$2:$Q$182,MATCH(Tablas!$B$1,'Tabla de Amortizacion'!$D$2:$Q$2,0)) -> 0.00469377 | E104: =IF([1]CALCULADORA!$F$10="Contractual",ROUND('[1]Tabla de Amortizacion'!C105,8),IF([1]CALCULADORA!$F$10="6% (Medio)",ROUND('[1]Tabla de Amortizacion'!F105,8),IF([1]CALCULADORA!$F$10="10% (Medio Alto)",ROUND('[1]Tabla de Amortizacion'!H105,8),IF([1]CALCULADORA!$F$10="14% (Alto)",ROUND('[1]Tabla de Amortizacion'!#REF!,8),IF([1]CALCULADORA!$F$10=20%,ROUND('[1]Tabla de Amortizacion'!#REF!,8),ROUND('[1]Tabla de Amortizacion'!K105,8)))))) -> 0
A105: 2030-03-23 | B105: 0.00464294 | C105: =+VLOOKUP(A105,'Tabla de Amortizacion'!$D$2:$Q$182,MATCH(Tablas!$B$1,'Tabla de Amortizacion'!$D$2:$Q$2,0)) -> 0.00464294 | E105: =IF([1]CALCULADORA!$F$10="Contractual",ROUND('[1]Tabla de Amortizacion'!C106,8),IF([1]CALCULADORA!$F$10="6% (Medio)",ROUND('[1]Tabla de Amortizacion'!F106,8),IF([1]CALCULADORA!$F$10="10% (Medio Alto)",ROUND('[1]Tabla de Amortizacion'!H106,8),IF([1]CALCULADORA!$F$10="14% (Alto)",ROUND('[1]Tabla de Amortizacion'!#REF!,8),IF([1]CALCULADORA!$F$10=20%,ROUND('[1]Tabla de Amortizacion'!#REF!,8),ROUND('[1]Tabla de Amortizacion'!K106,8)))))) -> 0
A106: 2030-04-23 | B106: 0.00459497 | C106: =+VLOOKUP(A106,'Tabla de Amortizacion'!$D$2:$Q$182,MATCH(Tablas!$B$1,'Tabla de Amortizacion'!$D$2:$Q$2,0)) -> 0.00459497 | E106: =IF([1]CALCULADORA!$F$10="Contractual",ROUND('[1]Tabla de Amortizacion'!C107,8),IF([1]CALCULADORA!$F$10="6% (Medio)",ROUND('[1]Tabla de Amortizacion'!F107,8),IF([1]CALCULADORA!$F$10="10% (Medio Alto)",ROUND('[1]Tabla de Amortizacion'!H107,8),IF([1]CALCULADORA!$F$10="14% (Alto)",ROUND('[1]Tabla de Amortizacion'!#REF!,8),IF([1]CALCULADORA!$F$10=20%,ROUND('[1]Tabla de Amortizacion'!#REF!,8),ROUND('[1]Tabla de Amortizacion'!K107,8)))))) -> 0
A107: 2030-05-23 | B107: 0.0039932 | C107: =+VLOOKUP(A107,'Tabla de Amortizacion'!$D$2:$Q$182,MATCH(Tablas!$B$1,'Tabla de Amortizacion'!$D$2:$Q$2,0)) -> 0.0039932 | E107: =IF([1]CALCULADORA!$F$10="Contractual",ROUND('[1]Tabla de Amortizacion'!C108,8),IF([1]CALCULADORA!$F$10="6% (Medio)",ROUND('[1]Tabla de Amortizacion'!F108,8),IF([1]CALCULADORA!$F$10="10% (Medio Alto)",ROUND('[1]Tabla de Amortizacion'!H108,8),IF([1]CALCULADORA!$F$10="14% (Alto)",ROUND('[1]Tabla de Amortizacion'!#REF!,8),IF([1]CALCULADORA!$F$10=20%,ROUND('[1]Tabla de Amortizacion'!#REF!,8),ROUND('[1]Tabla de Amortizacion'!K108,8)))))) -> 0
A108: 2030-06-23 | B108: 0.00448715 | C108: =+VLOOKUP(A108,'Tabla de Amortizacion'!$D$2:$Q$182,MATCH(Tablas!$B$1,'Tabla de Amortizacion'!$D$2:$Q$2,0)) -> 0.00448715 | E108: =IF([1]CALCULADORA!$F$10="Contractual",ROUND('[1]Tabla de Amortizacion'!C109,8),IF([1]CALCULADORA!$F$10="6% (Medio)",ROUND('[1]Tabla de Amortizacion'!F109,8),IF([1]CALCULADORA!$F$10="10% (Medio Alto)",ROUND('[1]Tabla de Amortizacion'!H109,8),IF([1]CALCULADORA!$F$10="14% (Alto)",ROUND('[1]Tabla de Amortizacion'!#REF!,8),IF([1]CALCULADORA!$F$10=20%,ROUND('[1]Tabla de Amortizacion'!#REF!,8),ROUND('[1]Tabla de Amortizacion'!K109,8)))))) -> 0
A109: 2030-07-23 | B109: 0.00443495 | C109: =+VLOOKUP(A109,'Tabla de Amortizacion'!$D$2:$Q$182,MATCH(Tablas!$B$1,'Tabla de Amortizacion'!$D$2:$Q$2,0)) -> 0.00443495 | E109: =IF([1]CALCULADORA!$F$10="Contractual",ROUND('[1]Tabla de Amortizacion'!C110,8),IF([1]CALCULADORA!$F$10="6% (Medio)",ROUND('[1]Tabla de Amortizacion'!F110,8),IF([1]CALCULADORA!$F$10="10% (Medio Alto)",ROUND('[1]Tabla de Amortizacion'!H110,8),IF([1]CALCULADORA!$F$10="14% (Alto)",ROUND('[1]Tabla de Amortizacion'!#REF!,8),IF([1]CALCULADORA!$F$10=20%,ROUND('[1]Tabla de Amortizacion'!#REF!,8),ROUND('[1]Tabla de Amortizacion'!K110,8)))))) -> 0
A110: 2030-08-23 | B110: 0.00437983 | C110: =+VLOOKUP(A110,'Tabla de Amortizacion'!$D$2:$Q$182,MATCH(Tablas!$B$1,'Tabla de Amortizacion'!$D$2:$Q$2,0)) -> 0.00437983 | E110: =IF([1]CALCULADORA!$F$10="Contractual",ROUND('[1]Tabla de Amortizacion'!C111,8),IF([1]CALCULADORA!$F$10="6% (Medio)",ROUND('[1]Tabla de Amortizacion'!F111,8),IF([1]CALCULADORA!$F$10="10% (Medio Alto)",ROUND('[1]Tabla de Amortizacion'!H111,8),IF([1]CALCULADORA!$F$10="14% (Alto)",ROUND('[1]Tabla de Amortizacion'!#REF!,8),IF([1]CALCULADORA!$F$10=20%,ROUND('[1]Tabla de Amortizacion'!#REF!,8),ROUND('[1]Tabla de Amortizacion'!K111,8)))))) -> 0
A111: 2030-09-23 | B111: 0.00432627 | C111: =+VLOOKUP(A111,'Tabla de Amortizacion'!$D$2:$Q$182,MATCH(Tablas!$B$1,'Tabla de Amortizacion'!$D$2:$Q$2,0)) -> 0.00432627 | E111: =IF([1]CALCULADORA!$F$10="Contractual",ROUND('[1]Tabla de Amortizacion'!C112,8),IF([1]CALCULADORA!$F$10="6% (Medio)",ROUND('[1]Tabla de Amortizacion'!F112,8),IF([1]CALCULADORA!$F$10="10% (Medio Alto)",ROUND('[1]Tabla de Amortizacion'!H112,8),IF([1]CALCULADORA!$F$10="14% (Alto)",ROUND('[1]Tabla de Amortizacion'!#REF!,8),IF([1]CALCULADORA!$F$10=20%,ROUND('[1]Tabla de Amortizacion'!#REF!,8),ROUND('[1]Tabla de Amortizacion'!K112,8)))))) -> 0
A112: 2030-10-23 | B112: 0.00427015 | C112: =+VLOOKUP(A112,'Tabla de Amortizacion'!$D$2:$Q$182,MATCH(Tablas!$B$1,'Tabla de Amortizacion'!$D$2:$Q$2,0)) -> 0.00427015 | E112: =IF([1]CALCULADORA!$F$10="Contractual",ROUND('[1]Tabla de Amortizacion'!C113,8),IF([1]CALCULADORA!$F$10="6% (Medio)",ROUND('[1]Tabla de Amortizacion'!F113,8),IF([1]CALCULADORA!$F$10="10% (Medio Alto)",ROUND('[1]Tabla de Amortizacion'!H113,8),IF([1]CALCULADORA!$F$10="14% (Alto)",ROUND('[1]Tabla de Amortizacion'!#REF!,8),IF([1]CALCULADORA!$F$10=20%,ROUND('[1]Tabla de Amortizacion'!#REF!,8),ROUND('[1]Tabla de Amortizacion'!K113,8)))))) -> 0
A113: 2030-11-23 | B113: 0.00421486 | C113: =+VLOOKUP(A113,'Tabla de Amortizacion'!$D$2:$Q$182,MATCH(Tablas!$B$1,'Tabla de Amortizacion'!$D$2:$Q$2,0)) -> 0.00421486 | E113: =IF([1]CALCULADORA!$F$10="Contractual",ROUND('[1]Tabla de Amortizacion'!C114,8),IF([1]CALCULADORA!$F$10="6% (Medio)",ROUND('[1]Tabla de Amortizacion'!F114,8),IF([1]CALCULADORA!$F$10="10% (Medio Alto)",ROUND('[1]Tabla de Amortizacion'!H114,8),IF([1]CALCULADORA!$F$10="14% (Alto)",ROUND('[1]Tabla de Amortizacion'!#REF!,8),IF([1]CALCULADORA!$F$10=20%,ROUND('[1]Tabla de Amortizacion'!#REF!,8),ROUND('[1]Tabla de Amortizacion'!K114,8)))))) -> 0
A114: 2030-12-23 | B114: 0.00416269 | C114: =+VLOOKUP(A114,'Tabla de Amortizacion'!$D$2:$Q$182,MATCH(Tablas!$B$1,'Tabla de Amortizacion'!$D$2:$Q$2,0)) -> 0.00416269 | E114: =IF([1]CALCULADORA!$F$10="Contractual",ROUND('[1]Tabla de Amortizacion'!C115,8),IF([1]CALCULADORA!$F$10="6% (Medio)",ROUND('[1]Tabla de Amortizacion'!F115,8),IF([1]CALCULADORA!$F$10="10% (Medio Alto)",ROUND('[1]Tabla de Amortizacion'!H115,8),IF([1]CALCULADORA!$F$10="14% (Alto)",ROUND('[1]Tabla de Amortizacion'!#REF!,8),IF([1]CALCULADORA!$F$10=20%,ROUND('[1]Tabla de Amortizacion'!#REF!,8),ROUND('[1]Tabla de Amortizacion'!K115,8)))))) -> 0
A115: 2031-01-23 | B115: 0.00409982 | C115: =+VLOOKUP(A115,'Tabla de Amortizacion'!$D$2:$Q$182,MATCH(Tablas!$B$1,'Tabla de Amortizacion'!$D$2:$Q$2,0)) -> 0.00409982 | E115: =IF([1]CALCULADORA!$F$10="Contractual",ROUND('[1]Tabla de Amortizacion'!C116,8),IF([1]CALCULADORA!$F$10="6% (Medio)",ROUND('[1]Tabla de Amortizacion'!F116,8),IF([1]CALCULADORA!$F$10="10% (Medio Alto)",ROUND('[1]Tabla de Amortizacion'!H116,8),IF([1]CALCULADORA!$F$10="14% (Alto)",ROUND('[1]Tabla de Amortizacion'!#REF!,8),IF([1]CALCULADORA!$F$10=20%,ROUND('[1]Tabla de Amortizacion'!#REF!,8),ROUND('[1]Tabla de Amortizacion'!K116,8)))))) -> 0
A116: 2031-02-23 | B116: 0.00404319 | C116: =+VLOOKUP(A116,'Tabla de Amortizacion'!$D$2:$Q$182,MATCH(Tablas!$B$1,'Tabla de Amortizacion'!$D$2:$Q$2,0)) -> 0.00404319 | E116: =IF([1]CALCULADORA!$F$10="Contractual",ROUND('[1]Tabla de Amortizacion'!C117,8),IF([1]CALCULADORA!$F$10="6% (Medio)",ROUND('[1]Tabla de Amortizacion'!F117,8),IF([1]CALCULADORA!$F$10="10% (Medio Alto)",ROUND('[1]Tabla de Amortizacion'!H117,8),IF([1]CALCULADORA!$F$10="14% (Alto)",ROUND('[1]Tabla de Amortizacion'!#REF!,8),IF([1]CALCULADORA!$F$10=20%,ROUND('[1]Tabla de Amortizacion'!#REF!,8),ROUND('[1]Tabla de Amortizacion'!K117,8)))))) -> 0
A117: 2031-03-23 | B117: 0.00399023 | C117: =+VLOOKUP(A117,'Tabla de Amortizacion'!$D$2:$Q$182,MATCH(Tablas!$B$1,'Tabla de Amortizacion'!$D$2:$Q$2,0)) -> 0.00399023 | E117: =IF([1]CALCULADORA!$F$10="Contractual",ROUND('[1]Tabla de Amortizacion'!C118,8),IF([1]CALCULADORA!$F$10="6% (Medio)",ROUND('[1]Tabla de Amortizacion'!F118,8),IF([1]CALCULADORA!$F$10="10% (Medio Alto)",ROUND('[1]Tabla de Amortizacion'!H118,8),IF([1]CALCULADORA!$F$10="14% (Alto)",ROUND('[1]Tabla de Amortizacion'!#REF!,8),IF([1]CALCULADORA!$F$10=20%,ROUND('[1]Tabla de Amortizacion'!#REF!,8),ROUND('[1]Tabla de Amortizacion'!K118,8)))))) -> 0
A118: 2031-04-23 | B118: 0.0039217 | C118: =+VLOOKUP(A118,'Tabla de Amortizacion'!$D$2:$Q$182,MATCH(Tablas!$B$1,'Tabla de Amortizacion'!$D$2:$Q$2,0)) -> 0.0039217 | E118: =IF([1]CALCULADORA!$F$10="Contractual",ROUND('[1]Tabla de Amortizacion'!C119,8),IF([1]CALCULADORA!$F$10="6% (Medio)",ROUND('[1]Tabla de Amortizacion'!F119,8),IF([1]CALCULADORA!$F$10="10% (Medio Alto)",ROUND('[1]Tabla de Amortizacion'!H119,8),IF([1]CALCULADORA!$F$10="14% (Alto)",ROUND('[1]Tabla de Amortizacion'!#REF!,8),IF([1]CALCULADORA!$F$10=20%,ROUND('[1]Tabla de Amortizacion'!#REF!,8),ROUND('[1]Tabla de Amortizacion'!K119,8)))))) -> 0
A119: 2031-05-23 | B119: 0.0032861 | C119: =+VLOOKUP(A119,'Tabla de Amortizacion'!$D$2:$Q$182,MATCH(Tablas!$B$1,'Tabla de Amortizacion'!$D$2:$Q$2,0)) -> 0.0032861 | E119: =IF([1]CALCULADORA!$F$10="Contractual",ROUND('[1]Tabla de Amortizacion'!C120,8),IF([1]CALCULADORA!$F$10="6% (Medio)",ROUND('[1]Tabla de Amortizacion'!F120,8),IF([1]CALCULADORA!$F$10="10% (Medio Alto)",ROUND('[1]Tabla de Amortizacion'!H120,8),IF([1]CALCULADORA!$F$10="14% (Alto)",ROUND('[1]Tabla de Amortizacion'!#REF!,8),IF([1]CALCULADORA!$F$10=20%,ROUND('[1]Tabla de Amortizacion'!#REF!,8),ROUND('[1]Tabla de Amortizacion'!K120,8)))))) -> 0
A120: 2031-06-23 | B120: 0.00299355 | C120: =+VLOOKUP(A120,'Tabla de Amortizacion'!$D$2:$Q$182,MATCH(Tablas!$B$1,'Tabla de Amortizacion'!$D$2:$Q$2,0)) -> 0.00299355 | E120: =IF([1]CALCULADORA!$F$10="Contractual",ROUND('[1]Tabla de Amortizacion'!C121,8),IF([1]CALCULADORA!$F$10="6% (Medio)",ROUND('[1]Tabla de Amortizacion'!F121,8),IF([1]CALCULADORA!$F$10="10% (Medio Alto)",ROUND('[1]Tabla de Amortizacion'!H121,8),IF([1]CALCULADORA!$F$10="14% (Alto)",ROUND('[1]Tabla de Amortizacion'!#REF!,8),IF([1]CALCULADORA!$F$10=20%,ROUND('[1]Tabla de Amortizacion'!#REF!,8),ROUND('[1]Tabla de Amortizacion'!K121,8)))))) -> 0
A121: 2031-07-23 | B121: 0 | C121: =+VLOOKUP(A121,'Tabla de Amortizacion'!$D$2:$Q$182,MATCH(Tablas!$B$1,'Tabla de Amortizacion'!$D$2:$Q$2,0)) -> 0 | E121: =IF([1]CALCULADORA!$F$10="Contractual",ROUND('[1]Tabla de Amortizacion'!C122,8),IF([1]CALCULADORA!$F$10="6% (Medio)",ROUND('[1]Tabla de Amortizacion'!F122,8),IF([1]CALCULADORA!$F$10="10% (Medio Alto)",ROUND('[1]Tabla de Amortizacion'!H122,8),IF([1]CALCULADORA!$F$10="14% (Alto)",ROUND('[1]Tabla de Amortizacion'!#REF!,8),IF([1]CALCULADORA!$F$10=20%,ROUND('[1]Tabla de Amortizacion'!#REF!,8),ROUND('[1]Tabla de Amortizacion'!K122,8)))))) -> 0
A122: 2031-08-23 | B122: 0 | C122: =+VLOOKUP(A122,'Tabla de Amortizacion'!$D$2:$Q$182,MATCH(Tablas!$B$1,'Tabla de Amortizacion'!$D$2:$Q$2,0)) -> 0 | E122: =IF([1]CALCULADORA!$F$10="Contractual",ROUND('[1]Tabla de Amortizacion'!C123,8),IF([1]CALCULADORA!$F$10="6% (Medio)",ROUND('[1]Tabla de Amortizacion'!F123,8),IF([1]CALCULADORA!$F$10="10% (Medio Alto)",ROUND('[1]Tabla de Amortizacion'!H123,8),IF([1]CALCULADORA!$F$10="14% (Alto)",ROUND('[1]Tabla de Amortizacion'!#REF!,8),IF([1]CALCULADORA!$F$10=20%,ROUND('[1]Tabla de Amortizacion'!#REF!,8),ROUND('[1]Tabla de Amortizacion'!K123,8)))))) -> 0
A123: 2031-09-23 | B123: 0 | C123: =+VLOOKUP(A123,'Tabla de Amortizacion'!$D$2:$Q$182,MATCH(Tablas!$B$1,'Tabla de Amortizacion'!$D$2:$Q$2,0)) -> 0 | E123: =IF([1]CALCULADORA!$F$10="Contractual",ROUND('[1]Tabla de Amortizacion'!C124,8),IF([1]CALCULADORA!$F$10="6% (Medio)",ROUND('[1]Tabla de Amortizacion'!F124,8),IF([1]CALCULADORA!$F$10="10% (Medio Alto)",ROUND('[1]Tabla de Amortizacion'!H124,8),IF([1]CALCULADORA!$F$10="14% (Alto)",ROUND('[1]Tabla de Amortizacion'!#REF!,8),IF([1]CALCULADORA!$F$10=20%,ROUND('[1]Tabla de Amortizacion'!#REF!,8),ROUND('[1]Tabla de Amortizacion'!K124,8)))))) -> 0
A124: 2031-10-23 | B124: 0 | C124: =+VLOOKUP(A124,'Tabla de Amortizacion'!$D$2:$Q$182,MATCH(Tablas!$B$1,'Tabla de Amortizacion'!$D$2:$Q$2,0)) -> 0 | E124: =IF([1]CALCULADORA!$F$10="Contractual",ROUND('[1]Tabla de Amortizacion'!C125,8),IF([1]CALCULADORA!$F$10="6% (Medio)",ROUND('[1]Tabla de Amortizacion'!F125,8),IF([1]CALCULADORA!$F$10="10% (Medio Alto)",ROUND('[1]Tabla de Amortizacion'!H125,8),IF([1]CALCULADORA!$F$10="14% (Alto)",ROUND('[1]Tabla de Amortizacion'!#REF!,8),IF([1]CALCULADORA!$F$10=20%,ROUND('[1]Tabla de Amortizacion'!#REF!,8),ROUND('[1]Tabla de Amortizacion'!K125,8)))))) -> 0
A125: 2031-11-23 | B125: 0 | C125: =+VLOOKUP(A125,'Tabla de Amortizacion'!$D$2:$Q$182,MATCH(Tablas!$B$1,'Tabla de Amortizacion'!$D$2:$Q$2,0)) -> 0 | E125: =IF([1]CALCULADORA!$F$10="Contractual",ROUND('[1]Tabla de Amortizacion'!C126,8),IF([1]CALCULADORA!$F$10="6% (Medio)",ROUND('[1]Tabla de Amortizacion'!F126,8),IF([1]CALCULADORA!$F$10="10% (Medio Alto)",ROUND('[1]Tabla de Amortizacion'!H126,8),IF([1]CALCULADORA!$F$10="14% (Alto)",ROUND('[1]Tabla de Amortizacion'!#REF!,8),IF([1]CALCULADORA!$F$10=20%,ROUND('[1]Tabla de Amortizacion'!#REF!,8),ROUND('[1]Tabla de Amortizacion'!K126,8)))))) -> 0
A126: 2031-12-23 | B126: 0 | C126: =+VLOOKUP(A126,'Tabla de Amortizacion'!$D$2:$Q$182,MATCH(Tablas!$B$1,'Tabla de Amortizacion'!$D$2:$Q$2,0)) -> 0 | E126: =IF([1]CALCULADORA!$F$10="Contractual",ROUND('[1]Tabla de Amortizacion'!C127,8),IF([1]CALCULADORA!$F$10="6% (Medio)",ROUND('[1]Tabla de Amortizacion'!F127,8),IF([1]CALCULADORA!$F$10="10% (Medio Alto)",ROUND('[1]Tabla de Amortizacion'!H127,8),IF([1]CALCULADORA!$F$10="14% (Alto)",ROUND('[1]Tabla de Amortizacion'!#REF!,8),IF([1]CALCULADORA!$F$10=20%,ROUND('[1]Tabla de Amortizacion'!#REF!,8),ROUND('[1]Tabla de Amortizacion'!K127,8)))))) -> 0
A127: 2032-01-23 | B127: 0 | C127: =+VLOOKUP(A127,'Tabla de Amortizacion'!$D$2:$Q$182,MATCH(Tablas!$B$1,'Tabla de Amortizacion'!$D$2:$Q$2,0)) -> 0 | E127: =IF([1]CALCULADORA!$F$10="Contractual",ROUND('[1]Tabla de Amortizacion'!C128,8),IF([1]CALCULADORA!$F$10="6% (Medio)",ROUND('[1]Tabla de Amortizacion'!F128,8),IF([1]CALCULADORA!$F$10="10% (Medio Alto)",ROUND('[1]Tabla de Amortizacion'!H128,8),IF([1]CALCULADORA!$F$10="14% (Alto)",ROUND('[1]Tabla de Amortizacion'!#REF!,8),IF([1]CALCULADORA!$F$10=20%,ROUND('[1]Tabla de Amortizacion'!#REF!,8),ROUND('[1]Tabla de Amortizacion'!K128,8)))))) -> 0
A128: 2032-02-23 | B128: 0 | C128: =+VLOOKUP(A128,'Tabla de Amortizacion'!$D$2:$Q$182,MATCH(Tablas!$B$1,'Tabla de Amortizacion'!$D$2:$Q$2,0)) -> 0 | E128: =IF([1]CALCULADORA!$F$10="Contractual",ROUND('[1]Tabla de Amortizacion'!C129,8),IF([1]CALCULADORA!$F$10="6% (Medio)",ROUND('[1]Tabla de Amortizacion'!F129,8),IF([1]CALCULADORA!$F$10="10% (Medio Alto)",ROUND('[1]Tabla de Amortizacion'!H129,8),IF([1]CALCULADORA!$F$10="14% (Alto)",ROUND('[1]Tabla de Amortizacion'!#REF!,8),IF([1]CALCULADORA!$F$10=20%,ROUND('[1]Tabla de Amortizacion'!#REF!,8),ROUND('[1]Tabla de Amortizacion'!K129,8)))))) -> 0
A129: 2032-03-23 | B129: 0 | C129: =+VLOOKUP(A129,'Tabla de Amortizacion'!$D$2:$Q$182,MATCH(Tablas!$B$1,'Tabla de Amortizacion'!$D$2:$Q$2,0)) -> 0 | E129: =IF([1]CALCULADORA!$F$10="Contractual",ROUND('[1]Tabla de Amortizacion'!C130,8),IF([1]CALCULADORA!$F$10="6% (Medio)",ROUND('[1]Tabla de Amortizacion'!F130,8),IF([1]CALCULADORA!$F$10="10% (Medio Alto)",ROUND('[1]Tabla de Amortizacion'!H130,8),IF([1]CALCULADORA!$F$10="14% (Alto)",ROUND('[1]Tabla de Amortizacion'!#REF!,8),IF([1]CALCULADORA!$F$10=20%,ROUND('[1]Tabla de Amortizacion'!#REF!,8),ROUND('[1]Tabla de Amortizacion'!K130,8)))))) -> 0
A130: 2032-04-23 | B130: 0 | C130: =+VLOOKUP(A130,'Tabla de Amortizacion'!$D$2:$Q$182,MATCH(Tablas!$B$1,'Tabla de Amortizacion'!$D$2:$Q$2,0)) -> 0 | E130: =IF([1]CALCULADORA!$F$10="Contractual",ROUND('[1]Tabla de Amortizacion'!C131,8),IF([1]CALCULADORA!$F$10="6% (Medio)",ROUND('[1]Tabla de Amortizacion'!F131,8),IF([1]CALCULADORA!$F$10="10% (Medio Alto)",ROUND('[1]Tabla de Amortizacion'!H131,8),IF([1]CALCULADORA!$F$10="14% (Alto)",ROUND('[1]Tabla de Amortizacion'!#REF!,8),IF([1]CALCULADORA!$F$10=20%,ROUND('[1]Tabla de Amortizacion'!#REF!,8),ROUND('[1]Tabla de Amortizacion'!K131,8)))))) -> 0
A131: =EDATE(A130,1) -> 2032-05-23 | B131: =+ROUND(C131,8) -> 0 | C131: =+VLOOKUP(A131,'Tabla de Amortizacion'!$D$2:$Q$182,MATCH(Tablas!$B$1,'Tabla de Amortizacion'!$D$2:$Q$2,0)) -> 0 | E131: =IF([1]CALCULADORA!$F$10="Contractual",ROUND('[1]Tabla de Amortizacion'!C132,8),IF([1]CALCULADORA!$F$10="6% (Medio)",ROUND('[1]Tabla de Amortizacion'!F132,8),IF([1]CALCULADORA!$F$10="10% (Medio Alto)",ROUND('[1]Tabla de Amortizacion'!H132,8),IF([1]CALCULADORA!$F$10="14% (Alto)",ROUND('[1]Tabla de Amortizacion'!#REF!,8),IF([1]CALCULADORA!$F$10=20%,ROUND('[1]Tabla de Amortizacion'!#REF!,8),ROUND('[1]Tabla de Amortizacion'!K132,8)))))) -> 0
A132: 2032-06-23 | B132: 0 | C132: =+VLOOKUP(A132,'Tabla de Amortizacion'!$D$2:$Q$182,MATCH(Tablas!$B$1,'Tabla de Amortizacion'!$D$2:$Q$2,0)) -> 0 | E132: =IF([1]CALCULADORA!$F$10="Contractual",ROUND('[1]Tabla de Amortizacion'!C133,8),IF([1]CALCULADORA!$F$10="6% (Medio)",ROUND('[1]Tabla de Amortizacion'!F133,8),IF([1]CALCULADORA!$F$10="10% (Medio Alto)",ROUND('[1]Tabla de Amortizacion'!H133,8),IF([1]CALCULADORA!$F$10="14% (Alto)",ROUND('[1]Tabla de Amortizacion'!#REF!,8),IF([1]CALCULADORA!$F$10=20%,ROUND('[1]Tabla de Amortizacion'!#REF!,8),ROUND('[1]Tabla de Amortizacion'!K133,8)))))) -> 0
A133: 2032-07-23 | B133: 0 | C133: =+VLOOKUP(A133,'Tabla de Amortizacion'!$D$2:$Q$182,MATCH(Tablas!$B$1,'Tabla de Amortizacion'!$D$2:$Q$2,0)) -> 0 | E133: =IF([1]CALCULADORA!$F$10="Contractual",ROUND('[1]Tabla de Amortizacion'!C134,8),IF([1]CALCULADORA!$F$10="6% (Medio)",ROUND('[1]Tabla de Amortizacion'!F134,8),IF([1]CALCULADORA!$F$10="10% (Medio Alto)",ROUND('[1]Tabla de Amortizacion'!H134,8),IF([1]CALCULADORA!$F$10="14% (Alto)",ROUND('[1]Tabla de Amortizacion'!#REF!,8),IF([1]CALCULADORA!$F$10=20%,ROUND('[1]Tabla de Amortizacion'!#REF!,8),ROUND('[1]Tabla de Amortizacion'!K134,8)))))) -> 0
A134: 2032-08-23 | B134: 0 | C134: =+VLOOKUP(A134,'Tabla de Amortizacion'!$D$2:$Q$182,MATCH(Tablas!$B$1,'Tabla de Amortizacion'!$D$2:$Q$2,0)) -> 0 | E134: =IF([1]CALCULADORA!$F$10="Contractual",ROUND('[1]Tabla de Amortizacion'!C135,8),IF([1]CALCULADORA!$F$10="6% (Medio)",ROUND('[1]Tabla de Amortizacion'!F135,8),IF([1]CALCULADORA!$F$10="10% (Medio Alto)",ROUND('[1]Tabla de Amortizacion'!H135,8),IF([1]CALCULADORA!$F$10="14% (Alto)",ROUND('[1]Tabla de Amortizacion'!#REF!,8),IF([1]CALCULADORA!$F$10=20%,ROUND('[1]Tabla de Amortizacion'!#REF!,8),ROUND('[1]Tabla de Amortizacion'!K135,8)))))) -> 0
A135: 2032-09-23 | B135: 0 | C135: =+VLOOKUP(A135,'Tabla de Amortizacion'!$D$2:$Q$182,MATCH(Tablas!$B$1,'Tabla de Amortizacion'!$D$2:$Q$2,0)) -> 0 | E135: =IF([1]CALCULADORA!$F$10="Contractual",ROUND('[1]Tabla de Amortizacion'!C136,8),IF([1]CALCULADORA!$F$10="6% (Medio)",ROUND('[1]Tabla de Amortizacion'!F136,8),IF([1]CALCULADORA!$F$10="10% (Medio Alto)",ROUND('[1]Tabla de Amortizacion'!H136,8),IF([1]CALCULADORA!$F$10="14% (Alto)",ROUND('[1]Tabla de Amortizacion'!#REF!,8),IF([1]CALCULADORA!$F$10=20%,ROUND('[1]Tabla de Amortizacion'!#REF!,8),ROUND('[1]Tabla de Amortizacion'!K136,8)))))) -> 0
A136: 2032-10-23 | B136: 0 | C136: =+VLOOKUP(A136,'Tabla de Amortizacion'!$D$2:$Q$182,MATCH(Tablas!$B$1,'Tabla de Amortizacion'!$D$2:$Q$2,0)) -> 0 | E136: =IF([1]CALCULADORA!$F$10="Contractual",ROUND('[1]Tabla de Amortizacion'!C137,8),IF([1]CALCULADORA!$F$10="6% (Medio)",ROUND('[1]Tabla de Amortizacion'!F137,8),IF([1]CALCULADORA!$F$10="10% (Medio Alto)",ROUND('[1]Tabla de Amortizacion'!H137,8),IF([1]CALCULADORA!$F$10="14% (Alto)",ROUND('[1]Tabla de Amortizacion'!#REF!,8),IF([1]CALCULADORA!$F$10=20%,ROUND('[1]Tabla de Amortizacion'!#REF!,8),ROUND('[1]Tabla de Amortizacion'!K137,8)))))) -> 0
A137: 2032-11-23 | B137: 0 | C137: =+VLOOKUP(A137,'Tabla de Amortizacion'!$D$2:$Q$182,MATCH(Tablas!$B$1,'Tabla de Amortizacion'!$D$2:$Q$2,0)) -> 0 | E137: =IF([1]CALCULADORA!$F$10="Contractual",ROUND('[1]Tabla de Amortizacion'!C138,8),IF([1]CALCULADORA!$F$10="6% (Medio)",ROUND('[1]Tabla de Amortizacion'!F138,8),IF([1]CALCULADORA!$F$10="10% (Medio Alto)",ROUND('[1]Tabla de Amortizacion'!H138,8),IF([1]CALCULADORA!$F$10="14% (Alto)",ROUND('[1]Tabla de Amortizacion'!#REF!,8),IF([1]CALCULADORA!$F$10=20%,ROUND('[1]Tabla de Amortizacion'!#REF!,8),ROUND('[1]Tabla de Amortizacion'!K138,8)))))) -> 0
A138: 2032-12-23 | B138: 0 | C138: =+VLOOKUP(A138,'Tabla de Amortizacion'!$D$2:$Q$182,MATCH(Tablas!$B$1,'Tabla de Amortizacion'!$D$2:$Q$2,0)) -> 0 | E138: =IF([1]CALCULADORA!$F$10="Contractual",ROUND('[1]Tabla de Amortizacion'!C139,8),IF([1]CALCULADORA!$F$10="6% (Medio)",ROUND('[1]Tabla de Amortizacion'!F139,8),IF([1]CALCULADORA!$F$10="10% (Medio Alto)",ROUND('[1]Tabla de Amortizacion'!H139,8),IF([1]CALCULADORA!$F$10="14% (Alto)",ROUND('[1]Tabla de Amortizacion'!#REF!,8),IF([1]CALCULADORA!$F$10=20%,ROUND('[1]Tabla de Amortizacion'!#REF!,8),ROUND('[1]Tabla de Amortizacion'!K139,8)))))) -> 0
A139: 2033-01-23 | B139: 0 | C139: =+VLOOKUP(A139,'Tabla de Amortizacion'!$D$2:$Q$182,MATCH(Tablas!$B$1,'Tabla de Amortizacion'!$D$2:$Q$2,0)) -> 0 | E139: =IF([1]CALCULADORA!$F$10="Contractual",ROUND('[1]Tabla de Amortizacion'!C140,8),IF([1]CALCULADORA!$F$10="6% (Medio)",ROUND('[1]Tabla de Amortizacion'!F140,8),IF([1]CALCULADORA!$F$10="10% (Medio Alto)",ROUND('[1]Tabla de Amortizacion'!H140,8),IF([1]CALCULADORA!$F$10="14% (Alto)",ROUND('[1]Tabla de Amortizacion'!#REF!,8),IF([1]CALCULADORA!$F$10=20%,ROUND('[1]Tabla de Amortizacion'!#REF!,8),ROUND('[1]Tabla de Amortizacion'!K140,8)))))) -> 0
A140: 2033-02-23 | B140: 0 | C140: =+VLOOKUP(A140,'Tabla de Amortizacion'!$D$2:$Q$182,MATCH(Tablas!$B$1,'Tabla de Amortizacion'!$D$2:$Q$2,0)) -> 0 | E140: =IF([1]CALCULADORA!$F$10="Contractual",ROUND('[1]Tabla de Amortizacion'!C141,8),IF([1]CALCULADORA!$F$10="6% (Medio)",ROUND('[1]Tabla de Amortizacion'!F141,8),IF([1]CALCULADORA!$F$10="10% (Medio Alto)",ROUND('[1]Tabla de Amortizacion'!H141,8),IF([1]CALCULADORA!$F$10="14% (Alto)",ROUND('[1]Tabla de Amortizacion'!#REF!,8),IF([1]CALCULADORA!$F$10=20%,ROUND('[1]Tabla de Amortizacion'!#REF!,8),ROUND('[1]Tabla de Amortizacion'!K141,8)))))) -> 0
A141: 2033-03-23 | B141: 0 | C141: =+VLOOKUP(A141,'Tabla de Amortizacion'!$D$2:$Q$182,MATCH(Tablas!$B$1,'Tabla de Amortizacion'!$D$2:$Q$2,0)) -> 0 | E141: =IF([1]CALCULADORA!$F$10="Contractual",ROUND('[1]Tabla de Amortizacion'!C142,8),IF([1]CALCULADORA!$F$10="6% (Medio)",ROUND('[1]Tabla de Amortizacion'!F142,8),IF([1]CALCULADORA!$F$10="10% (Medio Alto)",ROUND('[1]Tabla de Amortizacion'!H142,8),IF([1]CALCULADORA!$F$10="14% (Alto)",ROUND('[1]Tabla de Amortizacion'!#REF!,8),IF([1]CALCULADORA!$F$10=20%,ROUND('[1]Tabla de Amortizacion'!#REF!,8),ROUND('[1]Tabla de Amortizacion'!K142,8)))))) -> 0
A142: 2033-04-23 | B142: 0 | C142: =+VLOOKUP(A142,'Tabla de Amortizacion'!$D$2:$Q$182,MATCH(Tablas!$B$1,'Tabla de Amortizacion'!$D$2:$Q$2,0)) -> 0 | E142: =IF([1]CALCULADORA!$F$10="Contractual",ROUND('[1]Tabla de Amortizacion'!C143,8),IF([1]CALCULADORA!$F$10="6% (Medio)",ROUND('[1]Tabla de Amortizacion'!F143,8),IF([1]CALCULADORA!$F$10="10% (Medio Alto)",ROUND('[1]Tabla de Amortizacion'!H143,8),IF([1]CALCULADORA!$F$10="14% (Alto)",ROUND('[1]Tabla de Amortizacion'!#REF!,8),IF([1]CALCULADORA!$F$10=20%,ROUND('[1]Tabla de Amortizacion'!#REF!,8),ROUND('[1]Tabla de Amortizacion'!K143,8)))))) -> 0
A143: 2033-05-23 | B143: 0 | C143: =+VLOOKUP(A143,'Tabla de Amortizacion'!$D$2:$Q$182,MATCH(Tablas!$B$1,'Tabla de Amortizacion'!$D$2:$Q$2,0)) -> 0 | E143: =IF([1]CALCULADORA!$F$10="Contractual",ROUND('[1]Tabla de Amortizacion'!C144,8),IF([1]CALCULADORA!$F$10="6% (Medio)",ROUND('[1]Tabla de Amortizacion'!F144,8),IF([1]CALCULADORA!$F$10="10% (Medio Alto)",ROUND('[1]Tabla de Amortizacion'!H144,8),IF([1]CALCULADORA!$F$10="14% (Alto)",ROUND('[1]Tabla de Amortizacion'!#REF!,8),IF([1]CALCULADORA!$F$10=20%,ROUND('[1]Tabla de Amortizacion'!#REF!,8),ROUND('[1]Tabla de Amortizacion'!K144,8)))))) -> 0
